Workbook

Sheet Hintergrund
A1: LC-Quartier
A4: Zielgruppe und Zweck
A6: Das Tool richtet sich an Städte und Kommunen sowie Privatpersonen, welche die Ressourceneffizienz von Wohnquartieren oder einzelnen Wohngebäuden bewerten möchten. Es wurde entwicklet, um die Ressourceneffizienz bestehender Wohnquartiere in unterschiedlichen Lebensphasen zu erfassen und verschiedene Maßnahmen zur Quartiersentwicklung zu bewerten. Das Tool ermöglicht es Kommunen oder anderen Entscheidungsträgern, wie beispielsweise Wohnbaugesellschaften mit Quartiersbezug, Entwicklungsmaßnahmen so auszuwählen und miteinander zu vergleichen, dass politische Ziele zur Treibhausgasreduktion erfüllt und gleichzeitig eine möglichst hohe Ressourceneffizienz gewährleistet werden können. Dabei kann der gesamte Lebenszyklus sowie die verschiedenen Lebenszyklusphasen betrachtet werden. Somit können auch Substitutions- und Trade-Off-Effekte sichtbar gemacht werden. Des Weiteren ist eine vorläufige Kostenabschätzung möglich.
A14: Folgende kommunale Planungsaufgaben werden unterstützt:
A16: CO2-Bilanzen in Umweltberichten nach DIN EN 15978 und GHG-Protocol
A17: Maßnahmen- und Kennwertentwicklung für Klimaschutzkonzepte
A18: Stellungnahmen zu Bauvorhaben
A19: Sanierungsberatung für Gebäudeeigentümer
A20: Vorplanung von Sanierungen
A21: Wofür das Tool nicht geeignet ist
A23: Das Tool ist nurfür die Vorplanung und zum Einholen erster Informationen über die Sanierungsmöglichkeiten eines Quartiers geeignet. Aufgrund der im Tool getroffener Annahmen ist es nicht möglich, absolute Aussagen zu treffen. Die Ergebnisse sollten immer vor dem Hintergrund betrachtet werden, dass alle Werte nur Abschätzungen sind und auf Literaturangaben sowie Berechnungen beruhen. Weiterhin wurden in der Ökobilanz folgende Einbauten und Materialien nicht berücksichtigt: Innenaufbauten wie Tapeten, Bodenbeläge, Teppiche, Fliesen, Rohrleitungen, Möbel. Dies sollte bei der Bewertung der Ergebnisse berücksichtigt werden. Die dem Tool zugrunde liegenden Kosten sind ebenfalls Durchschnittswerte.
A31: Erstellt von
A37: Finanziert und bereitgestellt von
A44: Ansprechpartner
A46: Technische Universität Darmstadt, Institut IWAR, FG Stoffstrom- und Ressourcenmanagement
A47: Prof. Dr. Lieselotte Schebek, Steffi Weyand, Regina Berlinger
A48: https://www.iwar.tu-darmstadt.de/sur/

Sheet Nutzungsanleitung
A1: Nutzungsanleitung
A2: 1. Hintergrund
A3: Das Arbeitsblatt "Hintergrund" erklärt das Ziel des Tools, sowie dessen Nutzungs- und Anwendungsmöglichkeiten. Hier werden ebenfalls Limitationen aufgezeigt und potenzielle Nutzergruppen und Verantwortliche benannt.
A4: 2. Nutzungsanleitung
A5: Auf dem Arbeitsblatt "Nutzungsanleitung" wird beschrieben, wie das Tool zu nutzen ist, und Hinweise zu den einzelne Felder gegeben.
A6: 3. Start / Auswahl Datenbank
A7: Das Tool beginnt auf dem Arbeitsblatt "Start". Hier können allgemeine Informationen wie die Beschreibung des Gebäudes oder Quartiers inklusive Adresse, Ansprechpartner:innen, Kontaktinformationen, Projektbezeichnung, involvierte Akteur:innen festgehalten werden. Synthetische Daten/Realdaten: Es muss anschließend die Datengrundlage für die Berechnungen ausgewählt werden. Hier ist die Möglichkeit zwischen Realdaten oder synthetischen Daten zu wählen. Es muss außerdem festgelegt werden, ob ein einzelnes Haus oder ein gesamtes Quartier betrachtet werden soll. Basierend auf dieser Auswahl werden die Arbeitsblätter "Quartier" und "Ergebnis Quartier" für synthetische Daten, die Arbeitsblätter "Eingabe Gebäude", "Sanierung Einzelgebäude" und "Ergebnis Einzelgebäude" für reale Gebäude und die Arbeitsblätter "Eingabe Quartier", "Sanierung Realquartier" und "Ergebnis Realquartier" für reale Quartiere eingeblendet. Datenbank für Emissionsfaktoren: Es muss auf dem Arbeitblatt ausgewählt werden, welche Datenbank für die Emissionsfaktoren genutzt werden soll. Hier stehen folgende Datenbanken mit unterschiedlichen Wirkungskategorien zur Verfügung: Ökobaudat 2024: THG [CO2-eq], Wasserentzugspotenzial [m3 world eq], ADPE [kg Sb eq], ADPF [MJ] Eigene Datenbank: THG [CO2-eq], Water consumption [m3], Mineral resource scarcity [kg Cu eq], Fossil resource scarcity [kg Oil eq], Land use [m2 crop eq], Fine particulate matter formation [kg PM 2.5 eq] Wird die Wahl getroffen, die eigene Datenbank zu nutzen, muss das Arbeitsblatt "Eigene Datenbank" gefüllt werden, damit eine Berechnung möglich ist. Diese ungefüllte Datenbank ist so vorbereitet, dass Ecoinvent-Daten genutzt werden können. Werden die genauen Bezeichnungen, welche im Arbeitsblatt "Eigene Datenbank" beschrieben sind, aus Ecoinvent genutzt, müssen die Datensätze nicht umgerechnet werden und können 1:1 übernommen werden. In Ausnahmefällen muss die funktionelle Einheit angepasst werden, dies steht jedoch jeweils in den Anmerkungen vermerkt. Datenbank für Wärmeplanung: Ebenso muss die Datenbank für die Wärmeplanung gewählt werden. Hier stehen folgende Datenbanken zur Verfügung: EnerCalc 2016 dena Gebäudereport 2016 Scope: Zur Bilanzierung der THG-Emissionen muss der Scope (Untersuchungsrahmen) festgelegt werden. Hier kann zwischen DIN EN 15804 und GHG-Protocol for Cities gewählt werden. Diese werden mittels eingefügten Schaubildern erklärt. Durch anklicken der Schaltfläche "Werte zurücksetzen" werden alle eingegebenen Daten im gesamten Arbeitsblatt zurückgesetzt. Auch aus dem GMK exportierte Werte werden gelöscht.
A8: 4. Synthetische Daten
A9: Für synthetische Daten: Hier wird auf dem "Arbeitsblatt "Quartier" gestartet. Es müssen keinerlei Daten eingegeben werden, sondern lediglich die Quartiersgröße und -Dichte sowie die Baualterklasse aus den entsprechenden Dropdowns ausgewählt werden. Um ein Sanierungsszenario abzubilden, müssen verschiedene Parameter gewählt werden: Beheizungsstruktur: Hierbei ist es ebenfalls möglich, eigene Werte einzugeben, falls genauere Daten vorhanden sind. Passive Sanierung: Hier ist die gewünschte Sanierungstiefe auszuwählen, die angibt, auf welchen KfW-Standard saniert werden soll. Es muss ebenso angegeben werden, welcher Prozentanteil des Quartiers auf die gewünschte Sanierungstiefe saniert werden soll. Sanierungsmaterial und Rahmentmaterial geben Aufschluss über die zu nutzenden Dämmmaterialien. Aktive Sanierung: Hier ist einerseitzs zu wählen, welcher Prozentsatz des vom Gebäude benötigten Stroms mit hauseigener PV-Anlage erzeugt werden soll. Andererseits ist eine Auswahl des gewünschten Wärmeerzeugers zu treffen. Werden Fernwärme oder BHKW ausgewählt, muss zusätzlich entschieden werden, ob diese Teil des Quartiers sind, da dies relevant für die Berechnung der THG-Bilanz nach Scope ist.
A10: 5. Reale Daten Einzelhaus
A11: Eingabe Gebäude: Das Tool erwartet nur auf dem Arbeitsblatt "Eingabe Gebäude" eine Dateneingabe. Hier sind die Adresse, das Baujahr, die Bruttogrundfläche BGF [m2], die Gebäudegrundfläche GGF [m2], der Bruttorauminhalt BRI [m3], die Gebäudenutzfläche GNF [m2], die Nutzungsdauer [a], Traufhöhe [m], Firtshöhe [m], Anzahl und Höhe [m]der Stockwerke, Umfang [m], Türfläche [m2], sowie die Wohneinheiten pro Gebäude einzutragen. Falls vorhanden können ebenfalls der Wärme- und Strombedarf [kWh/a] eingetragen werden. Bei den Grau hinterlegten Feldern handelt es sich um Auswahl-Menüs, aus denen die folgenden Information ausgewählt werden müssen: Hausform, Dachart, freistehende Wände, Fenstermaterial und-Verglasung, Sanierungstand und Personen pro Wohneinheit. Die orangefarbenen Felder benötigen keine Eingabe und werden automatisch berechnet. Sanierung Einzelgebäude: Auf dem Arbeitsblättern "Sanierung Einzelgebäude" ist nur eine Auswahl aus den verschieden Dropdown-Menüs notwendig. Die Eingaben sind meist selbsterklärend, da sie beim Klicken auf das Feld durch einen Hinweis beschrieben werden. Die Nutzenphase wird zunächst im aktuellen IST-Zustand abgebildet. Hier werden THG-Emissionen, die in einem Jahr durch Energiebedarf für Warmwasser, Heizen, Beleuchtung und elektrische Geräte enstehen berechnet. Ein Vergleich mit den politisch festgelegten Klimazielen ist ebenfalls möglich. Im Anschluss daran können mögliche Sanierungszesanrien über den gesamten Lebenszyklus, d. h. inklusive der Aufwendungen für die Herstellung von Materialien und technischen Einbauten sowie des End-of-Life betrachtet werden. Um ein Sanierungsszenario abzubilden, müssen verschiedene Parameter gewählt werden: Beheizungsstruktur: Hierbei ist es ebenfalls möglich, eigene Werte einzugeben, falls genauere Daten vorhanden sind. Passive Sanierung: Hier ist die gewünschte Sanierungstiefe auszuwählen, die angibt, auf welchen KfW-Standard saniert werden soll. Sanierungsmaterial und Rahmentmaterial geben Aufschlüss über die zu nutzenden Dämmmaterialien. Aktive Sanierung: Hier ist einerseitzs zu wählen, welcher Prozentsatz des vom Gebäude benötigten Stroms mit hauseigener PV-Anlage erzeugt werden soll. Andererseits ist eine Auswahl des gewünschten Wärmeerzeugers zu treffen. Ergebnis Einzelgebäude: Das Arbeitsblatt "Ergebnis Einzelgebäude" kann nicht bearbeitet werden und dient der Veranschaulichung der Ergebnisse. Hier sind ebenfalls alle zuvor getätigten Eingaben gelistet, um die Ergebnisse einem Szenario zuordnen zu können. Dieses Arbeitsblatt ist dasjenige, welches als PDF exportiert werden soll, um ein Szenario abzuspeichern.
A12: 5. Reale Daten Quartier
A13: Eingabe Quartier: Das Tool erwartet nur auf dem Arbeitsblatt "Eingabe Quartier" eine Dateneingabe. Hier sind die Adresse, das Quartiersfläche [m2], die Summe der Bruttogrundflächen BGF [m2], die Summe der Gebäudegrundflächen GGF [m2], der Summe der Bruttorauminhalte BRI [m3], die Summe der Gebäudenutzflächen GNF [m2], die Nutzungsdauer [a], die Anzahl der Bevölkerung, die Verdichtung [%]. Zusätzlich muss die jeweilige Fläche [m2] pro Hausart und Baualtersklasse und die jeweilige Fläche [m2] pro Dachform und Baualtersklasse angegeben werden. Falls vorhanden können ebenfalls der Wärme- und Strombedarf [kWh/a] eingetragen werden. Die orangefarbenen Felder benötigen keine Eingabe und werden automatisch berechnet. Sanierung Realquartier: Auf dem Arbeitblatt "Sanierung Realquartier" ist nur eine Auswahl aus den verschieden Dropdown-Menüs notwendig. Die Eingaben sind meist selbsterklärend, da sie beim Klicken auf das Feld durch einen Hinweis beschrieben werden. Die Nutzenphase wird zunächst im aktuellen IST-Zustand abgebildet. Hier werden THG-Emissionen, die in einem Jahr durch Energiebedarf für Warmwasser, Heizen, Beleuchtung und elektrische Geräte enstehen berechnet. Ein Vergleich mit den politisch festgelegten Klimazielen ist ebenfalls möglich. Im Anschluss daran können mögliche Sanierungszesanrien über den gesamten Lebenszyklus, d. h. inklusive der Aufwendungen für die Herstellung von Materialien und technischen Einbauten sowie des End-of-Life betrachtet werden. Um ein Sanierungsszenario abzubilden, müssen verschiedene Parameter gewählt werden: Beheizungsstruktur: Hierbei ist es ebenfalls möglich, eigene Werte einzugeben, falls genauere Daten vorhanden sind. Passive Sanierung: Hier ist die gewünschte Sanierungstiefe auszuwählen, die angibt, auf welchen KfW-Standard saniert werden soll. Es muss ebenso angegeben werden, welcher Prozentanteil des Quartiers auf die gewünschte Sanierungstiefe saniert werden soll. Sanierungsmaterial und Rahmentmaterial geben Aufschluss über die zu nutzenden Dämmmaterialien. Aktive Sanierung: Hier ist einerseitzs zu wählen, welcher Prozentsatz des vom Quartier benötigten Stroms mit hauseigener PV-Anlage erzeugt werden soll. Andererseits ist eine Auswahl des gewünschten Wärmeerzeugers zu treffen. Werden Fernwärme oder BHKW ausgewählt, muss zusätzlich entschieden werden, ob diese Teil des Quartiers sind, da dies relevant für die Berechnung der THG-Bilanz nach Scope ist. Ergebnis Realquartier: Das Arbeitsblatt "Ergebnis Realquartier" kann nicht bearbeitet werden und dient der Veranschaulichung der Ergebnisse. Hier sind ebenfalls alle zuvor getätigten Eingaben gelistet, um die Ergebnisse einem Szenario zuordnen zu können. Dieses Arbeitsblatt ist dasjenige, welches als PDF exportiert werden soll, um ein Szenario abzuspeichern.
A14: 5. Farbcodierung
A15: In Grau hinterlegten Eingabefeldern muss eines der im Drop-Down Menü dargestellten Merkmale ausgewählt werden. Eine eigentständige Eingabe weiterer Merkmale ist nicht notwendig/möglich.
A16: In Blau hinterlegten Feldern werden Werte aus den (generischen) Quartieren und Gebäuden hinterlegt. Werden diese aus dem GMK exportiert, werden die blauen Felder automatisch ausgefüllt, sofern sie zur Berechnung der Ergebnisse unbedingt notwendig sind. Blau hinterlegte Felder, die nach dem Export aus dem GMK noch frei sind, sind zusätzliche Informationen, welche die Genauigkeit der berechneten Ergebnisse verbessern. Wird das LC-Quartier-Tool unabhängig vom GMK genutzt, müssen alle Daten in die blau hinterlegten Felder händisch eingetragen werden.
A17: Bei Grün hinterlegten Feldern handelt es sich um die Berechnungsergebnisse. Diese Felder können nicht bearbeitet werden.
A18: Bei Orange hinterlegten Feldern handelt es sich um die Ausgabe von Zwischenergebnissen, welche für die Nutzenden von Interesse sein könnten. Diese Felder können nicht bearbeitet werden.
C20: Auswahlfeld: Bitte im Dropdown-Menü die entsprechende Auswahl treffen.
C22: Eingabefeld: Hier müssen Daten händisch oder via Export durch das GMK eingetragen werden.
C25: Ausgabefeld: Daten/Zwischenergebnisse werden durch das Excel-Tool berechnet. Keine Eingabe möglich.
C27: Ergebnisfeld: Ergebnisse werden durch das Excel-Tool berechnet. Keine Eingabe möglich.
A29: 6. Kosten
A30: Auf dem Arbeitsblatt Kosten können die Kosten für die verschiedenen technischen Einbauten und Materialien eingetragen werden. Für Betriebs-/Anschaffungskosten sowie Dienstleistungskosten sind bereits Durchschnittswerte eingetragen. Diese können allerdings in der entsprechenden Spalte durch genauere Werte ersetzt werden. Für Transportkosten sind keine durchschnittlichen Werte vorhanden, da diese von Projekt zu Projekt stark variieren. Um diese in die Berechnung aufzunehmen, müssen die Transportkosten händisch nachgetragen werden.
A31: 7. Begriffserklärungen
A32: Hier werden alle im Tool genutzten Begriffen erklärt.
A33: BGF = Bruttogrundfläche = alle nutzbaren, umschlossenen Raumflächen einer Immobilie einschließlich Konstruktionsflächen inklusive Verputz und Verkleidung. Dazu gehören alle Räume, die als Nutzfläche, Verkehrsfläche, Technikfläche oder Konstruktionsgrundfläche zählen.
A34: GGF= Gebäudegrundfläche = Fläche eines Gebäudes, die sich durch die äußere Abmessung ergibt und unmittelbar Kontakt mit dem Boden hat. Entspricht der bebauten Fläche. Die Abmessung der Grundfläche erfolgt auf Fußbodenhöhe an bereits fertigen Oberflächen, wie Verkleidungen oder Dämmungen.
A35: GNF = Gebäudenutzfläche = die im behiezten Gebäudevolumen zur Verfügung stehende nutzbare Fläche. Sie wird aus dem beheiztem Gebäudevolumen unter Berücksichtigung einer üblichen Raumöhe im Wohnungsbau abzüglich der von Innen- und außenbauteilen beanspruchten Fläche ermittelt.
A36: BRI = Bruttorauminhalt = Gesamtvolumen eines Bauwerks
A37: Sanierungszustand r0-r3 = Der IST-Zustand der Sanierung des Gebäudes. In Deutschland werden vor allem Teilsanierungen durchgeführt. Um diesen Aspekt im Tool weiderzuspiegeln, wurden Sanierungsgrade für die vier energetisch relevantesten Bauteile (Dach, Wand, Fenster, Keller) eines Gebäudes bewertet, da sie die schnittstelle zur äußeren Umgebung darstellen. Die Sanierung kann in vier verscheidenen Stufen beschrieben werden: r0 = unsaniertes Gebäude r1 = Dach saniert r2 = Dach + Wand saniert r3 = Dach + Wand + Keller saniert
A38: BAK = Baualtersklasse = Klassifizierung von Gebäuden nach energetischer Performance und Baujahr Vor 1948 1948-1978 1979-1994 1995-2009 Gebäude, die nach 2009 errichtet wurden, erfüllen bereits einen strengen maximale Wärmedurchgangswert, weswegen in den nächsten Jahren keine Sanierung dieser Gebäude zu erwarten ist.
A39: Beheizungstruktur: Die Eingabe der Behizungstruktur ist notwendig, um mittels Nutzenergiebedarf für Wärme und Strom die Umweltwirkungen zu berechnen. Hier kann zwischem dem deutschen Durchschnitt mit und ohne Fernwärme gewählt werden. Liegen genauere Daten vor, so können diese ebenfalls eingetragen werden.
A40: Passive Sanierung: Es werden drei unterschiedliche Energiestandards untersucht: Die Sanierung nach Mindeststandard GEG, Sanierung nach KfW-Effizienzhaus 70 und Sanierung nach KfW-Effizinezhazs 40, sowie KfW-Effizinezhaus 40 plus. Die Passive Sanierung beeinhaltet zum einen die Dämmung der Bestandsgebäude. Hier kann zwischen den konventionellen Dämmstoffen XPS und EPS sowie den ökologischen Dämmstoffen Holzfaser und Zellulose gewählt werden. Auch das Rahmenmaterial für neu eingebaute Fenster kann ausgewählt werden. Hier werden im Tool nur neue Fenster eingebaut, wenn zuvor eingeben wurde, dass die bereits vorhandenen Fenster nicht 3-fach verglast sind. Zum anderen werden bei der passiven Sanierung die Materialien für einen neuen Dachaufbau berechnet.
A41: Verwertung: Für den durch die Sanierung anfallenden Bauschutt können verschieden Verwertungswege ausgewählt werden: Verwertung von 100 % des anfallenden Bauschutts Verwertung von 93, 9 % und Deponierung von 6,1 % des anfallenden Bauschutts
A42: Aktive Sanierung: Strom: Zur aktiven Sanierung des Gebäudes/Quartiers, kann gewählt werden, wie viel Energie der benötigten Nutzenergie durch den Einbau einer Photovoltaikanlage gedeckt werden soll. Hier kann zwischen 0 %, 20 %, 40 %, 60 %, 80 % und 100 % der benötigten Energie gewählt werden. Eine Speicherung des erzeugten Stroms ist im Tool nicht möglich. Es können folglich nicht mehr als 100 % erzeugt werden. Wärme: Zur aktiven Sanierung des Wärmeerzeugung des Gebäudes/Quartiers kann aus den verschiedenen Wärmeerzeugung Wärmepumpe, Heizöl erneuert, Heizöl nicht Erneuert, Erdgas, Holz/Pellet, Fernwärme und BHKW gewählt werden. Bei fErnwärme und BHKW werden die THG-Emissionen allerdings nicht pro Gebäude berechnet, sondern können nur für die Gesamtanlage berechnet werden.
A43: Bilanzierung nach Scope: Greenhousegas (GHG) Protocol for Cities
A47: DIN EN 15804:
A51: Datenbank für Treibhausgasemissionen: Ecoinvent, allcoation Cut-off by classification 3.8 (2021) / Ecoinvent, allcoation Cut-off by classification 3.10 (2023) Zurechnungsmodell, bei dem der Hersteller für die Abfälle verantwortlich ist ("polluter pays") und ein Anreiz besteht, wiederverwertbare Produkte zu verwenden, die ohne Belastung erhältlich sind ("cut off") Ökobaudat EN15804 + A2 Ökobilanz-Datensätze zu Baumaterialien, Bau-, Transport-, Energie und Entsorgungsprozessen. Lebenszyklus eines Bauwerks.
A52: Wirkungskategorien Recipe 2016 midpoint (H): Climate Change [kg CO2-eq]: Als mittlerer Charakterisierungsfaktor für den Klimawandel wurde das weit verbreitete globale Erwärmungspotenzial (GWP) gewählt, das den integrierten Anstieg der Infrarotstrahlung eines Treibhausgases (THG) quantifiziert, ausgedrückt in kg CO2-eq Fine particulate matter formation [kg PM 2,5 eq]: Beücksichtigt die Aufnahme von PM2,5 durch die menschliche Bevölkerung . Fossil resource scarcity [kg Oil eq]: Das Verhältnis zwischen dem höheren Heizwert einer fossilen Ressource und dem Energiegehalt von Rohöl Land use [m2 a crop eq]: Bezieht sich auf den relativen Artenverlust, der durch eine bestimmte Landnutzungsart (einjährige Kulturen, Dauerkulturen, Mosaiklandwirtschaft, Forstwirtschaft, städtische Flächen, Weideland) verursacht wird. Mineral resource scarcity [kg Cu eq]: Der Surplus Ore Potential drückt die durchschnittliche zusätzliche Menge an Erz aus, die in der Zukunft durch den Abbau einer mineralischen Ressource produziert wird, wobei alle zukünftigen Produktionen dieser mineralischen Ressource berücksichtigt werden Water consumption [m3]: Wasserentnahme, bei der keine Rückführung zur Quelle erfolgt, z. B. durch Verdunstung, Evapotranspiration, Produktintegration oder Ableitung in ein anderes Einzugsgebiet oder ins Meer. m3 verbrauchtes Wasser pro m3 entnommenes Wasser.
A53: 8. Speichern/ Exportieren der Ergebnisse
A54: Mit der Nutzung der Funktion von Excel zum Export, ist es ganz einfach möglich die Excel-Datei als PDF zu speichern. Hierzu muss das Arbeitsballt "Ergebnis Quartier", "Ergebnis Einzelgebäude" oder "Ergebnise Realquartier" geöffnet sein. Auf Datei > Exportieren > PDF/XPS Dokument erstellen klicken. Das geöffnete Arbeitsblatt wird als PDF gespeichert.
A55: 9. Limitationen
A56: Da das Tool den Anspruch erhebt, mit möglichst wenig oder ungenauen eingabedaten, mit möglichst wenig Vorwissen über ein Gebäude, brauchbare Ergebnisse in Bezug auf Treibhausgasbilanzen und weiteren Wirkungskategorien zu erzeugen, gibt es auch einige Limitationen: Das Tool berücksichtigt keine Innenausbauten wie Tapeten, Bodebeläge etc. Auch werden nur Durchschnittswerte verwendet. Das Tool stellt nicht den Anspruch, THG-Bilanzen zu erstellen, die auf das kg genau sind und kann dafür nicht zur Antragstellung von Förderungen genutzt werden. Daher sollte das Tool nur für die grobe Vorplanung und zum relativen Vergleich von verschiedenen Sanierungsvarianten miteinander genutzt werden. Gleiches gilt für die Kostendarstellung. Da nur Durchschnittswerte genutzt werden können und Transportkosten händisch durch deie Nutzenden eingetragen werden müssen, ist es wahrscheinlich, dass die Kostendarstellung zu gering ist. Auch die Wärmeplanung dient nur der Vorplanung und sollte nicht als absolutes Ergebnis dargestellt werden, da hier ebenfalls große Unsicherheiten herrschen, die der Eingabeungeneauigkeit geschuldet ist.

Sheet Start
B2: Beschreibung des Gebäudes/Quartiers
B4: Informationen über das Gebäude/Quartier
B6: Adresse | C6: Musterstraße 22, 12345 Musterstadt, Musterland
B7: Ansprechpartner/in | C7: Hans Mustermann
B8: Kontaktinformation | C8: Tel.: +49 123456789, hans.mustemann@firmaxyz.com
B9: Gebäudegröße
B11: Datengrundlage für das/die Gebäude | C11: Realdaten
B12: Siedlungsart | C12: Einzelgebäude
B14: Ressourceneffizienzmaßnahme
B15: Projektbezeichnung | C15: Bitte geben Sie Ihrem Projekt / Ihrer Maßnahme eine kurze Bezeichnung bzw. einen Projektnamen
B16: Ausgangssituation | C16: Kurzbeschreibung des Status quo
B17: Beschreibung der Maßnahme(n) | C17: Kurzbeschreibung der Hauptmaßnahme und ggf. weiterer Maßnahmen
B18: Involvierte Akteur/innen | C18: Mitarbeitende, Konsument:innen, Abteilungen (Produktentwicklung, Fabrikplanung, Arbeitsvorbereitung, Einkauf/Beschaffung, Produktion, Vertrieb)
B19: Datenbasis für Material-/ Energieänderungen | C19: z.B. Messung, Schätzung, Standardwerte…
B20: Datenbank für Emissionsfaktoren | C20: Eigene Datenbank
B21: Datenbank für Wärmeplanung | C21: dena Gebäudereport 2016
B22: Bilanzierung nach Scope | C22: GHG-Protocol for Cities

Sheet Quartier (hidden)
B3: Informationen über das Quartier
C4: =IF(Start!C11='Drop-Down'!A3,"Quartiersgröße", "Quartiersgröße (nicht ausfüllbar) ") -> Quartiersgröße (nicht ausfüllbar) | E4: mittel (15,1 - 30 ha) | G4: Referenzquartier | H4: =IF(Start!C11='Drop-Down'!A2,"keine Angabe",IF(AND(E4='Drop-Down'!H2,Quartier!E5='Drop-Down'!I2,Quartier!E6='Drop-Down'!J2),"1",IF(AND(E4='Drop-Down'!H2,Quartier!E5='Drop-Down'!I3,Quartier!E6='Drop-Down'!J2),"2",IF(AND(E4='Drop-Down'!H2,Quartier!E5='Drop-Down'!I4,Quartier!E6='Drop-Down'!J2),"3",IF(AND(E4='Drop-Down'!H3,Quartier!E5='Drop-Down'!I2,Quartier!E6='Drop-Down'!J2),"4",IF(AND(E4='Drop-Down'!H3,Quartier!E5='Drop-Down'!I3,Quartier!E6='Drop-Down'!J2),"5",IF(AND(E4='Drop-Down'!H3,Quartier!E5='Drop-Down'!I4,Quartier!E6='Drop-Down'!J2),"6",IF(AND(E4='Drop-Down'!H4,Quartier!E5='Drop-Down'!I2,Quartier!E6='Drop-Down'!J2),"7",IF(AND(E4='Drop-Down'!H4,Quartier!E5='Drop-Down'!I3,Quartier!E6='Drop-Down'!J2),"8",IF(AND(E4='Drop-Down'!H4,Quartier!E5='Drop-Down'!I4,Quartier!E6='Drop-Down'!J2),"9",IF(AND(E4='Drop-Down'!H2,Quartier!E5='Drop-Down'!I2,Quartier!E6='Drop-Down'!J3),"11",IF(AND(E4='Drop-Down'!H2,Quartier!E5='Drop-Down'!I3,Quartier!E6='Drop-Down'!J3),"12",IF(AND(E4='Drop-Down'!H2,Quartier!E5='Drop-Down'!I4,Quartier!E6='Drop-Down'!J3),"13",IF(AND(E4='Drop-Down'!H3,Quartier!E5='Drop-Down'!I2,Quartier!E6='Drop-Down'!J3),"14",IF(AND(E4='Drop-Down'!H3,Quartier!E5='Drop-Down'!I3,Quartier!E6='Drop-Down'!J3),"15",IF(AND(E4='Drop-Down'!H3,Quartier!E5='Drop-Down'!I4,Quartier!E6='Drop-Down'!J3),"16",IF(AND(E4='Drop-Down'!H4,Quartier!E5='Drop-Down'!I2,Quartier!E6='Drop-Down'!J3),"17",IF(AND(E4='Drop-Down'!H4,Quartier!E5='Drop-Down'!I3,Quartier!E6='Drop-Down'!J3),"18",IF(AND(E4='Drop-Down'!H4,Quartier!E5='Drop-Down'!I4,Quartier!E6='Drop-Down'!J3),"19",IF(AND(E4='Drop-Down'!H2,Quartier!E5='Drop-Down'!I2,Quartier!E6='Drop-Down'!J4),"21",IF(AND(E4='Drop-Down'!H2,Quartier!E5='Drop-Down'!I3,Quartier!E6='Drop-Down'!J4),"22",IF(AND(E4='Drop-Down'!H2,Quartier!E5='Drop-Down'!I4,Quartier!E6='Drop-Down'!J4),"23",IF(AND(E4='Drop-Down'!H3,Quartier!E5='Drop-Down'!I2,Quartier!E6='Drop-Down'!J4),"24",IF(AND(E4='Drop-Down'!H3,Quartier!E5='Drop-Down'!I3,Quartier!E6='Drop-Down'!J4),"25",IF(AND(E4='Drop-Down'!H3,Quartier!E5='Drop-Down'!I4,Quartier!E6='Drop-Down'!J4),"26",IF(AND(E4='Drop-Down'!H4,Quartier!E5='Drop-Down'!I2,Quartier!E6='Drop-Down'!J4),"27",IF(AND(E4='Drop-Down'!H4,Quartier!E5='Drop-Down'!I3,Quartier!E6='Drop-Down'!J4),"28",IF(AND(E4='Drop-Down'!H4,Quartier!E5='Drop-Down'!I4,Quartier!E6='Drop-Down'!J4),"29",IF(AND(E4='Drop-Down'!H2,Quartier!E5='Drop-Down'!I2,Quartier!E6='Drop-Down'!J5),"31",IF(AND(E4='Drop-Down'!H2,Quartier!E5='Drop-Down'!I3,Quartier!E6='Drop-Down'!J5),"32",IF(AND(E4='Drop-Down'!H2,Quartier!E5='Drop-Down'!I4,Quartier!E6='Drop-Down'!J5),"33",IF(AND(E4='Drop-Down'!H3,Quartier!E5='Drop-Down'!I2,Quartier!E6='Drop-Down'!J5),"34",IF(AND(E4='Drop-Down'!H3,Quartier!E5='Drop-Down'!I3,Quartier!E6='Drop-Down'!J5),"35",IF(AND(E4='Drop-Down'!H3,Quartier!E5='Drop-Down'!I4,Quartier!E6='Drop-Down'!J5),"36",IF(AND(E4='Drop-Down'!H4,Quartier!E5='Drop-Down'!I2,Quartier!E6='Drop-Down'!J5),"37",IF(AND(E4='Drop-Down'!H4,Quartier!E5='Drop-Down'!I3,Quartier!E6='Drop-Down'!J5),"38",IF(AND(E4='Drop-Down'!H4,Quartier!E5='Drop-Down'!I4,Quartier!E6='Drop-Down'!J5),"39","keine Angabe"))))))))))))))))))))))))))))))))))))) -> keine Angabe
C5: =IF(Start!C11='Drop-Down'!A3,"Quartiersdichte", "Quartiersdichte (nicht ausfüllbar) ") -> Quartiersdichte (nicht ausfüllbar) | E5: mittel (15,1 - 25 %)
C6: =IF(Start!C11='Drop-Down'!A3,"Baualtersklasse", "Baualtersklasse (nicht ausfüllbar) ") -> Baualtersklasse (nicht ausfüllbar) | E6: 1979 - 1994
C9: Anzahl Gebäude im Quartier | E9: =IF(Start!C11='Drop-Down'!A2,"keine Angabe",IF(AND(E4='Drop-Down'!H2,Quartier!E5='Drop-Down'!I2,Quartier!E6='Drop-Down'!J2),Energieberechnung!R6,IF(AND(E4='Drop-Down'!H2,Quartier!E5='Drop-Down'!I3,Quartier!E6='Drop-Down'!J2),Energieberechnung!S6,IF(AND(E4='Drop-Down'!H2,Quartier!E5='Drop-Down'!I4,Quartier!E6='Drop-Down'!J2),Energieberechnung!T6,IF(AND(E4='Drop-Down'!H3,Quartier!E5='Drop-Down'!I2,Quartier!E6='Drop-Down'!J2),Energieberechnung!U6,IF(AND(E4='Drop-Down'!H3,Quartier!E5='Drop-Down'!I3,Quartier!E6='Drop-Down'!J2),Energieberechnung!V6,IF(AND(E4='Drop-Down'!H3,Quartier!E5='Drop-Down'!I4,Quartier!E6='Drop-Down'!J2),Energieberechnung!W6,IF(AND(E4='Drop-Down'!H4,Quartier!E5='Drop-Down'!I2,Quartier!E6='Drop-Down'!J2),Energieberechnung!X6,IF(AND(E4='Drop-Down'!H4,Quartier!E5='Drop-Down'!I3,Quartier!E6='Drop-Down'!J2),Energieberechnung!Y6,IF(AND(E4='Drop-Down'!H4,Quartier!E5='Drop-Down'!I4,Quartier!E6='Drop-Down'!J2),Energieberechnung!Z6,IF(AND(E4='Drop-Down'!H2,Quartier!E5='Drop-Down'!I2,Quartier!E6='Drop-Down'!J3),Energieberechnung!R7,IF(AND(E4='Drop-Down'!H2,Quartier!E5='Drop-Down'!I3,Quartier!E6='Drop-Down'!J3),Energieberechnung!S7,IF(AND(E4='Drop-Down'!H2,Quartier!E5='Drop-Down'!I4,Quartier!E6='Drop-Down'!J3),Energieberechnung!T7,IF(AND(E4='Drop-Down'!H3,Quartier!E5='Drop-Down'!I2,Quartier!E6='Drop-Down'!J3),Energieberechnung!U7,IF(AND(E4='Drop-Down'!H3,Quartier!E5='Drop-Down'!I3,Quartier!E6='Drop-Down'!J3),Energieberechnung!V7,IF(AND(E4='Drop-Down'!H3,Quartier!E5='Drop-Down'!I4,Quartier!E6='Drop-Down'!J3),Energieberechnung!W7,IF(AND(E4='Drop-Down'!H4,Quartier!E5='Drop-Down'!I2,Quartier!E6='Drop-Down'!J3),Energieberechnung!X7,IF(AND(E4='Drop-Down'!H4,Quartier!E5='Drop-Down'!I3,Quartier!E6='Drop-Down'!J3),Energieberechnung!Y7,IF(AND(E4='Drop-Down'!H4,Quartier!E5='Drop-Down'!I4,Quartier!E6='Drop-Down'!J3),Energieberechnung!Z7,IF(AND(E4='Drop-Down'!H2,Quartier!E5='Drop-Down'!I2,Quartier!E6='Drop-Down'!J4),Energieberechnung!R8,IF(AND(E4='Drop-Down'!H2,Quartier!E5='Drop-Down'!I3,Quartier!E6='Drop-Down'!J4),Energieberechnung!S8,IF(AND(E4='Drop-Down'!H2,Quartier!E5='Drop-Down'!I4,Quartier!E6='Drop-Down'!J4),Energieberechnung!T8,IF(AND(E4='Drop-Down'!H3,Quartier!E5='Drop-Down'!I2,Quartier!E6='Drop-Down'!J4),Energieberechnung!U8,IF(AND(E4='Drop-Down'!H3,Quartier!E5='Drop-Down'!I3,Quartier!E6='Drop-Down'!J4),Energieberechnung!V8,IF(AND(E4='Drop-Down'!H3,Quartier!E5='Drop-Down'!I4,Quartier!E6='Drop-Down'!J4),Energieberechnung!W8,IF(AND(E4='Drop-Down'!H4,Quartier!E5='Drop-Down'!I2,Quartier!E6='Drop-Down'!J4),Energieberechnung!X8,IF(AND(E4='Drop-Down'!H4,Quartier!E5='Drop-Down'!I3,Quartier!E6='Drop-Down'!J4),Energieberechnung!Y8,IF(AND(E4='Drop-Down'!H4,Quartier!E5='Drop-Down'!I4,Quartier!E6='Drop-Down'!J4),Energieberechnung!Z8,IF(AND(E4='Drop-Down'!H2,Quartier!E5='Drop-Down'!I2,Quartier!E6='Drop-Down'!J5),Energieberechnung!R9,IF(AND(E4='Drop-Down'!H2,Quartier!E5='Drop-Down'!I3,Quartier!E6='Drop-Down'!J5),Energieberechnung!S9,IF(AND(E4='Drop-Down'!H2,Quartier!E5='Drop-Down'!I4,Quartier!E6='Drop-Down'!J5),Energieberechnung!T9,IF(AND(E4='Drop-Down'!H3,Quartier!E5='Drop-Down'!I2,Quartier!E6='Drop-Down'!J5),Energieberechnung!U9,IF(AND(E4='Drop-Down'!H3,Quartier!E5='Drop-Down'!I3,Quartier!E6='Drop-Down'!J5),Energieberechnung!V9,IF(AND(E4='Drop-Down'!H3,Quartier!E5='Drop-Down'!I4,Quartier!E6='Drop-Down'!J5),Energieberechnung!W9,IF(AND(E4='Drop-Down'!H4,Quartier!E5='Drop-Down'!I2,Quartier!E6='Drop-Down'!J5),Energieberechnung!X9,IF(AND(E4='Drop-Down'!H4,Quartier!E5='Drop-Down'!I3,Quartier!E6='Drop-Down'!J5),Energieberechnung!Y9,IF(AND(E4='Drop-Down'!H4,Quartier!E5='Drop-Down'!I4,Quartier!E6='Drop-Down'!J5),Energieberechnung!Z9,"keine Angabe"))))))))))))))))))))))))))))))))))))) -> keine Angabe
G10: r0 | H10: r1 | I10: r2 | J10: r3
C11: SFH | E11: =IF(H4="keine Angabe","-",ROUND(_xlfn.IFS(H4="1",Energieberechnung!I7,H4="2",Energieberechnung!I8,H4="3",Energieberechnung!I9,H4="4",Energieberechnung!I10,H4="5",Energieberechnung!I11,H4="6",Energieberechnung!I12,H4="7",Energieberechnung!I13,H4="8",Energieberechnung!I14,H4="9",Energieberechnung!I15,H4="11",Energieberechnung!I16,H4="12",Energieberechnung!I17,H4="13",Energieberechnung!I18,H4="14",Energieberechnung!I19,H4="15",Energieberechnung!I20,H4="16",Energieberechnung!I21,H4="17",Energieberechnung!I22,H4="18",Energieberechnung!I23,H4="19",Energieberechnung!I24,H4="21",Energieberechnung!I25,H4="22",Energieberechnung!I26,H4="23",Energieberechnung!I27,H4="24",Energieberechnung!I28,H4="25",Energieberechnung!I29,H4="26",Energieberechnung!I30,H4="27",Energieberechnung!I31,H4="28",Energieberechnung!I32,H4="29",Energieberechnung!I33,H4="31",Energieberechnung!I34,H4="32",Energieberechnung!I35,H4="33",Energieberechnung!I36,H4="34",Energieberechnung!I37,H4="35",Energieberechnung!I38,H4="36",Energieberechnung!I30,H4="39",Energieberechnung!I31,H4="40",Energieberechnung!I41,H4="39",Energieberechnung!I42),0)) -> - | G11: =IF(E9="keine Angabe","-",ROUND(E11*IF(E6='Drop-Down'!J2,Energieberechnung!C36,IF(Quartier!E6='Drop-Down'!J3,Energieberechnung!C37,IF(Quartier!E6='Drop-Down'!J4,Energieberechnung!C38,IF(Quartier!E6='Drop-Down'!J5,Energieberechnung!C39,"keine Angabe"))))/100,0)) -> - | H11: =IF(E9="keine Angabe","-",ROUND(E11*IF(E6='Drop-Down'!J2,Energieberechnung!C42,IF(Quartier!E6='Drop-Down'!J3,Energieberechnung!C43,IF(Quartier!E6='Drop-Down'!J4,Energieberechnung!C44,IF(Quartier!E6='Drop-Down'!J5,Energieberechnung!C45,"keine Angabe"))))/100,0)) -> - | I11: =IF(E9="keine Angabe","-",ROUND(E11*IF(E6='Drop-Down'!J2,Energieberechnung!C48,IF(Quartier!E6='Drop-Down'!J3,Energieberechnung!C49,IF(Quartier!E6='Drop-Down'!J4,Energieberechnung!C50,IF(Quartier!E6='Drop-Down'!J5,Energieberechnung!C51,"keine Angabe"))))/100,0)) -> - | J11: =IF(E9="keine Angabe","-",ROUND(E11*IF(E6='Drop-Down'!J2,Energieberechnung!C54,IF(Quartier!E6='Drop-Down'!J3,Energieberechnung!C55,IF(Quartier!E6='Drop-Down'!J4,Energieberechnung!C56,IF(Quartier!E6='Drop-Down'!J5,Energieberechnung!C57,"keine Angabe"))))/100,0)) -> -
C12: SDH | E12: =IF(H4="keine Angabe","-",ROUND(_xlfn.IFS(H4="1",Energieberechnung!J7,H4="2",Energieberechnung!J8,H4="3",Energieberechnung!J9,H4="4",Energieberechnung!J10,H4="5",Energieberechnung!J11,H4="6",Energieberechnung!J12,H4="7",Energieberechnung!J13,H4="8",Energieberechnung!J14,H4="9",Energieberechnung!J15,H4="11",Energieberechnung!J16,H4="12",Energieberechnung!J17,H4="13",Energieberechnung!J18,H4="14",Energieberechnung!J19,H4="15",Energieberechnung!J20,H4="16",Energieberechnung!J21,H4="17",Energieberechnung!J22,H4="18",Energieberechnung!J23,H4="19",Energieberechnung!J24,H4="21",Energieberechnung!J25,H4="22",Energieberechnung!J26,H4="23",Energieberechnung!J27,H4="24",Energieberechnung!J28,H4="25",Energieberechnung!J29,H4="26",Energieberechnung!J30,H4="27",Energieberechnung!J31,H4="28",Energieberechnung!J32,H4="29",Energieberechnung!J33,H4="31",Energieberechnung!J34,H4="32",Energieberechnung!J35,H4="33",Energieberechnung!J36,H4="34",Energieberechnung!J37,H4="35",Energieberechnung!J38,H4="36",Energieberechnung!J30,H4="39",Energieberechnung!J31,H4="40",Energieberechnung!J41,H4="39",Energieberechnung!J42),0)) -> - | G12: =IF(E9="keine Angabe","-",ROUND(E12*IF(E6='Drop-Down'!J2,Energieberechnung!D36,IF(Quartier!E6='Drop-Down'!J3,Energieberechnung!D37,IF(Quartier!E6='Drop-Down'!J4,Energieberechnung!D38,IF(Quartier!E6='Drop-Down'!J5,Energieberechnung!D39,"keine Angabe"))))/100,0)) -> - | H12: =IF(E9="keine Angabe","-",ROUND(E12*IF(E6='Drop-Down'!J2,Energieberechnung!D42,IF(Quartier!E6='Drop-Down'!J3,Energieberechnung!D43,IF(Quartier!E6='Drop-Down'!J4,Energieberechnung!D44,IF(Quartier!E6='Drop-Down'!J5,Energieberechnung!D45,"keine Angabe"))))/100,0)) -> - | I12: =IF(E9="keine Angabe","-",ROUND(E12*IF(E6='Drop-Down'!J2,Energieberechnung!D48,IF(Quartier!E6='Drop-Down'!J3,Energieberechnung!D49,IF(Quartier!E6='Drop-Down'!J4,Energieberechnung!D50,IF(Quartier!E6='Drop-Down'!J5,Energieberechnung!D51,"keine Angabe"))))/100,0)) -> - | J12: =IF(E9="keine Angabe","-",ROUND(E12*IF(E6='Drop-Down'!J2,Energieberechnung!D54,IF(Quartier!E6='Drop-Down'!J3,Energieberechnung!D55,IF(Quartier!E6='Drop-Down'!J4,Energieberechnung!D56,IF(Quartier!E6='Drop-Down'!J5,Energieberechnung!D57,"keine Angabe"))))/100,0)) -> -
C13: SMFH | E13: =IF(H4="keine Angabe","-",ROUND(_xlfn.IFS(H4="1",Energieberechnung!K7,H4="2",Energieberechnung!K8,H4="3",Energieberechnung!K9,H4="4",Energieberechnung!K10,H4="5",Energieberechnung!K11,H4="6",Energieberechnung!K12,H4="7",Energieberechnung!K13,H4="8",Energieberechnung!K14,H4="9",Energieberechnung!K15,H4="11",Energieberechnung!K16,H4="12",Energieberechnung!K17,H4="13",Energieberechnung!K18,H4="14",Energieberechnung!K19,H4="15",Energieberechnung!K20,H4="16",Energieberechnung!K21,H4="17",Energieberechnung!K22,H4="18",Energieberechnung!K23,H4="19",Energieberechnung!K24,H4="21",Energieberechnung!K25,H4="22",Energieberechnung!K26,H4="23",Energieberechnung!K27,H4="24",Energieberechnung!K28,H4="25",Energieberechnung!K29,H4="26",Energieberechnung!K30,H4="27",Energieberechnung!K31,H4="28",Energieberechnung!K32,H4="29",Energieberechnung!K33,H4="31",Energieberechnung!K34,H4="32",Energieberechnung!K35,H4="33",Energieberechnung!K36,H4="34",Energieberechnung!K37,H4="35",Energieberechnung!K38,H4="36",Energieberechnung!K30,H4="39",Energieberechnung!K31,H4="40",Energieberechnung!K41,H4="39",Energieberechnung!K42),0)) -> - | G13: =IF(E9="keine Angabe","-",ROUND(E13*IF(E6='Drop-Down'!J2,Energieberechnung!E36,IF(Quartier!E6='Drop-Down'!J3,Energieberechnung!E37,IF(Quartier!E6='Drop-Down'!J4,Energieberechnung!E38,IF(Quartier!E6='Drop-Down'!J5,Energieberechnung!E39,"keine Angabe"))))/100,0)) -> - | H13: =IF(E9="keine Angabe","-",ROUND(E13*IF(E6='Drop-Down'!J2,Energieberechnung!E42,IF(Quartier!E6='Drop-Down'!J3,Energieberechnung!E43,IF(Quartier!E6='Drop-Down'!J4,Energieberechnung!E44,IF(Quartier!E6='Drop-Down'!J5,Energieberechnung!E45,"keine Angabe"))))/100,0)) -> - | I13: =IF(E9="keine Angabe","-",ROUND(E13*IF(E6='Drop-Down'!J2,Energieberechnung!E48,IF(Quartier!E6='Drop-Down'!J3,Energieberechnung!E49,IF(Quartier!E6='Drop-Down'!J4,Energieberechnung!E50,IF(Quartier!E6='Drop-Down'!J5,Energieberechnung!E51,"keine Angabe"))))/100,0)) -> - | J13: =IF(E9="keine Angabe","-",ROUND(E13*IF(E6='Drop-Down'!J2,Energieberechnung!E54,IF(Quartier!E6='Drop-Down'!J3,Energieberechnung!E55,IF(Quartier!E6='Drop-Down'!J4,Energieberechnung!E56,IF(Quartier!E6='Drop-Down'!J5,Energieberechnung!E57,"keine Angabe"))))/100,0)) -> -
C14: LMFH | E14: =IF(H4="keine Angabe","-",ROUND(_xlfn.IFS(H4="1",Energieberechnung!L7,H4="2",Energieberechnung!L8,H4="3",Energieberechnung!L9,H4="4",Energieberechnung!L10,H4="5",Energieberechnung!L11,H4="6",Energieberechnung!L12,H4="7",Energieberechnung!L13,H4="8",Energieberechnung!L14,H4="9",Energieberechnung!L15,H4="11",Energieberechnung!L16,H4="12",Energieberechnung!L17,H4="13",Energieberechnung!L18,H4="14",Energieberechnung!L19,H4="15",Energieberechnung!L20,H4="16",Energieberechnung!L21,H4="17",Energieberechnung!L22,H4="18",Energieberechnung!L23,H4="19",Energieberechnung!L24,H4="21",Energieberechnung!L25,H4="22",Energieberechnung!L26,H4="23",Energieberechnung!L27,H4="24",Energieberechnung!L28,H4="25",Energieberechnung!L29,H4="26",Energieberechnung!L30,H4="27",Energieberechnung!L31,H4="28",Energieberechnung!L32,H4="29",Energieberechnung!L33,H4="31",Energieberechnung!L34,H4="32",Energieberechnung!L35,H4="33",Energieberechnung!L36,H4="34",Energieberechnung!L37,H4="35",Energieberechnung!L38,H4="36",Energieberechnung!L30,H4="39",Energieberechnung!L31,H4="40",Energieberechnung!L41,H4="39",Energieberechnung!L42),0)) -> - | G14: =IF(E9="keine Angabe","-",ROUND(E14*IF(E6='Drop-Down'!J2,Energieberechnung!F36,IF(Quartier!E6='Drop-Down'!J3,Energieberechnung!F37,IF(Quartier!E6='Drop-Down'!J4,Energieberechnung!F38,IF(Quartier!E6='Drop-Down'!J5,Energieberechnung!F39,"keine Angabe"))))/100,0)) -> - | H14: =IF(E9="keine Angabe","-",ROUND(E14*IF(E6='Drop-Down'!J2,Energieberechnung!F42,IF(Quartier!E6='Drop-Down'!J3,Energieberechnung!F43,IF(Quartier!E6='Drop-Down'!J4,Energieberechnung!F44,IF(Quartier!E6='Drop-Down'!J5,Energieberechnung!F45,"keine Angabe"))))/100,0)) -> - | I14: =IF(E9="keine Angabe","-",ROUND(E14*IF(E6='Drop-Down'!J2,Energieberechnung!F48,IF(Quartier!E6='Drop-Down'!J3,Energieberechnung!F49,IF(Quartier!E6='Drop-Down'!J4,Energieberechnung!F50,IF(Quartier!E6='Drop-Down'!J5,Energieberechnung!F51,"keine Angabe"))))/100,0)) -> - | J14: =IF(E9="keine Angabe","-",ROUND(E14*IF(E6='Drop-Down'!J2,Energieberechnung!F54,IF(Quartier!E6='Drop-Down'!J3,Energieberechnung!F55,IF(Quartier!E6='Drop-Down'!J4,Energieberechnung!F56,IF(Quartier!E6='Drop-Down'!J5,Energieberechnung!F57,"keine Angabe"))))/100,0)) -> -
B17: IST-Zustand
C18: Nutzenergiebedarf ges. | E18: =E20+Strom_Nutz ->  | F18: kWh/a
C19: Nutzenergiebedarf Strom | E19: =IF(Start!C11='Drop-Down'!A3,IF(H4="1",Energieberechnung!R36,IF(Quartier!H4="2",Energieberechnung!S36,IF(Quartier!H4="3",Energieberechnung!T36,IF(Quartier!H4="4",Energieberechnung!#REF!,IF(Quartier!H4="5",Energieberechnung!V36,IF(Quartier!H4="6",Energieberechnung!W36,IF(Quartier!H4="7",Energieberechnung!X36,IF(Quartier!H4="8",Energieberechnung!Y36,IF(Quartier!H4="9",Energieberechnung!Z36,IF(H4="11",Energieberechnung!R37,IF(Quartier!H4="12",Energieberechnung!S37,IF(Quartier!H4="13",Energieberechnung!T37,IF(Quartier!H4="14",Energieberechnung!U36,IF(Quartier!H4="15",Energieberechnung!V37,IF(Quartier!H4="16",Energieberechnung!W37,IF(Quartier!H4="17",Energieberechnung!X37,IF(Quartier!H4="18",Energieberechnung!Y37,IF(Quartier!H4="19",Energieberechnung!Z37,IF(H4="21",Energieberechnung!R38,IF(Quartier!H4="22",Energieberechnung!S38,IF(Quartier!H4="23",Energieberechnung!T38,IF(Quartier!H4="24",Energieberechnung!U38,IF(Quartier!H4="25",Energieberechnung!V38,IF(Quartier!H4="26",Energieberechnung!W38,IF(Quartier!H4="27",Energieberechnung!X38,IF(Quartier!H4="28",Energieberechnung!Y38,IF(Quartier!H4="29",Energieberechnung!Z38,IF(H4="31",Energieberechnung!R39,IF(Quartier!H4="32",Energieberechnung!S39,IF(Quartier!H4="33",Energieberechnung!T39,IF(Quartier!H4="34",Energieberechnung!U39,IF(Quartier!H4="35",Energieberechnung!V39,IF(Quartier!H4="36",Energieberechnung!W39,IF(Quartier!H4="37",Energieberechnung!X39,IF(Quartier!H4="38",Energieberechnung!Y39,IF(Quartier!H4="39",Energieberechnung!Z39,"keine Angabe"))))))))))))))))))))))))))))))))))))) -> FALSE | F19: kWh/a
C20: Nutzenergiebedarf Wärme | E20: =IF(E6='Drop-Down'!J2,Energieberechnung!S30,IF(Quartier!E6='Drop-Down'!J3,Energieberechnung!S31,IF(Quartier!E6='Drop-Down'!J4,Energieberechnung!S32,IF(Quartier!E6='Drop-Down'!J5,Energieberechnung!S33,"keine Angabe")))) ->  | F20: kWh/a
H22: %
C23: Beheizungsstruktur | E23: ø Deutschland ohne Fernwärme | G23: Erdgas | H23: =IF(E23='Drop-Down'!O2,Energieberechnung!AN4,IF(Quartier!E23='Drop-Down'!O3,Energieberechnung!AP4,"keine Angabe")) -> 0.562
G24: Wärmepumpe | H24: =IF(E23='Drop-Down'!O2,Energieberechnung!AN5,IF(Quartier!E23='Drop-Down'!O3,Energieberechnung!AP5,"keine Angabe")) -> 0.043
G25: Heizöl | H25: =IF(E23='Drop-Down'!O2,Energieberechnung!AN6,IF(Quartier!E23='Drop-Down'!O3,Energieberechnung!AP6,"keine Angabe")) -> 0.362
G26: Holz-/Pellet | H26: =IF(E23='Drop-Down'!O2,Energieberechnung!AN7,IF(Quartier!E23='Drop-Down'!O3,Energieberechnung!AP7,"keine Angabe")) -> 0.033
G27: Fernwärme | H27: =IF(E23='Drop-Down'!O2,Energieberechnung!AN8,IF(E23='Drop-Down'!O3,0,"keine Angabe")) -> 0
E29: Lebenszyklus | H29: Territorial
C30: THG ges. | E30: =ROUND((E31+E32)/1000,-2) ->  | F30: T CO2/a | H30: =ROUND(H32/1000,-2) ->  | I30: T CO2/a
C31: THG Strom | E31: =Strom_Nutz*_xlfn.IFS(Datenbank_Emission=Ökobaudat2024,Ökobaudat!I17,Datenbank_Emission=Datenbank_eigen,'Eigene Datenbank'!M17) -> 0 | F31: kg CO2/a | H31: 0 | I31: kg CO2/a
C32: THG Wärme | E32: =Wärme_Nutz*_xlfn.IFS(Datenbank_Emission=Ökobaudat2024,H23*Ökobaudat!I8+Quartier!H24*Ökobaudat!I6+Quartier!H25*Ökobaudat!I11+Quartier!H26*Ökobaudat!I14+Quartier!H27*Ökobaudat!I20,Datenbank_Emission=Datenbank_eigen,H23*'Eigene Datenbank'!M8+Quartier!H24*'Eigene Datenbank'!M6+Quartier!H25*'Eigene Datenbank'!M11+Quartier!H26*'Eigene Datenbank'!M14+Quartier!H27*'Eigene Datenbank'!M20) ->  | F32: kg CO2/a | H32: =E20*_xlfn.IFS(Datenbank_Emission=Ökobaudat2024,H23*Ökobaudat!I8+Quartier!H25*Ökobaudat!I11+Quartier!H26*Ökobaudat!I14,Datenbank_Emission=Datenbank_eigen,H23*'Eigene Datenbank'!M8+Quartier!H25*'Eigene Datenbank'!M11+Quartier!H26*'Eigene Datenbank'!M14) ->  | I32: kg CO2/a
C35: Ziel 2030 | E35: =ROUND(0.54*(IF(H4="1",Energieberechnung!R12,IF(Quartier!H4="2",Energieberechnung!S12,IF(Quartier!H4="3",Energieberechnung!T12,IF(Quartier!H4="4",Energieberechnung!U12,IF(Quartier!H4="5",Energieberechnung!V12,(IF(Quartier!H4="6",Energieberechnung!W12,IF(Quartier!H4="7",Energieberechnung!X12,IF(Quartier!H4="8",Energieberechnung!Y12,IF(Quartier!H4="9",Energieberechnung!Z12,IF(H4="11",Energieberechnung!R13,IF(Quartier!H4="12",Energieberechnung!S13,IF(Quartier!H4="13",Energieberechnung!T13,IF(Quartier!H4="14",Energieberechnung!U13,IF(Quartier!H4="15",Energieberechnung!V13,(IF(Quartier!H4="16",Energieberechnung!W13,IF(Quartier!H4="17",Energieberechnung!X13,IF(Quartier!H4="18",Energieberechnung!Y13,IF(Quartier!H4="19",Energieberechnung!Z13,IF(H4="21",Energieberechnung!R14,IF(Quartier!H4="22",Energieberechnung!S14,IF(Quartier!H4="23",Energieberechnung!T14,IF(Quartier!H4="24",Energieberechnung!U14,IF(Quartier!H4="25",Energieberechnung!V14,(IF(Quartier!H4="26",Energieberechnung!W14,IF(Quartier!H4="27",Energieberechnung!X14,IF(Quartier!H4="28",Energieberechnung!Y14,IF(Quartier!H4="29",Energieberechnung!Z14,IF(H4="31",Energieberechnung!R15,IF(Quartier!H4="32",Energieberechnung!S15,IF(Quartier!H4="33",Energieberechnung!T15,IF(Quartier!H4="34",Energieberechnung!U15,IF(Quartier!H4="35",Energieberechnung!V15,(IF(Quartier!H4="36",Energieberechnung!W15,IF(Quartier!H4="37",Energieberechnung!X15,IF(Quartier!H4="38",Energieberechnung!Y15,IF(Quartier!H4="39",Energieberechnung!Z15,"keine Angabe"))))))))))))))))))))))))))))))))))))))))),0) ->  | F35: T CO2/a
C36: Ziel 2045 | E36: 0 | F36: T CO2/a
B39: Sanierungs-maßnahmen
C40: Passive Sanierung | E40: A3: Sanierungstiefe GEG / Sanierungsrate 90 % | G40: Sanierungs-material | H40: XPS
G41: Rahmen-material | H41: Holz
C42: Nutzenergiebedarf Wärme nach Sanierung | E42: kWh/a | F42: %
E43: =_xlfn.IFS(H4="1",Sachbilanz!AK3,Quartier!H4="2",Sachbilanz!AL3,H4="3",Sachbilanz!AM3,H4="4",Sachbilanz!AN3,Quartier!H4="5",Sachbilanz!AO3,H4="6",Sachbilanz!AP3,Quartier!H4="7",Sachbilanz!AQ3,Quartier!H4="8",Sachbilanz!AR3,Quartier!H4="9",Sachbilanz!AS3,Quartier!H4="11",Sachbilanz!AK4,Quartier!H4="12",Sachbilanz!AL4,Quartier!H4="13",Sachbilanz!AM4,Quartier!H4=14,Sachbilanz!AN4,Quartier!H4="15",Sachbilanz!AO4,Quartier!H4="16",Sachbilanz!AP4,Quartier!H4="17",Sachbilanz!AQ4,Quartier!H4="18",Sachbilanz!AR4,Quartier!H4="19",Sachbilanz!AS4,Quartier!H4="21",Sachbilanz!AK5,Quartier!H4="22",Sachbilanz!AL5,Quartier!H4="23",Sachbilanz!AM5,Quartier!H4="24",Sachbilanz!AN5,Quartier!H4="25",Sachbilanz!AO5,Quartier!H4="26",Sachbilanz!AP5,Quartier!H4="27",Sachbilanz!AQ5,Quartier!H4="28",Sachbilanz!AR5,Quartier!H4="29",Sachbilanz!AS5,H4="31",Sachbilanz!AK6,Quartier!H4="32",Sachbilanz!AL6,Quartier!H4="33",Sachbilanz!AM6,Quartier!H4="34",Sachbilanz!AN6,Quartier!H4="35",Sachbilanz!AO6,Quartier!H4="36",Sachbilanz!AP6,Quartier!H4="37",Sachbilanz!AQ6,Quartier!H4="38",Sachbilanz!AR6,Quartier!H4="39",Sachbilanz!AS6) ->  | F43: =E43/E20*100 -> 
C45: Materialströme | G45: Verwertung | H45: Verwertung 100 %
C46: aus dem Quartier | D46: Mix_Bauschutt | E46: =_xlfn.IFS(E6='Drop-Down'!J2,(Sanierung!C19)*(Sachbilanz!I358+Sachbilanz!I364)/2+(Sanierung!C20)*(Sachbilanz!L358+Sachbilanz!L364)/2,E6='Drop-Down'!J3,(Sanierung!C19)*(Sachbilanz!I372+Sachbilanz!I383+Sachbilanz!I388)/3+(Sanierung!C20)*(Sachbilanz!L372+Sachbilanz!L383+Sachbilanz!L388)/3,E6='Drop-Down'!J4,(Sanierung!C19)*(Sachbilanz!I398+Sachbilanz!I407)/2+(Sanierung!C20)*(Sachbilanz!L398+Sachbilanz!L407)/2,E6='Drop-Down'!J5,(Sanierung!C19)*(Sachbilanz!I416+Sachbilanz!I427+Sachbilanz!I434)/3+(Sanierung!C20)*(Sachbilanz!L416+Sachbilanz!L427+Sachbilanz!L434)/3) ->  | F46: kg
D47: Fenster | E47: =_xlfn.IFS(E6='Drop-Down'!J2,(Sanierung!F15-J11)*Sachbilanz!N314+(Sanierung!F16-J12)*Sachbilanz!O314+(Sanierung!F17-J13)*Sachbilanz!P314+(Sanierung!F18-J14)*Sachbilanz!Q314,E6='Drop-Down'!J3,(Sanierung!F15-J11)*Sachbilanz!N315+(Sanierung!F16-J12)*Sachbilanz!O315+(Sanierung!F17-J13)*Sachbilanz!P315+(Sanierung!F18-J14)*Sachbilanz!Q315,E6='Drop-Down'!J4,(Sanierung!F15-J11)*Sachbilanz!N316+(Sanierung!F16-J12)*Sachbilanz!O316+(Sanierung!F17-J13)*Sachbilanz!P316+(Sanierung!F18-J14)*Sachbilanz!Q316,E6='Drop-Down'!J5,(Sanierung!F15-J11)*Sachbilanz!N317+(Sanierung!F16-J12)*Sachbilanz!O317+(Sanierung!F17-J13)*Sachbilanz!P317+(Sanierung!F18-J14)*Sachbilanz!Q317) ->  | F47: kg
C49: in das Quartier | D49: EPS | E49: =IF(Start!C11='Drop-Down'!A3,IF(Dämm_Mat='Drop-Down'!T2,Sachbilanz!T512*Sanierung!C19+Sanierung!D19*Sachbilanz!T514+Sachbilanz!T516*Sanierung!E19+Sachbilanz!U512*Sanierung!C20+Sanierung!D20*Sachbilanz!U514+Sachbilanz!U516*Sanierung!E20+Sachbilanz!V512*Sanierung!C21+Sanierung!D21*Sachbilanz!V514+Sachbilanz!V516*Sanierung!E21+Sachbilanz!W512*Sanierung!C22+Sanierung!D22*Sachbilanz!W514+Sachbilanz!W516*Sanierung!E22,0),0) -> 0 | F49: kg
D50: XPS | E50: =IF(Start!C11='Drop-Down'!A3,IF(Dämm_Mat='Drop-Down'!T3,Sachbilanz!T512*Sanierung!C19+Sanierung!D19*Sachbilanz!T514+Sachbilanz!T516*Sanierung!E19+Sachbilanz!U512*Sanierung!C20+Sanierung!D20*Sachbilanz!U514+Sachbilanz!U516*Sanierung!E20+Sachbilanz!V512*Sanierung!C21+Sanierung!D21*Sachbilanz!V514+Sachbilanz!V516*Sanierung!E21+Sachbilanz!W512*Sanierung!C22+Sanierung!D22*Sachbilanz!W514+Sachbilanz!W516*Sanierung!E22,0),0) -> 0 | F50: kg
D51: Holzfaser | E51: =IF(Start!C11='Drop-Down'!A3,IF(Dämm_Mat='Drop-Down'!T4,Sachbilanz!T520*Sanierung!C19+Sanierung!D19*Sachbilanz!T522+Sachbilanz!T524*Sanierung!E19+Sachbilanz!U520*Sanierung!C20+Sanierung!D20*Sachbilanz!U522+Sachbilanz!U524*Sanierung!E20+Sachbilanz!V520*Sanierung!C21+Sanierung!D21*Sachbilanz!V522+Sachbilanz!V524*Sanierung!E21+Sachbilanz!W520*Sanierung!C22+Sanierung!D22*Sachbilanz!W522+Sachbilanz!W524*Sanierung!E22,0),0) -> 0 | F51: kg
D52: Zellulose | E52: =IF(Start!C11='Drop-Down'!A3,IF(Dämm_Mat='Drop-Down'!T5,Sanierung!C19*Sachbilanz!T528+Sachbilanz!T530*Sanierung!D19+Sachbilanz!T532*Sanierung!E19+Sanierung!C20*Sachbilanz!U528+Sachbilanz!U530*Sanierung!D20+Sachbilanz!U532*Sanierung!E20+Sanierung!C21*Sachbilanz!V528+Sachbilanz!V530*Sanierung!D21+Sachbilanz!V532*Sanierung!E21+Sanierung!C22*Sachbilanz!W528+Sachbilanz!W530*Sanierung!D22+Sachbilanz!W532*Sanierung!E22,0),0) -> 0 | F52: kg
D53: PVC-Rahmen | E53: =IF(Start!C11='Drop-Down'!A3,_xlfn.IFS(E6='Drop-Down'!J2,(Sanierung!F15-J11)*Sachbilanz!G309+(Sanierung!F16-J12)*Sachbilanz!H309+(Sanierung!F17-J13)*Sachbilanz!I309+(Sanierung!F18-J14)*Sachbilanz!J309,E6='Drop-Down'!J3,(Sanierung!F15-J11)*Sachbilanz!G310+(Sanierung!F16-J12)*Sachbilanz!H310+(Sanierung!F17-J13)*Sachbilanz!I310+(Sanierung!F18-J14)*Sachbilanz!J310,E6='Drop-Down'!J4,(Sanierung!F15-J11)*Sachbilanz!G311+(Sanierung!F16-J12)*Sachbilanz!H311+(Sanierung!F17-J13)*Sachbilanz!I311+(Sanierung!F18-J14)*Sachbilanz!J311,E6='Drop-Down'!J5,(Sanierung!F15-J11)*Sachbilanz!G312+(Sanierung!F16-J12)*Sachbilanz!H312+(Sanierung!F17-J13)*Sachbilanz!I312+(Sanierung!F18-J14)*Sachbilanz!J312),0) -> 0 | F53: m2
D54: Glas (3-fach) | E54: =IF(Start!C11='Drop-Down'!A3,_xlfn.IFS(E6='Drop-Down'!J2,(Sanierung!F15-J11)*Sachbilanz!C309+(Sanierung!F16-J12)*Sachbilanz!D309+(Sanierung!F17-J13)*Sachbilanz!E309+(Sanierung!F18-J14)*Sachbilanz!F309,E6='Drop-Down'!J3,(Sanierung!F15-J11)*Sachbilanz!C310+(Sanierung!F16-J12)*Sachbilanz!D310+(Sanierung!F17-J13)*Sachbilanz!E310+(Sanierung!F18-J14)*Sachbilanz!F310,E6='Drop-Down'!J4,(Sanierung!F15-J11)*Sachbilanz!C311+(Sanierung!F16-J12)*Sachbilanz!D311+(Sanierung!F17-J13)*Sachbilanz!E311+(Sanierung!F18-J14)*Sachbilanz!F311,E6='Drop-Down'!J5,(Sanierung!F15-J11)*Sachbilanz!C312+(Sanierung!F16-J12)*Sachbilanz!D312+(Sanierung!F17-J13)*Sachbilanz!E312+(Sanierung!F18-J14)*Sachbilanz!F312),0) -> 0 | F54: kg
D55: Putz | E55: =IF(Start!C11='Drop-Down'!A3,Sachbilanz!T510*SUM(Sanierung!C19:E19)+Sachbilanz!U510*SUM(Sanierung!C20:E20)+Sachbilanz!V510*SUM(Sanierung!C21:E21)+Sachbilanz!W510*SUM(Sanierung!C22:E22),0) -> 0 | F55: kg
C57: Aktive Sanierung Wärme | E57: Anteil WP an Heizstruktur: 50 %
C58: Wärmepumpe
T59: Lebenszyklus | U59: Territorial
C60: Aktive Sanierung Strom: | E60: Deckung Strombedarf 40 % | G60: BHKW/Fernwärme im Quartier | H60: Nein | R60: 2021 | S60: THG ges. | T60: =E30 ->  | U60: =H30 -> 
C61: Photovoltaik | S61: THG ges. Sanierung | T61: =#REF! ->  | U61: =#REF! -> 
R62: 2030 | S62: THG Ziel 2030 | T62: =E35 ->  | U62: =E35 -> 
R63: 2050 | S63: THG Ziel 2050 | T63: 0 | U63: 0
O66: Lebenszyklus | S66: Territorial
O67: THG Strom | P67: THG Wärme | Q67: THG Materialströme | R67: THG Gesamt | S67: THG Strom | T67: THG Wärme | U67: THG Materialströme | V67: THG Gesamt
Q91: Strom | R91: Wärme | S91: Materialströme | T91: Technische Einbauten | U91: THG ges.
O92: A1 - A3 | P92: Herstellungs- phase | Q92: =ROUND('Ergebnis Quartier'!R6/1000,0) ->  | R92: =ROUND('Ergebnis Quartier'!R7/1000,0) ->  | S92: =ROUND('Ergebnis Quartier'!R8/1000,0) ->  | T92: =ROUND('Ergebnis Quartier'!R9/1000,0) ->  | U92: ='Ergebnis Quartier'!#REF! -> 
O93: A4 - A5 | P93: Bauphase | Q93: =ROUND('Ergebnis Quartier'!S6/1000,0) ->  | R93: ='Ergebnis Quartier'!S7 -> - | S93: =ROUND('Ergebnis Quartier'!S8/1000,0) ->  | T93: =ROUND('Ergebnis Quartier'!S9/1000,0) ->  | U93: ='Ergebnis Quartier'!#REF! -> 
O94: B1 - B7 | P94: Nutzungs- phase | Q94: =ROUND('Ergebnis Quartier'!T6/1000,0) ->  | R94: =ROUND('Ergebnis Quartier'!T7/1000,0) ->  | S94: ='Ergebnis Quartier'!T8 -> - | T94: =ROUND('Ergebnis Quartier'!T9/1000,0) ->  | U94: ='Ergebnis Quartier'!#REF! -> 
O95: C1 -C4 | P95: Entsorgungs- phase | Q95: =ROUND('Ergebnis Quartier'!U6/100,0) ->  | R95: =ROUND('Ergebnis Quartier'!U7/1000,0) ->  | S95: =ROUND('Ergebnis Quartier'!U8/1000,0) ->  | T95: =ROUND('Ergebnis Quartier'!U9/1000,0) ->  | U95: ='Ergebnis Quartier'!#REF! -> 
O96: D | P96: Vorteile und Belastungen | Q96: =ROUND('Ergebnis Quartier'!V6/1000,0) ->  | R96: =ROUND('Ergebnis Quartier'!V7/100,0) ->  | S96: =ROUND('Ergebnis Quartier'!V8/1000,0) ->  | T96: =ROUND('Ergebnis Quartier'!V9/1000,0) ->  | U96: ='Ergebnis Quartier'!#REF! -> 
P97: Lebenszyklus | Q97: =ROUND('Ergebnis Quartier'!T16/1000,0) -> 0 | R97: =ROUND('Ergebnis Quartier'!T17/1000,0) ->  | S97: =ROUND('Ergebnis Quartier'!T18/1000,0) ->  | T97: =ROUND('Ergebnis Quartier'!T19/1000,0) ->  | U97: ='Ergebnis Quartier'!#REF! -> 
P98: Vor Sanierung | Q98: =ROUND(E31/1000,0) -> 0 | R98: =ROUND(E32/1000,0) -> 

Sheet Ergebnis Quartier
AQ1: Jahr | AR1: Vor Sanierung | AT1: Nach Sanierung | AV1: Differenz
B2: Information über das Quartier | O2: THG nach Sanierung | AD2: Lebenszyklus | AI2: Territorial | AR2: Strom | AS2: Wärme | AT2: Strom | AU2: Wärme | AV2: Strom | AW2: Wärme | AX2: Investitionen | AY2: Summe
Q3: Phasen nach DIN EN 15804 | R3: Herstellung | S3: Bau | T3: Nutzung | U3: Entsorgung | V3: Vorteile und Belastungen | AD3: Strom | AE3: Wärme | AF3: Materialströme | AG3: Techn. Einbauten | AH3: Ziel | AI3: Strom | AJ3: Wärme | AK3: Materialströme | AL3: Techn. Einbauten | AM3: Ziel | AQ3: 1 | AR3: =$R$68 -> 0 | AS3: =$R$69 ->  | AT3: =$T$68 -> 0 | AU3: =$T$69 ->  | AV3: =AR3-AT3 -> 0 | AW3: =AS3-AU3 ->  | AX3: =-R98 ->  | AY3: =AV3+AW3+AX3 -> 
D4: Quartiersgröße | G4: =Quartier!E4 -> mittel (15,1 - 30 ha) | AA4: Aktuell | AB4: Vor Sanierung | AC4: Lebenszyklus | AD4: =ROUND(Quartier!E31/1000,0) -> 0 | AE4: =ROUND(Quartier!E32/1000,0) ->  | AQ4: 2 | AR4: 0 | AT4: 0 | AV4: =AR4-AT4 -> 0 | AY4: =AY3+AV4+AW4+AX4 -> 
D5: Quartiersdichte | G5: =Quartier!E5 -> mittel (15,1 - 25 %) | R5: A1-A3 | S5: A4-A5 | T5: B1 - B7 | U5: C1-C4 | V5: D | AC5: Territorial | AI5: =Quartier!H31/1000 -> 0 | AJ5: =ROUND(Quartier!H32/1000,0) ->  | AQ5: 3 | AR5: 0 | AT5: 0 | AV5: 0 | AY5: =AY4+AV5+AW5+AX5 -> 
D6: Baualtersklasse | G6: =Quartier!E6 -> 1979 - 1994 | Q6: Strom | R6: =IF(Datenbank_Emission=Ökobaudat2024,0,"-") -> - | S6: =IF(Datenbank_Emission=Ökobaudat2024,0,"-") -> - | T6: =IF(Datenbank_Emission=Ökobaudat2024,_xlfn.IFS(aSan_Str=PV_0,Quartier!E19*Ökobaudat!T17,aSan_Str=PV_20,0.2*Quartier!E19*Ökobaudat!T27+0.8*Quartier!E19*Ökobaudat!T17,aSan_Str=PV_40,0.4*Quartier!E19*Ökobaudat!T27+0.6*Quartier!E19*Ökobaudat!T17,aSan_Str=PV_60,0.6*Quartier!E19*Ökobaudat!T27+0.4*Quartier!E19*Ökobaudat!I17,aSan_Str=PV_80,0.8*Quartier!E19*Ökobaudat!I27+0.2*Quartier!E19*Ökobaudat!T17,aSan_Str=PV_100,Quartier!E19*Ökobaudat!T27)+IF(aSan_Wärm=BHKW,Sanierung!E37,0),"-") -> - | U6: =IF(Datenbank_Emission=Ökobaudat2024,0,"-") -> - | V6: =IF(Datenbank_Emission=Ökobaudat2024,0,"-") -> - | W6: kg CO2/a | AB6: Nach Sanierung | AC6: Lebenszyklus | AD6: =ROUND('Ergebnis Quartier'!T16/1000,0) -> 0 | AE6: =ROUND('Ergebnis Quartier'!T17/1000,0) ->  | AF6: =ROUND('Ergebnis Quartier'!T18/1000,0) ->  | AG6: =ROUND('Ergebnis Quartier'!T19/1000,0) ->  | AQ6: 4 | AR6: 0 | AT6: 0 | AV6: 0
D7: Referenz Quartier | G7: =Quartier!H4 -> keine Angabe | Q7: Wärme | R7: =IF(Datenbank_Emission=Ökobaudat2024,0,"-") -> - | S7: =IF(Datenbank_Emission=Ökobaudat2024,0,"-") -> - | T7: =IF(Datenbank_Emission=Ökobaudat2024,_xlfn.IFS(aSan_Wärm=WP_80,Sanierung!E43,aSan_Wärm=WP_50,Sanierung!E48,aSan_Wärm=Fern_100,Sanierung!E53,aSan_Wärm=BHKW_100,Sanierung!E57),"-") -> - | U7: =IF(Datenbank_Emission=Ökobaudat2024,0,"-") -> - | V7: =IF(Datenbank_Emission=Ökobaudat2024,0,"-") -> - | W7: kg CO2/a | AC7: Territorial | AI7: ='Ergebnis Quartier'!U16 -> 0 | AJ7: =ROUND('Ergebnis Quartier'!U17/1000,0) ->  | AK7: =ROUND('Ergebnis Quartier'!U18/1000,0) -> 0 | AL7: =ROUND('Ergebnis Quartier'!U19/1000,0) -> 0 | AQ7: 5 | AR7: 0 | AT7: 0 | AV7: 0
Q8: Materialströme | R8: =IF(Datenbank_Emission=Ökobaudat2024,1/40*(_xlfn.IFS(Dämm_Mat=EPS,EPS_i*SUM(Ökobaudat!J32)/Sachbilanz!AC458,Dämm_Mat=XPS,XPS_i*SUM(Ökobaudat!J31:L31)/Sachbilanz!AC457,Dämm_Mat=Holzfaser,Holz_i*SUM(Ökobaudat!J33:L33)/Sachbilanz!AC459,Dämm_Mat=Zellulose,Zellu_i*SUM(Ökobaudat!J34:L34)/Sachbilanz!AC460,Dämm_Mat='Drop-Down'!T6,0)+Fenster_i/Sachbilanz!G300*_xlfn.IFS(Mat_Rhm=PVC,SUM(Ökobaudat!J28:L28)/2.95,Mat_Rhm=Holz,SUM(Ökobaudat!J29:L29)/2.11)+(Glas_i*SUM(Ökobaudat!J30:L30)/Sachbilanz!AC463)+Putz_i*SUM(Ökobaudat!J36:L36)+_xlfn.IFS(Vwrtng=Dep_6,Bauschutt_o*SUM(Ökobaudat!J67:L67)*0.061+0.939*Bauschutt_o*SUM(Ökobaudat!J37:L37)+0.939*1/3*Fenster_o*(SUM(Ökobaudat!J43:L43)+SUM(Ökobaudat!J44:L44)+SUM(Ökobaudat!J45:L45)),Vwrtng=Verwertung100,Bauschutt_o*SUM(Ökobaudat!J37:L37)+1/3*Fenster_o*(SUM(Ökobaudat!J43:L43)+SUM(Ökobaudat!J44:L44)+SUM(Ökobaudat!J45:L45)))),"-") -> - | S8: =IF(Datenbank_Emission=Ökobaudat2024,1/40*(_xlfn.IFS(Dämm_Mat=EPS,EPS_i*SUM(Ökobaudat!M32:N32)/Sachbilanz!AC458,Dämm_Mat=XPS,XPS_i*SUM(Ökobaudat!M31:N31)/Sachbilanz!AC457,Dämm_Mat=Holzfaser,Holz_i*SUM(Ökobaudat!M33:N33)/Sachbilanz!AC459,Dämm_Mat=Zellulose,Zellu_i*SUM(Ökobaudat!M34:N34)/Sachbilanz!AC460,Dämm_Mat='Drop-Down'!T6,0)+Fenster_i/Sachbilanz!G300*_xlfn.IFS(Mat_Rhm=PVC,SUM(Ökobaudat!M28:N28)/2.95,Mat_Rhm=Holz,SUM(Ökobaudat!M29:N29)/2.11)+(Glas_i*SUM(Ökobaudat!M30:N30)/Sachbilanz!AC463)+Putz_i*SUM(Ökobaudat!M36:N36)+_xlfn.IFS(Vwrtng=Dep_6,Bauschutt_o*SUM(Ökobaudat!M67:N67)*0.061+0.939*Bauschutt_o*SUM(Ökobaudat!M37:N37)+0.939*1/3*Fenster_o*(SUM(Ökobaudat!M43:N43)+SUM(Ökobaudat!M44:N44)+SUM(Ökobaudat!M45:N45)),Vwrtng=Verwertung100,Bauschutt_o*SUM(Ökobaudat!M37:N37)+1/3*Fenster_o*(SUM(Ökobaudat!M43:N43)+SUM(Ökobaudat!M44:N44)+SUM(Ökobaudat!M45:N45)))),"-") -> - | T8: =IF(Datenbank_Emission=Ökobaudat2024,0,"-") -> - | U8: =IF(Datenbank_Emission=Ökobaudat2024,1/40*(_xlfn.IFS(Dämm_Mat=EPS,EPS_i*SUM(Ökobaudat!V32:Y32)/Sachbilanz!AC458,Dämm_Mat=XPS,XPS_i*SUM(Ökobaudat!V31:Y31)/Sachbilanz!AC457,Dämm_Mat=Holzfaser,Holz_i*SUM(Ökobaudat!V33:Y33)/Sachbilanz!AC459,Dämm_Mat=Zellulose,Zellu_i*SUM(Ökobaudat!V34:Y34)/Sachbilanz!AC460,Dämm_Mat='Drop-Down'!T6,0)+Fenster_i/Sachbilanz!G300*_xlfn.IFS(Mat_Rhm=PVC,SUM(Ökobaudat!V28:Y28)/2.95,Mat_Rhm=Holz,SUM(Ökobaudat!V29:Y29)/2.11)+(Glas_i*SUM(Ökobaudat!V30:Y30)/Sachbilanz!AC463)+Putz_i*SUM(Ökobaudat!V36:Y36)+_xlfn.IFS(Vwrtng=Dep_6,Bauschutt_o*SUM(Ökobaudat!V67:Y67)*0.061+0.939*Bauschutt_o*SUM(Ökobaudat!V37:Y37)+0.939*1/3*Fenster_o*(SUM(Ökobaudat!V43:Y43)+SUM(Ökobaudat!V44:Y44)+SUM(Ökobaudat!V45:Y45)),Vwrtng=Verwertung100,Bauschutt_o*SUM(Ökobaudat!V37:Y37)+1/3*Fenster_o*(SUM(Ökobaudat!V43:Y43)+SUM(Ökobaudat!V44:Y44)+SUM(Ökobaudat!V45:Y45)))),"-") -> - | V8: =IF(Datenbank_Emission=Ökobaudat2024,1/40*(_xlfn.IFS(Dämm_Mat=EPS,EPS_i*SUM(Ökobaudat!Z32:AA32)/Sachbilanz!AC458,Dämm_Mat=XPS,XPS_i*SUM(Ökobaudat!Z31:AA31)/Sachbilanz!AC457,Dämm_Mat=Holzfaser,Holz_i*SUM(Ökobaudat!Z33:AA33)/Sachbilanz!AC459,Dämm_Mat=Zellulose,Zellu_i*SUM(Ökobaudat!Z34:AA34)/Sachbilanz!AC460,Dämm_Mat='Drop-Down'!T6,0)+Fenster_i/Sachbilanz!G300*_xlfn.IFS(Mat_Rhm=PVC,SUM(Ökobaudat!Z28:AA28)/2.95,Mat_Rhm=Holz,SUM(Ökobaudat!Z29:AA29)/2.11)+(Glas_i*SUM(Ökobaudat!Z30:AA30)/Sachbilanz!AC463)+Putz_i*SUM(Ökobaudat!Z36:AA36)+_xlfn.IFS(Vwrtng=Dep_6,Bauschutt_o*SUM(Ökobaudat!Z67:AA67)*0.061+0.939*Bauschutt_o*SUM(Ökobaudat!Z37:AA37)+0.939*1/3*Fenster_o*(SUM(Ökobaudat!Z43:AA43)+SUM(Ökobaudat!Z44:AA44)+SUM(Ökobaudat!Z45:AA45)),Vwrtng=Verwertung100,Bauschutt_o*SUM(Ökobaudat!Z37:AA37)+1/3*Fenster_o*(SUM(Ökobaudat!Z43:AA43)+SUM(Ökobaudat!Z44:AA44)+SUM(Ökobaudat!Z45:AA45)))),"-") -> - | W8: kg CO2/a | AA8: THG Ziel | AB8: 2030 | AH8: =Quartier!E35 ->  | AQ8: 6 | AR8: 0 | AT8: 0 | AV8: 0
Q9: Technische Einbauten | R9: =IF(Datenbank_Emission=Ökobaudat2024,1/40*((ROUNDUP((Strom_Nutz*_xlfn.IFS(aSan_Str=PV_0,0,aSan_Str=PV_20,0.2,aSan_Str=PV_40,0.4,aSan_Str=PV_60,0.6,aSan_Str=PV_80,0.8,aSan_Str=PV_100,1))/30000,0)*SUM(Ökobaudat!J24:L24))+_xlfn.IFS(aSan_Wärm=WP_80,2*ROUNDUP(Sanierung!D44*Quartier!E43/(365*24*20),0)*SUM(Ökobaudat!J7:L7)+2*ROUNDUP(Sanierung!D43*Quartier!E43/(365*24*20),0)*((Quartier!E11+Quartier!E12)/Quartier!E9*SUM(Ökobaudat!J9)+(Quartier!E13+Quartier!E14)/Quartier!E9*SUM(Ökobaudat!J10))+2*ROUNDUP(Sanierung!D45*Quartier!E43/(365*24*20),0)*((Quartier!E11+Quartier!E12)/Quartier!E9*SUM(Ökobaudat!J12)+(Quartier!E13+Quartier!E14)/Quartier!E9*SUM(Ökobaudat!J13))+40/15*ROUNDUP(Sanierung!D46*Quartier!E43/(365*24*20),0)*SUM(Ökobaudat!J15)+40/30*ROUNDUP(Sanierung!D47*Quartier!E43/(365*24*20),0)*SUM(Ökobaudat!J21:L21),aSan_Wärm=WP_50,2*ROUNDUP(Sanierung!D49*Quartier!E43/(365*24*20),0)*SUM(Ökobaudat!J7:L7)+2*ROUNDUP(Sanierung!D48*Quartier!E43/(365*24*20),0)*SUM((Quartier!E11+Quartier!E12)/Quartier!E9*SUM(Ökobaudat!J9)+(Quartier!E13+Quartier!E14)/Quartier!E9*SUM(Ökobaudat!J10))+2*ROUNDUP(Sanierung!D50*Quartier!E43/(365*24*20),0)*((Quartier!E11+Quartier!E12)/Quartier!E9*SUM(Ökobaudat!J12)+(Quartier!E13+Quartier!E14)/Quartier!E9*SUM(Ökobaudat!J13))+40/15*ROUNDUP(Sanierung!D51*Quartier!E43/(365*24*20),0)*SUM(Ökobaudat!J15)+2*ROUNDUP(Sanierung!D52*Quartier!E43/(365*24*20),0)*SUM(Ökobaudat!J21:L21),aSan_Wärm=Fern_100,Quartier!E9*40/30*ROUNDUP(Quartier!E43/(365*24*1),0)*SUM(Ökobaudat!J21:L21),aSan_Wärm=BHKW_100,ROUNDUP(Quartier!E43/(365*24*500),0)*SUM(Ökobaudat!J22:L22))),"-") -> - | S9: =IF(Datenbank_Emission=Ökobaudat2024,1/40*((ROUNDUP((Strom_Nutz*_xlfn.IFS(aSan_Str=PV_0,0,aSan_Str=PV_20,0.2,aSan_Str=PV_40,0.4,aSan_Str=PV_60,0.6,aSan_Str=PV_80,0.8,aSan_Str=PV_100,1))/30000,0)*SUM(Ökobaudat!M24:N24))+_xlfn.IFS(aSan_Wärm=WP_80,2*ROUNDUP(Sanierung!D44*Quartier!E43/(365*24*20),0)*SUM(Ökobaudat!M7:N7)+2*ROUNDUP(Sanierung!D43*Quartier!E43/(365*24*20),0)*((Quartier!E11+Quartier!E12)/Quartier!E9*SUM(Ökobaudat!M9:N9)+(Quartier!E13+Quartier!E14)/Quartier!E9*SUM(Ökobaudat!M10:N10))+2*ROUNDUP(Sanierung!D45*Quartier!E43/(365*24*20),0)*((Quartier!E11+Quartier!E12)/Quartier!E9*SUM(Ökobaudat!M12:N12)+(Quartier!E13+Quartier!E14)/Quartier!E9*SUM(Ökobaudat!M13:N13))+40/15*ROUNDUP(Sanierung!D46*Quartier!E43/(365*24*20),0)*SUM(Ökobaudat!M15:N15)+40/30*ROUNDUP(Sanierung!D47*Quartier!E43/(365*24*20),0)*SUM(Ökobaudat!M21:N21),aSan_Wärm=WP_50,2*ROUNDUP(Sanierung!D49*Quartier!E43/(365*24*20),0)*SUM(Ökobaudat!M7:N7)+2*ROUNDUP(Sanierung!D48*Quartier!E43/(365*24*20),0)*((Quartier!E11+Quartier!E12)/Quartier!E9*SUM(Ökobaudat!M9:N9)+(Quartier!E13+Quartier!E14)/Quartier!E9*SUM(Ökobaudat!M10:N10))+2*ROUNDUP(Sanierung!D50*Quartier!E43/(365*24*20),0)*((Quartier!E11+Quartier!E12)/Quartier!E9*SUM(Ökobaudat!M12:N12)+(Quartier!E13+Quartier!E14)/Quartier!E9*SUM(Ökobaudat!M13:N13))+40/15*ROUNDUP(Sanierung!D51*Quartier!E43/(365*24*20),0)*SUM(Ökobaudat!M15:N15)+40/30*ROUNDUP(Sanierung!D52*Quartier!E43/(365*24*20),0)*SUM(Ökobaudat!M21:N21),aSan_Wärm=Fern_100,Quartier!E9*40/30*ROUNDUP(Quartier!E43/(365*24*1),0)*SUM(Ökobaudat!M21:N21),aSan_Wärm=BHKW_100,ROUNDUP(Quartier!E43/(365*24*500),0)*SUM(Ökobaudat!M22:N22))),"-") -> - | T9: =IF(Datenbank_Emission=Ökobaudat2024,0,"-") -> - | U9: =IF(Datenbank_Emission=Ökobaudat2024,1/40*((ROUNDUP((Strom_Nutz*_xlfn.IFS(aSan_Str=PV_0,0,aSan_Str=PV_20,0.2,aSan_Str=PV_40,0.4,aSan_Str=PV_60,0.6,aSan_Str=PV_80,0.8,aSan_Str=PV_100,1))/30000,0)*SUM(Ökobaudat!V24:Y24))+_xlfn.IFS(aSan_Wärm=WP_80,2*ROUNDUP(Sanierung!D44*Quartier!E43/(365*24*20),0)*SUM(Ökobaudat!V7:Y7)+2*ROUNDUP(Sanierung!D43*Quartier!E43/(365*24*20),0)*((Quartier!E11+Quartier!E12)/Quartier!E9*SUM(Ökobaudat!V9:Y9)+(Quartier!E13+Quartier!E14)/Quartier!E9*SUM(Ökobaudat!V10:Y10))+2*ROUNDUP(Sanierung!D45*Quartier!E43/(365*24*20),0)*((Quartier!E11+Quartier!E12)/Quartier!E9*SUM(Ökobaudat!V12:Y12)+(Quartier!E13+Quartier!E14)/Quartier!E9*SUM(Ökobaudat!V13:Y13))+40/15*ROUNDUP(Sanierung!D46*Quartier!E43/(365*24*20),0)*SUM(Ökobaudat!V15:Y15)+40/30*ROUNDUP(Sanierung!D47*Quartier!E43/(365*24*20),0)*SUM(Ökobaudat!V21:Y21),aSan_Wärm=WP_50,2*ROUNDUP(Sanierung!D49*Quartier!E43/(365*24*20),0)*SUM(Ökobaudat!V7:Y7)+2*ROUNDUP(Sanierung!D48*Quartier!E43/(365*24*20),0)*((Quartier!E11+Quartier!E12)/Quartier!E9*SUM(Ökobaudat!V9:Y9)+(Quartier!E13+Quartier!E14)/Quartier!E9*SUM(Ökobaudat!V10:Y10))+2*ROUNDUP(Sanierung!D50*Quartier!E43/(365*24*20),0)*((Quartier!E11+Quartier!E12)/Quartier!E9*SUM(Ökobaudat!V12:Y12)+(Quartier!E13+Quartier!E14)/Quartier!E9*SUM(Ökobaudat!V13:Y13))+40/15*ROUNDUP(Sanierung!D51*Quartier!E43/(365*24*20),0)*SUM(Ökobaudat!V15:Y15)+40/30*ROUNDUP(Sanierung!D52*Quartier!E43/(365*24*20),0)*SUM(Ökobaudat!V21:Y21),aSan_Wärm=Fern_100,Quartier!E9*40/30*ROUNDUP(Quartier!E43/(365*24*1),0)*SUM(Ökobaudat!V21:Y21),aSan_Wärm=BHKW_100,ROUNDUP(Quartier!E43/(365*24*500),0)*SUM(Ökobaudat!V22:Y22))),"-") -> - | V9: =IF(Datenbank_Emission=Ökobaudat2024,1/40*((ROUNDUP((Strom_Nutz*_xlfn.IFS(aSan_Str=PV_0,0,aSan_Str=PV_20,0.2,aSan_Str=PV_40,0.4,aSan_Str=PV_60,0.6,aSan_Str=PV_80,0.8,aSan_Str=PV_100,1))/30000,0)*SUM(Ökobaudat!Z24:AA24))+_xlfn.IFS(aSan_Wärm=WP_80,2*ROUNDUP(Sanierung!D44*Quartier!E43/(365*24*20),0)*SUM(Ökobaudat!Z7:AA7)+2*ROUNDUP(Sanierung!D43*Quartier!E43/(365*24*20),0)*((Quartier!E11+Quartier!E12)/Quartier!E9*SUM(Ökobaudat!Z9:AA9)+(Quartier!E13+Quartier!E14)/Quartier!E9*SUM(Ökobaudat!Z10:AA10))+2*ROUNDUP(Sanierung!D45*Quartier!E43/(365*24*20),0)*((Quartier!E11+Quartier!E12)/Quartier!E9*SUM(Ökobaudat!Z12:AA12)+(Quartier!E13+Quartier!E14)/Quartier!E9*SUM(Ökobaudat!Z13:AA13))+40/15*ROUNDUP(Sanierung!D46*Quartier!E43/(365*24*20),0)*SUM(Ökobaudat!Z15:AA15)+40/30*ROUNDUP(Sanierung!D47*Quartier!E43/(365*24*20),0)*SUM(Ökobaudat!Z21:AA21),aSan_Wärm=WP_50,2*ROUNDUP(Sanierung!D49*Quartier!E43/(365*24*20),0)*SUM(Ökobaudat!Z7:AA7)+2*ROUNDUP(Sanierung!D48*Quartier!E43/(365*24*20),0)*((Quartier!E11+Quartier!E12)/Quartier!E9*SUM(Ökobaudat!Z9:AA9)+(Quartier!E13+Quartier!E14)/Quartier!E9*SUM(Ökobaudat!Z10:AA10))+2*ROUNDUP(Sanierung!D50*Quartier!E43/(365*24*20),0)*((Quartier!E11+Quartier!E12)/Quartier!E9*SUM(Ökobaudat!Z12:AA12)+(Quartier!E13+Quartier!E14)/Quartier!E9*SUM(Ökobaudat!Z13:AA13))+40/15*ROUNDUP(Sanierung!D51*Quartier!E43/(365*24*20),0)*SUM(Ökobaudat!Z15:AA15)+40/30*ROUNDUP(Sanierung!D52*Quartier!E43/(365*24*20),0)*SUM(Ökobaudat!Z21:AA21),aSan_Wärm=Fern_100,Quartier!E9*40/30*ROUNDUP(Quartier!E43/(365*24*1),0)*SUM(Ökobaudat!Z21:AA21),aSan_Wärm=BHKW_100,ROUNDUP(Quartier!E43/(365*24*500),0)*SUM(Ökobaudat!Z22:AA22))),"-") -> - | W9: kg CO2/a | AM9: =Quartier!E35 ->  | AQ9: 7 | AR9: 0 | AT9: 0 | AV9: 0
D10: Gebäude im Quartier | F10: =Zahl_Geb -> keine Angabe | Q10: Gesamt | R10: =IF(Datenbank_Emission=Ökobaudat2024,SUM(R6:R9)/1000,"-") -> - | S10: =IF(Datenbank_Emission=Ökobaudat2024,SUM(S6:S9)/1000,"-") -> - | T10: =IF(Datenbank_Emission=Ökobaudat2024,SUM(T6:T9)/1000,"-") -> - | U10: =IF(Datenbank_Emission=Ökobaudat2024,SUM(U6:U9)/1000,"-") -> - | V10: =IF(Datenbank_Emission=Ökobaudat2024,SUM(V6:V9)/1000,"-") -> - | W10: T CO2/a | AB10: 2045 | AD10: 0 | AE10: 0 | AQ10: 8 | AR10: 0 | AT10: 0 | AV10: 0
H11: r0 | I11: r1 | J11: r2 | K11: r3 | AI11: 0 | AJ11: 0 | AQ11: 9 | AR11: 0 | AT11: 0 | AV11: 0
D12: SFH | F12: =SFH_qurtr -> - | H12: =Quartier!G11 -> - | I12: =Quartier!H11 -> - | J12: =Quartier!I11 -> - | K12: =Quartier!J11 -> - | AQ12: 10 | AR12: 0 | AT12: 0 | AV12: 0
D13: SDH | F13: =SDH_qurtr -> - | H13: =Quartier!G12 -> - | I13: =Quartier!H12 -> - | J13: =Quartier!I12 -> - | K13: =Quartier!J12 -> - | Q13: Phasen nach GHG -Protocol | R13: Vor Sanierung | T13: Nach Sanierung | AQ13: 11 | AR13: 0 | AT13: 0 | AV13: 0
D14: SMFH | F14: =SMFH_qurtr -> - | H14: =Quartier!G13 -> - | I14: =Quartier!H13 -> - | J14: =Quartier!I13 -> - | K14: =Quartier!J13 -> - | R14: Lebens- zyklus | S14: Territorial/ Scope 1 | T14: Lebens- zyklus | U14: Territorial/ Scope 1 | AQ14: 12 | AR14: 0 | AT14: 0 | AV14: 0
D15: LMFH | F15: =LMFH_qurtr -> - | H15: =Quartier!G14 -> - | I15: =Quartier!H14 -> - | J15: =Quartier!I14 -> - | K15: =Quartier!J14 -> - | AQ15: 13 | AR15: 0 | AT15: 0 | AV15: 0
D16: Nebengebäude | F16: =Quartier!E15 -> 0 | H16: =Quartier!G15 -> 0 | I16: =Quartier!H15 -> 0 | J16: =Quartier!I15 -> 0 | K16: =Quartier!J15 -> 0 | Q16: Strom | R16: =H22 -> 0 | S16: =I22 -> 0 | T16: =_xlfn.IFS(Datenbank_Emission=Ökobaudat2024,_xlfn.IFS(aSan_Str=PV_0,Strom_Nutz*SUM(Ökobaudat!J17:Y17),aSan_Str=PV_20,0.2*Strom_Nutz*SUM(Ökobaudat!J27:Y27)+0.8*Strom_Nutz*SUM(Ökobaudat!J17:Y17),aSan_Str=PV_40,0.4*Strom_Nutz*SUM(Ökobaudat!J27:Y27)+0.6*Strom_Nutz*SUM(Ökobaudat!J17:Y17),aSan_Str=PV_60,0.6*Strom_Nutz*SUM(Ökobaudat!J27:Y27)+0.4*Strom_Nutz*SUM(Ökobaudat!J17:Y17),aSan_Str=PV_80,0.8*Strom_Nutz*SUM(Ökobaudat!J27:Y27)+0.2*Strom_Nutz*SUM(Ökobaudat!J17:Y17),aSan_Str=PV_100,Strom_Nutz*SUM(Ökobaudat!J27:Y27)),Datenbank_Emission=Datenbank_eigen,_xlfn.IFS(aSan_Str=PV_0,Strom_Nutz*'Eigene Datenbank'!M17,aSan_Str=PV_20,0.2*Strom_Nutz*'Eigene Datenbank'!M27+0.8*Strom_Nutz*'Eigene Datenbank'!M17,aSan_Str=PV_40,0.4*Strom_Nutz*'Eigene Datenbank'!M27+0.6*Strom_Nutz*'Eigene Datenbank'!M17,aSan_Str=PV_60,0.6*Strom_Nutz*'Eigene Datenbank'!M27+0.4*Strom_Nutz*'Eigene Datenbank'!M17,aSan_Str=PV_80,0.8*Strom_Nutz*'Eigene Datenbank'!M27+0.2*Strom_Nutz*'Eigene Datenbank'!M17,aSan_Str=PV_100,Strom_Nutz*'Eigene Datenbank'!M27))+IF(aSan_Wärm=BHKW,Sanierung!E37,0) -> 0 | U16: 0 | V16: kg CO2/a | AQ16: 14 | AR16: 0 | AT16: 0 | AV16: 0
Q17: Wärme | R17: =H23 ->  | S17: =I23 -> 0 | T17: =_xlfn.IFS(aSan_Wärm=WP_80,Sanierung!E43,aSan_Wärm=WP_50,Sanierung!E48,aSan_Wärm=Fern_100,Sanierung!E53,aSan_Wärm=BHKW_100,Sanierung!E57,aSan_Wärm='Drop-Down'!V6,"keine Angabe") ->  | U17: =_xlfn.IFS(Datenbank_Emission=Ökobaudat2024,_xlfn.IFS(aSan_Wärm=Fern_100,0,AND(aSan_Wärm=BHKW_100,Quartier!H60=ja),Sanierung!E57,AND(aSan_Wärm=BHKW_100,Quartier!H60=nein),0,aSan_Wärm=WP_80,Quartier!E43*(Sanierung!D43*Ökobaudat!I8+Sanierung!D46*Ökobaudat!I14),aSan_Wärm=WP_50,Quartier!E43*(Sanierung!D48*Ökobaudat!I8+Sanierung!D50*Ökobaudat!I11+Sanierung!D51*Ökobaudat!I14)),Datenbank_Emission=Datenbank_eigen,_xlfn.IFS(aSan_Wärm=Fern_100,0,AND(aSan_Wärm=BHKW_100,Quartier!H60=ja),Sanierung!E57,AND(aSan_Wärm=BHKW_100,Quartier!H60=nein),0,aSan_Wärm=WP_80,Quartier!E43*(Sanierung!J43*'Eigene Datenbank'!M8+Sanierung!D46*'Eigene Datenbank'!M14),aSan_Wärm=WP_50,Quartier!E43*(Sanierung!D48*'Eigene Datenbank'!M8+Sanierung!D50*'Eigene Datenbank'!M11+Sanierung!D51*'Eigene Datenbank'!M14))) ->  | V17: kg CO2/a | AQ17: 15 | AR17: 0 | AT17: 0 | AV17: 0 | AX17: =-R99 -> 
B18: IST- Zustand | Q18: Materialströme | T18: =1/40*_xlfn.IFS(Datenbank_Emission=Ökobaudat2024,_xlfn.IFS(Dämm_Mat=EPS,EPS_i*SUM(Ökobaudat!J32:Y32)/Sachbilanz!AC458,Dämm_Mat=XPS,XPS_i*SUM(Ökobaudat!J31:Y31)/Sachbilanz!AC457,Dämm_Mat=Holzfaser,Holz_i*SUM(Ökobaudat!J33:Y33)/Sachbilanz!AC459,Dämm_Mat=Zellulose,Zellu_i*SUM(Ökobaudat!J34:Y34)/Sachbilanz!AC460,Dämm_Mat='Drop-Down'!T6,0)+Fenster_i/Sachbilanz!G300*_xlfn.IFS(Mat_Rhm=PVC,SUM(Ökobaudat!J28:Y28)/2.95,Mat_Rhm=Holz,SUM(Ökobaudat!J29:Y29)/2.11)+(Glas_i*SUM(Ökobaudat!J30:Y30)/Sachbilanz!AC463)+Putz_i*SUM(Ökobaudat!J36:Y36)+_xlfn.IFS(Vwrtng=Dep_6,Bauschutt_o*SUM(Ökobaudat!J67:Y67)*0.061+0.939*Bauschutt_o*SUM(Ökobaudat!J37:Y37)+0.939*1/3*Fenster_o*(SUM(Ökobaudat!J43:Y43)+SUM(Ökobaudat!J44:Y44)+SUM(Ökobaudat!J45:Y45)),Vwrtng=Verwertung100,Bauschutt_o*SUM(Ökobaudat!J37:Y37)+1/3*Fenster_o*(SUM(Ökobaudat!J43:Y43)+SUM(Ökobaudat!J44:Y44)+SUM(Ökobaudat!J45:Y45))),Datenbank_Emission=Datenbank_eigen,_xlfn.IFS(Dämm_Mat=EPS,EPS_i*'Eigene Datenbank'!M32,Dämm_Mat=XPS,XPS_i*'Eigene Datenbank'!M31,Dämm_Mat=Holzfaser,Holz_i*'Eigene Datenbank'!M33/Sachbilanz!AC452,Dämm_Mat=Zellulose,Zellu_i*'Eigene Datenbank'!M34,Dämm_Mat='Drop-Down'!T6,0)+Fenster_i*_xlfn.IFS(Mat_Rhm=PVC,'Eigene Datenbank'!M28/Sachbilanz!E296,Mat_Rhm=Holz,'Eigene Datenbank'!M29/Sachbilanz!E298)+Glas_i*'Eigene Datenbank'!M30+Putz_i*'Eigene Datenbank'!M36+_xlfn.IFS(Vwrtng=Dep_6,Bauschutt_o*'Eigene Datenbank'!M67*0.061+0.939*0.5*Bauschutt_o*('Eigene Datenbank'!M37+'Eigene Datenbank'!M38)+0.939*1/3*Fenster_o*('Eigene Datenbank'!M43+'Eigene Datenbank'!M44+'Eigene Datenbank'!M45),Vwrtng=Verwertung100,0.5*Bauschutt_o*('Eigene Datenbank'!M37+'Eigene Datenbank'!M38)+1/3*Fenster_o*('Eigene Datenbank'!M43+'Eigene Datenbank'!M44+'Eigene Datenbank'!M45))) ->  | U18: 0 | V18: kg CO2/a | AQ18: 16 | AR18: 0 | AT18: 0 | AV18: 0
F19: Nutzenergiebedarf | H19: THG | Q19: Technische Einbauten | T19: =1/40*_xlfn.IFS(Datenbank_Emission=Ökobaudat2024,((ROUNDUP((Strom_Nutz*_xlfn.IFS(aSan_Str=PV_0,0,aSan_Str=PV_20,0.2,aSan_Str=PV_40,0.4,aSan_Str=PV_60,0.6,aSan_Str=PV_80,0.8,aSan_Str=PV_100,1))/30000,0)*SUM(Ökobaudat!J24:Y24))+_xlfn.IFS(aSan_Wärm=WP_80,2*ROUNDUP(Sanierung!D44*Quartier!E43/(365*24*20),0)*SUM(Ökobaudat!J7:Y7)+2*ROUNDUP(Sanierung!D43*Quartier!E43/(365*24*20),0)*((Quartier!E11+Quartier!E12)/Quartier!E9*SUM(Ökobaudat!J9:Y9)+(Quartier!E13+Quartier!E14)/Quartier!E9*SUM(Ökobaudat!J10:Y10))+2*ROUNDUP(Sanierung!D45*Quartier!E43/(365*24*20),0)*((Quartier!E11+Quartier!E12)/Quartier!E9*SUM(Ökobaudat!J12:Y12)+(Quartier!E13+Quartier!E14)/Quartier!E9*SUM(Ökobaudat!J13:Y13))+40/15*ROUNDUP(Sanierung!D46*Quartier!E43/(365*24*20),0)*SUM(Ökobaudat!J15:Y15)+40/30*ROUNDUP(Sanierung!D47*Quartier!E43/(365*24*20),0)*SUM(Ökobaudat!J21:Y21),aSan_Wärm=WP_50,2*ROUNDUP(Sanierung!D49*Quartier!E43/(365*24*20),0)*SUM(Ökobaudat!J7:Y7)+2*ROUNDUP(Sanierung!D48*Quartier!E43/(365*24*20),0)*SUM((Quartier!E11+Quartier!E12)/Quartier!E9*SUM(Ökobaudat!J9:Y9)+(Quartier!E13+Quartier!E14)/Quartier!E9*SUM(Ökobaudat!J10:Y10))+2*ROUNDUP(Sanierung!D50*Quartier!E43/(365*24*20),0)*((Quartier!E11+Quartier!E12)/Quartier!E9*SUM(Ökobaudat!J12:Y12)+(Quartier!E13+Quartier!E14)/Quartier!E9*SUM(Ökobaudat!J13:Y13))+40/15*ROUNDUP(Sanierung!D51*Quartier!E43/(365*24*20),0)*SUM(Ökobaudat!J15:Y15)+2*ROUNDUP(Sanierung!D52*Quartier!E43/(365*24*20),0)*SUM(Ökobaudat!J21:Y21),aSan_Wärm=Fern_100,Quartier!E9*40/30*ROUNDUP(Quartier!E43/(365*24*1),0)*SUM(Ökobaudat!J21:Y21),aSan_Wärm=BHKW_100,ROUNDUP(Quartier!E43/(365*24*500),0)*SUM(Ökobaudat!J22:Y22))),Datenbank_Emission=Datenbank_eigen,((ROUNDUP((Strom_Nutz*_xlfn.IFS(aSan_Str=PV_0,0,aSan_Str=PV_20,0.2,aSan_Str=PV_40,0.4,aSan_Str=PV_60,0.6,aSan_Str=PV_80,0.8,aSan_Str=PV_100,1))/30000,0)*'Eigene Datenbank'!M24)+_xlfn.IFS(aSan_Wärm=WP_80,2*ROUNDUP(Sanierung!D44*Quartier!E43/(365*24*20),0)*'Eigene Datenbank'!M7+2*ROUNDUP(Sanierung!D43*Quartier!E43/(365*24*20),0)*((Quartier!E11+Quartier!E12)/Quartier!E9*'Eigene Datenbank'!M9+(Quartier!E13+Quartier!E14)/Quartier!E9*'Eigene Datenbank'!M10)+2*ROUNDUP(Sanierung!D45*Quartier!E43/(365*24*20),0)*((Quartier!E11+Quartier!E12)/Quartier!E9*'Eigene Datenbank'!M12+(Quartier!E13+Quartier!E14)/Quartier!E9*#REF!)+40/15*ROUNDUP(Sanierung!D46*Quartier!E43/(365*24*20),0)*'Eigene Datenbank'!M15+40/30*ROUNDUP(Sanierung!D47*Quartier!E43/(365*24*20),0)*'Eigene Datenbank'!M21,aSan_Wärm=WP_50,2*ROUNDUP(Sanierung!D49*Quartier!E43/(365*24*20),0)*'Eigene Datenbank'!M7+2*ROUNDUP(Sanierung!D48*Quartier!E43/(365*24*20),0)*SUM((Quartier!E11+Quartier!E12)/Quartier!E9*'Eigene Datenbank'!M9+(Quartier!E13+Quartier!E14)/Quartier!E9*'Eigene Datenbank'!M10)+2*ROUNDUP(Sanierung!D50*Quartier!E43/(365*24*20),0)*((Quartier!E11+Quartier!E12)/Quartier!E9*'Eigene Datenbank'!M12+(Quartier!E13+Quartier!E14)/Quartier!E9*'Eigene Datenbank'!M13)+40/15*ROUNDUP(Sanierung!D51*Quartier!E43/(365*24*20),0)*'Eigene Datenbank'!M15+2*ROUNDUP(Sanierung!D52*Quartier!E43/(365*24*20),0)*'Eigene Datenbank'!M21,aSan_Wärm=Fern_100,Quartier!E9*40/30*ROUNDUP(Quartier!E43/(365*24*1),0)*'Eigene Datenbank'!M21,aSan_Wärm=BHKW_100,ROUNDUP(Quartier!E43/(365*24*500),0)*'Eigene Datenbank'!M22))) ->  | U19: 0 | V19: kg CO2/a | AQ19: 17 | AR19: 0 | AT19: 0 | AV19: 0
H20: Lebenszyklus | I20: Scope 1 | J20: Ziel 2030 | K20: Ziel 2045 | Q20: Gesamt | R20: =(R16+R17+R18+R19)/1000 ->  | S20: 0 | V20: T CO2/a | AQ20: 18 | AR20: 0 | AT20: 0 | AV20: 0
F21: [kWh/a] | H21: [kg CO2-eq/a] | J21: [kg CO2-eq/a] | AQ21: 19 | AR21: 0 | AT21: 0 | AV21: 0
D22: Stom | F22: =Quartier!E19 -> FALSE | H22: =Quartier!E31 -> 0 | I22: ='Sanierung Realquartier'!H27 -> 0 | AQ22: 20 | AR22: 0 | AT22: 0 | AV22: 0 | AX22: =-R100 -> 
D23: Wärme | F23: =Quartier!E20 ->  | H23: =Quartier!E32 ->  | I23: =Quartier!H31 -> 0 | Q23: Phasen nach DIN EN 15804 | R23: Herstellung | S23: Bau | T23: Nutzung | U23: Entsorgung | V23: Vorteile und Belastungen | W23: Gesamt | AQ23: 21 | AR23: 0 | AT23: 0 | AV23: 0
D24: Gesamt | F24: =Quartier!E18 ->  | H24: =Quartier!E30 ->  | I24: =Quartier!H30 ->  | J24: =Quartier!E35 ->  | K24: =Quartier!E36 -> 0 | AQ24: 22 | AR24: 0 | AT24: 0 | AV24: 0
R25: A1-A3 | S25: A4-A5 | T25: B1 - B7 | U25: C1-C4 | V25: D | W25: A-C | AQ25: 23 | AR25: 0 | AT25: 0 | AV25: 0
D26: Beheizungsstruktur | F26: =Quartier!E23 -> ø Deutschland ohne Fernwärme | O26: =_xlfn.IFS(Datenbank_Emission=Datenbank_eigen,"Water con-sumption [m3]",Datenbank_Emission=Ökobaudat2024,"Wasserentzugs-potenzial [m3 world eq]") -> Water con-sumption [m3] | Q26: Strom | R26: =IF(Datenbank_Emission=Ökobaudat2024,0,"-") -> - | S26: =IF(Datenbank_Emission=Ökobaudat2024,0,"-") -> - | T26: =IF(Datenbank_Emission=Ökobaudat2024,_xlfn.IFS(aSan_Str=PV_0,Quartier!E19*SUM(Ökobaudat!AH17:AN17),aSan_Str=PV_20,0.2*Quartier!E19*SUM(Ökobaudat!AH27:AN27)+0.8*Quartier!E19*SUM(Ökobaudat!AH17:AN17),aSan_Str=PV_40,0.4*Quartier!E19*SUM(Ökobaudat!AH27:AN27)+0.6*Quartier!E19*SUM(Ökobaudat!AH17:AN17),aSan_Str=PV_60,0.6*Quartier!E19*SUM(Ökobaudat!AH27:AN27)+0.4*Quartier!E19*SUM(Ökobaudat!AH17:AN17),aSan_Str=PV_80,0.8*Quartier!E19*SUM(Ökobaudat!AH27:AN27)+0.2*Quartier!E19*SUM(Ökobaudat!AH17:AN17),aSan_Str=PV_100,Quartier!E19*SUM(Ökobaudat!AH27:AN27)+IF(aSan_Wärm=BHKW,Sanierung!D56/2*SUM(Ökobaudat!AH17:AN17),0)),"-") -> - | U26: =IF(Datenbank_Emission=Ökobaudat2024,0,"-") -> - | V26: =IF(Datenbank_Emission=Ökobaudat2024,0,"-") -> - | W26: =IF(Datenbank_Emission=Ökobaudat2024,_xlfn.IFS(aSan_Str=PV_0,Quartier!E19*Ökobaudat!AB17,aSan_Str=PV_20,0.2*Quartier!E19*Ökobaudat!AB27+0.8*Quartier!E19*Ökobaudat!AB17,aSan_Str=PV_40,0.4*Quartier!E19*Ökobaudat!AB27+0.6*Quartier!E19*Ökobaudat!AB17,aSan_Str=PV_60,0.6*Quartier!E19*Ökobaudat!AB27+0.4*Quartier!E19*Ökobaudat!AB17,aSan_Str=PV_80,0.8*Quartier!E19*Ökobaudat!AB27+0.2*Quartier!E19*Ökobaudat!AB17,aSan_Str=PV_100,Quartier!E19*Ökobaudat!AB27)+IF(aSan_Wärm=BHKW,Sanierung!D56/2*Ökobaudat!AB17,0),_xlfn.IFS(Datenbank_Emission=Datenbank_eigen,_xlfn.IFS(aSan_Str=PV_0,Strom_Nutz*'Eigene Datenbank'!N17,aSan_Str=PV_20,0.2*Strom_Nutz*'Eigene Datenbank'!N27+0.8*Strom_Nutz*'Eigene Datenbank'!N17,aSan_Str=PV_40,0.4*Strom_Nutz*'Eigene Datenbank'!N27+0.6*Strom_Nutz*'Eigene Datenbank'!N17,aSan_Str=PV_60,0.6*Strom_Nutz*'Eigene Datenbank'!N27+0.4*Strom_Nutz*'Eigene Datenbank'!N17,aSan_Str=PV_80,0.8*Strom_Nutz*'Eigene Datenbank'!N27+0.2*Strom_Nutz*'Eigene Datenbank'!N17,aSan_Str=PV_100,Strom_Nutz*'Eigene Datenbank'!N27)+IF(aSan_Wärm=BHKW_100,Sanierung!D56/2*'Eigene Datenbank'!N17,0))) -> 0 | AQ26: 24 | AR26: 0 | AT26: 0 | AV26: 0
D27: Erdgas | F27: =Quartier!H23 -> 0.562 | Q27: Wärme | R27: =IF(Datenbank_Emission=Ökobaudat2024,0,"-") -> - | S27: =IF(Datenbank_Emission=Ökobaudat2024,0,"-") -> - | T27: =IF(Datenbank_Emission=Ökobaudat2024,Wärme_Nutz_San*_xlfn.IFS(aSan_Wärm=WP_80,Sanierung!D43*SUM(Ökobaudat!AH8:AN8)+Sanierung!D44*SUM(Ökobaudat!AH6:AN6)+Sanierung!D44*SUM(Ökobaudat!AH11:AN11)+Sanierung!D45*SUM(Ökobaudat!AH14:AN14)+Sanierung!D47*SUM(Ökobaudat!AH18:AN18)*0.65+Sanierung!D47*SUM(Ökobaudat!AH19:AN19)*0.35,aSan_Wärm=WP_50,Sanierung!D48*SUM(Ökobaudat!AH8:AN8)+Sanierung!D49*SUM(Ökobaudat!AH6:AN6)+Sanierung!D50*SUM(Ökobaudat!AH11:AN11)+Sanierung!D51*SUM(Ökobaudat!AH14:AN14)+Sanierung!D52*SUM(Ökobaudat!AH18:AN18)*0.65+Sanierung!D52*SUM(Ökobaudat!AH19:AN19)*0.35,aSan_Wärm=Fern_100,(SUM(Ökobaudat!AH18:AN18)*0.65+SUM(Ökobaudat!AH19:AN19)*0.35),aSan_Wärm=BHKW_100,SUM(Ökobaudat!AH23:AN23)),"-") -> - | U27: =IF(Datenbank_Emission=Ökobaudat2024,0,"-") -> - | V27: =IF(Datenbank_Emission=Ökobaudat2024,0,"-") -> - | W27: =IF(Datenbank_Emission=Ökobaudat2024,Wärme_Nutz_San*_xlfn.IFS(aSan_Wärm=WP_80,Sanierung!D43*Ökobaudat!AB8+Sanierung!D44*Ökobaudat!AB6+Sanierung!D44*Ökobaudat!AB11+Sanierung!D45*Ökobaudat!AB14+Sanierung!D47*Ökobaudat!AB18*0.65+Sanierung!D47*Ökobaudat!AB19*0.35,aSan_Wärm=WP_50,Sanierung!D48*Ökobaudat!AB8+Sanierung!D49*Ökobaudat!AB6+Sanierung!D50*Ökobaudat!AB11+Sanierung!D51*Ökobaudat!AB14+Sanierung!D52*Ökobaudat!AB18*0.65+Sanierung!D52*Ökobaudat!AB19*0.35,aSan_Wärm=Fern_100,(Ökobaudat!AB18*0.65+Ökobaudat!AB19*0.35),aSan_Wärm=BHKW_100,Ökobaudat!AB23),Wärme_Nutz_San*_xlfn.IFS(Datenbank_Emission=Datenbank_eigen,_xlfn.IFS(aSan_Wärm=WP_80,Sanierung!D43*'Eigene Datenbank'!N8+Sanierung!D44*'Eigene Datenbank'!N6+Sanierung!D44*'Eigene Datenbank'!N11+Sanierung!D45*'Eigene Datenbank'!N14+Sanierung!D47*'Eigene Datenbank'!N18*0.65+Sanierung!D47*'Eigene Datenbank'!N19*0.35,aSan_Wärm=WP_50,Sanierung!D48*'Eigene Datenbank'!N8+Sanierung!D49*'Eigene Datenbank'!N6+Sanierung!D50*'Eigene Datenbank'!N11+Sanierung!D51*'Eigene Datenbank'!N14+Sanierung!D52*'Eigene Datenbank'!N18*0.65+Sanierung!D52*'Eigene Datenbank'!N19*0.35,aSan_Wärm=Fern_100,('Eigene Datenbank'!N18*0.65+'Eigene Datenbank'!N19*0.35),aSan_Wärm=BHKW_100,'Eigene Datenbank'!N23))) ->  | AQ27: 25 | AR27: 0 | AT27: 0 | AV27: 0
D28: Wärmepumpe | F28: =Quartier!H24 -> 0.043 | Q28: Materialströme | R28: =IF(Datenbank_Emission=Ökobaudat2024,1/40*(_xlfn.IFS(Dämm_Mat=EPS,EPS_i*SUM(Ökobaudat!AC32)/Sachbilanz!AC458,Dämm_Mat=XPS,XPS_i*SUM(Ökobaudat!AC31:AE31)/Sachbilanz!AC457,Dämm_Mat=Holzfaser,Holz_i*SUM(Ökobaudat!AC33:AE33)/Sachbilanz!AC459,Dämm_Mat=Zellulose,Zellu_i*SUM(Ökobaudat!AC34:AE34)/Sachbilanz!AC460,Dämm_Mat='Drop-Down'!T6,0)+Fenster_i/Sachbilanz!G300*_xlfn.IFS(Mat_Rhm=PVC,SUM(Ökobaudat!AC28:AE28)/2.95,Mat_Rhm=Holz,SUM(Ökobaudat!AC29:AE29)/2.11)+(Glas_i*SUM(Ökobaudat!AC30:AE30)/Sachbilanz!AC463)+Putz_i*SUM(Ökobaudat!AC36:AE36)+_xlfn.IFS(Vwrtng=Dep_6,Bauschutt_o*SUM(Ökobaudat!AC67:AE67)*0.061+0.939*Bauschutt_o*SUM(Ökobaudat!AC37:AE37)+0.939*1/3*Fenster_o*(SUM(Ökobaudat!AC43:AE43)+SUM(Ökobaudat!AC44:AE44)+SUM(Ökobaudat!AC45:AE45)),Vwrtng=Verwertung100,Bauschutt_o*SUM(Ökobaudat!AC37:AE37)+1/3*Fenster_o*(SUM(Ökobaudat!AC43:AE43)+SUM(Ökobaudat!AC44:AE44)+SUM(Ökobaudat!AC45:AE45)))),"-") -> - | S28: =IF(Datenbank_Emission=Ökobaudat2024,1/40*(_xlfn.IFS(Dämm_Mat=EPS,EPS_i*SUM(Ökobaudat!AF32:AG32)/Sachbilanz!AC458,Dämm_Mat=XPS,XPS_i*SUM(Ökobaudat!AF31:AG31)/Sachbilanz!AC457,Dämm_Mat=Holzfaser,Holz_i*SUM(Ökobaudat!AF33:AG33)/Sachbilanz!AC459,Dämm_Mat=Zellulose,Zellu_i*SUM(Ökobaudat!AF34:AG34)/Sachbilanz!AC460,Dämm_Mat='Drop-Down'!T6,0)+Fenster_i/Sachbilanz!G300*_xlfn.IFS(Mat_Rhm=PVC,SUM(Ökobaudat!AF28:AG28)/2.95,Mat_Rhm=Holz,SUM(Ökobaudat!AF29:AG29)/2.11)+(Glas_i*SUM(Ökobaudat!AF30:AG30)/Sachbilanz!AC463)+Putz_i*SUM(Ökobaudat!AF36:AG36)+_xlfn.IFS(Vwrtng=Dep_6,Bauschutt_o*SUM(Ökobaudat!AF67:AG67)*0.061+0.939*Bauschutt_o*SUM(Ökobaudat!AF37:AG37)+0.939*1/3*Fenster_o*(SUM(Ökobaudat!AF43:AG43)+SUM(Ökobaudat!AF44:AG44)+SUM(Ökobaudat!AF45:AG45)),Vwrtng=Verwertung100,Bauschutt_o*SUM(Ökobaudat!AF37:AG37)+1/3*Fenster_o*(SUM(Ökobaudat!AF43:AG43)+SUM(Ökobaudat!AF44:AG44)+SUM(Ökobaudat!AF45:AG45)))),"-") -> - | T28: =IF(Datenbank_Emission=Ökobaudat2024,0,"-") -> - | U28: =IF(Datenbank_Emission=Ökobaudat2024,1/40*(_xlfn.IFS(Dämm_Mat=EPS,EPS_i*SUM(Ökobaudat!AO32:AR32)/Sachbilanz!AC458,Dämm_Mat=XPS,XPS_i*SUM(Ökobaudat!AO31:AR31)/Sachbilanz!AC457,Dämm_Mat=Holzfaser,Holz_i*SUM(Ökobaudat!AO33:AR33)/Sachbilanz!AC459,Dämm_Mat=Zellulose,Zellu_i*SUM(Ökobaudat!AO34:AR34)/Sachbilanz!AC460,Dämm_Mat='Drop-Down'!T6,0)+Fenster_i/Sachbilanz!G300*_xlfn.IFS(Mat_Rhm=PVC,SUM(Ökobaudat!AO28:AR28)/2.95,Mat_Rhm=Holz,SUM(Ökobaudat!AO29:AR29)/2.11)+(Glas_i*SUM(Ökobaudat!AO30:AR30)/Sachbilanz!AC463)+Putz_i*SUM(Ökobaudat!AO36:AR36)+_xlfn.IFS(Vwrtng=Dep_6,Bauschutt_o*SUM(Ökobaudat!AO67:AR67)*0.061+0.939*Bauschutt_o*SUM(Ökobaudat!AO37:AR37)+0.939*1/3*Fenster_o*(SUM(Ökobaudat!AO43:AR43)+SUM(Ökobaudat!AO44:AR44)+SUM(Ökobaudat!AO45:AR45)),Vwrtng=Verwertung100,Bauschutt_o*SUM(Ökobaudat!AO37:AR37)+1/3*Fenster_o*(SUM(Ökobaudat!AO43:AR43)+SUM(Ökobaudat!AO44:AR44)+SUM(Ökobaudat!AO45:AR45)))),"-") -> - | V28: =IF(Datenbank_Emission=Ökobaudat2024,1/40*(_xlfn.IFS(Dämm_Mat=EPS,EPS_i*SUM(Ökobaudat!AS32:AT32)/Sachbilanz!AC458,Dämm_Mat=XPS,XPS_i*SUM(Ökobaudat!AS31:AT31)/Sachbilanz!AC457,Dämm_Mat=Holzfaser,Holz_i*SUM(Ökobaudat!AS33:AT33)/Sachbilanz!AC459,Dämm_Mat=Zellulose,Zellu_i*SUM(Ökobaudat!AS34:AT34)/Sachbilanz!AC460,Dämm_Mat='Drop-Down'!T6,0)+Fenster_i/Sachbilanz!G300*_xlfn.IFS(Mat_Rhm=PVC,SUM(Ökobaudat!AS28:AT28)/2.95,Mat_Rhm=Holz,SUM(Ökobaudat!AS29:AT29)/2.11)+(Glas_i*SUM(Ökobaudat!AS30:AT30)/Sachbilanz!AC463)+Putz_i*SUM(Ökobaudat!AS36:AT36)+_xlfn.IFS(Vwrtng=Dep_6,Bauschutt_o*SUM(Ökobaudat!AS67:AT67)*0.061+0.939*Bauschutt_o*SUM(Ökobaudat!AS37:AT37)+0.939*1/3*Fenster_o*(SUM(Ökobaudat!AS43:AT43)+SUM(Ökobaudat!AS44:AT44)+SUM(Ökobaudat!AS45:AT45)),Vwrtng=Verwertung100,Bauschutt_o*SUM(Ökobaudat!AS37:AT37)+1/3*Fenster_o*(SUM(Ökobaudat!AS43:AT43)+SUM(Ökobaudat!AS44:AT44)+SUM(Ökobaudat!AS45:AT45)))),"-") -> - | W28: =IF(Datenbank_Emission=Ökobaudat2024,1/40*(_xlfn.IFS(Dämm_Mat=EPS,EPS_i*SUM(Ökobaudat!AB32)/Sachbilanz!AC458,Dämm_Mat=XPS,XPS_i*SUM(Ökobaudat!AB31)/Sachbilanz!AC457,Dämm_Mat=Holzfaser,Holz_i*SUM(Ökobaudat!AB33)/Sachbilanz!AC459,Dämm_Mat=Zellulose,Zellu_i*SUM(Ökobaudat!AB34)/Sachbilanz!AC460,Dämm_Mat='Drop-Down'!T6,0)+Fenster_i/Sachbilanz!G300*_xlfn.IFS(Mat_Rhm=PVC,SUM(Ökobaudat!AB28)/2.95,Mat_Rhm=Holz,SUM(Ökobaudat!AB29)/2.11)+(Glas_i*SUM(Ökobaudat!AB30)/Sachbilanz!AC463)+Putz_i*SUM(Ökobaudat!AB36)+_xlfn.IFS(Vwrtng=Dep_6,Bauschutt_o*SUM(Ökobaudat!AB67)*0.061+0.939*Bauschutt_o*SUM(Ökobaudat!AB37)+0.939*1/3*Fenster_o*(SUM(Ökobaudat!AB43)+SUM(Ökobaudat!AB44)+SUM(Ökobaudat!AB45)),Vwrtng=Verwertung100,Bauschutt_o*SUM(Ökobaudat!AB37)+1/3*Fenster_o*(SUM(Ökobaudat!AB43)+SUM(Ökobaudat!AB44)+SUM(Ökobaudat!AB45)))),1/40*_xlfn.IFS(Datenbank_Emission=Datenbank_eigen,_xlfn.IFS(Dämm_Mat=EPS,EPS_i*'Eigene Datenbank'!N32,Dämm_Mat=XPS,XPS_i*'Eigene Datenbank'!N31,Dämm_Mat=Holzfaser,Holz_i*'Eigene Datenbank'!N33/Sachbilanz!AC452,Dämm_Mat=Zellulose,Zellu_i*'Eigene Datenbank'!N34,Dämm_Mat='Drop-Down'!Y6,0)+Fenster_o*_xlfn.IFS(Mat_Rhm=PVC,'Eigene Datenbank'!N28,Mat_Rhm=Holz,'Eigene Datenbank'!N29)+Glas_i*'Eigene Datenbank'!N30+Putz_i*'Eigene Datenbank'!N36+_xlfn.IFS(Vwrtng=Dep_6,Bauschutt_o*'Eigene Datenbank'!N67*0.061+0.939*0.5*Bauschutt_o*('Eigene Datenbank'!N37+'Eigene Datenbank'!N38)+0.939*1/3*Fenster_o*('Eigene Datenbank'!N43+'Eigene Datenbank'!N44+'Eigene Datenbank'!N45),Vwrtng=Verwertung100,0.5*Bauschutt_o*('Eigene Datenbank'!N37+'Eigene Datenbank'!N38)+1/3*Fenster_o*('Eigene Datenbank'!N43+'Eigene Datenbank'!N44+'Eigene Datenbank'!N45)))) ->  | AQ28: 26 | AR28: 0 | AT28: 0 | AV28: 0
D29: Heizöl | F29: =Quartier!H25 -> 0.362 | Q29: Technische Einbauten | R29: =IF(Datenbank_Emission=Ökobaudat2024,1/40*((ROUNDUP((Strom_Nutz*_xlfn.IFS(aSan_Str=PV_0,0,aSan_Str=PV_20,0.2,aSan_Str=PV_40,0.4,aSan_Str=PV_60,0.6,aSan_Str=PV_80,0.8,aSan_Str=PV_100,1))/30000,0)*SUM(Ökobaudat!AC24:AE24))+_xlfn.IFS(aSan_Wärm=WP_80,2*ROUNDUP(Sanierung!D44*Quartier!E43/(365*24*20),0)*SUM(Ökobaudat!AC7:AE7)+2*ROUNDUP(Sanierung!D43*Quartier!E43/(365*24*20),0)*((Quartier!E11+Quartier!E12)/Quartier!E9*SUM(Ökobaudat!AC9)+(Quartier!E13+Quartier!E14)/Quartier!E9*SUM(Ökobaudat!AC10))+2*ROUNDUP(Sanierung!D45*Quartier!E43/(365*24*20),0)*((Quartier!E11+Quartier!E12)/Quartier!E9*SUM(Ökobaudat!AC12)+(Quartier!E13+Quartier!E14)/Quartier!E9*SUM(Ökobaudat!AC13))+40/15*ROUNDUP(Sanierung!D46*Quartier!E43/(365*24*20),0)*SUM(Ökobaudat!AC15)+40/30*ROUNDUP(Sanierung!D47*Quartier!E43/(365*24*20),0)*SUM(Ökobaudat!AC21:AE21),aSan_Wärm=WP_50,2*ROUNDUP(Sanierung!D49*Quartier!E43/(365*24*20),0)*SUM(Ökobaudat!AC7:AE7)+2*ROUNDUP(Sanierung!D48*Quartier!E43/(365*24*20),0)*SUM((Quartier!E11+Quartier!E12)/Quartier!E9*SUM(Ökobaudat!AC9)+(Quartier!E13+Quartier!E14)/Quartier!E9*SUM(Ökobaudat!AC10))+2*ROUNDUP(Sanierung!D50*Quartier!E43/(365*24*20),0)*((Quartier!E11+Quartier!E12)/Quartier!E9*SUM(Ökobaudat!AC12)+(Quartier!E13+Quartier!E14)/Quartier!E9*SUM(Ökobaudat!AC13))+40/15*ROUNDUP(Sanierung!D51*Quartier!E43/(365*24*20),0)*SUM(Ökobaudat!AC15)+2*ROUNDUP(Sanierung!D52*Quartier!E43/(365*24*20),0)*SUM(Ökobaudat!AC21:AE21),aSan_Wärm=Fern_100,Quartier!E9*40/30*ROUNDUP(Quartier!E43/(365*24*1),0)*SUM(Ökobaudat!AC21:AE21),aSan_Wärm=BHKW_100,ROUNDUP(Quartier!E43/(365*24*500),0)*SUM(Ökobaudat!AC22:AE22))),"-") -> - | S29: =IF(Datenbank_Emission=Ökobaudat2024,1/40*((ROUNDUP((Strom_Nutz*_xlfn.IFS(aSan_Str=PV_0,0,aSan_Str=PV_20,0.2,aSan_Str=PV_40,0.4,aSan_Str=PV_60,0.6,aSan_Str=PV_80,0.8,aSan_Str=PV_100,1))/30000,0)*SUM(Ökobaudat!AF24:AG24))+_xlfn.IFS(aSan_Wärm=WP_80,2*ROUNDUP(Sanierung!D44*Quartier!E43/(365*24*20),0)*SUM(Ökobaudat!AF7:AG7)+2*ROUNDUP(Sanierung!D43*Quartier!E43/(365*24*20),0)*((Quartier!E11+Quartier!E12)/Quartier!E9*SUM(Ökobaudat!AF9:AG9)+(Quartier!E13+Quartier!E14)/Quartier!E9*SUM(Ökobaudat!AF10:AG10))+2*ROUNDUP(Sanierung!D45*Quartier!E43/(365*24*20),0)*((Quartier!E11+Quartier!E12)/Quartier!E9*SUM(Ökobaudat!AF12:AG12)+(Quartier!E13+Quartier!E14)/Quartier!E9*SUM(Ökobaudat!AF13:AG13))+40/15*ROUNDUP(Sanierung!D46*Quartier!E43/(365*24*20),0)*SUM(Ökobaudat!AF15:AG15)+40/30*ROUNDUP(Sanierung!D47*Quartier!E43/(365*24*20),0)*SUM(Ökobaudat!AF21:AG21),aSan_Wärm=WP_50,2*ROUNDUP(Sanierung!D49*Quartier!E43/(365*24*20),0)*SUM(Ökobaudat!AF7:AG7)+2*ROUNDUP(Sanierung!D48*Quartier!E43/(365*24*20),0)*((Quartier!E11+Quartier!E12)/Quartier!E9*SUM(Ökobaudat!AF9:AG9)+(Quartier!E13+Quartier!E14)/Quartier!E9*SUM(Ökobaudat!AF10:AG10))+2*ROUNDUP(Sanierung!D50*Quartier!E43/(365*24*20),0)*((Quartier!E11+Quartier!E12)/Quartier!E9*SUM(Ökobaudat!AF12:AG12)+(Quartier!E13+Quartier!E14)/Quartier!E9*SUM(Ökobaudat!AF13:AG13))+40/15*ROUNDUP(Sanierung!D51*Quartier!E43/(365*24*20),0)*SUM(Ökobaudat!AF15:AG15)+40/30*ROUNDUP(Sanierung!D52*Quartier!E43/(365*24*20),0)*SUM(Ökobaudat!AF21:AG21),aSan_Wärm=Fern_100,Quartier!E9*40/30*ROUNDUP(Quartier!E43/(365*24*1),0)*SUM(Ökobaudat!AF21:AG21),aSan_Wärm=BHKW_100,ROUNDUP(Quartier!E43/(365*24*500),0)*SUM(Ökobaudat!AF22:AG22))),"-") -> - | T29: =IF(Datenbank_Emission=Ökobaudat2024,0,"-") -> - | U29: =IF(Datenbank_Emission=Ökobaudat2024,1/40*((ROUNDUP((Strom_Nutz*_xlfn.IFS(aSan_Str=PV_0,0,aSan_Str=PV_20,0.2,aSan_Str=PV_40,0.4,aSan_Str=PV_60,0.6,aSan_Str=PV_80,0.8,aSan_Str=PV_100,1))/30000,0)*SUM(Ökobaudat!AO24:AR24))+_xlfn.IFS(aSan_Wärm=WP_80,2*ROUNDUP(Sanierung!D44*Quartier!E43/(365*24*20),0)*SUM(Ökobaudat!AO7:AR7)+2*ROUNDUP(Sanierung!D43*Quartier!E43/(365*24*20),0)*((Quartier!E11+Quartier!E12)/Quartier!E9*SUM(Ökobaudat!AO9:AR9)+(Quartier!E13+Quartier!E14)/Quartier!E9*SUM(Ökobaudat!AO10:AR10))+2*ROUNDUP(Sanierung!D45*Quartier!E43/(365*24*20),0)*((Quartier!E11+Quartier!E12)/Quartier!E9*SUM(Ökobaudat!AO12:AR12)+(Quartier!E13+Quartier!E14)/Quartier!E9*SUM(Ökobaudat!AO13:AR13))+40/15*ROUNDUP(Sanierung!D46*Quartier!E43/(365*24*20),0)*SUM(Ökobaudat!AO15:AR15)+40/30*ROUNDUP(Sanierung!D47*Quartier!E43/(365*24*20),0)*SUM(Ökobaudat!AO21:AR21),aSan_Wärm=WP_50,2*ROUNDUP(Sanierung!D49*Quartier!E43/(365*24*20),0)*SUM(Ökobaudat!AO7:AR7)+2*ROUNDUP(Sanierung!D48*Quartier!E43/(365*24*20),0)*((Quartier!E11+Quartier!E12)/Quartier!E9*SUM(Ökobaudat!AO9:AR9)+(Quartier!E13+Quartier!E14)/Quartier!E9*SUM(Ökobaudat!AO10:AR10))+2*ROUNDUP(Sanierung!D50*Quartier!E43/(365*24*20),0)*((Quartier!E11+Quartier!E12)/Quartier!E9*SUM(Ökobaudat!AO12:AR12)+(Quartier!E13+Quartier!E14)/Quartier!E9*SUM(Ökobaudat!AO13:AR13))+40/15*ROUNDUP(Sanierung!D51*Quartier!E43/(365*24*20),0)*SUM(Ökobaudat!AO15:AR15)+40/30*ROUNDUP(Sanierung!D52*Quartier!E43/(365*24*20),0)*SUM(Ökobaudat!AO21:AR21),aSan_Wärm=Fern_100,Quartier!E9*40/30*ROUNDUP(Quartier!E43/(365*24*1),0)*SUM(Ökobaudat!AO21:AR21),aSan_Wärm=BHKW_100,ROUNDUP(Quartier!E43/(365*24*500),0)*SUM(Ökobaudat!AO22:AR22))),"-") -> - | V29: =IF(Datenbank_Emission=Ökobaudat2024,1/40*((ROUNDUP((Strom_Nutz*_xlfn.IFS(aSan_Str=PV_0,0,aSan_Str=PV_20,0.2,aSan_Str=PV_40,0.4,aSan_Str=PV_60,0.6,aSan_Str=PV_80,0.8,aSan_Str=PV_100,1))/30000,0)*SUM(Ökobaudat!AS24:AT24))+_xlfn.IFS(aSan_Wärm=WP_80,2*ROUNDUP(Sanierung!D44*Quartier!E43/(365*24*20),0)*SUM(Ökobaudat!AS7:AT7)+2*ROUNDUP(Sanierung!D43*Quartier!E43/(365*24*20),0)*((Quartier!E11+Quartier!E12)/Quartier!E9*SUM(Ökobaudat!AS9:AT9)+(Quartier!E13+Quartier!E14)/Quartier!E9*SUM(Ökobaudat!AS10:AT10))+2*ROUNDUP(Sanierung!D45*Quartier!E43/(365*24*20),0)*((Quartier!E11+Quartier!E12)/Quartier!E9*SUM(Ökobaudat!AS12:AT12)+(Quartier!E13+Quartier!E14)/Quartier!E9*SUM(Ökobaudat!AS13:AT13))+40/15*ROUNDUP(Sanierung!D46*Quartier!E43/(365*24*20),0)*SUM(Ökobaudat!AS15:AT15)+40/30*ROUNDUP(Sanierung!D47*Quartier!E43/(365*24*20),0)*SUM(Ökobaudat!AS21:AT21),aSan_Wärm=WP_50,2*ROUNDUP(Sanierung!D49*Quartier!E43/(365*24*20),0)*SUM(Ökobaudat!AS7:AT7)+2*ROUNDUP(Sanierung!D48*Quartier!E43/(365*24*20),0)*((Quartier!E11+Quartier!E12)/Quartier!E9*SUM(Ökobaudat!AS9:AT9)+(Quartier!E13+Quartier!E14)/Quartier!E9*SUM(Ökobaudat!AS10:AT10))+2*ROUNDUP(Sanierung!D50*Quartier!E43/(365*24*20),0)*((Quartier!E11+Quartier!E12)/Quartier!E9*SUM(Ökobaudat!AS12:AT12)+(Quartier!E13+Quartier!E14)/Quartier!E9*SUM(Ökobaudat!AS13:AT13))+40/15*ROUNDUP(Sanierung!D51*Quartier!E43/(365*24*20),0)*SUM(Ökobaudat!AS15:AT15)+40/30*ROUNDUP(Sanierung!D52*Quartier!E43/(365*24*20),0)*SUM(Ökobaudat!AS21:AT21),aSan_Wärm=Fern_100,Quartier!E9*40/30*ROUNDUP(Quartier!E43/(365*24*1),0)*SUM(Ökobaudat!AS21:AT21),aSan_Wärm=BHKW_100,ROUNDUP(Quartier!E43/(365*24*500),0)*SUM(Ökobaudat!AS22:AT22))),"-") -> - | W29: =IF(Datenbank_Emission=Ökobaudat2024,1/40*((ROUNDUP((Strom_Nutz*_xlfn.IFS(aSan_Str=PV_0,0,aSan_Str=PV_20,0.2,aSan_Str=PV_40,0.4,aSan_Str=PV_60,0.6,aSan_Str=PV_80,0.8,aSan_Str=PV_100,1))/30000,0)*SUM(Ökobaudat!AB24))+_xlfn.IFS(aSan_Wärm=WP_80,2*ROUNDUP(Sanierung!D44*Quartier!E43/(365*24*20),0)*SUM(Ökobaudat!AB7)+2*ROUNDUP(Sanierung!D43*Quartier!E43/(365*24*20),0)*((Quartier!E11+Quartier!E12)/Quartier!E9*SUM(Ökobaudat!AB9)+(Quartier!E13+Quartier!E14)/Quartier!E9*SUM(Ökobaudat!AB10))+2*ROUNDUP(Sanierung!D45*Quartier!E43/(365*24*20),0)*((Quartier!E11+Quartier!E12)/Quartier!E9*SUM(Ökobaudat!AB12)+(Quartier!E13+Quartier!E14)/Quartier!E9*SUM(Ökobaudat!AB13))+40/15*ROUNDUP(Sanierung!D46*Quartier!E43/(365*24*20),0)*SUM(Ökobaudat!AB15)+40/30*ROUNDUP(Sanierung!D47*Quartier!E43/(365*24*20),0)*SUM(Ökobaudat!AB21),aSan_Wärm=WP_50,2*ROUNDUP(Sanierung!D49*Quartier!E43/(365*24*20),0)*SUM(Ökobaudat!AB7)+2*ROUNDUP(Sanierung!D48*Quartier!E43/(365*24*20),0)*SUM((Quartier!E11+Quartier!E12)/Quartier!E9*SUM(Ökobaudat!AB9)+(Quartier!E13+Quartier!E14)/Quartier!E9*SUM(Ökobaudat!AB10))+2*ROUNDUP(Sanierung!D50*Quartier!E43/(365*24*20),0)*((Quartier!E11+Quartier!E12)/Quartier!E9*SUM(Ökobaudat!AB12)+(Quartier!E13+Quartier!E14)/Quartier!E9*SUM(Ökobaudat!AB13))+40/15*ROUNDUP(Sanierung!D51*Quartier!E43/(365*24*20),0)*SUM(Ökobaudat!AB15)+2*ROUNDUP(Sanierung!D52*Quartier!E43/(365*24*20),0)*SUM(Ökobaudat!AB21),aSan_Wärm=Fern_100,Quartier!E9*40/30*ROUNDUP(Quartier!E43/(365*24*1),0)*SUM(Ökobaudat!AB21),aSan_Wärm=BHKW_100,ROUNDUP(Quartier!E43/(365*24*500),0)*SUM(Ökobaudat!AB22))),1/40*_xlfn.IFS(Datenbank_Emission=Datenbank_eigen,((ROUNDUP((Strom_Nutz*_xlfn.IFS(aSan_Str=PV_0,0,aSan_Str=PV_20,0.2,aSan_Str=PV_40,0.4,aSan_Str=PV_60,0.6,aSan_Str=PV_80,0.8,aSan_Str=PV_100,1))/30000,0)*'Eigene Datenbank'!N24)+_xlfn.IFS(aSan_Wärm=WP_80,2*ROUNDUP(Sanierung!D44*Wärme_Nutz_San/(365*24*20),0)*'Eigene Datenbank'!N7+2*ROUNDUP(Sanierung!D43*Wärme_Nutz_San/(365*24*20),0)*((SFH_qurtr+SDH_qurtr)/Zahl_Geb*'Eigene Datenbank'!N9+(SMFH_qurtr+LMFH_qurtr)/Zahl_Geb*'Eigene Datenbank'!N10)+2*ROUNDUP(Sanierung!D45*Wärme_Nutz_San/(365*24*20),0)*((SFH_qurtr+SDH_qurtr)/Zahl_Geb*'Eigene Datenbank'!N12+(SMFH_qurtr+LMFH_qurtr)/Zahl_Geb*'Eigene Datenbank'!N13)+40/15*ROUNDUP(Sanierung!D46*Wärme_Nutz_San/(365*24*20),0)*'Eigene Datenbank'!N15+40/30*ROUNDUP(Sanierung!D47*Wärme_Nutz_San/(365*24*20),0)*'Eigene Datenbank'!N21,aSan_Wärm=WP_50,2*ROUNDUP(Sanierung!D49*Wärme_Nutz_San/(365*24*20),0)*'Eigene Datenbank'!N7+2*ROUNDUP(Sanierung!D48*Wärme_Nutz_San/(365*24*20),0)*SUM((SFH_qurtr+SDH_qurtr)/Zahl_Geb*'Eigene Datenbank'!N9+(SMFH_qurtr+LMFH_qurtr)/Zahl_Geb*'Eigene Datenbank'!N10)+2*ROUNDUP(Sanierung!D50*Wärme_Nutz_San/(365*24*20),0)*((SFH_qurtr+SDH_qurtr)/Zahl_Geb*'Eigene Datenbank'!N12+(SMFH_qurtr+LMFH_qurtr)/Zahl_Geb*'Eigene Datenbank'!N13)+40/15*ROUNDUP(Sanierung!D51*Wärme_Nutz_San/(365*24*20),0)*'Eigene Datenbank'!N15+2*ROUNDUP(Sanierung!D52*Wärme_Nutz_San/(365*24*20),0)*'Eigene Datenbank'!N21,aSan_Wärm=Fern_100,Zahl_Geb*40/30*ROUNDUP(Wärme_Nutz_San/(365*24*1),0)*'Eigene Datenbank'!N21,aSan_Wärm=BHKW_100,ROUNDUP(Wärme_Nutz_San/(365*24*500),0)*'Eigene Datenbank'!N22)))) ->  | AQ29: 27 | AR29: 0 | AT29: 0 | AV29: 0
D30: Holz-/Pellet | F30: =Quartier!H26 -> 0.033 | Q30: Gesamt | R30: =IF(Datenbank_Emission=Ökobaudat2024,SUM(R26:R29),"-") -> - | S30: =IF(Datenbank_Emission=Ökobaudat2024,SUM(S26:S29),"-") -> - | T30: =IF(Datenbank_Emission=Ökobaudat2024,SUM(T26:T29),"-") -> - | U30: =IF(Datenbank_Emission=Ökobaudat2024,SUM(U26:U29),"-") -> - | V30: =IF(Datenbank_Emission=Ökobaudat2024,SUM(V26:V29),"-") -> - | W30: =SUM(W26:W29) ->  | AQ30: 28 | AR30: 0 | AT30: 0 | AV30: 0
D31: Fernwärme | F31: =Quartier!H27 -> 0 | AQ31: 29 | AR31: 0 | AT31: 0 | AV31: 0
O32: =_xlfn.IFS(Datenbank_Emission=Datenbank_eigen,"Mineral resource scarcity [kg Cu eq]",Datenbank_Emission=Ökobaudat2024,"ADPE [kg Sb eq]") -> Mineral resource scarcity [kg Cu eq] | Q32: Strom | R32: =IF(Datenbank_Emission=Ökobaudat2024,0,"-") -> - | S32: =IF(Datenbank_Emission=Ökobaudat2024,0,"-") -> - | T32: =IF(Datenbank_Emission=Ökobaudat2024,_xlfn.IFS(aSan_Str=PV_0,Quartier!E19*SUM(Ökobaudat!BA17:BG17),aSan_Str=PV_20,0.2*Quartier!E19*SUM(Ökobaudat!BA27:BG27)+0.8*Quartier!E19*SUM(Ökobaudat!BA17:BG17),aSan_Str=PV_40,0.4*Quartier!E19*SUM(Ökobaudat!BA27:BG27)+0.6*Quartier!E19*SUM(Ökobaudat!BA17:BG17),aSan_Str=PV_60,0.6*Quartier!E19*SUM(Ökobaudat!BA27:BG27)+0.4*Quartier!E19*SUM(Ökobaudat!BA17:BG17),aSan_Str=PV_80,0.8*Quartier!E19*SUM(Ökobaudat!BA27:BG27)+0.2*Quartier!E19*SUM(Ökobaudat!BA17:BG17),aSan_Str=PV_100,Quartier!E19*SUM(Ökobaudat!BA27:BG27)+IF(aSan_Wärm=BHKW,Sanierung!D56/2*SUM(Ökobaudat!BA17:BG17),0)),"-") -> - | U32: =IF(Datenbank_Emission=Ökobaudat2024,0,"-") -> - | V32: =IF(Datenbank_Emission=Ökobaudat2024,0,"-") -> - | W32: =IF(Datenbank_Emission=Ökobaudat2024,_xlfn.IFS(aSan_Str=PV_0,Quartier!E19*Ökobaudat!AU17,aSan_Str=PV_20,0.2*Quartier!E19*Ökobaudat!AU27+0.8*Quartier!E19*Ökobaudat!AU17,aSan_Str=PV_40,0.4*Quartier!E19*Ökobaudat!AU27+0.6*Quartier!E19*Ökobaudat!AU17,aSan_Str=PV_60,0.6*Quartier!E19*Ökobaudat!AU27+0.4*Quartier!E19*Ökobaudat!AU17,aSan_Str=PV_80,0.8*Quartier!E19*Ökobaudat!AU27+0.2*Quartier!E19*Ökobaudat!AU17,aSan_Str=PV_100,Quartier!E19*Ökobaudat!AU27)+IF(aSan_Wärm=BHKW,Sanierung!D56/2*Ökobaudat!AU17,0),_xlfn.IFS(Datenbank_Emission=Datenbank_eigen,_xlfn.IFS(aSan_Str=PV_0,Strom_Nutz*'Eigene Datenbank'!L17,aSan_Str=PV_20,0.2*Strom_Nutz*'Eigene Datenbank'!L27+0.8*Strom_Nutz*'Eigene Datenbank'!L17,aSan_Str=PV_40,0.4*Strom_Nutz*'Eigene Datenbank'!L27+0.6*Strom_Nutz*'Eigene Datenbank'!L17,aSan_Str=PV_60,0.6*Strom_Nutz*'Eigene Datenbank'!L27+0.4*Strom_Nutz*'Eigene Datenbank'!L17,aSan_Str=PV_80,0.8*Strom_Nutz*'Eigene Datenbank'!L27+0.2*Strom_Nutz*'Eigene Datenbank'!L17,aSan_Str=PV_100,Strom_Nutz*'Eigene Datenbank'!L27)+IF(aSan_Wärm=BHKW_100,Sanierung!D56/2*'Eigene Datenbank'!L17,0))) -> 0 | AQ32: 30 | AR32: 0 | AT32: 0 | AV32: 0 | AX32: =-R101 -> 
B33: Passive Sanierung | Q33: Wärme | R33: =IF(Datenbank_Emission=Ökobaudat2024,0,"-") -> - | S33: =IF(Datenbank_Emission=Ökobaudat2024,0,"-") -> - | T33: =IF(Datenbank_Emission=Ökobaudat2024,Wärme_Nutz_San*_xlfn.IFS(aSan_Wärm=WP_80,Sanierung!D43*SUM(Ökobaudat!BA8:BG8)+Sanierung!D44*SUM(Ökobaudat!BA6:BG6)+Sanierung!D44*SUM(Ökobaudat!BA11:BG11)+Sanierung!D45*SUM(Ökobaudat!BA14:BG14)+Sanierung!D47*SUM(Ökobaudat!BA18:BG18)*0.65+Sanierung!D47*SUM(Ökobaudat!BA19:BG19)*0.35,aSan_Wärm=WP_50,Sanierung!D48*SUM(Ökobaudat!BA8:BG8)+Sanierung!D49*SUM(Ökobaudat!BA6:BG6)+Sanierung!D50*SUM(Ökobaudat!BA11:BG11)+Sanierung!D51*SUM(Ökobaudat!BA14:BG14)+Sanierung!D52*SUM(Ökobaudat!BA18:BG18)*0.65+Sanierung!D52*SUM(Ökobaudat!BA19:BG19)*0.35,aSan_Wärm=Fern_100,(SUM(Ökobaudat!BA18:BG18)*0.65+SUM(Ökobaudat!BA19:BG19)*0.35),aSan_Wärm=BHKW_100,SUM(Ökobaudat!BA23:BG23)),"-") -> - | U33: =IF(Datenbank_Emission=Ökobaudat2024,0,"-") -> - | V33: =IF(Datenbank_Emission=Ökobaudat2024,0,"-") -> - | W33: =IF(Datenbank_Emission=Ökobaudat2024,Wärme_Nutz_San*_xlfn.IFS(aSan_Wärm=WP_80,Sanierung!D43*Ökobaudat!AU8+Sanierung!D44*Ökobaudat!AU6+Sanierung!D44*Ökobaudat!AU11+Sanierung!D45*Ökobaudat!AU14+Sanierung!D47*Ökobaudat!AU18*0.65+Sanierung!D47*Ökobaudat!AU19*0.35,aSan_Wärm=WP_50,Sanierung!D48*Ökobaudat!AU8+Sanierung!D49*Ökobaudat!AU6+Sanierung!D50*Ökobaudat!AU11+Sanierung!D51*Ökobaudat!AU14+Sanierung!D52*Ökobaudat!AU18*0.65+Sanierung!D52*Ökobaudat!AU19*0.35,aSan_Wärm=Fern_100,(Ökobaudat!AU18*0.65+Ökobaudat!AU19*0.35),aSan_Wärm=BHKW_100,Ökobaudat!AU23),Wärme_Nutz_San*_xlfn.IFS(Datenbank_Emission=Datenbank_eigen,_xlfn.IFS(aSan_Wärm=WP_80,Sanierung!D43*'Eigene Datenbank'!L8+Sanierung!D44*'Eigene Datenbank'!L6+Sanierung!D44*'Eigene Datenbank'!L11+Sanierung!D45*'Eigene Datenbank'!L14+Sanierung!D47*'Eigene Datenbank'!L18*0.65+Sanierung!D47*'Eigene Datenbank'!L19*0.35,aSan_Wärm=WP_50,Sanierung!D48*'Eigene Datenbank'!L8+Sanierung!D49*'Eigene Datenbank'!L6+Sanierung!D50*'Eigene Datenbank'!L11+Sanierung!D51*'Eigene Datenbank'!L14+Sanierung!D52*'Eigene Datenbank'!L18*0.65+Sanierung!D52*'Eigene Datenbank'!L19*0.35,aSan_Wärm=Fern_100,('Eigene Datenbank'!L18*0.65+'Eigene Datenbank'!L19*0.35),aSan_Wärm=BHKW_100,'Eigene Datenbank'!L23))) ->  | AQ33: 31 | AR33: 0 | AT33: 0 | AV33: 0
D34: Sanierungstiefe | F34: =_xlfn.IFS(OR(Sanszenario=GEG_50,Sanszenario=GEG_65,Sanszenario=GEG_90),"GEG",OR(Sanszenario=KFW70_50,Sanszenario=KFW70_65,Sanszenario=KFW70_90),"KfW70",OR(Sanszenario=KFW40_50,Sanszenario=KFW40_65,Sanszenario=KFW40_90),"KfW40",OR(Sanszenario=KFW40p_50,Sanszenario=KFW40p_65,Sanszenario=KFW40p_90),"KfW40+") -> GEG | Q34: Materialströme | R34: =IF(Datenbank_Emission=Ökobaudat2024,1/40*(_xlfn.IFS(Dämm_Mat=EPS,EPS_i*SUM(Ökobaudat!AV32)/Sachbilanz!AC458,Dämm_Mat=XPS,XPS_i*SUM(Ökobaudat!AV31:AX31)/Sachbilanz!AC457,Dämm_Mat=Holzfaser,Holz_i*SUM(Ökobaudat!AV33:AX33)/Sachbilanz!AC459,Dämm_Mat=Zellulose,Zellu_i*SUM(Ökobaudat!AV34:AX34)/Sachbilanz!AC460,Dämm_Mat='Drop-Down'!T6,0)+Fenster_i/Sachbilanz!G300*_xlfn.IFS(Mat_Rhm=PVC,SUM(Ökobaudat!AV28:AX28)/2.95,Mat_Rhm=Holz,SUM(Ökobaudat!AV29:AX29)/2.11)+(Glas_i*SUM(Ökobaudat!AV30:AX30)/Sachbilanz!AC463)+Putz_i*SUM(Ökobaudat!AV36:AX36)+_xlfn.IFS(Vwrtng=Dep_6,Bauschutt_o*SUM(Ökobaudat!AV67:AX67)*0.061+0.939*Bauschutt_o*SUM(Ökobaudat!AV37:AX37)+0.939*1/3*Fenster_o*(SUM(Ökobaudat!AV43:AX43)+SUM(Ökobaudat!AV44:AX44)+SUM(Ökobaudat!AV45:AX45)),Vwrtng=Verwertung100,Bauschutt_o*SUM(Ökobaudat!AV37:AX37)+1/3*Fenster_o*(SUM(Ökobaudat!AV43:AX43)+SUM(Ökobaudat!AV44:AX44)+SUM(Ökobaudat!AV45:AX45)))),"-") -> - | S34: =IF(Datenbank_Emission=Ökobaudat2024,1/40*(_xlfn.IFS(Dämm_Mat=EPS,EPS_i*SUM(Ökobaudat!AY32:AZ32)/Sachbilanz!AC458,Dämm_Mat=XPS,XPS_i*SUM(Ökobaudat!AY31:AZ31)/Sachbilanz!AC457,Dämm_Mat=Holzfaser,Holz_i*SUM(Ökobaudat!AY33:AZ33)/Sachbilanz!AC459,Dämm_Mat=Zellulose,Zellu_i*SUM(Ökobaudat!AY34:AZ34)/Sachbilanz!AC460,Dämm_Mat='Drop-Down'!T6,0)+Fenster_i/Sachbilanz!G300*_xlfn.IFS(Mat_Rhm=PVC,SUM(Ökobaudat!AY28:AZ28)/2.95,Mat_Rhm=Holz,SUM(Ökobaudat!AY29:AZ29)/2.11)+(Glas_i*SUM(Ökobaudat!AY30:AZ30)/Sachbilanz!AC463)+Putz_i*SUM(Ökobaudat!AY36:AZ36)+_xlfn.IFS(Vwrtng=Dep_6,Bauschutt_o*SUM(Ökobaudat!AY67:AZ67)*0.061+0.939*Bauschutt_o*SUM(Ökobaudat!AY37:AZ37)+0.939*1/3*Fenster_o*(SUM(Ökobaudat!AY43:AZ43)+SUM(Ökobaudat!AY44:AZ44)+SUM(Ökobaudat!AY45:AZ45)),Vwrtng=Verwertung100,Bauschutt_o*SUM(Ökobaudat!AY37:AZ37)+1/3*Fenster_o*(SUM(Ökobaudat!AY43:AZ43)+SUM(Ökobaudat!AY44:AZ44)+SUM(Ökobaudat!AY45:AZ45)))),"-") -> - | T34: =IF(Datenbank_Emission=Ökobaudat2024,0,"-") -> - | U34: =IF(Datenbank_Emission=Ökobaudat2024,1/40*(_xlfn.IFS(Dämm_Mat=EPS,EPS_i*SUM(Ökobaudat!BH32:BK32)/Sachbilanz!AC458,Dämm_Mat=XPS,XPS_i*SUM(Ökobaudat!BH31:BK31)/Sachbilanz!AC457,Dämm_Mat=Holzfaser,Holz_i*SUM(Ökobaudat!BH33:BK33)/Sachbilanz!AC459,Dämm_Mat=Zellulose,Zellu_i*SUM(Ökobaudat!BH34:BK34)/Sachbilanz!AC460,Dämm_Mat='Drop-Down'!T6,0)+Fenster_i/Sachbilanz!G300*_xlfn.IFS(Mat_Rhm=PVC,SUM(Ökobaudat!BH28:BK28)/2.95,Mat_Rhm=Holz,SUM(Ökobaudat!BH29:BK29)/2.11)+(Glas_i*SUM(Ökobaudat!BH30:BK30)/Sachbilanz!AC463)+Putz_i*SUM(Ökobaudat!BH36:BK36)+_xlfn.IFS(Vwrtng=Dep_6,Bauschutt_o*SUM(Ökobaudat!BH67:BK67)*0.061+0.939*Bauschutt_o*SUM(Ökobaudat!BH37:BK37)+0.939*1/3*Fenster_o*(SUM(Ökobaudat!BH43:BK43)+SUM(Ökobaudat!BH44:BK44)+SUM(Ökobaudat!BH45:BK45)),Vwrtng=Verwertung100,Bauschutt_o*SUM(Ökobaudat!BH37:BK37)+1/3*Fenster_o*(SUM(Ökobaudat!BH43:BK43)+SUM(Ökobaudat!BH44:BK44)+SUM(Ökobaudat!BH45:BK45)))),"-") -> - | V34: =IF(Datenbank_Emission=Ökobaudat2024,1/40*(_xlfn.IFS(Dämm_Mat=EPS,EPS_i*SUM(Ökobaudat!BL32:BM32)/Sachbilanz!AC458,Dämm_Mat=XPS,XPS_i*SUM(Ökobaudat!BL31:BM31)/Sachbilanz!AC457,Dämm_Mat=Holzfaser,Holz_i*SUM(Ökobaudat!BL33:BM33)/Sachbilanz!AC459,Dämm_Mat=Zellulose,Zellu_i*SUM(Ökobaudat!BL34:BM34)/Sachbilanz!AC460,Dämm_Mat='Drop-Down'!T6,0)+Fenster_i/Sachbilanz!G300*_xlfn.IFS(Mat_Rhm=PVC,SUM(Ökobaudat!BL28:BM28)/2.95,Mat_Rhm=Holz,SUM(Ökobaudat!BL29:BM29)/2.11)+(Glas_i*SUM(Ökobaudat!BL30:BM30)/Sachbilanz!AC463)+Putz_i*SUM(Ökobaudat!BL36:BM36)+_xlfn.IFS(Vwrtng=Dep_6,Bauschutt_o*SUM(Ökobaudat!BL67:BM67)*0.061+0.939*Bauschutt_o*SUM(Ökobaudat!BL37:BM37)+0.939*1/3*Fenster_o*(SUM(Ökobaudat!BL43:BM43)+SUM(Ökobaudat!BL44:BM44)+SUM(Ökobaudat!BL45:BM45)),Vwrtng=Verwertung100,Bauschutt_o*SUM(Ökobaudat!BL37:BM37)+1/3*Fenster_o*(SUM(Ökobaudat!BL43:BM43)+SUM(Ökobaudat!BL44:BM44)+SUM(Ökobaudat!BL45:BM45)))),"-") -> - | W34: =IF(Datenbank_Emission=Ökobaudat2024,1/40*(_xlfn.IFS(Dämm_Mat=EPS,EPS_i*SUM(Ökobaudat!AU32)/Sachbilanz!AC458,Dämm_Mat=XPS,XPS_i*SUM(Ökobaudat!AU31)/Sachbilanz!AC457,Dämm_Mat=Holzfaser,Holz_i*SUM(Ökobaudat!AU33)/Sachbilanz!AC459,Dämm_Mat=Zellulose,Zellu_i*SUM(Ökobaudat!AU34)/Sachbilanz!AC460,Dämm_Mat='Drop-Down'!T6,0)+Fenster_i/Sachbilanz!G300*_xlfn.IFS(Mat_Rhm=PVC,SUM(Ökobaudat!AU28)/2.95,Mat_Rhm=Holz,SUM(Ökobaudat!AU29)/2.11)+(Glas_i*SUM(Ökobaudat!AU30)/Sachbilanz!AC463)+Putz_i*SUM(Ökobaudat!AU36)+_xlfn.IFS(Vwrtng=Dep_6,Bauschutt_o*SUM(Ökobaudat!AU67)*0.061+0.939*Bauschutt_o*SUM(Ökobaudat!AU37)+0.939*1/3*Fenster_o*(SUM(Ökobaudat!AU43)+SUM(Ökobaudat!AU44)+SUM(Ökobaudat!AU45)),Vwrtng=Verwertung100,Bauschutt_o*SUM(Ökobaudat!AU37)+1/3*Fenster_o*(SUM(Ökobaudat!AU43)+SUM(Ökobaudat!AU44)+SUM(Ökobaudat!AU45)))),1/40*_xlfn.IFS(Datenbank_Emission=Datenbank_eigen,_xlfn.IFS(Dämm_Mat=EPS,EPS_i*'Eigene Datenbank'!L32,Dämm_Mat=XPS,XPS_i*'Eigene Datenbank'!L31,Dämm_Mat=Holzfaser,Holz_i*'Eigene Datenbank'!L33/Sachbilanz!AC452,Dämm_Mat=Zellulose,Zellu_i*'Eigene Datenbank'!L34,Dämm_Mat='Drop-Down'!W6,0)+Fenster_o*_xlfn.IFS(Mat_Rhm=PVC,'Eigene Datenbank'!L28,Mat_Rhm=Holz,'Eigene Datenbank'!L29)+Glas_i*'Eigene Datenbank'!L30+Putz_i*'Eigene Datenbank'!L36+_xlfn.IFS(Vwrtng=Dep_6,Bauschutt_o*'Eigene Datenbank'!L67*0.061+0.939*0.5*Bauschutt_o*('Eigene Datenbank'!L37+'Eigene Datenbank'!L38)+0.939*1/3*Fenster_o*('Eigene Datenbank'!L43+'Eigene Datenbank'!L44+'Eigene Datenbank'!L45),Vwrtng=Verwertung100,0.5*Bauschutt_o*('Eigene Datenbank'!L37+'Eigene Datenbank'!L38)+1/3*Fenster_o*('Eigene Datenbank'!L43+'Eigene Datenbank'!L44+'Eigene Datenbank'!L45)))) ->  | AQ34: 32 | AR34: 0 | AT34: 0 | AV34: 0
D35: Sanierungsrate | F35: =_xlfn.IFS(OR(Sanszenario=GEG_50,Sanszenario=KFW70_50,Sanszenario=KFW40_50,Sanszenario=KFW40p_50),"50 %",OR(Sanszenario=GEG_65,Sanszenario=KFW70_65,Sanszenario=KFW40_65,Sanszenario=KFW40p_65),"65 %",OR(,Sanszenario=GEG_90,Sanszenario=KFW70_90,Sanszenario=KFW40_90,Sanszenario=KFW40p_90),"90 % ") -> 90 % | Q35: Technische Einbauten | R35: =IF(Datenbank_Emission=Ökobaudat2024,1/40*((ROUNDUP((Strom_Nutz*_xlfn.IFS(aSan_Str=PV_0,0,aSan_Str=PV_20,0.2,aSan_Str=PV_40,0.4,aSan_Str=PV_60,0.6,aSan_Str=PV_80,0.8,aSan_Str=PV_100,1))/30000,0)*SUM(Ökobaudat!AV24:AX24))+_xlfn.IFS(aSan_Wärm=WP_80,2*ROUNDUP(Sanierung!D44*Quartier!E43/(365*24*20),0)*SUM(Ökobaudat!AV7:AX7)+2*ROUNDUP(Sanierung!D43*Quartier!E43/(365*24*20),0)*((Quartier!E11+Quartier!E12)/Quartier!E9*SUM(Ökobaudat!AV9)+(Quartier!E13+Quartier!E14)/Quartier!E9*SUM(Ökobaudat!AV10))+2*ROUNDUP(Sanierung!D45*Quartier!E43/(365*24*20),0)*((Quartier!E11+Quartier!E12)/Quartier!E9*SUM(Ökobaudat!AV12)+(Quartier!E13+Quartier!E14)/Quartier!E9*SUM(Ökobaudat!AV13))+40/15*ROUNDUP(Sanierung!D46*Quartier!E43/(365*24*20),0)*SUM(Ökobaudat!AV15)+40/30*ROUNDUP(Sanierung!D47*Quartier!E43/(365*24*20),0)*SUM(Ökobaudat!AV21:AX21),aSan_Wärm=WP_50,2*ROUNDUP(Sanierung!D49*Quartier!E43/(365*24*20),0)*SUM(Ökobaudat!AV7:AX7)+2*ROUNDUP(Sanierung!D48*Quartier!E43/(365*24*20),0)*SUM((Quartier!E11+Quartier!E12)/Quartier!E9*SUM(Ökobaudat!AV9)+(Quartier!E13+Quartier!E14)/Quartier!E9*SUM(Ökobaudat!AV10))+2*ROUNDUP(Sanierung!D50*Quartier!E43/(365*24*20),0)*((Quartier!E11+Quartier!E12)/Quartier!E9*SUM(Ökobaudat!AV12)+(Quartier!E13+Quartier!E14)/Quartier!E9*SUM(Ökobaudat!AV13))+40/15*ROUNDUP(Sanierung!D51*Quartier!E43/(365*24*20),0)*SUM(Ökobaudat!AV15)+2*ROUNDUP(Sanierung!D52*Quartier!E43/(365*24*20),0)*SUM(Ökobaudat!AV21:AX21),aSan_Wärm=Fern_100,Quartier!E9*40/30*ROUNDUP(Quartier!E43/(365*24*1),0)*SUM(Ökobaudat!AV21:AX21),aSan_Wärm=BHKW_100,ROUNDUP(Quartier!E43/(365*24*500),0)*SUM(Ökobaudat!AV22:AX22))),"-") -> - | S35: =IF(Datenbank_Emission=Ökobaudat2024,1/40*((ROUNDUP((Strom_Nutz*_xlfn.IFS(aSan_Str=PV_0,0,aSan_Str=PV_20,0.2,aSan_Str=PV_40,0.4,aSan_Str=PV_60,0.6,aSan_Str=PV_80,0.8,aSan_Str=PV_100,1))/30000,0)*SUM(Ökobaudat!AY24:AZ24))+_xlfn.IFS(aSan_Wärm=WP_80,2*ROUNDUP(Sanierung!D44*Quartier!E43/(365*24*20),0)*SUM(Ökobaudat!AY7:AZ7)+2*ROUNDUP(Sanierung!D43*Quartier!E43/(365*24*20),0)*((Quartier!E11+Quartier!E12)/Quartier!E9*SUM(Ökobaudat!AY9:AZ9)+(Quartier!E13+Quartier!E14)/Quartier!E9*SUM(Ökobaudat!AY10:AZ10))+2*ROUNDUP(Sanierung!D45*Quartier!E43/(365*24*20),0)*((Quartier!E11+Quartier!E12)/Quartier!E9*SUM(Ökobaudat!AY12:AZ12)+(Quartier!E13+Quartier!E14)/Quartier!E9*SUM(Ökobaudat!AY13:AZ13))+40/15*ROUNDUP(Sanierung!D46*Quartier!E43/(365*24*20),0)*SUM(Ökobaudat!AY15:AZ15)+40/30*ROUNDUP(Sanierung!D47*Quartier!E43/(365*24*20),0)*SUM(Ökobaudat!AY21:AZ21),aSan_Wärm=WP_50,2*ROUNDUP(Sanierung!D49*Quartier!E43/(365*24*20),0)*SUM(Ökobaudat!AY7:AZ7)+2*ROUNDUP(Sanierung!D48*Quartier!E43/(365*24*20),0)*((Quartier!E11+Quartier!E12)/Quartier!E9*SUM(Ökobaudat!AY9:AZ9)+(Quartier!E13+Quartier!E14)/Quartier!E9*SUM(Ökobaudat!AY10:AZ10))+2*ROUNDUP(Sanierung!D50*Quartier!E43/(365*24*20),0)*((Quartier!E11+Quartier!E12)/Quartier!E9*SUM(Ökobaudat!AY12:AZ12)+(Quartier!E13+Quartier!E14)/Quartier!E9*SUM(Ökobaudat!AY13:AZ13))+40/15*ROUNDUP(Sanierung!D51*Quartier!E43/(365*24*20),0)*SUM(Ökobaudat!AY15:AZ15)+40/30*ROUNDUP(Sanierung!D52*Quartier!E43/(365*24*20),0)*SUM(Ökobaudat!AY21:AZ21),aSan_Wärm=Fern_100,Quartier!E9*40/30*ROUNDUP(Quartier!E43/(365*24*1),0)*SUM(Ökobaudat!AY21:AZ21),aSan_Wärm=BHKW_100,ROUNDUP(Quartier!E43/(365*24*500),0)*SUM(Ökobaudat!AY22:AZ22))),"-") -> - | T35: =IF(Datenbank_Emission=Ökobaudat2024,0,"-") -> - | U35: =IF(Datenbank_Emission=Ökobaudat2024,1/40*((ROUNDUP((Strom_Nutz*_xlfn.IFS(aSan_Str=PV_0,0,aSan_Str=PV_20,0.2,aSan_Str=PV_40,0.4,aSan_Str=PV_60,0.6,aSan_Str=PV_80,0.8,aSan_Str=PV_100,1))/30000,0)*SUM(Ökobaudat!BH24:BK24))+_xlfn.IFS(aSan_Wärm=WP_80,2*ROUNDUP(Sanierung!D44*Quartier!E43/(365*24*20),0)*SUM(Ökobaudat!BH7:BK7)+2*ROUNDUP(Sanierung!D43*Quartier!E43/(365*24*20),0)*((Quartier!E11+Quartier!E12)/Quartier!E9*SUM(Ökobaudat!BH9:BK9)+(Quartier!E13+Quartier!E14)/Quartier!E9*SUM(Ökobaudat!BH10:BK10))+2*ROUNDUP(Sanierung!D45*Quartier!E43/(365*24*20),0)*((Quartier!E11+Quartier!E12)/Quartier!E9*SUM(Ökobaudat!BH12:BK12)+(Quartier!E13+Quartier!E14)/Quartier!E9*SUM(Ökobaudat!BH13:BK13))+40/15*ROUNDUP(Sanierung!D46*Quartier!E43/(365*24*20),0)*SUM(Ökobaudat!BH15:BK15)+40/30*ROUNDUP(Sanierung!D47*Quartier!E43/(365*24*20),0)*SUM(Ökobaudat!BH21:BK21),aSan_Wärm=WP_50,2*ROUNDUP(Sanierung!D49*Quartier!E43/(365*24*20),0)*SUM(Ökobaudat!BH7:BK7)+2*ROUNDUP(Sanierung!D48*Quartier!E43/(365*24*20),0)*((Quartier!E11+Quartier!E12)/Quartier!E9*SUM(Ökobaudat!BH9:BK9)+(Quartier!E13+Quartier!E14)/Quartier!E9*SUM(Ökobaudat!BH10:BK10))+2*ROUNDUP(Sanierung!D50*Quartier!E43/(365*24*20),0)*((Quartier!E11+Quartier!E12)/Quartier!E9*SUM(Ökobaudat!BH12:BK12)+(Quartier!E13+Quartier!E14)/Quartier!E9*SUM(Ökobaudat!BH13:BK13))+40/15*ROUNDUP(Sanierung!D51*Quartier!E43/(365*24*20),0)*SUM(Ökobaudat!BH15:BK15)+40/30*ROUNDUP(Sanierung!D52*Quartier!E43/(365*24*20),0)*SUM(Ökobaudat!BH21:BK21),aSan_Wärm=Fern_100,Quartier!E9*40/30*ROUNDUP(Quartier!E43/(365*24*1),0)*SUM(Ökobaudat!BH21:BK21),aSan_Wärm=BHKW_100,ROUNDUP(Quartier!E43/(365*24*500),0)*SUM(Ökobaudat!BH22:BK22))),"-") -> - | V35: =IF(Datenbank_Emission=Ökobaudat2024,1/40*((ROUNDUP((Strom_Nutz*_xlfn.IFS(aSan_Str=PV_0,0,aSan_Str=PV_20,0.2,aSan_Str=PV_40,0.4,aSan_Str=PV_60,0.6,aSan_Str=PV_80,0.8,aSan_Str=PV_100,1))/30000,0)*SUM(Ökobaudat!BL24:BM24))+_xlfn.IFS(aSan_Wärm=WP_80,2*ROUNDUP(Sanierung!D44*Quartier!E43/(365*24*20),0)*SUM(Ökobaudat!BL7:BM7)+2*ROUNDUP(Sanierung!D43*Quartier!E43/(365*24*20),0)*((Quartier!E11+Quartier!E12)/Quartier!E9*SUM(Ökobaudat!BL9:BM9)+(Quartier!E13+Quartier!E14)/Quartier!E9*SUM(Ökobaudat!BL10:BM10))+2*ROUNDUP(Sanierung!D45*Quartier!E43/(365*24*20),0)*((Quartier!E11+Quartier!E12)/Quartier!E9*SUM(Ökobaudat!BL12:BM12)+(Quartier!E13+Quartier!E14)/Quartier!E9*SUM(Ökobaudat!BL13:BM13))+40/15*ROUNDUP(Sanierung!D46*Quartier!E43/(365*24*20),0)*SUM(Ökobaudat!BL15:BM15)+40/30*ROUNDUP(Sanierung!D47*Quartier!E43/(365*24*20),0)*SUM(Ökobaudat!BL21:BM21),aSan_Wärm=WP_50,2*ROUNDUP(Sanierung!D49*Quartier!E43/(365*24*20),0)*SUM(Ökobaudat!BL7:BM7)+2*ROUNDUP(Sanierung!D48*Quartier!E43/(365*24*20),0)*((Quartier!E11+Quartier!E12)/Quartier!E9*SUM(Ökobaudat!BL9:BM9)+(Quartier!E13+Quartier!E14)/Quartier!E9*SUM(Ökobaudat!BL10:BM10))+2*ROUNDUP(Sanierung!D50*Quartier!E43/(365*24*20),0)*((Quartier!E11+Quartier!E12)/Quartier!E9*SUM(Ökobaudat!BL12:BM12)+(Quartier!E13+Quartier!E14)/Quartier!E9*SUM(Ökobaudat!BL13:BM13))+40/15*ROUNDUP(Sanierung!D51*Quartier!E43/(365*24*20),0)*SUM(Ökobaudat!BL15:BM15)+40/30*ROUNDUP(Sanierung!D52*Quartier!E43/(365*24*20),0)*SUM(Ökobaudat!BL21:BM21),aSan_Wärm=Fern_100,Quartier!E9*40/30*ROUNDUP(Quartier!E43/(365*24*1),0)*SUM(Ökobaudat!BL21:BM21),aSan_Wärm=BHKW_100,ROUNDUP(Quartier!E43/(365*24*500),0)*SUM(Ökobaudat!BL22:BM22))),"-") -> - | W35: =IF(Datenbank_Emission=Ökobaudat2024,1/40*((ROUNDUP((Strom_Nutz*_xlfn.IFS(aSan_Str=PV_0,0,aSan_Str=PV_20,0.2,aSan_Str=PV_40,0.4,aSan_Str=PV_60,0.6,aSan_Str=PV_80,0.8,aSan_Str=PV_100,1))/30000,0)*SUM(Ökobaudat!AU24))+_xlfn.IFS(aSan_Wärm=WP_80,2*ROUNDUP(Sanierung!D44*Quartier!E43/(365*24*20),0)*SUM(Ökobaudat!AU7)+2*ROUNDUP(Sanierung!D43*Quartier!E43/(365*24*20),0)*((Quartier!E11+Quartier!E12)/Quartier!E9*SUM(Ökobaudat!AU9)+(Quartier!E13+Quartier!E14)/Quartier!E9*SUM(Ökobaudat!AU10))+2*ROUNDUP(Sanierung!D45*Quartier!E43/(365*24*20),0)*((Quartier!E11+Quartier!E12)/Quartier!E9*SUM(Ökobaudat!AU12)+(Quartier!E13+Quartier!E14)/Quartier!E9*SUM(Ökobaudat!AU13))+40/15*ROUNDUP(Sanierung!D46*Quartier!E43/(365*24*20),0)*SUM(Ökobaudat!AU15)+40/30*ROUNDUP(Sanierung!D47*Quartier!E43/(365*24*20),0)*SUM(Ökobaudat!AU21),aSan_Wärm=WP_50,2*ROUNDUP(Sanierung!D49*Quartier!E43/(365*24*20),0)*SUM(Ökobaudat!AU7)+2*ROUNDUP(Sanierung!D48*Quartier!E43/(365*24*20),0)*SUM((Quartier!E11+Quartier!E12)/Quartier!E9*SUM(Ökobaudat!AU9)+(Quartier!E13+Quartier!E14)/Quartier!E9*SUM(Ökobaudat!AU10))+2*ROUNDUP(Sanierung!D50*Quartier!E43/(365*24*20),0)*((Quartier!E11+Quartier!E12)/Quartier!E9*SUM(Ökobaudat!AU12)+(Quartier!E13+Quartier!E14)/Quartier!E9*SUM(Ökobaudat!AU13))+40/15*ROUNDUP(Sanierung!D51*Quartier!E43/(365*24*20),0)*SUM(Ökobaudat!AU15)+2*ROUNDUP(Sanierung!D52*Quartier!E43/(365*24*20),0)*SUM(Ökobaudat!AU21),aSan_Wärm=Fern_100,Quartier!E9*40/30*ROUNDUP(Quartier!E43/(365*24*1),0)*SUM(Ökobaudat!AU21),aSan_Wärm=BHKW_100,ROUNDUP(Quartier!E43/(365*24*500),0)*SUM(Ökobaudat!AU22))),1/40*_xlfn.IFS(Datenbank_Emission=Datenbank_eigen,((ROUNDUP((Strom_Nutz*_xlfn.IFS(aSan_Str=PV_0,0,aSan_Str=PV_20,0.2,aSan_Str=PV_40,0.4,aSan_Str=PV_60,0.6,aSan_Str=PV_80,0.8,aSan_Str=PV_100,1))/30000,0)*'Eigene Datenbank'!L24)+_xlfn.IFS(aSan_Wärm=WP_80,2*ROUNDUP(Sanierung!D44*Wärme_Nutz_San/(365*24*20),0)*'Eigene Datenbank'!L7+2*ROUNDUP(Sanierung!D43*Wärme_Nutz_San/(365*24*20),0)*((SFH_qurtr+SDH_qurtr)/Zahl_Geb*'Eigene Datenbank'!L9+(SMFH_qurtr+LMFH_qurtr)/Zahl_Geb*'Eigene Datenbank'!L10)+2*ROUNDUP(Sanierung!D45*Wärme_Nutz_San/(365*24*20),0)*((SFH_qurtr+SDH_qurtr)/Zahl_Geb*'Eigene Datenbank'!L12+(SMFH_qurtr+LMFH_qurtr)/Zahl_Geb*'Eigene Datenbank'!L13)+40/15*ROUNDUP(Sanierung!D46*Wärme_Nutz_San/(365*24*20),0)*'Eigene Datenbank'!L15+40/30*ROUNDUP(Sanierung!D47*Wärme_Nutz_San/(365*24*20),0)*'Eigene Datenbank'!L21,aSan_Wärm=WP_50,2*ROUNDUP(Sanierung!D49*Wärme_Nutz_San/(365*24*20),0)*'Eigene Datenbank'!L7+2*ROUNDUP(Sanierung!D48*Wärme_Nutz_San/(365*24*20),0)*SUM((SFH_qurtr+SDH_qurtr)/Zahl_Geb*'Eigene Datenbank'!L9+(SMFH_qurtr+LMFH_qurtr)/Zahl_Geb*'Eigene Datenbank'!L10)+2*ROUNDUP(Sanierung!D50*Wärme_Nutz_San/(365*24*20),0)*((SFH_qurtr+SDH_qurtr)/Zahl_Geb*'Eigene Datenbank'!L12+(SMFH_qurtr+LMFH_qurtr)/Zahl_Geb*'Eigene Datenbank'!L13)+40/15*ROUNDUP(Sanierung!D51*Wärme_Nutz_San/(365*24*20),0)*'Eigene Datenbank'!L15+2*ROUNDUP(Sanierung!D52*Wärme_Nutz_San/(365*24*20),0)*'Eigene Datenbank'!L21,aSan_Wärm=Fern_100,Zahl_Geb*40/30*ROUNDUP(Wärme_Nutz_San/(365*24*1),0)*'Eigene Datenbank'!L21,aSan_Wärm=BHKW_100,ROUNDUP(Wärme_Nutz_San/(365*24*500),0)*'Eigene Datenbank'!L22)))) ->  | AQ35: 33 | AR35: 0 | AT35: 0 | AV35: 0
D36: Sanierungsmaterial | F36: =Dämm_Mat -> XPS | Q36: Gesamt | R36: =IF(Datenbank_Emission=Ökobaudat2024,SUM(R32:R35),"-") -> - | S36: =IF(Datenbank_Emission=Ökobaudat2024,SUM(S32:S35),"-") -> - | T36: =IF(Datenbank_Emission=Ökobaudat2024,SUM(T32:T35),"-") -> - | U36: =IF(Datenbank_Emission=Ökobaudat2024,SUM(U32:U35),"-") -> - | V36: =IF(Datenbank_Emission=Ökobaudat2024,SUM(V32:V35),"-") -> - | W36: =SUM(W32:W35) ->  | AQ36: 34 | AR36: 0 | AT36: 0 | AV36: 0
D37: Rahmenmaterial | F37: =Mat_Rhm -> Holz | AQ37: 35 | AR37: 0 | AT37: 0 | AV37: 0
D38: Verwertung | F38: =Quartier!H45 -> Verwertung 100 % | O38: =_xlfn.IFS(Datenbank_Emission=Datenbank_eigen,"Fossil resource scarcity [kg oil eq]",Datenbank_Emission=Ökobaudat2024,"ADPF [MJ]") -> Fossil resource scarcity [kg oil eq] | Q38: Strom | R38: =IF(Datenbank_Emission=Ökobaudat2024,0,"-") -> - | S38: =IF(Datenbank_Emission=Ökobaudat2024,0,"-") -> - | T38: =IF(Datenbank_Emission=Ökobaudat2024,_xlfn.IFS(aSan_Str=PV_0,Quartier!E19*SUM(Ökobaudat!BT17:BZ17),aSan_Str=PV_20,0.2*Quartier!E19*SUM(Ökobaudat!BT27:BZ27)+0.8*Quartier!E19*SUM(Ökobaudat!BT17:BZ17),aSan_Str=PV_40,0.4*Quartier!E19*SUM(Ökobaudat!BT27:BZ27)+0.6*Quartier!E19*SUM(Ökobaudat!BT17:BZ17),aSan_Str=PV_60,0.6*Quartier!E19*SUM(Ökobaudat!BT27:BZ27)+0.4*Quartier!E19*SUM(Ökobaudat!BT17:BZ17),aSan_Str=PV_80,0.8*Quartier!E19*SUM(Ökobaudat!BT27:BZ27)+0.2*Quartier!E19*SUM(Ökobaudat!BT17:BZ17),aSan_Str=PV_100,Quartier!E19*SUM(Ökobaudat!BT27:BZ27)+IF(aSan_Wärm=BHKW,Sanierung!D56/2*SUM(Ökobaudat!BT17:BZ17),0)),"-") -> - | U38: =IF(Datenbank_Emission=Ökobaudat2024,0,"-") -> - | V38: =IF(Datenbank_Emission=Ökobaudat2024,0,"-") -> - | W38: =IF(Datenbank_Emission=Ökobaudat2024,_xlfn.IFS(aSan_Str=PV_0,Quartier!E19*Ökobaudat!BN17,aSan_Str=PV_20,0.2*Quartier!E19*Ökobaudat!BN27+0.8*Quartier!E19*Ökobaudat!BN17,aSan_Str=PV_40,0.4*Quartier!E19*Ökobaudat!BN27+0.6*Quartier!E19*Ökobaudat!BN17,aSan_Str=PV_60,0.6*Quartier!E19*Ökobaudat!BN27+0.4*Quartier!E19*Ökobaudat!BN17,aSan_Str=PV_80,0.8*Quartier!E19*Ökobaudat!BN27+0.2*Quartier!E19*Ökobaudat!BN17,aSan_Str=PV_100,Quartier!E19*Ökobaudat!BN27)+IF(aSan_Wärm=BHKW,Sanierung!D56/2*Ökobaudat!BN17,0),_xlfn.IFS(Datenbank_Emission=Datenbank_eigen,_xlfn.IFS(aSan_Str=PV_0,Strom_Nutz*'Eigene Datenbank'!J17,aSan_Str=PV_20,0.2*Strom_Nutz*'Eigene Datenbank'!J27+0.8*Strom_Nutz*'Eigene Datenbank'!J17,aSan_Str=PV_40,0.4*Strom_Nutz*'Eigene Datenbank'!J27+0.6*Strom_Nutz*'Eigene Datenbank'!J17,aSan_Str=PV_60,0.6*Strom_Nutz*'Eigene Datenbank'!J27+0.4*Strom_Nutz*'Eigene Datenbank'!J17,aSan_Str=PV_80,0.8*Strom_Nutz*'Eigene Datenbank'!J27+0.2*Strom_Nutz*'Eigene Datenbank'!J17,aSan_Str=PV_100,Strom_Nutz*'Eigene Datenbank'!J27)+IF(aSan_Wärm=BHKW_100,Sanierung!D56/2*'Eigene Datenbank'!J17,0))) -> 0 | AQ38: 36 | AR38: 0 | AT38: 0 | AV38: 0
Q39: Wärme | R39: =IF(Datenbank_Emission=Ökobaudat2024,0,"-") -> - | S39: =IF(Datenbank_Emission=Ökobaudat2024,0,"-") -> - | T39: =IF(Datenbank_Emission=Ökobaudat2024,Wärme_Nutz_San*_xlfn.IFS(aSan_Wärm=WP_80,Sanierung!D43*SUM(Ökobaudat!BT8:BZ8)+Sanierung!D44*SUM(Ökobaudat!BT6:BZ6)+Sanierung!D44*SUM(Ökobaudat!BT11:BZ11)+Sanierung!D45*SUM(Ökobaudat!BT14:BZ14)+Sanierung!D47*SUM(Ökobaudat!BT18:BZ18)*0.65+Sanierung!D47*SUM(Ökobaudat!BT19:BZ19)*0.35,aSan_Wärm=WP_50,Sanierung!D48*SUM(Ökobaudat!BT8:BZ8)+Sanierung!D49*SUM(Ökobaudat!BT6:BZ6)+Sanierung!D50*SUM(Ökobaudat!BT11:BZ11)+Sanierung!D51*SUM(Ökobaudat!BT14:BZ14)+Sanierung!D52*SUM(Ökobaudat!BT18:BZ18)*0.65+Sanierung!D52*SUM(Ökobaudat!BT19:BZ19)*0.35,aSan_Wärm=Fern_100,(SUM(Ökobaudat!BT18:BZ18)*0.65+SUM(Ökobaudat!BT19:BZ19)*0.35),aSan_Wärm=BHKW_100,SUM(Ökobaudat!BT23:BZ23)),"-") -> - | U39: =IF(Datenbank_Emission=Ökobaudat2024,0,"-") -> - | V39: =IF(Datenbank_Emission=Ökobaudat2024,0,"-") -> - | W39: =IF(Datenbank_Emission=Ökobaudat2024,Wärme_Nutz_San*_xlfn.IFS(aSan_Wärm=WP_80,Sanierung!D43*Ökobaudat!BN8+Sanierung!D44*Ökobaudat!BN6+Sanierung!D44*Ökobaudat!BN11+Sanierung!D45*Ökobaudat!BN14+Sanierung!D47*Ökobaudat!BN18*0.65+Sanierung!D47*Ökobaudat!BN19*0.35,aSan_Wärm=WP_50,Sanierung!D48*Ökobaudat!BN8+Sanierung!D49*Ökobaudat!BN6+Sanierung!D50*Ökobaudat!BN11+Sanierung!D51*Ökobaudat!BN14+Sanierung!D52*Ökobaudat!BN18*0.65+Sanierung!D52*Ökobaudat!BN19*0.35,aSan_Wärm=Fern_100,(Ökobaudat!BN18*0.65+Ökobaudat!BN19*0.35),aSan_Wärm=BHKW_100,Ökobaudat!BN23),Wärme_Nutz_San*_xlfn.IFS(Datenbank_Emission=Datenbank_eigen,_xlfn.IFS(aSan_Wärm=WP_80,Sanierung!D43*'Eigene Datenbank'!J8+Sanierung!D44*'Eigene Datenbank'!J6+Sanierung!D44*'Eigene Datenbank'!J11+Sanierung!D45*'Eigene Datenbank'!J14+Sanierung!D47*'Eigene Datenbank'!J18*0.65+Sanierung!D47*'Eigene Datenbank'!J19*0.35,aSan_Wärm=WP_50,Sanierung!D48*'Eigene Datenbank'!J8+Sanierung!D49*'Eigene Datenbank'!J6+Sanierung!D50*'Eigene Datenbank'!J11+Sanierung!D51*'Eigene Datenbank'!J14+Sanierung!D52*'Eigene Datenbank'!J18*0.65+Sanierung!D52*'Eigene Datenbank'!J19*0.35,aSan_Wärm=Fern_100,('Eigene Datenbank'!J18*0.65+'Eigene Datenbank'!J19*0.35),aSan_Wärm=BHKW_100,'Eigene Datenbank'!J23))) ->  | AQ39: 37 | AR39: 0 | AT39: 0 | AV39: 0
B40: Aktive Sanierung | Q40: Materialströme | R40: =IF(Datenbank_Emission=Ökobaudat2024,1/40*(_xlfn.IFS(Dämm_Mat=EPS,EPS_i*SUM(Ökobaudat!BO32)/Sachbilanz!AC458,Dämm_Mat=XPS,XPS_i*SUM(Ökobaudat!BO31:BQ31)/Sachbilanz!AC457,Dämm_Mat=Holzfaser,Holz_i*SUM(Ökobaudat!BO33:BQ33)/Sachbilanz!AC459,Dämm_Mat=Zellulose,Zellu_i*SUM(Ökobaudat!BO34:BQ34)/Sachbilanz!AC460,Dämm_Mat='Drop-Down'!T6,0)+Fenster_i/Sachbilanz!G300*_xlfn.IFS(Mat_Rhm=PVC,SUM(Ökobaudat!BO28:BQ28)/2.95,Mat_Rhm=Holz,SUM(Ökobaudat!BO29:BQ29)/2.11)+(Glas_i*SUM(Ökobaudat!BO30:BQ30)/Sachbilanz!AC463)+Putz_i*SUM(Ökobaudat!BO36:BQ36)+_xlfn.IFS(Vwrtng=Dep_6,Bauschutt_o*SUM(Ökobaudat!BO67:BQ67)*0.061+0.939*Bauschutt_o*SUM(Ökobaudat!BO37:BQ37)+0.939*1/3*Fenster_o*(SUM(Ökobaudat!BO43:BQ43)+SUM(Ökobaudat!BO44:BQ44)+SUM(Ökobaudat!BO45:BQ45)),Vwrtng=Verwertung100,Bauschutt_o*SUM(Ökobaudat!BO37:BQ37)+1/3*Fenster_o*(SUM(Ökobaudat!BO43:BQ43)+SUM(Ökobaudat!BO44:BQ44)+SUM(Ökobaudat!BO45:BQ45)))),"-") -> - | S40: =IF(Datenbank_Emission=Ökobaudat2024,1/40*(_xlfn.IFS(Dämm_Mat=EPS,EPS_i*SUM(Ökobaudat!BR32:BS32)/Sachbilanz!AC458,Dämm_Mat=XPS,XPS_i*SUM(Ökobaudat!BR31:BS31)/Sachbilanz!AC457,Dämm_Mat=Holzfaser,Holz_i*SUM(Ökobaudat!BR33:BS33)/Sachbilanz!AC459,Dämm_Mat=Zellulose,Zellu_i*SUM(Ökobaudat!BR34:BS34)/Sachbilanz!AC460,Dämm_Mat='Drop-Down'!T6,0)+Fenster_i/Sachbilanz!G300*_xlfn.IFS(Mat_Rhm=PVC,SUM(Ökobaudat!BR28:BS28)/2.95,Mat_Rhm=Holz,SUM(Ökobaudat!BR29:BS29)/2.11)+(Glas_i*SUM(Ökobaudat!BR30:BS30)/Sachbilanz!AC463)+Putz_i*SUM(Ökobaudat!BR36:BS36)+_xlfn.IFS(Vwrtng=Dep_6,Bauschutt_o*SUM(Ökobaudat!BR67:BS67)*0.061+0.939*Bauschutt_o*SUM(Ökobaudat!BR37:BS37)+0.939*1/3*Fenster_o*(SUM(Ökobaudat!BR43:BS43)+SUM(Ökobaudat!BR44:BS44)+SUM(Ökobaudat!BR45:BS45)),Vwrtng=Verwertung100,Bauschutt_o*SUM(Ökobaudat!BR37:BS37)+1/3*Fenster_o*(SUM(Ökobaudat!BR43:BS43)+SUM(Ökobaudat!BR44:BS44)+SUM(Ökobaudat!BR45:BS45)))),"-") -> - | T40: =IF(Datenbank_Emission=Ökobaudat2024,0,"-") -> - | U40: =IF(Datenbank_Emission=Ökobaudat2024,1/40*(_xlfn.IFS(Dämm_Mat=EPS,EPS_i*SUM(Ökobaudat!CA32:CD32)/Sachbilanz!AC458,Dämm_Mat=XPS,XPS_i*SUM(Ökobaudat!CA31:CD31)/Sachbilanz!AC457,Dämm_Mat=Holzfaser,Holz_i*SUM(Ökobaudat!CA33:CD33)/Sachbilanz!AC459,Dämm_Mat=Zellulose,Zellu_i*SUM(Ökobaudat!CA34:CD34)/Sachbilanz!AC460,Dämm_Mat='Drop-Down'!T6,0)+Fenster_i/Sachbilanz!G300*_xlfn.IFS(Mat_Rhm=PVC,SUM(Ökobaudat!CA28:CD28)/2.95,Mat_Rhm=Holz,SUM(Ökobaudat!CA29:CD29)/2.11)+(Glas_i*SUM(Ökobaudat!CA30:CD30)/Sachbilanz!AC463)+Putz_i*SUM(Ökobaudat!CA36:CD36)+_xlfn.IFS(Vwrtng=Dep_6,Bauschutt_o*SUM(Ökobaudat!CA67:CD67)*0.061+0.939*Bauschutt_o*SUM(Ökobaudat!CA37:CD37)+0.939*1/3*Fenster_o*(SUM(Ökobaudat!CA43:CD43)+SUM(Ökobaudat!CA44:CD44)+SUM(Ökobaudat!CA45:CD45)),Vwrtng=Verwertung100,Bauschutt_o*SUM(Ökobaudat!CA37:CD37)+1/3*Fenster_o*(SUM(Ökobaudat!CA43:CD43)+SUM(Ökobaudat!CA44:CD44)+SUM(Ökobaudat!CA45:CD45)))),"-") -> - | V40: =IF(Datenbank_Emission=Ökobaudat2024,1/40*(_xlfn.IFS(Dämm_Mat=EPS,EPS_i*SUM(Ökobaudat!CE32:CF32)/Sachbilanz!AC458,Dämm_Mat=XPS,XPS_i*SUM(Ökobaudat!CE31:CF31)/Sachbilanz!AC457,Dämm_Mat=Holzfaser,Holz_i*SUM(Ökobaudat!CE33:CF33)/Sachbilanz!AC459,Dämm_Mat=Zellulose,Zellu_i*SUM(Ökobaudat!CE34:CF34)/Sachbilanz!AC460,Dämm_Mat='Drop-Down'!T6,0)+Fenster_i/Sachbilanz!G300*_xlfn.IFS(Mat_Rhm=PVC,SUM(Ökobaudat!CE28:CF28)/2.95,Mat_Rhm=Holz,SUM(Ökobaudat!CE29:CF29)/2.11)+(Glas_i*SUM(Ökobaudat!CE30:CF30)/Sachbilanz!AC463)+Putz_i*SUM(Ökobaudat!CE36:CF36)+_xlfn.IFS(Vwrtng=Dep_6,Bauschutt_o*SUM(Ökobaudat!CE67:CF67)*0.061+0.939*Bauschutt_o*SUM(Ökobaudat!CE37:CF37)+0.939*1/3*Fenster_o*(SUM(Ökobaudat!CE43:CF43)+SUM(Ökobaudat!CE44:CF44)+SUM(Ökobaudat!CE45:CF45)),Vwrtng=Verwertung100,Bauschutt_o*SUM(Ökobaudat!CE37:CF37)+1/3*Fenster_o*(SUM(Ökobaudat!CE43:CF43)+SUM(Ökobaudat!CE44:CF44)+SUM(Ökobaudat!CE45:CF45)))),"-") -> - | W40: =IF(Datenbank_Emission=Ökobaudat2024,1/40*(_xlfn.IFS(Dämm_Mat=EPS,EPS_i*SUM(Ökobaudat!BN32)/Sachbilanz!AC458,Dämm_Mat=XPS,XPS_i*SUM(Ökobaudat!BN31)/Sachbilanz!AC457,Dämm_Mat=Holzfaser,Holz_i*SUM(Ökobaudat!BN33)/Sachbilanz!AC459,Dämm_Mat=Zellulose,Zellu_i*SUM(Ökobaudat!BN34)/Sachbilanz!AC460,Dämm_Mat='Drop-Down'!T6,0)+Fenster_i/Sachbilanz!G300*_xlfn.IFS(Mat_Rhm=PVC,SUM(Ökobaudat!BN28)/2.95,Mat_Rhm=Holz,SUM(Ökobaudat!BN29)/2.11)+(Glas_i*SUM(Ökobaudat!BN30)/Sachbilanz!AC463)+Putz_i*SUM(Ökobaudat!BN36)+_xlfn.IFS(Vwrtng=Dep_6,Bauschutt_o*SUM(Ökobaudat!BN67)*0.061+0.939*Bauschutt_o*SUM(Ökobaudat!BN37)+0.939*1/3*Fenster_o*(SUM(Ökobaudat!BN43)+SUM(Ökobaudat!BN44)+SUM(Ökobaudat!BN45)),Vwrtng=Verwertung100,Bauschutt_o*SUM(Ökobaudat!BN37)+1/3*Fenster_o*(SUM(Ökobaudat!BN43)+SUM(Ökobaudat!BN44)+SUM(Ökobaudat!BN45)))),1/40*_xlfn.IFS(Datenbank_Emission=Datenbank_eigen,_xlfn.IFS(Dämm_Mat=EPS,EPS_i*'Eigene Datenbank'!J32,Dämm_Mat=XPS,XPS_i*'Eigene Datenbank'!J31,Dämm_Mat=Holzfaser,Holz_i*'Eigene Datenbank'!J33/Sachbilanz!AC452,Dämm_Mat=Zellulose,Zellu_i*'Eigene Datenbank'!J34,Dämm_Mat='Drop-Down'!U6,0)+Fenster_o*_xlfn.IFS(Mat_Rhm=PVC,'Eigene Datenbank'!J28,Mat_Rhm=Holz,'Eigene Datenbank'!J29)+Glas_i*'Eigene Datenbank'!J30+Putz_i*'Eigene Datenbank'!J36+_xlfn.IFS(Vwrtng=Dep_6,Bauschutt_o*'Eigene Datenbank'!J67*0.061+0.939*0.5*Bauschutt_o*('Eigene Datenbank'!J37+'Eigene Datenbank'!J38)+0.939*1/3*Fenster_o*('Eigene Datenbank'!J43+'Eigene Datenbank'!J44+'Eigene Datenbank'!J45),Vwrtng=Verwertung100,0.5*Bauschutt_o*('Eigene Datenbank'!J37+'Eigene Datenbank'!J38)+1/3*Fenster_o*('Eigene Datenbank'!J43+'Eigene Datenbank'!J44+'Eigene Datenbank'!J45)))) ->  | AQ40: 38 | AR40: 0 | AT40: 0 | AV40: 0
D41: Photovoltaik | F41: =Quartier!E60 -> Deckung Strombedarf 40 % | Q41: Technische Einbauten | R41: =IF(Datenbank_Emission=Ökobaudat2024,1/40*((ROUNDUP((Strom_Nutz*_xlfn.IFS(aSan_Str=PV_0,0,aSan_Str=PV_20,0.2,aSan_Str=PV_40,0.4,aSan_Str=PV_60,0.6,aSan_Str=PV_80,0.8,aSan_Str=PV_100,1))/30000,0)*SUM(Ökobaudat!BO24:BQ24))+_xlfn.IFS(aSan_Wärm=WP_80,2*ROUNDUP(Sanierung!D44*Quartier!E43/(365*24*20),0)*SUM(Ökobaudat!BO7:BQ7)+2*ROUNDUP(Sanierung!D43*Quartier!E43/(365*24*20),0)*((Quartier!E11+Quartier!E12)/Quartier!E9*SUM(Ökobaudat!BO9)+(Quartier!E13+Quartier!E14)/Quartier!E9*SUM(Ökobaudat!BO10))+2*ROUNDUP(Sanierung!D45*Quartier!E43/(365*24*20),0)*((Quartier!E11+Quartier!E12)/Quartier!E9*SUM(Ökobaudat!BO12)+(Quartier!E13+Quartier!E14)/Quartier!E9*SUM(Ökobaudat!BO13))+40/15*ROUNDUP(Sanierung!D46*Quartier!E43/(365*24*20),0)*SUM(Ökobaudat!BO15)+40/30*ROUNDUP(Sanierung!D47*Quartier!E43/(365*24*20),0)*SUM(Ökobaudat!BO21:BQ21),aSan_Wärm=WP_50,2*ROUNDUP(Sanierung!D49*Quartier!E43/(365*24*20),0)*SUM(Ökobaudat!BO7:BQ7)+2*ROUNDUP(Sanierung!D48*Quartier!E43/(365*24*20),0)*SUM((Quartier!E11+Quartier!E12)/Quartier!E9*SUM(Ökobaudat!BO9)+(Quartier!E13+Quartier!E14)/Quartier!E9*SUM(Ökobaudat!BO10))+2*ROUNDUP(Sanierung!D50*Quartier!E43/(365*24*20),0)*((Quartier!E11+Quartier!E12)/Quartier!E9*SUM(Ökobaudat!BO12)+(Quartier!E13+Quartier!E14)/Quartier!E9*SUM(Ökobaudat!BO13))+40/15*ROUNDUP(Sanierung!D51*Quartier!E43/(365*24*20),0)*SUM(Ökobaudat!BO15)+2*ROUNDUP(Sanierung!D52*Quartier!E43/(365*24*20),0)*SUM(Ökobaudat!BO21:BQ21),aSan_Wärm=Fern_100,Quartier!E9*40/30*ROUNDUP(Quartier!E43/(365*24*1),0)*SUM(Ökobaudat!BO21:BQ21),aSan_Wärm=BHKW_100,ROUNDUP(Quartier!E43/(365*24*500),0)*SUM(Ökobaudat!BO22:BQ22))),"-") -> - | S41: =IF(Datenbank_Emission=Ökobaudat2024,1/40*((ROUNDUP((Strom_Nutz*_xlfn.IFS(aSan_Str=PV_0,0,aSan_Str=PV_20,0.2,aSan_Str=PV_40,0.4,aSan_Str=PV_60,0.6,aSan_Str=PV_80,0.8,aSan_Str=PV_100,1))/30000,0)*SUM(Ökobaudat!BR24:BS24))+_xlfn.IFS(aSan_Wärm=WP_80,2*ROUNDUP(Sanierung!D44*Quartier!E43/(365*24*20),0)*SUM(Ökobaudat!BR7:BS7)+2*ROUNDUP(Sanierung!D43*Quartier!E43/(365*24*20),0)*((Quartier!E11+Quartier!E12)/Quartier!E9*SUM(Ökobaudat!BR9:BS9)+(Quartier!E13+Quartier!E14)/Quartier!E9*SUM(Ökobaudat!BR10:BS10))+2*ROUNDUP(Sanierung!D45*Quartier!E43/(365*24*20),0)*((Quartier!E11+Quartier!E12)/Quartier!E9*SUM(Ökobaudat!BR12:BS12)+(Quartier!E13+Quartier!E14)/Quartier!E9*SUM(Ökobaudat!BR13:BS13))+40/15*ROUNDUP(Sanierung!D46*Quartier!E43/(365*24*20),0)*SUM(Ökobaudat!BR15:BS15)+40/30*ROUNDUP(Sanierung!D47*Quartier!E43/(365*24*20),0)*SUM(Ökobaudat!BR21:BS21),aSan_Wärm=WP_50,2*ROUNDUP(Sanierung!D49*Quartier!E43/(365*24*20),0)*SUM(Ökobaudat!BR7:BS7)+2*ROUNDUP(Sanierung!D48*Quartier!E43/(365*24*20),0)*((Quartier!E11+Quartier!E12)/Quartier!E9*SUM(Ökobaudat!BR9:BS9)+(Quartier!E13+Quartier!E14)/Quartier!E9*SUM(Ökobaudat!BR10:BS10))+2*ROUNDUP(Sanierung!D50*Quartier!E43/(365*24*20),0)*((Quartier!E11+Quartier!E12)/Quartier!E9*SUM(Ökobaudat!BR12:BS12)+(Quartier!E13+Quartier!E14)/Quartier!E9*SUM(Ökobaudat!BR13:BS13))+40/15*ROUNDUP(Sanierung!D51*Quartier!E43/(365*24*20),0)*SUM(Ökobaudat!BR15:BS15)+40/30*ROUNDUP(Sanierung!D52*Quartier!E43/(365*24*20),0)*SUM(Ökobaudat!BR21:BS21),aSan_Wärm=Fern_100,Quartier!E9*40/30*ROUNDUP(Quartier!E43/(365*24*1),0)*SUM(Ökobaudat!BR21:BS21),aSan_Wärm=BHKW_100,ROUNDUP(Quartier!E43/(365*24*500),0)*SUM(Ökobaudat!BR22:BS22))),"-") -> - | T41: =IF(Datenbank_Emission=Ökobaudat2024,0,"-") -> - | U41: =IF(Datenbank_Emission=Ökobaudat2024,1/40*((ROUNDUP((Strom_Nutz*_xlfn.IFS(aSan_Str=PV_0,0,aSan_Str=PV_20,0.2,aSan_Str=PV_40,0.4,aSan_Str=PV_60,0.6,aSan_Str=PV_80,0.8,aSan_Str=PV_100,1))/30000,0)*SUM(Ökobaudat!CA24:CD24))+_xlfn.IFS(aSan_Wärm=WP_80,2*ROUNDUP(Sanierung!D44*Quartier!E43/(365*24*20),0)*SUM(Ökobaudat!CA7:CD7)+2*ROUNDUP(Sanierung!D43*Quartier!E43/(365*24*20),0)*((Quartier!E11+Quartier!E12)/Quartier!E9*SUM(Ökobaudat!CA9:CD9)+(Quartier!E13+Quartier!E14)/Quartier!E9*SUM(Ökobaudat!CA10:CD10))+2*ROUNDUP(Sanierung!D45*Quartier!E43/(365*24*20),0)*((Quartier!E11+Quartier!E12)/Quartier!E9*SUM(Ökobaudat!CA12:CD12)+(Quartier!E13+Quartier!E14)/Quartier!E9*SUM(Ökobaudat!CA13:CD13))+40/15*ROUNDUP(Sanierung!D46*Quartier!E43/(365*24*20),0)*SUM(Ökobaudat!CA15:CD15)+40/30*ROUNDUP(Sanierung!D47*Quartier!E43/(365*24*20),0)*SUM(Ökobaudat!CA21:CD21),aSan_Wärm=WP_50,2*ROUNDUP(Sanierung!D49*Quartier!E43/(365*24*20),0)*SUM(Ökobaudat!CA7:CD7)+2*ROUNDUP(Sanierung!D48*Quartier!E43/(365*24*20),0)*((Quartier!E11+Quartier!E12)/Quartier!E9*SUM(Ökobaudat!CA9:CD9)+(Quartier!E13+Quartier!E14)/Quartier!E9*SUM(Ökobaudat!CA10:CD10))+2*ROUNDUP(Sanierung!D50*Quartier!E43/(365*24*20),0)*((Quartier!E11+Quartier!E12)/Quartier!E9*SUM(Ökobaudat!CA12:CD12)+(Quartier!E13+Quartier!E14)/Quartier!E9*SUM(Ökobaudat!CA13:CD13))+40/15*ROUNDUP(Sanierung!D51*Quartier!E43/(365*24*20),0)*SUM(Ökobaudat!CA15:CD15)+40/30*ROUNDUP(Sanierung!D52*Quartier!E43/(365*24*20),0)*SUM(Ökobaudat!CA21:CD21),aSan_Wärm=Fern_100,Quartier!E9*40/30*ROUNDUP(Quartier!E43/(365*24*1),0)*SUM(Ökobaudat!CA21:CD21),aSan_Wärm=BHKW_100,ROUNDUP(Quartier!E43/(365*24*500),0)*SUM(Ökobaudat!CA22:CD22))),"-") -> - | V41: =IF(Datenbank_Emission=Ökobaudat2024,1/40*((ROUNDUP((Strom_Nutz*_xlfn.IFS(aSan_Str=PV_0,0,aSan_Str=PV_20,0.2,aSan_Str=PV_40,0.4,aSan_Str=PV_60,0.6,aSan_Str=PV_80,0.8,aSan_Str=PV_100,1))/30000,0)*SUM(Ökobaudat!CE24:CF24))+_xlfn.IFS(aSan_Wärm=WP_80,2*ROUNDUP(Sanierung!D44*Quartier!E43/(365*24*20),0)*SUM(Ökobaudat!CE7:CF7)+2*ROUNDUP(Sanierung!D43*Quartier!E43/(365*24*20),0)*((Quartier!E11+Quartier!E12)/Quartier!E9*SUM(Ökobaudat!CE9:CF9)+(Quartier!E13+Quartier!E14)/Quartier!E9*SUM(Ökobaudat!CE10:CF10))+2*ROUNDUP(Sanierung!D45*Quartier!E43/(365*24*20),0)*((Quartier!E11+Quartier!E12)/Quartier!E9*SUM(Ökobaudat!CE12:CF12)+(Quartier!E13+Quartier!E14)/Quartier!E9*SUM(Ökobaudat!CE13:CF13))+40/15*ROUNDUP(Sanierung!D46*Quartier!E43/(365*24*20),0)*SUM(Ökobaudat!CE15:CF15)+40/30*ROUNDUP(Sanierung!D47*Quartier!E43/(365*24*20),0)*SUM(Ökobaudat!CE21:CF21),aSan_Wärm=WP_50,2*ROUNDUP(Sanierung!D49*Quartier!E43/(365*24*20),0)*SUM(Ökobaudat!CE7:CF7)+2*ROUNDUP(Sanierung!D48*Quartier!E43/(365*24*20),0)*((Quartier!E11+Quartier!E12)/Quartier!E9*SUM(Ökobaudat!CE9:CF9)+(Quartier!E13+Quartier!E14)/Quartier!E9*SUM(Ökobaudat!CE10:CF10))+2*ROUNDUP(Sanierung!D50*Quartier!E43/(365*24*20),0)*((Quartier!E11+Quartier!E12)/Quartier!E9*SUM(Ökobaudat!CE12:CF12)+(Quartier!E13+Quartier!E14)/Quartier!E9*SUM(Ökobaudat!CE13:CF13))+40/15*ROUNDUP(Sanierung!D51*Quartier!E43/(365*24*20),0)*SUM(Ökobaudat!CE15:CF15)+40/30*ROUNDUP(Sanierung!D52*Quartier!E43/(365*24*20),0)*SUM(Ökobaudat!CE21:CF21),aSan_Wärm=Fern_100,Quartier!E9*40/30*ROUNDUP(Quartier!E43/(365*24*1),0)*SUM(Ökobaudat!CE21:CF21),aSan_Wärm=BHKW_100,ROUNDUP(Quartier!E43/(365*24*500),0)*SUM(Ökobaudat!CE22:CF22))),"-") -> - | W41: =IF(Datenbank_Emission=Ökobaudat2024,1/40*((ROUNDUP((Strom_Nutz*_xlfn.IFS(aSan_Str=PV_0,0,aSan_Str=PV_20,0.2,aSan_Str=PV_40,0.4,aSan_Str=PV_60,0.6,aSan_Str=PV_80,0.8,aSan_Str=PV_100,1))/30000,0)*SUM(Ökobaudat!BN24))+_xlfn.IFS(aSan_Wärm=WP_80,2*ROUNDUP(Sanierung!D44*Quartier!E43/(365*24*20),0)*SUM(Ökobaudat!BN7)+2*ROUNDUP(Sanierung!D43*Quartier!E43/(365*24*20),0)*((Quartier!E11+Quartier!E12)/Quartier!E9*SUM(Ökobaudat!BN9)+(Quartier!E13+Quartier!E14)/Quartier!E9*SUM(Ökobaudat!BN10))+2*ROUNDUP(Sanierung!D45*Quartier!E43/(365*24*20),0)*((Quartier!E11+Quartier!E12)/Quartier!E9*SUM(Ökobaudat!BN12)+(Quartier!E13+Quartier!E14)/Quartier!E9*SUM(Ökobaudat!BN13))+40/15*ROUNDUP(Sanierung!D46*Quartier!E43/(365*24*20),0)*SUM(Ökobaudat!BN15)+40/30*ROUNDUP(Sanierung!D47*Quartier!E43/(365*24*20),0)*SUM(Ökobaudat!BN21),aSan_Wärm=WP_50,2*ROUNDUP(Sanierung!D49*Quartier!E43/(365*24*20),0)*SUM(Ökobaudat!BN7)+2*ROUNDUP(Sanierung!D48*Quartier!E43/(365*24*20),0)*SUM((Quartier!E11+Quartier!E12)/Quartier!E9*SUM(Ökobaudat!BN9)+(Quartier!E13+Quartier!E14)/Quartier!E9*SUM(Ökobaudat!BN10))+2*ROUNDUP(Sanierung!D50*Quartier!E43/(365*24*20),0)*((Quartier!E11+Quartier!E12)/Quartier!E9*SUM(Ökobaudat!BN12)+(Quartier!E13+Quartier!E14)/Quartier!E9*SUM(Ökobaudat!BN13))+40/15*ROUNDUP(Sanierung!D51*Quartier!E43/(365*24*20),0)*SUM(Ökobaudat!BN15)+2*ROUNDUP(Sanierung!D52*Quartier!E43/(365*24*20),0)*SUM(Ökobaudat!BN21),aSan_Wärm=Fern_100,Quartier!E9*40/30*ROUNDUP(Quartier!E43/(365*24*1),0)*SUM(Ökobaudat!BN21),aSan_Wärm=BHKW_100,ROUNDUP(Quartier!E43/(365*24*500),0)*SUM(Ökobaudat!BN22))),1/40*_xlfn.IFS(Datenbank_Emission=Datenbank_eigen,((ROUNDUP((Strom_Nutz*_xlfn.IFS(aSan_Str=PV_0,0,aSan_Str=PV_20,0.2,aSan_Str=PV_40,0.4,aSan_Str=PV_60,0.6,aSan_Str=PV_80,0.8,aSan_Str=PV_100,1))/30000,0)*'Eigene Datenbank'!J24)+_xlfn.IFS(aSan_Wärm=WP_80,2*ROUNDUP(Sanierung!D44*Wärme_Nutz_San/(365*24*20),0)*'Eigene Datenbank'!J7+2*ROUNDUP(Sanierung!D43*Wärme_Nutz_San/(365*24*20),0)*((SFH_qurtr+SDH_qurtr)/Zahl_Geb*'Eigene Datenbank'!J9+(SMFH_qurtr+LMFH_qurtr)/Zahl_Geb*'Eigene Datenbank'!J10)+2*ROUNDUP(Sanierung!D45*Wärme_Nutz_San/(365*24*20),0)*((SFH_qurtr+SDH_qurtr)/Zahl_Geb*'Eigene Datenbank'!J12+(SMFH_qurtr+LMFH_qurtr)/Zahl_Geb*'Eigene Datenbank'!J13)+40/15*ROUNDUP(Sanierung!D46*Wärme_Nutz_San/(365*24*20),0)*'Eigene Datenbank'!J15+40/30*ROUNDUP(Sanierung!D47*Wärme_Nutz_San/(365*24*20),0)*'Eigene Datenbank'!J21,aSan_Wärm=WP_50,2*ROUNDUP(Sanierung!D49*Wärme_Nutz_San/(365*24*20),0)*'Eigene Datenbank'!J7+2*ROUNDUP(Sanierung!D48*Wärme_Nutz_San/(365*24*20),0)*SUM((SFH_qurtr+SDH_qurtr)/Zahl_Geb*'Eigene Datenbank'!J9+(SMFH_qurtr+LMFH_qurtr)/Zahl_Geb*'Eigene Datenbank'!J10)+2*ROUNDUP(Sanierung!D50*Wärme_Nutz_San/(365*24*20),0)*((SFH_qurtr+SDH_qurtr)/Zahl_Geb*'Eigene Datenbank'!J12+(SMFH_qurtr+LMFH_qurtr)/Zahl_Geb*'Eigene Datenbank'!J13)+40/15*ROUNDUP(Sanierung!D51*Wärme_Nutz_San/(365*24*20),0)*'Eigene Datenbank'!J15+2*ROUNDUP(Sanierung!D52*Wärme_Nutz_San/(365*24*20),0)*'Eigene Datenbank'!J21,aSan_Wärm=Fern_100,Zahl_Geb*40/30*ROUNDUP(Wärme_Nutz_San/(365*24*1),0)*'Eigene Datenbank'!J21,aSan_Wärm=BHKW_100,ROUNDUP(Wärme_Nutz_San/(365*24*500),0)*'Eigene Datenbank'!J22)))) ->  | AQ41: 39 | AR41: 0 | AT41: 0 | AV41: 0
D42: Wärmepumpe | F42: =Quartier!E57 -> Anteil WP an Heizstruktur: 50 % | Q42: Gesamt | R42: =IF(Datenbank_Emission=Ökobaudat2024,SUM(R38:R41),"-") -> - | S42: =IF(Datenbank_Emission=Ökobaudat2024,SUM(S38:S41),"-") -> - | T42: =IF(Datenbank_Emission=Ökobaudat2024,SUM(T38:T41),"-") -> - | U42: =IF(Datenbank_Emission=Ökobaudat2024,SUM(U38:U41),"-") -> - | V42: =IF(Datenbank_Emission=Ökobaudat2024,SUM(V38:V41),"-") -> - | W42: =SUM(W38:W41) -> 
D43: BHKW/Fernwärme im Quartier | F43: =Quartier!H60 -> Nein | AS43: =_xlfn.IFS(Datenbank_Emission=Datenbank_eigen,"Water consumption",Datenbank_Emission=Ökobaudat2024,"Wasserentzugspotenzial") -> Water consumption | AT43: =_xlfn.IFS(Datenbank_Emission=Datenbank_eigen,"Mineral resource scarcity",Datenbank_Emission=Ökobaudat2024,"ADPE") -> Mineral resource scarcity | AU43: =_xlfn.IFS(Datenbank_Emission=Datenbank_eigen,"Fossil resource scarcity",Datenbank_Emission=Ökobaudat2024,"ADPF") -> Fossil resource scarcity | AV43: =_xlfn.IFS(Datenbank_Emission=Datenbank_eigen,"Land use",Datenbank_Emission=Ökobaudat2024,"-") -> Land use | AW43: =_xlfn.IFS(Datenbank_Emission=Datenbank_eigen,"Fine particulate matter formation",Datenbank_Emission=Ökobaudat2024,"-") -> Fine particulate matter formation
O44: =_xlfn.IFS(Datenbank_Emission=Datenbank_eigen,"Land use [m2a crop eq]",Datenbank_Emission=Ökobaudat2024,"-") -> Land use [m2a crop eq] | Q44: =_xlfn.IFS(Datenbank_Emission=Datenbank_eigen,"Strom",Datenbank_Emission=Ökobaudat2024,"-") -> Strom | R44: =IF(Datenbank_Emission=Ökobaudat2024,0,"-") -> - | S44: - | T44: - | U44: - | V44: - | W44: =IF(Datenbank_Emission=Ökobaudat2024,"-",_xlfn.IFS(Datenbank_Emission=Datenbank_eigen,_xlfn.IFS(aSan_Str=PV_0,Strom_Nutz*'Eigene Datenbank'!K17,aSan_Str=PV_20,0.2*Strom_Nutz*'Eigene Datenbank'!K27+0.8*Strom_Nutz*'Eigene Datenbank'!K17,aSan_Str=PV_40,0.4*Strom_Nutz*'Eigene Datenbank'!K27+0.6*Strom_Nutz*'Eigene Datenbank'!K17,aSan_Str=PV_60,0.6*Strom_Nutz*'Eigene Datenbank'!K27+0.4*Strom_Nutz*'Eigene Datenbank'!K17,aSan_Str=PV_80,0.8*Strom_Nutz*'Eigene Datenbank'!K27+0.2*Strom_Nutz*'Eigene Datenbank'!K17,aSan_Str=PV_100,Strom_Nutz*'Eigene Datenbank'!K27)+IF(aSan_Wärm=BHKW_100,Sanierung!D56/2*'Eigene Datenbank'!K17,0))) -> 0 | AS44: =_xlfn.IFS(Datenbank_Emission=Datenbank_eigen,"m3",Datenbank_Emission=Ökobaudat2024,"m3 world eq") -> m3 | AT44: =_xlfn.IFS(Datenbank_Emission=Datenbank_eigen,"kg Cu eq",Datenbank_Emission=Ökobaudat2024,"kg Sb eq") -> kg Cu eq | AU44: =_xlfn.IFS(Datenbank_Emission=Datenbank_eigen,"kg oil eq",Datenbank_Emission=Ökobaudat2024,"MJ") -> kg oil eq | AV44: =_xlfn.IFS(Datenbank_Emission=Datenbank_eigen,"m2a crop eq",Datenbank_Emission=Ökobaudat2024,"-") -> m2a crop eq | AW44: =_xlfn.IFS(Datenbank_Emission=Datenbank_eigen,"kg PM2.5 eq",Datenbank_Emission=Ökobaudat2024,"-") -> kg PM2.5 eq
B45: Material-ströme | Q45: =_xlfn.IFS(Datenbank_Emission=Datenbank_eigen,"Wärme",Datenbank_Emission=Ökobaudat2024,"-") -> Wärme | R45: - | S45: - | T45: - | U45: - | V45: - | W45: =IF(Datenbank_Emission=Ökobaudat2024,"-",Wärme_Nutz_San*_xlfn.IFS(Datenbank_Emission=Datenbank_eigen,_xlfn.IFS(aSan_Wärm=WP_80,Sanierung!D43*'Eigene Datenbank'!K8+Sanierung!D44*'Eigene Datenbank'!K6+Sanierung!D44*'Eigene Datenbank'!K11+Sanierung!D45*'Eigene Datenbank'!K14+Sanierung!D47*'Eigene Datenbank'!K18*0.65+Sanierung!D47*'Eigene Datenbank'!K19*0.35,aSan_Wärm=WP_50,Sanierung!D48*'Eigene Datenbank'!K8+Sanierung!D49*'Eigene Datenbank'!K6+Sanierung!D50*'Eigene Datenbank'!K11+Sanierung!D51*'Eigene Datenbank'!K14+Sanierung!D52*'Eigene Datenbank'!K18*0.65+Sanierung!D52*'Eigene Datenbank'!K19*0.35,aSan_Wärm=Fern_100,('Eigene Datenbank'!K18*0.65+'Eigene Datenbank'!K19*0.35),aSan_Wärm=BHKW_100,'Eigene Datenbank'!K23))) ->  | AR45: Strom | AS45: [m3 world eq]") | AT45: =W32 -> 0 | AU45: =W38 -> 0 | AV45: =W44 -> 0 | AW45: =W50 -> 0
D46: Aus dem Quartier | E46: Bauschutt | F46: =Bauschutt_o ->  | Q46: =_xlfn.IFS(Datenbank_Emission=Datenbank_eigen,"Materialströme",Datenbank_Emission=Ökobaudat2024,"-") -> Materialströme | R46: - | S46: - | T46: - | U46: - | V46: - | W46: =IF(Datenbank_Emission=Ökobaudat2024,"-",1/40*_xlfn.IFS(Datenbank_Emission=Datenbank_eigen,_xlfn.IFS(Dämm_Mat=EPS,EPS_i*'Eigene Datenbank'!K32,Dämm_Mat=XPS,XPS_i*'Eigene Datenbank'!K31,Dämm_Mat=Holzfaser,Holz_i*'Eigene Datenbank'!K33/Sachbilanz!AC452,Dämm_Mat=Zellulose,Zellu_i*'Eigene Datenbank'!K34,Dämm_Mat='Drop-Down'!V6,0)+Fenster_o*_xlfn.IFS(Mat_Rhm=PVC,'Eigene Datenbank'!K28,Mat_Rhm=Holz,'Eigene Datenbank'!K29)+Glas_i*'Eigene Datenbank'!K30+Putz_i*'Eigene Datenbank'!K36+_xlfn.IFS(Vwrtng=Dep_6,Bauschutt_o*'Eigene Datenbank'!K67*0.061+0.939*0.5*Bauschutt_o*('Eigene Datenbank'!K37+'Eigene Datenbank'!K38)+0.939*1/3*Fenster_o*('Eigene Datenbank'!K43+'Eigene Datenbank'!K44+'Eigene Datenbank'!K45),Vwrtng=Verwertung100,0.5*Bauschutt_o*('Eigene Datenbank'!K37+'Eigene Datenbank'!K38)+1/3*Fenster_o*('Eigene Datenbank'!K43+'Eigene Datenbank'!K44+'Eigene Datenbank'!K45)))) ->  | AR46: Wärme | AS46: =W27 ->  | AT46: =W33 ->  | AU46: =W39 ->  | AV46: =W45 ->  | AW46: =W51 -> 
E47: Fenster | F47: =Fenster_o ->  | Q47: =_xlfn.IFS(Datenbank_Emission=Datenbank_eigen,"Technische Einbauten",Datenbank_Emission=Ökobaudat2024,"-") -> Technische Einbauten | R47: - | S47: - | T47: - | U47: - | V47: - | W47: =IF(Datenbank_Emission=Ökobaudat2024,"-",1/40*_xlfn.IFS(Datenbank_Emission=Datenbank_eigen,((ROUNDUP((Strom_Nutz*_xlfn.IFS(aSan_Str=PV_0,0,aSan_Str=PV_20,0.2,aSan_Str=PV_40,0.4,aSan_Str=PV_60,0.6,aSan_Str=PV_80,0.8,aSan_Str=PV_100,1))/30000,0)*'Eigene Datenbank'!K24)+_xlfn.IFS(aSan_Wärm=WP_80,2*ROUNDUP(Sanierung!D44*Wärme_Nutz_San/(365*24*20),0)*'Eigene Datenbank'!K7+2*ROUNDUP(Sanierung!D43*Wärme_Nutz_San/(365*24*20),0)*((SFH_qurtr+SDH_qurtr)/Zahl_Geb*'Eigene Datenbank'!K9+(SMFH_qurtr+LMFH_qurtr)/Zahl_Geb*'Eigene Datenbank'!K10)+2*ROUNDUP(Sanierung!D45*Wärme_Nutz_San/(365*24*20),0)*((SFH_qurtr+SDH_qurtr)/Zahl_Geb*'Eigene Datenbank'!K12+(SMFH_qurtr+LMFH_qurtr)/Zahl_Geb*'Eigene Datenbank'!K13)+40/15*ROUNDUP(Sanierung!D46*Wärme_Nutz_San/(365*24*20),0)*'Eigene Datenbank'!K15+40/30*ROUNDUP(Sanierung!D47*Wärme_Nutz_San/(365*24*20),0)*'Eigene Datenbank'!K21,aSan_Wärm=WP_50,2*ROUNDUP(Sanierung!D49*Wärme_Nutz_San/(365*24*20),0)*'Eigene Datenbank'!K7+2*ROUNDUP(Sanierung!D48*Wärme_Nutz_San/(365*24*20),0)*SUM((SFH_qurtr+SDH_qurtr)/Zahl_Geb*'Eigene Datenbank'!K9+(SMFH_qurtr+LMFH_qurtr)/Zahl_Geb*'Eigene Datenbank'!K10)+2*ROUNDUP(Sanierung!D50*Wärme_Nutz_San/(365*24*20),0)*((SFH_qurtr+SDH_qurtr)/Zahl_Geb*'Eigene Datenbank'!K12+(SMFH_qurtr+LMFH_qurtr)/Zahl_Geb*'Eigene Datenbank'!K13)+40/15*ROUNDUP(Sanierung!D51*Wärme_Nutz_San/(365*24*20),0)*'Eigene Datenbank'!K15+2*ROUNDUP(Sanierung!D52*Wärme_Nutz_San/(365*24*20),0)*'Eigene Datenbank'!K21,aSan_Wärm=Fern_100,Zahl_Geb*40/30*ROUNDUP(Wärme_Nutz_San/(365*24*1),0)*'Eigene Datenbank'!K21,aSan_Wärm=BHKW_100,ROUNDUP(Wärme_Nutz_San/(365*24*500),0)*'Eigene Datenbank'!K22)))) ->  | AR47: Materialströme
D48: In das Quartier | E48: Dämmung | F48: =_xlfn.IFS(Dämm_Mat=EPS,EPS_i,Dämm_Mat=XPS,XPS_i,Dämm_Mat=Holzfaser,Holz_i,Dämm_Mat=Zellulose,Zellu_i) -> 0 | Q48: =_xlfn.IFS(Datenbank_Emission=Datenbank_eigen,"Gesamt",Datenbank_Emission=Ökobaudat2024,"-") -> Gesamt | R48: =IF(Datenbank_Emission=Ökobaudat2024,SUM(R44:R47),"-") -> - | S48: =IF(Datenbank_Emission=Ökobaudat2024,SUM(S44:S47),"-") -> - | T48: =IF(Datenbank_Emission=Ökobaudat2024,SUM(T44:T47),"-") -> - | U48: =IF(Datenbank_Emission=Ökobaudat2024,SUM(U44:U47),"-") -> - | V48: =IF(Datenbank_Emission=Ökobaudat2024,SUM(V44:V47),"-") -> - | W48: =SUM(W44:W47) ->  | AR48: Technische Einbauten
E49: Rahmen | F49: =Fenster_i -> 0 | AR49: Gesamt
E50: Glas | F50: =Glas_i -> 0 | O50: =_xlfn.IFS(Datenbank_Emission=Datenbank_eigen,"Fine particulate matter formation [kg PM2.5 eq]",Datenbank_Emission=Ökobaudat2024,"-") -> Fine particulate matter formation [kg PM2.5 eq] | Q50: =_xlfn.IFS(Datenbank_Emission=Datenbank_eigen,"Strom",Datenbank_Emission=Ökobaudat2024,"-") -> Strom | R50: =IF(Datenbank_Emission=Ökobaudat2024,0,"-") -> - | S50: - | T50: - | U50: - | V50: - | W50: =IF(Datenbank_Emission=Ökobaudat2024,"-",_xlfn.IFS(Datenbank_Emission=Datenbank_eigen,_xlfn.IFS(aSan_Str=PV_0,Strom_Nutz*'Eigene Datenbank'!I17,aSan_Str=PV_20,0.2*Strom_Nutz*'Eigene Datenbank'!I27+0.8*Strom_Nutz*'Eigene Datenbank'!I17,aSan_Str=PV_40,0.4*Strom_Nutz*'Eigene Datenbank'!I27+0.6*Strom_Nutz*'Eigene Datenbank'!I17,aSan_Str=PV_60,0.6*Strom_Nutz*'Eigene Datenbank'!I27+0.4*Strom_Nutz*'Eigene Datenbank'!I17,aSan_Str=PV_80,0.8*Strom_Nutz*'Eigene Datenbank'!I27+0.2*Strom_Nutz*'Eigene Datenbank'!I17,aSan_Str=PV_100,Strom_Nutz*'Eigene Datenbank'!I27)+IF(aSan_Wärm=BHKW_100,Sanierung!D56/2*'Eigene Datenbank'!I17,0))) -> 0
E51: Putz | F51: =Putz_i -> 0 | Q51: =_xlfn.IFS(Datenbank_Emission=Datenbank_eigen,"Wärme",Datenbank_Emission=Ökobaudat2024,"-") -> Wärme | R51: - | S51: - | T51: - | U51: - | V51: - | W51: =IF(Datenbank_Emission=Ökobaudat2024,"-",Wärme_Nutz_San*_xlfn.IFS(Datenbank_Emission=Datenbank_eigen,_xlfn.IFS(aSan_Wärm=WP_80,Sanierung!D43*'Eigene Datenbank'!I8+Sanierung!D44*'Eigene Datenbank'!I6+Sanierung!D44*'Eigene Datenbank'!I11+Sanierung!D45*'Eigene Datenbank'!I14+Sanierung!D47*'Eigene Datenbank'!I18*0.65+Sanierung!D47*'Eigene Datenbank'!I19*0.35,aSan_Wärm=WP_50,Sanierung!D48*'Eigene Datenbank'!I8+Sanierung!D49*'Eigene Datenbank'!I6+Sanierung!D50*'Eigene Datenbank'!I11+Sanierung!D51*'Eigene Datenbank'!I14+Sanierung!D52*'Eigene Datenbank'!I18*0.65+Sanierung!D52*'Eigene Datenbank'!I19*0.35,aSan_Wärm=Fern_100,('Eigene Datenbank'!I18*0.65+'Eigene Datenbank'!I19*0.35),aSan_Wärm=BHKW_100,'Eigene Datenbank'!I23))) -> 
Q52: =_xlfn.IFS(Datenbank_Emission=Datenbank_eigen,"Materialströme",Datenbank_Emission=Ökobaudat2024,"-") -> Materialströme | R52: - | S52: - | T52: - | U52: - | V52: - | W52: =IF(Datenbank_Emission=Ökobaudat2024,"-",1/40*_xlfn.IFS(Datenbank_Emission=Datenbank_eigen,_xlfn.IFS(Dämm_Mat=EPS,EPS_i*'Eigene Datenbank'!I32,Dämm_Mat=XPS,XPS_i*'Eigene Datenbank'!I31,Dämm_Mat=Holzfaser,Holz_i*'Eigene Datenbank'!I33/Sachbilanz!AC452,Dämm_Mat=Zellulose,Zellu_i*'Eigene Datenbank'!I34,Dämm_Mat='Drop-Down'!T6,0)+Fenster_o*_xlfn.IFS(Mat_Rhm=PVC,'Eigene Datenbank'!I28,Mat_Rhm=Holz,'Eigene Datenbank'!I29)+Glas_i*'Eigene Datenbank'!I30+Putz_i*'Eigene Datenbank'!I36+_xlfn.IFS(Vwrtng=Dep_6,Bauschutt_o*'Eigene Datenbank'!I67*0.061+0.939*0.5*Bauschutt_o*('Eigene Datenbank'!I37+'Eigene Datenbank'!I38)+0.939*1/3*Fenster_o*('Eigene Datenbank'!I43+'Eigene Datenbank'!I44+'Eigene Datenbank'!I45),Vwrtng=Verwertung100,0.5*Bauschutt_o*('Eigene Datenbank'!I37+'Eigene Datenbank'!I38)+1/3*Fenster_o*('Eigene Datenbank'!I43+'Eigene Datenbank'!I44+'Eigene Datenbank'!I45)))) -> 
Q53: =_xlfn.IFS(Datenbank_Emission=Datenbank_eigen,"Technische Einbauten",Datenbank_Emission=Ökobaudat2024,"-") -> Technische Einbauten | R53: - | S53: - | T53: - | U53: - | V53: - | W53: =IF(Datenbank_Emission=Ökobaudat2024,"-",1/40*_xlfn.IFS(Datenbank_Emission=Datenbank_eigen,((ROUNDUP((Strom_Nutz*_xlfn.IFS(aSan_Str=PV_0,0,aSan_Str=PV_20,0.2,aSan_Str=PV_40,0.4,aSan_Str=PV_60,0.6,aSan_Str=PV_80,0.8,aSan_Str=PV_100,1))/30000,0)*'Eigene Datenbank'!I24)+_xlfn.IFS(aSan_Wärm=WP_80,2*ROUNDUP(Sanierung!D44*Wärme_Nutz_San/(365*24*20),0)*'Eigene Datenbank'!I7+2*ROUNDUP(Sanierung!D43*Wärme_Nutz_San/(365*24*20),0)*((SFH_qurtr+SDH_qurtr)/Zahl_Geb*'Eigene Datenbank'!I9+(SMFH_qurtr+LMFH_qurtr)/Zahl_Geb*'Eigene Datenbank'!I10)+2*ROUNDUP(Sanierung!D45*Wärme_Nutz_San/(365*24*20),0)*((SFH_qurtr+SDH_qurtr)/Zahl_Geb*'Eigene Datenbank'!I12+(SMFH_qurtr+LMFH_qurtr)/Zahl_Geb*'Eigene Datenbank'!I13)+40/15*ROUNDUP(Sanierung!D46*Wärme_Nutz_San/(365*24*20),0)*'Eigene Datenbank'!I15+40/30*ROUNDUP(Sanierung!D47*Wärme_Nutz_San/(365*24*20),0)*'Eigene Datenbank'!I21,aSan_Wärm=WP_50,2*ROUNDUP(Sanierung!D49*Wärme_Nutz_San/(365*24*20),0)*'Eigene Datenbank'!I7+2*ROUNDUP(Sanierung!D48*Wärme_Nutz_San/(365*24*20),0)*SUM((SFH_qurtr+SDH_qurtr)/Zahl_Geb*'Eigene Datenbank'!I9+(SMFH_qurtr+LMFH_qurtr)/Zahl_Geb*'Eigene Datenbank'!I10)+2*ROUNDUP(Sanierung!D50*Wärme_Nutz_San/(365*24*20),0)*((SFH_qurtr+SDH_qurtr)/Zahl_Geb*'Eigene Datenbank'!I12+(SMFH_qurtr+LMFH_qurtr)/Zahl_Geb*'Eigene Datenbank'!I13)+40/15*ROUNDUP(Sanierung!D51*Wärme_Nutz_San/(365*24*20),0)*'Eigene Datenbank'!I15+2*ROUNDUP(Sanierung!D52*Wärme_Nutz_San/(365*24*20),0)*'Eigene Datenbank'!I21,aSan_Wärm=Fern_100,Zahl_Geb*40/30*ROUNDUP(Wärme_Nutz_San/(365*24*1),0)*'Eigene Datenbank'!I21,aSan_Wärm=BHKW_100,ROUNDUP(Wärme_Nutz_San/(365*24*500),0)*'Eigene Datenbank'!I22)))) -> 
D54: Nutzenergiebedarf Wärme nach Sanierung | F54: =Wärme_Nutz_San ->  | G54: kWh/a | Q54: =_xlfn.IFS(Datenbank_Emission=Datenbank_eigen,"Gesamt",Datenbank_Emission=Ökobaudat2024,"-") -> Gesamt | R54: =IF(Datenbank_Emission=Ökobaudat2024,SUM(R50:R53),"-") -> - | S54: =IF(Datenbank_Emission=Ökobaudat2024,SUM(S50:S53),"-") -> - | T54: =IF(Datenbank_Emission=Ökobaudat2024,SUM(T50:T53),"-") -> - | U54: =IF(Datenbank_Emission=Ökobaudat2024,SUM(U50:U53),"-") -> - | V54: =IF(Datenbank_Emission=Ökobaudat2024,SUM(V50:V53),"-") -> - | W54: =SUM(W50:W53) -> 
F55: =Quartier!F43 ->  | G55: %
O57: Energie- bedarf | Q57: Cumulative Energy Demand | R57: Non renewable | S57: Renewable
R58: MJ | S58: MJ
Q59: Strom | R59: =IF(Datenbank_Emission=Ökobaudat2024,"-",_xlfn.IFS(Datenbank_Emission=Ecoinvent38,_xlfn.IFS(aSan_Str=PV_0,Strom_Nutz*#REF!,aSan_Str=PV_20,0.2*Strom_Nutz*#REF!+0.8*Strom_Nutz*#REF!,aSan_Str=PV_40,0.4*Strom_Nutz*#REF!+0.6*Strom_Nutz*#REF!,aSan_Str=PV_60,0.6*Strom_Nutz*#REF!+0.4*Strom_Nutz*#REF!,aSan_Str=PV_80,0.8*Strom_Nutz*#REF!+0.2*Strom_Nutz*#REF!,aSan_Str=PV_100,Strom_Nutz*#REF!)+IF(aSan_Wärm=BHKW_100,Sanierung!D56/2*#REF!,0),Datenbank_Emission=Ecoinvent310,_xlfn.IFS(aSan_Str=PV_0,Strom_Nutz*#REF!,aSan_Str=PV_20,0.2*Strom_Nutz*#REF!+0.8*Strom_Nutz*#REF!,aSan_Str=PV_40,0.4*Strom_Nutz*#REF!+0.6*Strom_Nutz*#REF!,aSan_Str=PV_60,0.6*Strom_Nutz*#REF!+0.4*Strom_Nutz*#REF!,aSan_Str=PV_80,0.8*Strom_Nutz*#REF!+0.2*Strom_Nutz*#REF!,aSan_Str=PV_100,Strom_Nutz*#REF!)+IF(aSan_Wärm=BHKW_100,Sanierung!D56/2*#REF!,0),Datenbank_Emission=Datenbank_eigen,_xlfn.IFS(aSan_Str=PV_0,Strom_Nutz*'Eigene Datenbank'!U17,aSan_Str=PV_20,0.2*Strom_Nutz*'Eigene Datenbank'!U27+0.8*Strom_Nutz*'Eigene Datenbank'!U17,aSan_Str=PV_40,0.4*Strom_Nutz*'Eigene Datenbank'!U27+0.6*Strom_Nutz*'Eigene Datenbank'!U17,aSan_Str=PV_60,0.6*Strom_Nutz*'Eigene Datenbank'!U27+0.4*Strom_Nutz*'Eigene Datenbank'!U17,aSan_Str=PV_80,0.8*Strom_Nutz*'Eigene Datenbank'!U27+0.2*Strom_Nutz*'Eigene Datenbank'!U17,aSan_Str=PV_100,Strom_Nutz*'Eigene Datenbank'!U27)+IF(aSan_Wärm=BHKW_100,Sanierung!D56/2*'Eigene Datenbank'!U17,0))) ->  | S59: =IF(Datenbank_Emission=Ökobaudat2024,"-",_xlfn.IFS(Datenbank_Emission=Ecoinvent38,_xlfn.IFS(aSan_Str=PV_0,Strom_Nutz*#REF!,aSan_Str=PV_20,0.2*Strom_Nutz*#REF!+0.8*Strom_Nutz*#REF!,aSan_Str=PV_40,0.4*Strom_Nutz*#REF!+0.6*Strom_Nutz*#REF!,aSan_Str=PV_60,0.6*Strom_Nutz*#REF!+0.4*Strom_Nutz*#REF!,aSan_Str=PV_80,0.8*Strom_Nutz*#REF!+0.2*Strom_Nutz*#REF!,aSan_Str=PV_100,Strom_Nutz*#REF!)+IF(aSan_Wärm=BHKW_100,Sanierung!D56/2*#REF!,0),Datenbank_Emission=Ecoinvent310,_xlfn.IFS(aSan_Str=PV_0,Strom_Nutz*#REF!,aSan_Str=PV_20,0.2*Strom_Nutz*#REF!+0.8*Strom_Nutz*#REF!,aSan_Str=PV_40,0.4*Strom_Nutz*#REF!+0.6*Strom_Nutz*#REF!,aSan_Str=PV_60,0.6*Strom_Nutz*#REF!+0.4*Strom_Nutz*#REF!,aSan_Str=PV_80,0.8*Strom_Nutz*#REF!+0.2*Strom_Nutz*#REF!,aSan_Str=PV_100,Strom_Nutz*#REF!)+IF(aSan_Wärm=BHKW_100,Sanierung!D56/2*#REF!,0),Datenbank_Emission=Datenbank_eigen,_xlfn.IFS(aSan_Str=PV_0,Strom_Nutz*'Eigene Datenbank'!V17,aSan_Str=PV_20,0.2*Strom_Nutz*'Eigene Datenbank'!V27+0.8*Strom_Nutz*'Eigene Datenbank'!V17,aSan_Str=PV_40,0.4*Strom_Nutz*'Eigene Datenbank'!V27+0.6*Strom_Nutz*'Eigene Datenbank'!V17,aSan_Str=PV_60,0.6*Strom_Nutz*'Eigene Datenbank'!V27+0.4*Strom_Nutz*'Eigene Datenbank'!V17,aSan_Str=PV_80,0.8*Strom_Nutz*'Eigene Datenbank'!V27+0.2*Strom_Nutz*'Eigene Datenbank'!V17,aSan_Str=PV_100,Strom_Nutz*'Eigene Datenbank'!V27)+IF(aSan_Wärm=BHKW_100,Sanierung!D56/2*'Eigene Datenbank'!V17,0))) -> 
Q60: Wärme | R60: =IF(Datenbank_Emission=Ökobaudat2024,"-",Wärme_Nutz_San*_xlfn.IFS(Datenbank_Emission=Ecoinvent38,_xlfn.IFS(aSan_Wärm=WP_80,Sanierung!D43*#REF!+Sanierung!D44*#REF!+Sanierung!D44*#REF!+Sanierung!D45*#REF!+Sanierung!D47*#REF!*0.65+Sanierung!D47*#REF!*0.35,aSan_Wärm=WP_50,Sanierung!D48*#REF!+Sanierung!D49*#REF!+Sanierung!D50*#REF!+Sanierung!D51*#REF!+Sanierung!D52*#REF!*0.65+Sanierung!D52*#REF!*0.35,aSan_Wärm=Fern_100,(#REF!*0.65+#REF!*0.35),aSan_Wärm=BHKW_100,#REF!),Datenbank_Emission=Ecoinvent310,_xlfn.IFS(aSan_Wärm=WP_80,Sanierung!D43*#REF!+Sanierung!D44*#REF!+Sanierung!D44*#REF!+Sanierung!D45*#REF!+Sanierung!D47*#REF!*0.65+Sanierung!D47*#REF!*0.35,aSan_Wärm=WP_50,Sanierung!D48*#REF!+Sanierung!D49*#REF!+Sanierung!D50*#REF!+Sanierung!D51*#REF!+Sanierung!D52*#REF!*0.65+Sanierung!D52*#REF!*0.35,aSan_Wärm=Fern_100,(#REF!*0.65+#REF!*0.35),aSan_Wärm=BHKW_100,#REF!),Datenbank_Emission=Datenbank_eigen,_xlfn.IFS(aSan_Wärm=WP_80,Sanierung!D43*'Eigene Datenbank'!U8+Sanierung!D44*'Eigene Datenbank'!U6+Sanierung!D44*'Eigene Datenbank'!U11+Sanierung!D45*'Eigene Datenbank'!U14+Sanierung!D47*'Eigene Datenbank'!U18*0.65+Sanierung!D47*'Eigene Datenbank'!U19*0.35,aSan_Wärm=WP_50,Sanierung!D48*'Eigene Datenbank'!U8+Sanierung!D49*'Eigene Datenbank'!U6+Sanierung!D50*'Eigene Datenbank'!U11+Sanierung!D51*'Eigene Datenbank'!U14+Sanierung!D52*'Eigene Datenbank'!U18*0.65+Sanierung!D52*'Eigene Datenbank'!U19*0.35,aSan_Wärm=Fern_100,('Eigene Datenbank'!U18*0.65+'Eigene Datenbank'!U19*0.35),aSan_Wärm=BHKW_100,'Eigene Datenbank'!U23))) ->  | S60: =IF(Datenbank_Emission=Ökobaudat2024,"-",Wärme_Nutz_San*_xlfn.IFS(Datenbank_Emission=Ecoinvent38,_xlfn.IFS(aSan_Wärm=WP_80,Sanierung!D43*#REF!+Sanierung!D44*#REF!+Sanierung!D44*#REF!+Sanierung!D45*#REF!+Sanierung!D47*#REF!*0.65+Sanierung!D47*#REF!*0.35,aSan_Wärm=WP_50,Sanierung!D48*#REF!+Sanierung!D49*#REF!+Sanierung!D50*#REF!+Sanierung!D51*#REF!+Sanierung!D52*#REF!*0.65+Sanierung!D52*#REF!*0.35,aSan_Wärm=Fern_100,(#REF!*0.65+#REF!*0.35),aSan_Wärm=BHKW_100,#REF!),Datenbank_Emission=Ecoinvent310,_xlfn.IFS(aSan_Wärm=WP_80,Sanierung!D43*#REF!+Sanierung!D44*#REF!+Sanierung!D44*#REF!+Sanierung!D45*#REF!+Sanierung!D47*#REF!*0.65+Sanierung!D47*#REF!*0.35,aSan_Wärm=WP_50,Sanierung!D48*#REF!+Sanierung!D49*#REF!+Sanierung!D50*#REF!+Sanierung!D51*#REF!+Sanierung!D52*#REF!*0.65+Sanierung!D52*#REF!*0.35,aSan_Wärm=Fern_100,(#REF!*0.65+#REF!*0.35),aSan_Wärm=BHKW_100,#REF!),Datenbank_Emission=Datenbank_eigen,_xlfn.IFS(aSan_Wärm=WP_80,Sanierung!D43*'Eigene Datenbank'!V8+Sanierung!D44*'Eigene Datenbank'!V6+Sanierung!D44*'Eigene Datenbank'!V11+Sanierung!D45*'Eigene Datenbank'!V14+Sanierung!D47*'Eigene Datenbank'!V18*0.65+Sanierung!D47*'Eigene Datenbank'!V19*0.35,aSan_Wärm=WP_50,Sanierung!D48*'Eigene Datenbank'!V8+Sanierung!D49*'Eigene Datenbank'!V6+Sanierung!D50*'Eigene Datenbank'!V11+Sanierung!D51*'Eigene Datenbank'!V14+Sanierung!D52*'Eigene Datenbank'!V18*0.65+Sanierung!D52*'Eigene Datenbank'!V19*0.35,aSan_Wärm=Fern_100,('Eigene Datenbank'!V18*0.65+'Eigene Datenbank'!V19*0.35),aSan_Wärm=BHKW_100,'Eigene Datenbank'!V23))) -> 
Q61: Materialströme | R61: =IF(Datenbank_Emission=Ökobaudat2024,"-",1/40*_xlfn.IFS(Datenbank_Emission=Ecoinvent38,_xlfn.IFS(Dämm_Mat=EPS,EPS_i*#REF!,Dämm_Mat=XPS,XPS_i*#REF!,Dämm_Mat=Holzfaser,Holz_i*#REF!/Sachbilanz!AC452,Dämm_Mat=Zellulose,Zellu_i*#REF!,Dämm_Mat='Drop-Down'!Z6,0)+Fenster_o*_xlfn.IFS(Mat_Rhm=PVC,#REF!,Mat_Rhm=Holz,#REF!)+Glas_i*#REF!+Putz_i*#REF!+_xlfn.IFS(Vwrtng=Dep_6,Bauschutt_o*#REF!*0.061+0.939*0.5*Bauschutt_o*(#REF!+#REF!)+0.939*1/3*Fenster_o*(#REF!+#REF!+#REF!),Vwrtng=Verwertung100,0.5*Bauschutt_o*(#REF!+#REF!)+1/3*Fenster_o*(#REF!+#REF!+#REF!)),Datenbank_Emission=Ecoinvent310,_xlfn.IFS(Dämm_Mat=EPS,EPS_i*#REF!,Dämm_Mat=XPS,XPS_i*#REF!,Dämm_Mat=Holzfaser,Holz_i*#REF!/Sachbilanz!AC452,Dämm_Mat=Zellulose,Zellu_i*#REF!,Dämm_Mat='Drop-Down'!Z6,0)+Fenster_o*_xlfn.IFS(Mat_Rhm=PVC,#REF!,Mat_Rhm=Holz,#REF!)+Glas_i*#REF!+Putz_i*#REF!+_xlfn.IFS(Vwrtng=Dep_6,Bauschutt_o*#REF!*0.061+0.939*0.5*Bauschutt_o*(#REF!+#REF!)+0.939*1/3*Fenster_o*(#REF!+#REF!+#REF!),Vwrtng=Verwertung100,0.5*Bauschutt_o*(#REF!+#REF!)+1/3*Fenster_o*(#REF!+#REF!+#REF!)),Datenbank_Emission=Datenbank_eigen,_xlfn.IFS(Dämm_Mat=EPS,EPS_i*'Eigene Datenbank'!U32,Dämm_Mat=XPS,XPS_i*'Eigene Datenbank'!U31,Dämm_Mat=Holzfaser,Holz_i*'Eigene Datenbank'!U33/Sachbilanz!AC452,Dämm_Mat=Zellulose,Zellu_i*'Eigene Datenbank'!U34,Dämm_Mat='Drop-Down'!Z6,0)+Fenster_o*_xlfn.IFS(Mat_Rhm=PVC,'Eigene Datenbank'!U28,Mat_Rhm=Holz,'Eigene Datenbank'!U29)+Glas_i*'Eigene Datenbank'!U30+Putz_i*'Eigene Datenbank'!U36+_xlfn.IFS(Vwrtng=Dep_6,Bauschutt_o*'Eigene Datenbank'!U67*0.061+0.939*0.5*Bauschutt_o*('Eigene Datenbank'!U37+'Eigene Datenbank'!U38)+0.939*1/3*Fenster_o*('Eigene Datenbank'!U43+'Eigene Datenbank'!U44+'Eigene Datenbank'!U45),Vwrtng=Verwertung100,0.5*Bauschutt_o*('Eigene Datenbank'!U37+'Eigene Datenbank'!U38)+1/3*Fenster_o*('Eigene Datenbank'!U43+'Eigene Datenbank'!U44+'Eigene Datenbank'!U45)))) ->  | S61: =IF(Datenbank_Emission=Ökobaudat2024,"-",1/40*_xlfn.IFS(Datenbank_Emission=Ecoinvent38,_xlfn.IFS(Dämm_Mat=EPS,EPS_i*#REF!,Dämm_Mat=XPS,XPS_i*#REF!,Dämm_Mat=Holzfaser,Holz_i*#REF!/Sachbilanz!AC452,Dämm_Mat=Zellulose,Zellu_i*#REF!,Dämm_Mat='Drop-Down'!AA6,0)+Fenster_i*_xlfn.IFS(Mat_Rhm=PVC,#REF!,Mat_Rhm=Holz,#REF!)+Glas_i*#REF!+Putz_i*#REF!+_xlfn.IFS(Vwrtng=Dep_6,Bauschutt_o*#REF!*0.061+0.939*0.5*Bauschutt_o*(#REF!+#REF!)+0.939*1/3*Fens*(#REF!+#REF!+#REF!),Vwrtng=Verwertung100,0.5*Bauschutt_o*(#REF!+#REF!)+1/3*Fens*(#REF!+#REF!+#REF!)),Datenbank_Emission=Ecoinvent310,_xlfn.IFS(Dämm_Mat=EPS,EPS_i*#REF!,Dämm_Mat=XPS,XPS_i*#REF!,Dämm_Mat=Holzfaser,Holz_i*#REF!/Sachbilanz!AC452,Dämm_Mat=Zellulose,Zellu_i*#REF!,Dämm_Mat='Drop-Down'!AA6,0)+Fenster_i*_xlfn.IFS(Mat_Rhm=PVC,#REF!,Mat_Rhm=Holz,#REF!)+Glas_i*#REF!+Putz_i*#REF!+_xlfn.IFS(Vwrtng=Dep_6,Bauschutt_o*#REF!*0.061+0.939*0.5*Bauschutt_o*(#REF!+#REF!)+0.939*1/3*Fens*(#REF!+#REF!+#REF!),Vwrtng=Verwertung100,0.5*Bauschutt_o*(#REF!+#REF!)+1/3*Fens*(#REF!+#REF!+#REF!)),Datenbank_Emission=Datenbank_eigen,_xlfn.IFS(Dämm_Mat=EPS,EPS_i*'Eigene Datenbank'!V32,Dämm_Mat=XPS,XPS_i*'Eigene Datenbank'!V31,Dämm_Mat=Holzfaser,Holz_i*'Eigene Datenbank'!V33/Sachbilanz!AC452,Dämm_Mat=Zellulose,Zellu_i*'Eigene Datenbank'!V34,Dämm_Mat='Drop-Down'!AA6,0)+Fenster_i*_xlfn.IFS(Mat_Rhm=PVC,'Eigene Datenbank'!V28,Mat_Rhm=Holz,'Eigene Datenbank'!V29)+Glas_i*'Eigene Datenbank'!V30+Putz_i*'Eigene Datenbank'!V36+_xlfn.IFS(Vwrtng=Dep_6,Bauschutt_o*'Eigene Datenbank'!V67*0.061+0.939*0.5*Bauschutt_o*('Eigene Datenbank'!V37+'Eigene Datenbank'!V38)+0.939*1/3*Fens*('Eigene Datenbank'!V43+'Eigene Datenbank'!V44+'Eigene Datenbank'!V45),Vwrtng=Verwertung100,0.5*Bauschutt_o*('Eigene Datenbank'!V37+'Eigene Datenbank'!V38)+1/3*Fens*('Eigene Datenbank'!V43+'Eigene Datenbank'!V44+'Eigene Datenbank'!V45)))) -> 
Q62: Technische Einbauten | R62: =IF(Datenbank_Emission=Ökobaudat2024,"-",1/40*_xlfn.IFS(Datenbank_Emission=Ecoinvent38,((ROUNDUP((Strom_Nutz*_xlfn.IFS(aSan_Str=PV_0,0,aSan_Str=PV_20,0.2,aSan_Str=PV_40,0.4,aSan_Str=PV_60,0.6,aSan_Str=PV_80,0.8,aSan_Str=PV_100,1))/30000,0)*#REF!)+_xlfn.IFS(aSan_Wärm=WP_80,2*ROUNDUP(Sanierung!D44*Wärme_Nutz_San/(365*24*20),0)*#REF!+2*ROUNDUP(Sanierung!D43*Wärme_Nutz_San/(365*24*20),0)*((SFH_qurtr+SDH_qurtr)/Zahl_Geb*#REF!+(SMFH_qurtr+LMFH_qurtr)/Zahl_Geb*#REF!)+2*ROUNDUP(Sanierung!D45*Wärme_Nutz_San/(365*24*20),0)*((SFH_qurtr+SDH_qurtr)/Zahl_Geb*#REF!+(SMFH_qurtr+LMFH_qurtr)/Zahl_Geb*#REF!)+40/15*ROUNDUP(Sanierung!D46*Wärme_Nutz_San/(365*24*20),0)*#REF!+40/30*ROUNDUP(Sanierung!D47*Wärme_Nutz_San/(365*24*20),0)*#REF!,aSan_Wärm=WP_50,2*ROUNDUP(Sanierung!D49*Wärme_Nutz_San/(365*24*20),0)*#REF!+2*ROUNDUP(Sanierung!D48*Wärme_Nutz_San/(365*24*20),0)*SUM((SFH_qurtr+SDH_qurtr)/Zahl_Geb*#REF!+(SMFH_qurtr+LMFH_qurtr)/Zahl_Geb*#REF!)+2*ROUNDUP(Sanierung!D50*Wärme_Nutz_San/(365*24*20),0)*((SFH_qurtr+SDH_qurtr)/Zahl_Geb*#REF!+(SMFH_qurtr+LMFH_qurtr)/Zahl_Geb*#REF!)+40/15*ROUNDUP(Sanierung!D51*Wärme_Nutz_San/(365*24*20),0)*#REF!+2*ROUNDUP(Sanierung!D52*Wärme_Nutz_San/(365*24*20),0)*#REF!,aSan_Wärm=Fern_100,Zahl_Geb*40/30*ROUNDUP(Wärme_Nutz_San/(365*24*1),0)*#REF!,aSan_Wärm=BHKW_100,ROUNDUP(Wärme_Nutz_San/(365*24*500),0)*#REF!)),Datenbank_Emission=Ecoinvent310,((ROUNDUP((Strom_Nutz*_xlfn.IFS(aSan_Str=PV_0,0,aSan_Str=PV_20,0.2,aSan_Str=PV_40,0.4,aSan_Str=PV_60,0.6,aSan_Str=PV_80,0.8,aSan_Str=PV_100,1))/30000,0)*#REF!)+_xlfn.IFS(aSan_Wärm=WP_80,2*ROUNDUP(Sanierung!D44*Wärme_Nutz_San/(365*24*20),0)*#REF!+2*ROUNDUP(Sanierung!D43*Wärme_Nutz_San/(365*24*20),0)*((SFH_qurtr+SDH_qurtr)/Zahl_Geb*#REF!+(SMFH_qurtr+LMFH_qurtr)/Zahl_Geb*#REF!)+2*ROUNDUP(Sanierung!D45*Wärme_Nutz_San/(365*24*20),0)*((SFH_qurtr+SDH_qurtr)/Zahl_Geb*#REF!+(SMFH_qurtr+LMFH_qurtr)/Zahl_Geb*#REF!)+40/15*ROUNDUP(Sanierung!D46*Wärme_Nutz_San/(365*24*20),0)*#REF!+40/30*ROUNDUP(Sanierung!D47*Wärme_Nutz_San/(365*24*20),0)*#REF!,aSan_Wärm=WP_50,2*ROUNDUP(Sanierung!D49*Wärme_Nutz_San/(365*24*20),0)*#REF!+2*ROUNDUP(Sanierung!D48*Wärme_Nutz_San/(365*24*20),0)*SUM((SFH_qurtr+SDH_qurtr)/Zahl_Geb*#REF!+(SMFH_qurtr+LMFH_qurtr)/Zahl_Geb*#REF!)+2*ROUNDUP(Sanierung!D50*Wärme_Nutz_San/(365*24*20),0)*((SFH_qurtr+SDH_qurtr/Zahl_Geb)*#REF!+(SMFH_qurtr+LMFH_qurtr)/Zahl_Geb*#REF!)+40/15*ROUNDUP(Sanierung!D51*Wärme_Nutz_San/(365*24*20),0)*#REF!+2*ROUNDUP(Sanierung!D52*Wärme_Nutz_San/(365*24*20),0)*#REF!,aSan_Wärm=Fern_100,Zahl_Geb*40/30*ROUNDUP(Wärme_Nutz_San/(365*24*1),0)*#REF!,aSan_Wärm=BHKW_100,ROUNDUP(Wärme_Nutz_San/(365*24*500),0)*#REF!)),Datenbank_Emission=Datenbank_eigen,((ROUNDUP((Strom_Nutz*_xlfn.IFS(aSan_Str=PV_0,0,aSan_Str=PV_20,0.2,aSan_Str=PV_40,0.4,aSan_Str=PV_60,0.6,aSan_Str=PV_80,0.8,aSan_Str=PV_100,1))/30000,0)*'Eigene Datenbank'!U24)+_xlfn.IFS(aSan_Wärm=WP_80,2*ROUNDUP(Sanierung!D44*Wärme_Nutz_San/(365*24*20),0)*'Eigene Datenbank'!U7+2*ROUNDUP(Sanierung!D43*Wärme_Nutz_San/(365*24*20),0)*((SFH_qurtr+SDH_qurtr)/Zahl_Geb*'Eigene Datenbank'!U9+(SMFH_qurtr+LMFH_qurtr)/Zahl_Geb*'Eigene Datenbank'!U10)+2*ROUNDUP(Sanierung!D45*Wärme_Nutz_San/(365*24*20),0)*((SFH_qurtr+SDH_qurtr)/Zahl_Geb*'Eigene Datenbank'!U12+(SMFH_qurtr+LMFH_qurtr)/Zahl_Geb*'Eigene Datenbank'!U13)+40/15*ROUNDUP(Sanierung!D46*Wärme_Nutz_San/(365*24*20),0)*'Eigene Datenbank'!U15+40/30*ROUNDUP(Sanierung!D47*Wärme_Nutz_San/(365*24*20),0)*'Eigene Datenbank'!U21,aSan_Wärm=WP_50,2*ROUNDUP(Sanierung!D49*Wärme_Nutz_San/(365*24*20),0)*'Eigene Datenbank'!U7+2*ROUNDUP(Sanierung!D48*Wärme_Nutz_San/(365*24*20),0)*SUM((SFH_qurtr+SDH_qurtr)/Zahl_Geb*'Eigene Datenbank'!U9+(SMFH_qurtr+LMFH_qurtr)/Zahl_Geb*'Eigene Datenbank'!U10)+2*ROUNDUP(Sanierung!D50*Wärme_Nutz_San/(365*24*20),0)*((SFH_qurtr+SDH_qurtr)/Zahl_Geb*'Eigene Datenbank'!U12+(SMFH_qurtr+LMFH_qurtr)/Zahl_Geb*'Eigene Datenbank'!U13)+40/15*ROUNDUP(Sanierung!D51*Wärme_Nutz_San/(365*24*20),0)*'Eigene Datenbank'!U15+2*ROUNDUP(Sanierung!D52*Wärme_Nutz_San/(365*24*20),0)*'Eigene Datenbank'!U21,aSan_Wärm=Fern_100,Zahl_Geb*40/30*ROUNDUP(Wärme_Nutz_San/(365*24*1),0)*'Eigene Datenbank'!U21,aSan_Wärm=BHKW_100,ROUNDUP(Wärme_Nutz_San/(365*24*500),0)*'Eigene Datenbank'!U22)))) ->  | S62: =IF(Datenbank_Emission=Ökobaudat2024,"-",1/40*_xlfn.IFS(Datenbank_Emission=Ecoinvent38,((ROUNDUP((Strom_Nutz*_xlfn.IFS(aSan_Str=PV_0,0,aSan_Str=PV_20,0.2,aSan_Str=PV_40,0.4,aSan_Str=PV_60,0.6,aSan_Str=PV_80,0.8,aSan_Str=PV_100,1))/30000,0)*#REF!)+_xlfn.IFS(aSan_Wärm=WP_80,2*ROUNDUP(Sanierung!D44*Wärme_Nutz_San/(365*24*20),0)*#REF!+2*ROUNDUP(Sanierung!D43*Wärme_Nutz_San/(365*24*20),0)*((SFH_qurtr+SDH_qurtr)/Zahl_Geb*#REF!+(SMFH_qurtr+LMFH_qurtr)/Zahl_Geb*#REF!)+2*ROUNDUP(Sanierung!D45*Wärme_Nutz_San/(365*24*20),0)*((SFH_qurtr+SDH_qurtr)/Zahl_Geb*#REF!+(SMFH_qurtr+LMFH_qurtr)/Zahl_Geb*#REF!)+40/15*ROUNDUP(Sanierung!D46*Wärme_Nutz_San/(365*24*20),0)*#REF!+40/30*ROUNDUP(Sanierung!D47*Wärme_Nutz_San/(365*24*20),0)*#REF!,aSan_Wärm=WP_50,2*ROUNDUP(Sanierung!D49*Wärme_Nutz_San/(365*24*20),0)*#REF!+2*ROUNDUP(Sanierung!D48*Wärme_Nutz_San/(365*24*20),0)*SUM((SFH_qurtr+SDH_qurtr)/Zahl_Geb*#REF!+(SMFH_qurtr+LMFH_qurtr)/Zahl_Geb*#REF!)+2*ROUNDUP(Sanierung!D50*Wärme_Nutz_San/(365*24*20),0)*((SFH_qurtr+SDH_qurtr)/Zahl_Geb*#REF!+(SMFH_qurtr+LMFH_qurtr)/Zahl_Geb*#REF!)+40/15*ROUNDUP(Sanierung!D51*Wärme_Nutz_San/(365*24*20),0)*#REF!+2*ROUNDUP(Sanierung!D52*Wärme_Nutz_San/(365*24*20),0)*#REF!,aSan_Wärm=Fern_100,Zahl_Geb*40/30*ROUNDUP(Wärme_Nutz_San/(365*24*1),0)*#REF!,aSan_Wärm=BHKW_100,ROUNDUP(Wärme_Nutz_San/(365*24*500),0)*#REF!)),Datenbank_Emission=Ecoinvent310,((ROUNDUP((Strom_Nutz*_xlfn.IFS(aSan_Str=PV_0,0,aSan_Str=PV_20,0.2,aSan_Str=PV_40,0.4,aSan_Str=PV_60,0.6,aSan_Str=PV_80,0.8,aSan_Str=PV_100,1))/30000,0)*#REF!)+_xlfn.IFS(aSan_Wärm=WP_80,2*ROUNDUP(Sanierung!D44*Wärme_Nutz_San/(365*24*20),0)*#REF!+2*ROUNDUP(Sanierung!D43*Wärme_Nutz_San/(365*24*20),0)*((SFH_qurtr+SDH_qurtr)/Zahl_Geb*#REF!+(SMFH_qurtr+LMFH_qurtr)/Zahl_Geb*#REF!)+2*ROUNDUP(Sanierung!D45*Wärme_Nutz_San/(365*24*20),0)*((SFH_qurtr+SDH_qurtr)/Zahl_Geb*#REF!+(SMFH_qurtr+LMFH_qurtr)/Zahl_Geb*#REF!)+40/15*ROUNDUP(Sanierung!D46*Wärme_Nutz_San/(365*24*20),0)*#REF!+40/30*ROUNDUP(Sanierung!D47*Wärme_Nutz_San/(365*24*20),0)*#REF!,aSan_Wärm=WP_50,2*ROUNDUP(Sanierung!D49*Wärme_Nutz_San/(365*24*20),0)*#REF!+2*ROUNDUP(Sanierung!D48*Wärme_Nutz_San/(365*24*20),0)*SUM((SFH_qurtr+SDH_qurtr)/Zahl_Geb*#REF!+(SMFH_qurtr+LMFH_qurtr)/Zahl_Geb*#REF!)+2*ROUNDUP(Sanierung!D50*Wärme_Nutz_San/(365*24*20),0)*((SFH_qurtr+SDH_qurtr/Zahl_Geb)*#REF!+(SMFH_qurtr+LMFH_qurtr)/Zahl_Geb*#REF!)+40/15*ROUNDUP(Sanierung!D51*Wärme_Nutz_San/(365*24*20),0)*#REF!+2*ROUNDUP(Sanierung!D52*Wärme_Nutz_San/(365*24*20),0)*#REF!,aSan_Wärm=Fern_100,Zahl_Geb*40/30*ROUNDUP(Wärme_Nutz_San/(365*24*1),0)*#REF!,aSan_Wärm=BHKW_100,ROUNDUP(Wärme_Nutz_San/(365*24*500),0)*#REF!)),Datenbank_Emission=Datenbank_eigen,((ROUNDUP((Strom_Nutz*_xlfn.IFS(aSan_Str=PV_0,0,aSan_Str=PV_20,0.2,aSan_Str=PV_40,0.4,aSan_Str=PV_60,0.6,aSan_Str=PV_80,0.8,aSan_Str=PV_100,1))/30000,0)*'Eigene Datenbank'!V24)+_xlfn.IFS(aSan_Wärm=WP_80,2*ROUNDUP(Sanierung!D44*Wärme_Nutz_San/(365*24*20),0)*'Eigene Datenbank'!V7+2*ROUNDUP(Sanierung!D43*Wärme_Nutz_San/(365*24*20),0)*((SFH_qurtr+SDH_qurtr)/Zahl_Geb*'Eigene Datenbank'!V9+(SMFH_qurtr+LMFH_qurtr)/Zahl_Geb*'Eigene Datenbank'!V10)+2*ROUNDUP(Sanierung!D45*Wärme_Nutz_San/(365*24*20),0)*((SFH_qurtr+SDH_qurtr)/Zahl_Geb*'Eigene Datenbank'!V12+(SMFH_qurtr+LMFH_qurtr)/Zahl_Geb*'Eigene Datenbank'!V13)+40/15*ROUNDUP(Sanierung!D46*Wärme_Nutz_San/(365*24*20),0)*'Eigene Datenbank'!V15+40/30*ROUNDUP(Sanierung!D47*Wärme_Nutz_San/(365*24*20),0)*'Eigene Datenbank'!V21,aSan_Wärm=WP_50,2*ROUNDUP(Sanierung!D49*Wärme_Nutz_San/(365*24*20),0)*'Eigene Datenbank'!V7+2*ROUNDUP(Sanierung!D48*Wärme_Nutz_San/(365*24*20),0)*SUM((SFH_qurtr+SDH_qurtr)/Zahl_Geb*'Eigene Datenbank'!V9+(SMFH_qurtr+LMFH_qurtr)/Zahl_Geb*'Eigene Datenbank'!V10)+2*ROUNDUP(Sanierung!D50*Wärme_Nutz_San/(365*24*20),0)*((SFH_qurtr+SDH_qurtr)/Zahl_Geb*'Eigene Datenbank'!V12+(SMFH_qurtr+LMFH_qurtr)/Zahl_Geb*'Eigene Datenbank'!V13)+40/15*ROUNDUP(Sanierung!D51*Wärme_Nutz_San/(365*24*20),0)*'Eigene Datenbank'!V15+2*ROUNDUP(Sanierung!D52*Wärme_Nutz_San/(365*24*20),0)*'Eigene Datenbank'!V21,aSan_Wärm=Fern_100,Zahl_Geb*40/30*ROUNDUP(Wärme_Nutz_San/(365*24*1),0)*'Eigene Datenbank'!V21,aSan_Wärm=BHKW_100,ROUNDUP(Wärme_Nutz_San/(365*24*500),0)*'Eigene Datenbank'!V22)))) -> 
Q63: Gesamt | R63: =SUM(R59:R62) ->  | S63: =SUM(S59:S62) -> 
Q66: Kosten in € | R66: Vor Sanierung | T66: Nach Sanierung
R67: pro Jahr | S67: Gesamt | T67: pro Jahr | U67: Gesamt
Q68: Strom | R68: =Strom_Nutz*Kosten!H17 -> 0 | S68: =40*Strom_Nutz*Kosten!H17 -> 0 | T68: =_xlfn.IFS(aSan_Str=PV_0,Strom_Nutz*Kosten!H17,aSan_Str=PV_20,0.8*Strom_Nutz*Kosten!H17,aSan_Str=PV_40,0.6*Strom_Nutz*Kosten!H17,aSan_Str=PV_60,0.4*Strom_Nutz*Kosten!H17,aSan_Str=PV_80,0.2*Strom_Nutz*Kosten!H17,aSan_Str=PV_100,0) -> 0 | U68: =40*_xlfn.IFS(aSan_Str=PV_0,Strom_Nutz*Kosten!H17,aSan_Str=PV_20,0.8*Strom_Nutz*Kosten!H17,aSan_Str=PV_40,0.6*Strom_Nutz*Kosten!H17,aSan_Str=PV_60,0.4*Strom_Nutz*Kosten!H17,aSan_Str=PV_80,0.2*Strom_Nutz*Kosten!H17,aSan_Str=PV_100,0) -> 0
Q69: Wärme | R69: =Wärme_Nutz*('Sanierung Realquartier'!H19*Kosten!H8+'Sanierung Realquartier'!H20*Kosten!H6+'Sanierung Realquartier'!H21*Kosten!H11+'Sanierung Realquartier'!H22*Kosten!H14+'Sanierung Realquartier'!H23*Kosten!H18*0.65+'Sanierung Realquartier'!H23*Kosten!H19*0.35) ->  | S69: =40*Wärme_Nutz*('Sanierung Realquartier'!H19*Kosten!H8+'Sanierung Realquartier'!H20*Kosten!H6+'Sanierung Realquartier'!H21*Kosten!H11+'Sanierung Realquartier'!H22*Kosten!H14+'Sanierung Realquartier'!H23*Kosten!H18*0.65+'Sanierung Realquartier'!H23*Kosten!H19*0.35) ->  | T69: =Wärme_Nutz_San*_xlfn.IFS(aSan_Wärm=WP_80,Sanierung!J43*Kosten!H8+Sanierung!J44*Kosten!H6+Sanierung!J44*Kosten!H11+Sanierung!J45*Kosten!H14+Sanierung!J47*Kosten!H18*0.65+Sanierung!J47*Kosten!H19*0.35,aSan_Wärm=WP_50,Sanierung!J48*Kosten!H8+Sanierung!J49*Kosten!H6+Sanierung!J50*Kosten!H11+Sanierung!J51*Kosten!H14+Sanierung!J52*Kosten!H18*0.65+Sanierung!J52*Kosten!H19*0.35,aSan_Wärm=Fern_100,(Kosten!H18*0.65+Kosten!H19*0.35),aSan_Wärm=BHKW_100,Kosten!H23) ->  | U69: =40*Wärme_Nutz_San*_xlfn.IFS(aSan_Wärm=WP_80,Sanierung!J43*Kosten!H8+Sanierung!J44*Kosten!H6+Sanierung!J44*Kosten!H11+Sanierung!J45*Kosten!H14+Sanierung!J47*Kosten!H18*0.65+Sanierung!J47*Kosten!H19*0.35,aSan_Wärm=WP_50,Sanierung!J48*Kosten!H8+Sanierung!J49*Kosten!H6+Sanierung!J50*Kosten!H11+Sanierung!J51*Kosten!H14+Sanierung!J52*Kosten!H18*0.65+Sanierung!J52*Kosten!H19*0.35,aSan_Wärm=Fern_100,(Kosten!H18*0.65+Kosten!H19*0.35),aSan_Wärm=BHKW_100,Kosten!H23) -> 
Q70: Materialströme | T70: =1/40*_xlfn.IFS(Dämm_Mat=EPS,EPS_i*Kosten!H32,Dämm_Mat=XPS,XPS_i*Kosten!H31,Dämm_Mat=Holzfaser,Holz_i*Kosten!H33/Sachbilanz!AC452,Dämm_Mat=Zellulose,Zellu_i*Kosten!H34,Dämm_Mat='Drop-Down'!Z6,0)+Fenster_i*_xlfn.IFS(Mat_Rhm=PVC,Kosten!H28,Mat_Rhm=Holz,Kosten!H29)+Glas_i*Kosten!H30+Putz_i*Kosten!H36+_xlfn.IFS(Vwrtng=Dep_6,Bauschutt_o*Kosten!H67*0.061+0.939*0.5*Bauschutt_o*(Kosten!H37+Kosten!H38)+0.939*1/3*Fenster_o*(Kosten!H43+Kosten!H44+Kosten!H45),Vwrtng=Verwertung100,0.5*Bauschutt_o*(Kosten!H37+Kosten!H38)+1/3*Fenster_o*(Kosten!H43+Kosten!H44+Kosten!H45)) ->  | U70: =_xlfn.IFS(Dämm_Mat=EPS,EPS_i*Kosten!H32,Dämm_Mat=XPS,XPS_i*Kosten!H31,Dämm_Mat=Holzfaser,Holz_i*Kosten!H33/Sachbilanz!AC452,Dämm_Mat=Zellulose,Zellu_i*Kosten!H34,Dämm_Mat='Drop-Down'!Z6,0)+Fenster_i*_xlfn.IFS(Mat_Rhm=PVC,Kosten!H28,Mat_Rhm=Holz,Kosten!H29)+Glas_i*Kosten!H30+Putz_i*Kosten!H36+_xlfn.IFS(Vwrtng=Dep_6,Bauschutt_o*Kosten!H67*0.061+0.939*0.5*Bauschutt_o*(Kosten!H37+Kosten!H38)+0.939*1/3*Fenster_o*(Kosten!H43+Kosten!H44+Kosten!H45),Vwrtng=Verwertung100,0.5*Bauschutt_o*(Kosten!H37+Kosten!H38)+1/3*Fenster_o*(Kosten!H43+Kosten!H44+Kosten!H45)) -> 
Q71: Technische Einbauten | T71: =1/40*((40/20*ROUNDUP((Strom_Nutz*_xlfn.IFS(aSan_Str=PV_0,0,aSan_Str=PV_20,0.2,aSan_Str=PV_40,0.4,aSan_Str=PV_60,0.6,aSan_Str=PV_80,0.8,aSan_Str=PV_100,1))/30000,0)*Kosten!H24)+_xlfn.IFS(aSan_Wärm=WP_80,40/20*ROUNDUP(Sanierung!J44*Wärme_Nutz_San/(365*24*20),0)*Kosten!H7+40/20*ROUNDUP(Sanierung!J43*Wärme_Nutz_San/(365*24*20),0)*((SFH_qurtr+SDH_qurtr)/Zahl_Geb*Kosten!H9+(SMFH_qurtr+LMFH_qurtr)/Zahl_Geb*Kosten!H10)+40/20*ROUNDUP(Sanierung!J45*Wärme_Nutz_San/(365*24*20),0)*((SFH_qurtr+SDH_qurtr)/Zahl_Geb*Kosten!H12+(SMFH_qurtr+LMFH_qurtr)/Zahl_Geb*Kosten!H13)+40/15*ROUNDUP(Sanierung!J46*Wärme_Nutz_San/(365*24*20),0)*Kosten!H15+40/30*ROUNDUP(Sanierung!J47*Wärme_Nutz_San/(365*24*20),0)*Kosten!H21,aSan_Wärm=WP_50,40/20*ROUNDUP(Sanierung!J49*Wärme_Nutz_San/(365*24*20),0)*Kosten!H7+40/20*ROUNDUP(Sanierung!J48*Wärme_Nutz_San/(365*24*20),0)*SUM((SFH_qurtr+SDH_qurtr)/Zahl_Geb*Kosten!H9+(SMFH_qurtr+LMFH_qurtr)/Zahl_Geb*Kosten!H10)+40/20*ROUNDUP(Sanierung!J50*Wärme_Nutz_San/(365*24*20),0)*((SFH_qurtr+SDH_qurtr)/Zahl_Geb*Kosten!H12+(SMFH_qurtr+LMFH_qurtr)/Zahl_Geb*Kosten!H13)+40/15*ROUNDUP(Sanierung!J51*Wärme_Nutz_San/(365*24*20),0)*Kosten!H15+40/30*ROUNDUP(Sanierung!J52*Wärme_Nutz_San/(365*24*20),0)*Kosten!H21,aSan_Wärm=Fern_100,Zahl_Geb*40/30*ROUNDUP(Wärme_Nutz_San/(365*24*1),0)*Kosten!H21,aSan_Wärm=BHKW_100,ROUNDUP(Wärme_Nutz_San/(365*24*500),0)*Kosten!H22)) ->  | U71: =(40/20*ROUNDUP((Strom_Nutz*_xlfn.IFS(aSan_Str=PV_0,0,aSan_Str=PV_20,0.2,aSan_Str=PV_40,0.4,aSan_Str=PV_60,0.6,aSan_Str=PV_80,0.8,aSan_Str=PV_100,1))/30000,0)*Kosten!H24)+_xlfn.IFS(aSan_Wärm=WP_80,40/20*ROUNDUP(Sanierung!J44*Wärme_Nutz_San/(365*24*20),0)*Kosten!H7+40/20*ROUNDUP(Sanierung!J43*Wärme_Nutz_San/(365*24*20),0)*((SFH_qurtr+SDH_qurtr)/Zahl_Geb*Kosten!H9+(SMFH_qurtr+LMFH_qurtr)/Zahl_Geb*Kosten!H10)+40/20*ROUNDUP(Sanierung!J45*Wärme_Nutz_San/(365*24*20),0)*((SFH_qurtr+SDH_qurtr)/Zahl_Geb*Kosten!H12+(SMFH_qurtr+LMFH_qurtr)/Zahl_Geb*Kosten!H13)+40/15*ROUNDUP(Sanierung!J46*Wärme_Nutz_San/(365*24*20),0)*Kosten!H15+40/30*ROUNDUP(Sanierung!J47*Wärme_Nutz_San/(365*24*20),0)*Kosten!H21,aSan_Wärm=WP_50,40/20*ROUNDUP(Sanierung!J49*Wärme_Nutz_San/(365*24*20),0)*Kosten!H7+40/20*ROUNDUP(Sanierung!J48*Wärme_Nutz_San/(365*24*20),0)*SUM((SFH_qurtr+SDH_qurtr)/Zahl_Geb*Kosten!H9+(SMFH_qurtr+LMFH_qurtr)/Zahl_Geb*Kosten!H10)+40/20*ROUNDUP(Sanierung!J50*Wärme_Nutz_San/(365*24*20),0)*((SFH_qurtr+SDH_qurtr)/Zahl_Geb*Kosten!H12+(SMFH_qurtr+LMFH_qurtr)/Zahl_Geb*Kosten!H13)+40/15*ROUNDUP(Sanierung!J51*Wärme_Nutz_San/(365*24*20),0)*Kosten!H15+40/30*ROUNDUP(Sanierung!J52*Wärme_Nutz_San/(365*24*20),0)*Kosten!H21,aSan_Wärm=Fern_100,Zahl_Geb*40/30*ROUNDUP(Wärme_Nutz_San/(365*24*1),0)*Kosten!H21,aSan_Wärm=BHKW_100,ROUNDUP(Wärme_Nutz_San/(365*24*500),0)*Kosten!H22) -> 
Q72: Transport | T72: =1/40*_xlfn.IFS(Dämm_Mat=EPS,EPS_i*Kosten!J32,Dämm_Mat=XPS,XPS_i*Kosten!J31,Dämm_Mat=Holzfaser,Holz_i*Kosten!J33/Sachbilanz!AC452,Dämm_Mat=Zellulose,Zellu_i*Kosten!J34,Dämm_Mat='Drop-Down'!Z6,0)+Fenster_i*_xlfn.IFS(Mat_Rhm=PVC,Kosten!J28,Mat_Rhm=Holz,Kosten!J29)+Glas_i*Kosten!J30+Putz_i*Kosten!J36+_xlfn.IFS(Vwrtng=Dep_6,Bauschutt_o*Kosten!J67*0.061+0.939*0.5*Bauschutt_o*(Kosten!J37+Kosten!J38)+0.939*1/3*Fenster_o*(Kosten!J43+Kosten!J44+Kosten!J45),Vwrtng=Verwertung100,0.5*Bauschutt_o*(Kosten!J37+Kosten!J38)+1/3*Fenster_o*(Kosten!J43+Kosten!J44+Kosten!J45))+1/40*(40/20*ROUNDUP((Strom_Nutz*_xlfn.IFS(aSan_Str=PV_0,0,aSan_Str=PV_20,0.2,aSan_Str=PV_40,0.4,aSan_Str=PV_60,0.6,aSan_Str=PV_80,0.8,aSan_Str=PV_100,1))/30000,0)*Kosten!J24)+_xlfn.IFS(aSan_Wärm=WP_80,40/20*ROUNDUP(Sanierung!J44*Wärme_Nutz_San/(365*24*20),0)*Kosten!J7+40/20*ROUNDUP(Sanierung!J43*Wärme_Nutz_San/(365*24*20),0)*((SFH_qurtr+SDH_qurtr)/Zahl_Geb*Kosten!J9+(SMFH_qurtr+LMFH_qurtr)/Zahl_Geb*Kosten!J10)+40/20*ROUNDUP(Sanierung!J45*Wärme_Nutz_San/(365*24*20),0)*((SFH_qurtr+SDH_qurtr)/Zahl_Geb*Kosten!J12+(SMFH_qurtr+LMFH_qurtr)/Zahl_Geb*Kosten!J13)+40/15*ROUNDUP(Sanierung!J46*Wärme_Nutz_San/(365*24*20),0)*Kosten!J15+40/30*ROUNDUP(Sanierung!J47*Wärme_Nutz_San/(365*24*20),0)*Kosten!J21,aSan_Wärm=WP_50,40/20*ROUNDUP(Sanierung!J49*Wärme_Nutz_San/(365*24*20),0)*Kosten!J7+40/20*ROUNDUP(Sanierung!J48*Wärme_Nutz_San/(365*24*20),0)*SUM((SFH_qurtr+SDH_qurtr)/Zahl_Geb*Kosten!J9+(SMFH_qurtr+LMFH_qurtr)/Zahl_Geb*Kosten!J10)+40/20*ROUNDUP(Sanierung!J50*Wärme_Nutz_San/(365*24*20),0)*((SFH_qurtr+SDH_qurtr)/Zahl_Geb*Kosten!J12+(SMFH_qurtr+LMFH_qurtr)/Zahl_Geb*Kosten!J13)+40/15*ROUNDUP(Sanierung!J51*Wärme_Nutz_San/(365*24*20),0)*Kosten!J15+40/30*ROUNDUP(Sanierung!J52*Wärme_Nutz_San/(365*24*20),0)*Kosten!J21,aSan_Wärm=Fern_100,Zahl_Geb*40/30*ROUNDUP(Wärme_Nutz_San/(365*24*1),0)*Kosten!J21,aSan_Wärm=BHKW_100,ROUNDUP(Wärme_Nutz_San/(365*24*500),0)*Kosten!J22) ->  | U72: =_xlfn.IFS(Dämm_Mat=EPS,EPS_i*Kosten!J32,Dämm_Mat=XPS,XPS_i*Kosten!J31,Dämm_Mat=Holzfaser,Holz_i*Kosten!J33/Sachbilanz!AC452,Dämm_Mat=Zellulose,Zellu_i*Kosten!J34,Dämm_Mat='Drop-Down'!Z6,0)+Fenster_i*_xlfn.IFS(Mat_Rhm=PVC,Kosten!J28,Mat_Rhm=Holz,Kosten!J29)+Glas_i*Kosten!J30+Putz_i*Kosten!J36+_xlfn.IFS(Vwrtng=Dep_6,Bauschutt_o*Kosten!J67*0.061+0.939*0.5*Bauschutt_o*(Kosten!J37+Kosten!J38)+0.939*1/3*Fenster_o*(Kosten!J43+Kosten!J44+Kosten!J45),Vwrtng=Verwertung100,0.5*Bauschutt_o*(Kosten!J37+Kosten!J38)+1/3*Fenster_o*(Kosten!J43+Kosten!J44+Kosten!J45))+(40/20*ROUNDUP((Strom_Nutz*_xlfn.IFS(aSan_Str=PV_0,0,aSan_Str=PV_20,0.2,aSan_Str=PV_40,0.4,aSan_Str=PV_60,0.6,aSan_Str=PV_80,0.8,aSan_Str=PV_100,1))/30000,0)*Kosten!J24)+_xlfn.IFS(aSan_Wärm=WP_80,40/20*ROUNDUP(Sanierung!J44*Wärme_Nutz_San/(365*24*20),0)*Kosten!J7+40/20*ROUNDUP(Sanierung!J43*Wärme_Nutz_San/(365*24*20),0)*((SFH_qurtr+SDH_qurtr)/Zahl_Geb*Kosten!J9+(SMFH_qurtr+LMFH_qurtr)/Zahl_Geb*Kosten!J10)+40/20*ROUNDUP(Sanierung!J45*Wärme_Nutz_San/(365*24*20),0)*((SFH_qurtr+SDH_qurtr)/Zahl_Geb*Kosten!J12+(SMFH_qurtr+LMFH_qurtr)/Zahl_Geb*Kosten!J13)+40/15*ROUNDUP(Sanierung!J46*Wärme_Nutz_San/(365*24*20),0)*Kosten!J15+40/30*ROUNDUP(Sanierung!J47*Wärme_Nutz_San/(365*24*20),0)*Kosten!J21,aSan_Wärm=WP_50,40/20*ROUNDUP(Sanierung!J49*Wärme_Nutz_San/(365*24*20),0)*Kosten!J7+40/20*ROUNDUP(Sanierung!J48*Wärme_Nutz_San/(365*24*20),0)*SUM((SFH_qurtr+SDH_qurtr)/Zahl_Geb*Kosten!J9+(SMFH_qurtr+LMFH_qurtr)/Zahl_Geb*Kosten!J10)+40/20*ROUNDUP(Sanierung!J50*Wärme_Nutz_San/(365*24*20),0)*((SFH_qurtr+SDH_qurtr)/Zahl_Geb*Kosten!J12+(SMFH_qurtr+LMFH_qurtr)/Zahl_Geb*Kosten!J13)+40/15*ROUNDUP(Sanierung!J51*Wärme_Nutz_San/(365*24*20),0)*Kosten!J15+40/30*ROUNDUP(Sanierung!J52*Wärme_Nutz_San/(365*24*20),0)*Kosten!J21,aSan_Wärm=Fern_100,Zahl_Geb*40/30*ROUNDUP(Wärme_Nutz_San/(365*24*1),0)*Kosten!J21,aSan_Wärm=BHKW_100,ROUNDUP(Wärme_Nutz_San/(365*24*500),0)*Kosten!J22) -> 
Q73: Dienstleistungen | T73: =1/40*_xlfn.IFS(Dämm_Mat=EPS,EPS_i*Kosten!L32,Dämm_Mat=XPS,XPS_i*Kosten!L31,Dämm_Mat=Holzfaser,Holz_i*Kosten!L33/Sachbilanz!AC452,Dämm_Mat=Zellulose,Zellu_i*Kosten!L34,Dämm_Mat='Drop-Down'!Z6,0)+Fenster_i*_xlfn.IFS(Mat_Rhm=PVC,Kosten!L28,Mat_Rhm=Holz,Kosten!L29)+Glas_i*Kosten!L30+Putz_i*Kosten!L36+_xlfn.IFS(Vwrtng=Dep_6,Bauschutt_o*Kosten!L67*0.061+0.939*0.5*Bauschutt_o*(Kosten!L37+Kosten!L38)+0.939*1/3*Fenster_o*(Kosten!L43+Kosten!L44+Kosten!L45),Vwrtng=Verwertung100,0.5*Bauschutt_o*(Kosten!L37+Kosten!L38)+1/3*Fenster_o*(Kosten!L43+Kosten!L44+Kosten!L45))+1/40*(40/20*ROUNDUP((Strom_Nutz*_xlfn.IFS(aSan_Str=PV_0,0,aSan_Str=PV_20,0.2,aSan_Str=PV_40,0.4,aSan_Str=PV_60,0.6,aSan_Str=PV_80,0.8,aSan_Str=PV_100,1))/30000,0)*Kosten!L24)+_xlfn.IFS(aSan_Wärm=WP_80,40/20*ROUNDUP(Sanierung!J44*Wärme_Nutz_San/(365*24*20),0)*Kosten!L7+40/20*ROUNDUP(Sanierung!J43*Wärme_Nutz_San/(365*24*20),0)*((SFH_qurtr+SDH_qurtr)/Zahl_Geb*Kosten!L9+(SMFH_qurtr+LMFH_qurtr)/Zahl_Geb*Kosten!L10)+40/20*ROUNDUP(Sanierung!J45*Wärme_Nutz_San/(365*24*20),0)*((SFH_qurtr+SDH_qurtr)/Zahl_Geb*Kosten!L12+(SMFH_qurtr+LMFH_qurtr)/Zahl_Geb*Kosten!L13)+40/15*ROUNDUP(Sanierung!J46*Wärme_Nutz_San/(365*24*20),0)*Kosten!L15+40/30*ROUNDUP(Sanierung!J47*Wärme_Nutz_San/(365*24*20),0)*Kosten!L21,aSan_Wärm=WP_50,40/20*ROUNDUP(Sanierung!J49*Wärme_Nutz_San/(365*24*20),0)*Kosten!L7+40/20*ROUNDUP(Sanierung!J48*Wärme_Nutz_San/(365*24*20),0)*SUM((SFH_qurtr+SDH_qurtr)/Zahl_Geb*Kosten!L9+(SMFH_qurtr+LMFH_qurtr)/Zahl_Geb*Kosten!L10)+40/20*ROUNDUP(Sanierung!J50*Wärme_Nutz_San/(365*24*20),0)*((SFH_qurtr+SDH_qurtr)/Zahl_Geb*Kosten!L12+(SMFH_qurtr+LMFH_qurtr)/Zahl_Geb*Kosten!L13)+40/15*ROUNDUP(Sanierung!J51*Wärme_Nutz_San/(365*24*20),0)*Kosten!L15+40/30*ROUNDUP(Sanierung!J52*Wärme_Nutz_San/(365*24*20),0)*Kosten!L21,aSan_Wärm=Fern_100,Zahl_Geb*40/30*ROUNDUP(Wärme_Nutz_San/(365*24*1),0)*Kosten!L21,aSan_Wärm=BHKW_100,ROUNDUP(Wärme_Nutz_San/(365*24*500),0)*Kosten!L22) ->  | U73: =_xlfn.IFS(Dämm_Mat=EPS,EPS_i*Kosten!L32,Dämm_Mat=XPS,XPS_i*Kosten!L31,Dämm_Mat=Holzfaser,Holz_i*Kosten!L33/Sachbilanz!AC452,Dämm_Mat=Zellulose,Zellu_i*Kosten!L34,Dämm_Mat='Drop-Down'!Z6,0)+Fenster_i*_xlfn.IFS(Mat_Rhm=PVC,Kosten!L28,Mat_Rhm=Holz,Kosten!L29)+Glas_i*Kosten!L30+Putz_i*Kosten!L36+_xlfn.IFS(Vwrtng=Dep_6,Bauschutt_o*Kosten!L67*0.061+0.939*0.5*Bauschutt_o*(Kosten!L37+Kosten!L38)+0.939*1/3*Fenster_o*(Kosten!L43+Kosten!L44+Kosten!L45),Vwrtng=Verwertung100,0.5*Bauschutt_o*(Kosten!L37+Kosten!L38)+1/3*Fenster_o*(Kosten!L43+Kosten!L44+Kosten!L45))+(40/20*ROUNDUP((Strom_Nutz*_xlfn.IFS(aSan_Str=PV_0,0,aSan_Str=PV_20,0.2,aSan_Str=PV_40,0.4,aSan_Str=PV_60,0.6,aSan_Str=PV_80,0.8,aSan_Str=PV_100,1))/30000,0)*Kosten!L24)+_xlfn.IFS(aSan_Wärm=WP_80,40/20*ROUNDUP(Sanierung!J44*Wärme_Nutz_San/(365*24*20),0)*Kosten!L7+40/20*ROUNDUP(Sanierung!J43*Wärme_Nutz_San/(365*24*20),0)*((SFH_qurtr+SDH_qurtr)/Zahl_Geb*Kosten!L9+(SMFH_qurtr+LMFH_qurtr)/Zahl_Geb*Kosten!L10)+40/20*ROUNDUP(Sanierung!J45*Wärme_Nutz_San/(365*24*20),0)*((SFH_qurtr+SDH_qurtr)/Zahl_Geb*Kosten!L12+(SMFH_qurtr+LMFH_qurtr)/Zahl_Geb*Kosten!L13)+40/15*ROUNDUP(Sanierung!J46*Wärme_Nutz_San/(365*24*20),0)*Kosten!L15+40/30*ROUNDUP(Sanierung!J47*Wärme_Nutz_San/(365*24*20),0)*Kosten!L21,aSan_Wärm=WP_50,40/20*ROUNDUP(Sanierung!J49*Wärme_Nutz_San/(365*24*20),0)*Kosten!L7+40/20*ROUNDUP(Sanierung!J48*Wärme_Nutz_San/(365*24*20),0)*SUM((SFH_qurtr+SDH_qurtr)/Zahl_Geb*Kosten!L9+(SMFH_qurtr+LMFH_qurtr)/Zahl_Geb*Kosten!L10)+40/20*ROUNDUP(Sanierung!J50*Wärme_Nutz_San/(365*24*20),0)*((SFH_qurtr+SDH_qurtr)/Zahl_Geb*Kosten!L12+(SMFH_qurtr+LMFH_qurtr)/Zahl_Geb*Kosten!L13)+40/15*ROUNDUP(Sanierung!J51*Wärme_Nutz_San/(365*24*20),0)*Kosten!L15+40/30*ROUNDUP(Sanierung!J52*Wärme_Nutz_San/(365*24*20),0)*Kosten!L21,aSan_Wärm=Fern_100,Zahl_Geb*40/30*ROUNDUP(Wärme_Nutz_San/(365*24*1),0)*Kosten!L21,aSan_Wärm=BHKW_100,ROUNDUP(Wärme_Nutz_San/(365*24*500),0)*Kosten!L22) -> 
Q74: Gesamt | R74: =SUM(R68:R71) ->  | S74: =SUM(S68:S71) ->  | T74: =SUM(T68:T71) ->  | U74: =SUM(U68:U71) -> 
Q98: Investitionskosten Jahr 1 | R98: =_xlfn.IFS(Dämm_Mat=EPS,EPS_i*Kosten!H32,Dämm_Mat=XPS,XPS_i*Kosten!H31,Dämm_Mat=Holzfaser,Holz_i*Kosten!H33/Sachbilanz!AC452,Dämm_Mat=Zellulose,Zellu_i*Kosten!H34,Dämm_Mat='Drop-Down'!Z6,0)+Fenster_i*_xlfn.IFS(Mat_Rhm=PVC,Kosten!H28,Mat_Rhm=Holz,Kosten!H29)+Glas_i*Kosten!H30+Putz_i*Kosten!H36+_xlfn.IFS(Vwrtng=Dep_6,Bauschutt_o*Kosten!H67*0.061+0.939*0.5*Bauschutt_o*(Kosten!H37+Kosten!H38)+0.939*1/3*Fenster_o*(Kosten!H43+Kosten!H44+Kosten!H45),Vwrtng=Verwertung100,0.5*Bauschutt_o*(Kosten!H37+Kosten!H38)+1/3*Fenster_o*(Kosten!H43+Kosten!H44+Kosten!H45))+(ROUNDUP((Strom_Nutz*_xlfn.IFS(aSan_Str=PV_0,0,aSan_Str=PV_20,0.2,aSan_Str=PV_40,0.4,aSan_Str=PV_60,0.6,aSan_Str=PV_80,0.8,aSan_Str=PV_100,1))/30000,0)*Kosten!H24)+_xlfn.IFS(aSan_Wärm=WP_80,ROUNDUP(Sanierung!J44*Wärme_Nutz_San/(365*24*20),0)*Kosten!H7+ROUNDUP(Sanierung!J43*Wärme_Nutz_San/(365*24*20),0)*((SFH_qurtr+SDH_qurtr)/Zahl_Geb*Kosten!H9+(SMFH_qurtr+LMFH_qurtr)/Zahl_Geb*Kosten!H10)+ROUNDUP(Sanierung!J45*Wärme_Nutz_San/(365*24*20),0)*((SFH_qurtr+SDH_qurtr)/Zahl_Geb*Kosten!H12+(SMFH_qurtr+LMFH_qurtr)/Zahl_Geb*Kosten!H13)+ROUNDUP(Sanierung!J46*Wärme_Nutz_San/(365*24*20),0)*Kosten!H15+ROUNDUP(Sanierung!J47*Wärme_Nutz_San/(365*24*20),0)*Kosten!H21,aSan_Wärm=WP_50,ROUNDUP(Sanierung!J49*Wärme_Nutz_San/(365*24*20),0)*Kosten!H7+ROUNDUP(Sanierung!J48*Wärme_Nutz_San/(365*24*20),0)*SUM((SFH_qurtr+SDH_qurtr)/Zahl_Geb*Kosten!H9+(SMFH_qurtr+LMFH_qurtr)/Zahl_Geb*Kosten!H10)+ROUNDUP(Sanierung!J50*Wärme_Nutz_San/(365*24*20),0)*((SFH_qurtr+SDH_qurtr)/Zahl_Geb*Kosten!H12+(SMFH_qurtr+LMFH_qurtr)/Zahl_Geb*Kosten!H13)+ROUNDUP(Sanierung!J51*Wärme_Nutz_San/(365*24*20),0)*Kosten!H15+ROUNDUP(Sanierung!J52*Wärme_Nutz_San/(365*24*20),0)*Kosten!H21,aSan_Wärm=Fern_100,Zahl_Geb*ROUNDUP(Wärme_Nutz_San/(365*24*1),0)*Kosten!H21,aSan_Wärm=BHKW_100,ROUNDUP(Wärme_Nutz_San/(365*24*500),0)*Kosten!H22)+_xlfn.IFS(Dämm_Mat=EPS,EPS_i*Kosten!J32,Dämm_Mat=XPS,XPS_i*Kosten!J31,Dämm_Mat=Holzfaser,Holz_i*Kosten!J33/Sachbilanz!AC452,Dämm_Mat=Zellulose,Zellu_i*Kosten!J34,Dämm_Mat='Drop-Down'!Z6,0)+Fenster_i*_xlfn.IFS(Mat_Rhm=PVC,Kosten!J28,Mat_Rhm=Holz,Kosten!J29)+Glas_i*Kosten!J30+Putz_i*Kosten!J36+_xlfn.IFS(Vwrtng=Dep_6,Bauschutt_o*Kosten!J67*0.061+0.939*0.5*Bauschutt_o*(Kosten!J37+Kosten!J38)+0.939*1/3*Fenster_o*(Kosten!J43+Kosten!J44+Kosten!J45),Vwrtng=Verwertung100,0.5*Bauschutt_o*(Kosten!J37+Kosten!J38)+1/3*Fenster_o*(Kosten!J43+Kosten!J44+Kosten!J45))+(ROUNDUP((Strom_Nutz*_xlfn.IFS(aSan_Str=PV_0,0,aSan_Str=PV_20,0.2,aSan_Str=PV_40,0.4,aSan_Str=PV_60,0.6,aSan_Str=PV_80,0.8,aSan_Str=PV_100,1))/30000,0)*Kosten!J24)+_xlfn.IFS(aSan_Wärm=WP_80,ROUNDUP(Sanierung!J44*Wärme_Nutz_San/(365*24*20),0)*Kosten!J7+ROUNDUP(Sanierung!J43*Wärme_Nutz_San/(365*24*20),0)*((SFH_qurtr+SDH_qurtr)/Zahl_Geb*Kosten!J9+(SMFH_qurtr+LMFH_qurtr)/Zahl_Geb*Kosten!J10)+ROUNDUP(Sanierung!J45*Wärme_Nutz_San/(365*24*20),0)*((SFH_qurtr+SDH_qurtr)/Zahl_Geb*Kosten!J12+(SMFH_qurtr+LMFH_qurtr)/Zahl_Geb*Kosten!J13)+ROUNDUP(Sanierung!J46*Wärme_Nutz_San/(365*24*20),0)*Kosten!J15+ROUNDUP(Sanierung!J47*Wärme_Nutz_San/(365*24*20),0)*Kosten!J21,aSan_Wärm=WP_50,ROUNDUP(Sanierung!J49*Wärme_Nutz_San/(365*24*20),0)*Kosten!J7+ROUNDUP(Sanierung!J48*Wärme_Nutz_San/(365*24*20),0)*SUM((SFH_qurtr+SDH_qurtr)/Zahl_Geb*Kosten!J9+(SMFH_qurtr+LMFH_qurtr)/Zahl_Geb*Kosten!J10)+ROUNDUP(Sanierung!J50*Wärme_Nutz_San/(365*24*20),0)*((SFH_qurtr+SDH_qurtr)/Zahl_Geb*Kosten!J12+(SMFH_qurtr+LMFH_qurtr)/Zahl_Geb*Kosten!J13)+ROUNDUP(Sanierung!J51*Wärme_Nutz_San/(365*24*20),0)*Kosten!J15+ROUNDUP(Sanierung!J52*Wärme_Nutz_San/(365*24*20),0)*Kosten!J21,aSan_Wärm=Fern_100,Zahl_Geb*ROUNDUP(Wärme_Nutz_San/(365*24*1),0)*Kosten!J21,aSan_Wärm=BHKW_100,ROUNDUP(Wärme_Nutz_San/(365*24*500),0)*Kosten!J22)+_xlfn.IFS(Dämm_Mat=EPS,EPS_i*Kosten!L32,Dämm_Mat=XPS,XPS_i*Kosten!L31,Dämm_Mat=Holzfaser,Holz_i*Kosten!L33/Sachbilanz!AC452,Dämm_Mat=Zellulose,Zellu_i*Kosten!L34,Dämm_Mat='Drop-Down'!Z6,0)+Fenster_i*_xlfn.IFS(Mat_Rhm=PVC,Kosten!L28,Mat_Rhm=Holz,Kosten!L29)+Glas_i*Kosten!L30+Putz_i*Kosten!L36+_xlfn.IFS(Vwrtng=Dep_6,Bauschutt_o*Kosten!L67*0.061+0.939*0.5*Bauschutt_o*(Kosten!L37+Kosten!L38)+0.939*1/3*Fenster_o*(Kosten!L43+Kosten!L44+Kosten!L45),Vwrtng=Verwertung100,0.5*Bauschutt_o*(Kosten!L37+Kosten!L38)+1/3*Fenster_o*(Kosten!L43+Kosten!L44+Kosten!L45))+(ROUNDUP((Strom_Nutz*_xlfn.IFS(aSan_Str=PV_0,0,aSan_Str=PV_20,0.2,aSan_Str=PV_40,0.4,aSan_Str=PV_60,0.6,aSan_Str=PV_80,0.8,aSan_Str=PV_100,1))/30000,0)*Kosten!L24)+_xlfn.IFS(aSan_Wärm=WP_80,40/20*ROUNDUP(Sanierung!J44*Wärme_Nutz_San/(365*24*20),0)*Kosten!L7+ROUNDUP(Sanierung!J43*Wärme_Nutz_San/(365*24*20),0)*((SFH_qurtr+SDH_qurtr)/Zahl_Geb*Kosten!L9+(SMFH_qurtr+LMFH_qurtr)/Zahl_Geb*Kosten!L10)+ROUNDUP(Sanierung!J45*Wärme_Nutz_San/(365*24*20),0)*((SFH_qurtr+SDH_qurtr)/Zahl_Geb*Kosten!L12+(SMFH_qurtr+LMFH_qurtr)/Zahl_Geb*Kosten!L13)+ROUNDUP(Sanierung!J46*Wärme_Nutz_San/(365*24*20),0)*Kosten!L15+ROUNDUP(Sanierung!J47*Wärme_Nutz_San/(365*24*20),0)*Kosten!L21,aSan_Wärm=WP_50,ROUNDUP(Sanierung!J49*Wärme_Nutz_San/(365*24*20),0)*Kosten!L7+ROUNDUP(Sanierung!J48*Wärme_Nutz_San/(365*24*20),0)*SUM((SFH_qurtr+SDH_qurtr)/Zahl_Geb*Kosten!L9+(SMFH_qurtr+LMFH_qurtr)/Zahl_Geb*Kosten!L10)+ROUNDUP(Sanierung!J50*Wärme_Nutz_San/(365*24*20),0)*((SFH_qurtr+SDH_qurtr)/Zahl_Geb*Kosten!L12+(SMFH_qurtr+LMFH_qurtr)/Zahl_Geb*Kosten!L13)+ROUNDUP(Sanierung!J51*Wärme_Nutz_San/(365*24*20),0)*Kosten!L15+ROUNDUP(Sanierung!J52*Wärme_Nutz_San/(365*24*20),0)*Kosten!L21,aSan_Wärm=Fern_100,Zahl_Geb*ROUNDUP(Wärme_Nutz_San/(365*24*1),0)*Kosten!L21,aSan_Wärm=BHKW_100,ROUNDUP(Wärme_Nutz_San/(365*24*500),0)*Kosten!L22) -> 
Q99: Investitionskosten Jahr 15 | R99: =_xlfn.IFS(aSan_Wärm=WP_80,ROUNDUP(Sanierung!J46*Wärme_Nutz_San/(365*24*20),0)*Kosten!H15,aSan_Wärm=WP_50,ROUNDUP(Sanierung!J51*Wärme_Nutz_San/(365*24*20),0)*Kosten!H15,aSan_Wärm=Fern_100,0,aSan_Wärm=BHKW_100,0)+_xlfn.IFS(aSan_Wärm=WP_80,ROUNDUP(Sanierung!J46*Wärme_Nutz_San/(365*24*20),0)*Kosten!J15,aSan_Wärm=WP_50,ROUNDUP(Sanierung!J51*Wärme_Nutz_San/(365*24*20),0)*Kosten!J15,aSan_Wärm=Fern_100,0,aSan_Wärm=BHKW_100,0)+_xlfn.IFS(aSan_Wärm=WP_80,ROUNDUP(Sanierung!J46*Wärme_Nutz_San/(365*24*20),0)*Kosten!L15,aSan_Wärm=WP_50,ROUNDUP(Sanierung!J51*Wärme_Nutz_San/(365*24*20),0)*Kosten!L15,aSan_Wärm=Fern_100,0,aSan_Wärm=BHKW_100,0) -> 
Q100: Investitionskosten Jahr 20 | R100: =(ROUNDUP((Strom_Nutz*_xlfn.IFS(aSan_Str=PV_0,0,aSan_Str=PV_20,0.2,aSan_Str=PV_40,0.4,aSan_Str=PV_60,0.6,aSan_Str=PV_80,0.8,aSan_Str=PV_100,1))/30000,0)*Kosten!H24)+_xlfn.IFS(aSan_Wärm=WP_80,ROUNDUP(Sanierung!J44*Wärme_Nutz_San/(365*24*20),0)*Kosten!H7+ROUNDUP(Sanierung!J43*Wärme_Nutz_San/(365*24*20),0)*((SFH_qurtr+SDH_qurtr)/Zahl_Geb*Kosten!H9+(SMFH_qurtr+LMFH_qurtr)/Zahl_Geb*Kosten!H10)+ROUNDUP(Sanierung!J45*Wärme_Nutz_San/(365*24*20),0)*((SFH_qurtr+SDH_qurtr)/Zahl_Geb*Kosten!H12+(SMFH_qurtr+LMFH_qurtr)/Zahl_Geb*Kosten!H13),aSan_Wärm=WP_50,ROUNDUP(Sanierung!J49*Wärme_Nutz_San/(365*24*20),0)*Kosten!H7+ROUNDUP(Sanierung!J48*Wärme_Nutz_San/(365*24*20),0)*SUM((SFH_qurtr+SDH_qurtr)/Zahl_Geb*Kosten!H9+(SMFH_qurtr+LMFH_qurtr)/Zahl_Geb*Kosten!H10)+ROUNDUP(Sanierung!J50*Wärme_Nutz_San/(365*24*20),0)*((SFH_qurtr+SDH_qurtr)/Zahl_Geb*Kosten!H12+(SMFH_qurtr+LMFH_qurtr)/Zahl_Geb*Kosten!H13),aSan_Wärm=Fern_100,0,aSan_Wärm=BHKW_100,0)+(ROUNDUP((Strom_Nutz*_xlfn.IFS(aSan_Str=PV_0,0,aSan_Str=PV_20,0.2,aSan_Str=PV_40,0.4,aSan_Str=PV_60,0.6,aSan_Str=PV_80,0.8,aSan_Str=PV_100,1))/30000,0)*Kosten!J24)+_xlfn.IFS(aSan_Wärm=WP_80,ROUNDUP(Sanierung!J44*Wärme_Nutz_San/(365*24*20),0)*Kosten!J7+ROUNDUP(Sanierung!J43*Wärme_Nutz_San/(365*24*20),0)*((SFH_qurtr+SDH_qurtr)/Zahl_Geb*Kosten!J9+(SMFH_qurtr+LMFH_qurtr)/Zahl_Geb*Kosten!J10)+ROUNDUP(Sanierung!J45*Wärme_Nutz_San/(365*24*20),0)*((SFH_qurtr+SDH_qurtr)/Zahl_Geb*Kosten!J12+(SMFH_qurtr+LMFH_qurtr)/Zahl_Geb*Kosten!J13),aSan_Wärm=WP_50,ROUNDUP(Sanierung!J49*Wärme_Nutz_San/(365*24*20),0)*Kosten!J7+ROUNDUP(Sanierung!J48*Wärme_Nutz_San/(365*24*20),0)*SUM((SFH_qurtr+SDH_qurtr)/Zahl_Geb*Kosten!J9+(SMFH_qurtr+LMFH_qurtr)/Zahl_Geb*Kosten!J10)+ROUNDUP(Sanierung!J50*Wärme_Nutz_San/(365*24*20),0)*((SFH_qurtr+SDH_qurtr)/Zahl_Geb*Kosten!J12+(SMFH_qurtr+LMFH_qurtr)/Zahl_Geb*Kosten!J13),aSan_Wärm=Fern_100,0,aSan_Wärm=BHKW_100,0)+(ROUNDUP((Strom_Nutz*_xlfn.IFS(aSan_Str=PV_0,0,aSan_Str=PV_20,0.2,aSan_Str=PV_40,0.4,aSan_Str=PV_60,0.6,aSan_Str=PV_80,0.8,aSan_Str=PV_100,1))/30000,0)*Kosten!L24)+_xlfn.IFS(aSan_Wärm=WP_80,ROUNDUP(Sanierung!J44*Wärme_Nutz_San/(365*24*20),0)*Kosten!L7+ROUNDUP(Sanierung!J43*Wärme_Nutz_San/(365*24*20),0)*((SFH_qurtr+SDH_qurtr)/Zahl_Geb*Kosten!L9+(SMFH_qurtr+LMFH_qurtr)/Zahl_Geb*Kosten!L10)+ROUNDUP(Sanierung!J45*Wärme_Nutz_San/(365*24*20),0)*((SFH_qurtr+SDH_qurtr)/Zahl_Geb*Kosten!L12+(SMFH_qurtr+LMFH_qurtr)/Zahl_Geb*Kosten!L13),aSan_Wärm=WP_50,ROUNDUP(Sanierung!J49*Wärme_Nutz_San/(365*24*20),0)*Kosten!L7+40/20*ROUNDUP(Sanierung!J48*Wärme_Nutz_San/(365*24*20),0)*SUM((SFH_qurtr+SDH_qurtr)/Zahl_Geb*Kosten!L9+(SMFH_qurtr+LMFH_qurtr)/Zahl_Geb*Kosten!L10)+ROUNDUP(Sanierung!J50*Wärme_Nutz_San/(365*24*20),0)*((SFH_qurtr+SDH_qurtr)/Zahl_Geb*Kosten!L12+(SMFH_qurtr+LMFH_qurtr)/Zahl_Geb*Kosten!L13),aSan_Wärm=Fern_100,0,aSan_Wärm=BHKW_100,0) -> 
Q101: Investitionskosten Jahr 30 | R101: =_xlfn.IFS(aSan_Wärm=WP_80,ROUNDUP(Sanierung!J46*Wärme_Nutz_San/(365*24*20),0)*Kosten!H15+ROUNDUP(Sanierung!J47*Wärme_Nutz_San/(365*24*20),0)*Kosten!H21,aSan_Wärm=WP_50,ROUNDUP(Sanierung!J51*Wärme_Nutz_San/(365*24*20),0)*Kosten!H15+ROUNDUP(Sanierung!J52*Wärme_Nutz_San/(365*24*20),0)*Kosten!H21,aSan_Wärm=Fern_100,Anzahl_Gebäude*ROUNDUP(Wärme_Nutz_San/(365*24*1),0)*Kosten!H21,aSan_Wärm=BHKW_100,0)+_xlfn.IFS(aSan_Wärm=WP_80,ROUNDUP(Sanierung!J46*Wärme_Nutz_San/(365*24*20),0)*Kosten!J15+ROUNDUP(Sanierung!J47*Wärme_Nutz_San/(365*24*20),0)*Kosten!J21,aSan_Wärm=WP_50,ROUNDUP(Sanierung!J51*Wärme_Nutz_San/(365*24*20),0)*Kosten!J15+ROUNDUP(Sanierung!J52*Wärme_Nutz_San/(365*24*20),0)*Kosten!J21,aSan_Wärm=Fern_100,Anzahl_Gebäude*ROUNDUP(Wärme_Nutz_San/(365*24*1),0)*Kosten!J21,aSan_Wärm=BHKW_100,0)+_xlfn.IFS(aSan_Wärm=WP_80,ROUNDUP(Sanierung!J46*Wärme_Nutz_San/(365*24*20),0)*Kosten!L15+ROUNDUP(Sanierung!J47*Wärme_Nutz_San/(365*24*20),0)*Kosten!L21,aSan_Wärm=WP_50,ROUNDUP(Sanierung!J51*Wärme_Nutz_San/(365*24*20),0)*Kosten!L15+ROUNDUP(Sanierung!J52*Wärme_Nutz_San/(365*24*20),0)*Kosten!L21,aSan_Wärm=Fern_100,Anzahl_Gebäude*ROUNDUP(Wärme_Nutz_San/(365*24*1),0)*Kosten!L21,aSan_Wärm=BHKW_100,0) -> 

Sheet Eingabe Gebäude
B2: Informationen über das Gebäude
B3: Straße | C3: Lichtenbergstraße
B4: Hausnummer | C4: 71
B5: PLZ + Ort | C5: Darmstadt
B6: Hausform | C6: kleines Mehrfamilienhaus SMFH
B7: Baujahr | C7: 1908
B8: Gebäudegrundfläche GGF [m2] | C8: 149
B9: Bruttogrundfläche BGF [m2] | C9: 596
B10: Bruttorauminhalt [m3] | C10: 2538
B11: Gebäudenutzfläche GNF [m2] | C11: 812
B12: Nutzungsdauer [a] | C12: 40
B13: Dachform | C13: Steildach Holz
B14: Dachfläche [m2] | C14: =C8 -> 149
B15: Traufhöhe [m] | C15: 14.5
B16: Firsthöhe [m] | C16: 19.5
B17: Anzahl der Stockwerke | C17: 4
B18: Höhe der Stockwerke [m] | C18: 3.6
B19: Umfang [m] | C19: 52.5
B20: Freistehende Wände | C20: 2
B21: Umfang freistehend [m] | C21: =_xlfn.IFS(C20='Drop-Down'!N2,C19*1/4,C20='Drop-Down'!N3,C19*2/4,C20='Drop-Down'!N4,C19*3/4,C20='Drop-Down'!N5,C19) -> 26.25
B22: Freistehende Wände [m2] | C22: =C21*C15 -> 380.625
B23: Fensterfläche [m2] | C23: =C9/8 -> 74.5
B24: Fenstermaterial | C24: PVC
B25: Fensterverglasung | C25: 2-fach
B26: Türfläche [m2] | C26: 4
B27: Sanierungsstand | C27: r1: Dach saniert
B28: zugeordnete Baualtersklasse | C28: =IF(C7<1948, "Vor 1948", IF(AND(C7>=1948, C7<=1978), "1948-1978", IF(AND(C7>=1979, C7<=1994), "1979-1994", IF(AND(C7>=1995, C7<=2009), "1995-2009", IF(C7>=2010, "Nach 2010", "Andere"))))) -> Vor 1948
B29: Wohneinheiten im Haus | C29: =_xlfn.IFS(OR(C6='Drop-Down'!F2,C6='Drop-Down'!F3),"1",C6='Drop-Down'!F4,"3-5",C6='Drop-Down'!F5,"> 5") -> 3-5
B30: Wohneinheiten im Haus (manuelle Eingabe) | C30: 6
B31: Personen pro Wohneinheit | C31: 3+
B32: Wärmebedarf [kWh/a]
B33: Strombedarf [kWh/a]
B36: Zu dämmende Fläche | C36: m2
B37: Außenwand | C37: =C22-C23-C26 -> 302.125
B38: Kellerdecke | C38: =C8 -> 149
B39: Dachfläche | C39: =C8 -> 149
B40: Fensterfläche | C40: =C23 -> 74.5
B41: Türfläche | C41: =C26 -> 4
B42: Gesamt | C42: =SUM(C37:C39) -> 600.125
B44: Beleuchtung | C44: =C9 -> 596

Sheet Sanierung Einzelgebäude
B3: IST-Zustand | C3: IST-Zustand
C4: Nutzenergiebedarf ges. | E4: =Nutz_Wärme+Nutz_Strom -> 190636.0481 | F4: kWh/a
C5: Nutzenergiebedarf Strom | E5: =IF(Datengrundlage_Geb=Realdaten,IF(Strombedarf="",GNF_geb*Energieberechnung!X102+Energieberechnung!E107,Strombedarf),0) -> 32361.6 | F5: kWh/a
C6: Nutzenergiebedarf Wärme | E6: =IF(Datengrundlage_Geb=Realdaten,IF(Wärmebedarf="",GNF_geb*_xlfn.IFS(Datenbank_Wärmeplan=EnerCalc,Energieberechnung!X76,Datenbank_Wärmeplan=DENA,Energieberechnung!X89),Wärmebedarf),0) -> 158274.4481 | F6: kWh/a
H8: % | J8: Eigene Werte
C9: Beheizungsstruktur | E9: ø Deutschland ohne Fernwärme | G9: Erdgas | H9: =_xlfn.IFS(Beheiz_struk=DurchschnittDE,Energieberechnung!AN4,Beheiz_struk=DurchschnittDE_kFern,Energieberechnung!AP4,Beheiz_struk=Werte_eigen,J9) -> 0.562
G10: Wärmepumpe | H10: =_xlfn.IFS(Beheiz_struk=DurchschnittDE,Energieberechnung!AN5,Beheiz_struk=DurchschnittDE_kFern,Energieberechnung!AP5,Beheiz_struk=Werte_eigen,J10) -> 0.043
G11: Heizöl | H11: =_xlfn.IFS(Beheiz_struk=DurchschnittDE,Energieberechnung!AN6,Beheiz_struk=DurchschnittDE_kFern,Energieberechnung!AP6,Beheiz_struk=Werte_eigen,J11) -> 0.362
G12: Holz-/Pellet | H12: =_xlfn.IFS(Beheiz_struk=DurchschnittDE,Energieberechnung!AN7,Beheiz_struk=DurchschnittDE_kFern,Energieberechnung!AP7,Beheiz_struk=Werte_eigen,J12) -> 0.033
G13: Fernwärme | H13: =_xlfn.IFS(Beheiz_struk=DurchschnittDE,Energieberechnung!AN8,Beheiz_struk=DurchschnittDE_kFern,0,Beheiz_struk=Werte_eigen,J13) -> 0
E15: Lebenszyklus | H15: Territorial/ Scope 1
C16: THG ges. | E16: =(THG_Strom+THG_Wärme)/1000 -> 0 | F16: T CO2/a | H16: =H18/1000 -> 0 | I16: T CO2/a
C17: THG Strom | E17: =Nutz_Strom*_xlfn.IFS(Datenbank_Emission=Ökobaudat2024,Ökobaudat!I17,Datenbank_Emission=Datenbank_eigen,'Eigene Datenbank'!M17) -> 0 | F17: kg CO2/a | H17: 0 | I17: kg CO2/a
C18: THG Wärme | E18: =Nutz_Wärme*_xlfn.IFS(Datenbank_Emission=Ökobaudat2024,(H9*Ökobaudat!I8+'Sanierung Einzelgebäude'!H10*Ökobaudat!I6+'Sanierung Einzelgebäude'!H11*Ökobaudat!I11+'Sanierung Einzelgebäude'!H12*Ökobaudat!I14+'Sanierung Einzelgebäude'!H13*Ökobaudat!I20),Datenbank_Emission=Datenbank_eigen,(H9*'Eigene Datenbank'!M8+'Sanierung Einzelgebäude'!H10*'Eigene Datenbank'!M6+'Sanierung Einzelgebäude'!H11*'Eigene Datenbank'!M11+'Sanierung Einzelgebäude'!H12*'Eigene Datenbank'!M14+'Sanierung Einzelgebäude'!H13*'Eigene Datenbank'!M18*0.65+H13*'Eigene Datenbank'!M19*0.35)) -> 0 | F18: kg CO2/a | H18: =Nutz_Wärme*_xlfn.IFS(Datenbank_Emission=Ökobaudat2024,H9*Ökobaudat!I8+'Sanierung Einzelgebäude'!H11*Ökobaudat!I11+'Sanierung Einzelgebäude'!H12*Ökobaudat!I14,Datenbank_Emission=Datenbank_eigen,H9*'Eigene Datenbank'!M8+'Sanierung Einzelgebäude'!H11*'Eigene Datenbank'!M11+'Sanierung Einzelgebäude'!H12*'Eigene Datenbank'!M14) -> 0 | I18: kg CO2/a
C21: Ziel 2030 | E21: =0.589*THG_ges -> 0 | F21: T CO2/a
C22: Ziel 2045 | E22: 0 | F22: T CO2/a
B25: Sanierungs-maßnahmen | C25: Sanierungsmaßnahmen
C26: passive Sanierung | E26: Sanierungstiefe GEG | G26: Sanierungs-material | H26: EPS
G27: Rahmen-material | H27: PVC
C28: Nutzenergiebedarf Wärme nach Sanierung | E28: kWh/a | F28: %
E29: =IF(Datengrundlage_Geb=Realdaten,GNF_geb*Sachbilanz!W16,0) -> 125941.2 | F29: =IF(Datengrundlage_Geb=Realdaten,Nutz_Wärme_san/Nutz_Wärme*100,0) -> 79.57140368
C32: Materialströme | D32: Mix_Bauschutt | E32: =IF(Datengrundlage_Geb=Realdaten,_xlfn.IFS(AND(Baujahr_Geb<1948,Dachform_Geb=SteildachHolz),Sachbilanz!U358,AND(Baujahr_Geb<1948,Dachform_Geb=SteildachWeich),Sachbilanz!U364,AND(Baujahr_Geb>=1948,Baujahr_Geb<=1978,Dachform_Geb=SteildachHolz),Sachbilanz!U372,AND(Baujahr_Geb>=1948,Baujahr_Geb<=1978,Dachform_Geb=FlachdachBeton),Sachbilanz!U383,AND(Baujahr_Geb>=1948,Baujahr_Geb<=1978,Dachform_Geb=FlachdachHolz),Sachbilanz!U388,AND(Baujahr_Geb>=1979,Baujahr_Geb<=1994,Dachform_Geb=SteildachHolz),Sachbilanz!U398,AND(Baujahr_Geb>=1979,Baujahr_Geb<=1994,Dachform_Geb=FlachdachBeton),Sachbilanz!U407,AND(AND(Baujahr_Geb>=1995,Baujahr_Geb<=2009),Dachform_Geb=SteildachHolz),Sachbilanz!U416,AND(Baujahr_Geb>=1995,Baujahr_Geb<=2009,Dachform_Geb=FlachdachBeton),Sachbilanz!U427,AND(Baujahr_Geb>=1995,Baujahr_Geb<=2009,Dachform_Geb=FlachdachHolz),Sachbilanz!U434,OR(AND(Baujahr_Geb<1948,Dachform_Geb=FlachdachBeton),AND(Baujahr_Geb<1948,Dachform_Geb=FlachdachHolz),AND(Baujahr_Geb>=1948,Baujahr_Geb<=1978,Dachform_Geb=SteildachWeich),AND(Baujahr_Geb>=1979,Baujahr_Geb<=1994,Dachform_Geb=SteildachWeich),AND(Baujahr_Geb>=1979,Baujahr_Geb<=1994,Dachform_Geb=FlachdachHolz),AND(Baujahr_Geb>=1995,Baujahr_Geb<=2009,Dachform_Geb=SteildachWeich),Baujahr_Geb>=2010),"keine Angabe möglich"),0) -> 9822.0055 | F32: kg | G32: Verwertung | H32: Verwertung 100 %
C33: aus dem Gebäude | D33: Fenster | E33: =IF(Datengrundlage_Geb=Realdaten,_xlfn.IFS(AND(Verglasung_Geb=Glas1,Fenstermat_Geb=FensterPVC),Fenster_Geb*Sachbilanz!I298*Sachbilanz!C296+Fenster_Geb*Sachbilanz!I297*Sachbilanz!E296,AND(Verglasung_Geb=Glas1,Fenstermat_Geb=Aluminium),Fenster_Geb*Sachbilanz!I298*Sachbilanz!C296+Fenster_Geb*Sachbilanz!I297*Sachbilanz!E297,AND(Verglasung_Geb=Glas1,Fenstermat_Geb=Fenster_Holz),Fenster_Geb*Sachbilanz!I298*Sachbilanz!C296+Fenster_Geb*Sachbilanz!I297*Sachbilanz!E298,AND(Verglasung_Geb=Glas2,Fenstermat_Geb=FensterPVC),Fenster_Geb*Sachbilanz!I298*Sachbilanz!C297+Fenster_Geb*Sachbilanz!I297*Sachbilanz!E296,AND(Verglasung_Geb=Glas2,Fenstermat_Geb=Aluminium),Fenster_Geb*Sachbilanz!I298*Sachbilanz!C297+Fenster_Geb*Sachbilanz!I297*Sachbilanz!E297,AND(Verglasung_Geb=Glas2,Fenstermat_Geb=Fenster_Holz),Fenster_Geb*Sachbilanz!I298*Sachbilanz!C297+Fenster_Geb*Sachbilanz!I297*Sachbilanz!G298),0) -> 3627.452146 | F33: kg
C36: in das Gebäude | D36: EPS | E36: =IF(Datengrundlage_Geb=Realdaten,IF(San_mat=EPS,(Aussenwand_Geb*Sachbilanz!W455+Keller_Geb*Sachbilanz!W460*+Dach_geb*Sachbilanz!W465)*Sachbilanz!AC450,0),0) -> 7942.66272 | F36: kg
D37: XPS | E37: =IF(Datengrundlage_Geb=Realdaten,IF(San_mat=XPS,(Aussenwand_Geb*Sachbilanz!W455+Keller_Geb*Sachbilanz!W460*+Dach_geb*Sachbilanz!W465)*Sachbilanz!AC451,0),0) -> 0 | F37: kg
D38: Holzfaser | E38: =IF(Datengrundlage_Geb=Realdaten,IF(San_mat=Holzfaser,(Aussenwand_Geb*Sachbilanz!W470*+Keller_Geb*Sachbilanz!W475*+Dach_geb*Sachbilanz!W480)*Sachbilanz!AC452,0),0) -> 0 | F38: kg
D39: Zellulose | E39: =IF(Datengrundlage_Geb=Realdaten,IF(San_mat=Zellulose,(Aussenwand_Geb*Sachbilanz!W485*+Keller_Geb*Sachbilanz!W490*+Dach_geb*Sachbilanz!W495)*Sachbilanz!AC453,0),0) -> 0 | F39: kg
D40: Rahmen | E40: =IF(Datengrundlage_Geb=Realdaten,Fenster_Geb*Sachbilanz!I297*_xlfn.IFS(Rahmn_mat=PVC,Sachbilanz!E296,Rahmn_mat=Holz,Sachbilanz!E298),0) -> 2707.193474 | F40: kg
D41: Glas (3-fach) | E41: =IF(Datengrundlage_Geb=Realdaten,Fenster_Geb*Sachbilanz!I298*Sachbilanz!C298,0) -> 1381.075794 | F41: kg
D42: Putz | E42: =IF(Datengrundlage_Geb=Realdaten,Aussenwand_Geb*Sachbilanz!AC454,0) -> 317.23125 | F42: kg
C45: aktive Sanierung Strom: | E45: Deckung Strombedarf 80 %
C46: Photovoltaik
V47: Lebenszyklus | W47: Territorial
C48: aktive Sanierung Wärme | E48: Holz/Pellet | T48: 2021 | U48: THG ges. | V48: =E16 -> 0 | W48: =H16 -> 0
C49: Wärmepumpe | U49: THG ges. Sanierung | V49: ='Ergebnis Einzelgebäude'!V19 -> 0 | W49: ='Ergebnis Einzelgebäude'!W19 -> 0
T50: 2030 | U50: THG Ziel 2030 | V50: =E21 -> 0 | W50: =E21 -> 0

Sheet Ergebnis Einzelgebäude
AN1: Jahr | AO1: Vor Sanierung | AQ1: Nach Sanierung | AS1: Differenz
B2: Information über das Gebäude | Q2: THG nach Sanierung | AD2: Lebenszyklus | AI2: Territorial | AO2: Strom | AP2: Wärme | AQ2: Strom | AR2: Wärme | AS2: Strom | AT2: Wärme | AU2: Investitionen | AV2: Summe
S3: Phasen nach DIN EN 15804 | T3: Herstellung | U3: Bau | V3: Nutzungs | W3: Entsorgungs | X3: Vorteile und Belastungen | AD3: Strom | AE3: Wärme | AF3: Materialströme | AG3: Techn. Einbauten | AH3: Ziel | AI3: Strom | AJ3: Wärme | AK3: Materialströme | AL3: Techn. Einbauten | AM3: Ziel | AN3: 1 | AO3: =$T$68 -> 13510.968 | AP3: =$T$69 -> 18088.70393 | AQ3: =$V$68 -> 2702.1936 | AR3: =$V$69 -> 7399.0455 | AS3: =AO3-AQ3 -> 10808.7744 | AT3: =AP3-AR3 -> 10689.65843 | AU3: =-Y70 -> -1208324.864 | AV3: =AS3+AT3+AU3 -> -1186826.432
D4: Straße | G4: ='Eingabe Gebäude'!C3 -> Lichtenbergstraße | J4: Anzahl der Stockwerke | L4: ='Eingabe Gebäude'!C17 -> 4 | AA4: Aktuell | AB4: Vor Sanierung | AC4: Lebenszyklus | AD4: =ROUND('Sanierung Einzelgebäude'!E17/1000,0) -> 0 | AE4: =ROUND('Sanierung Einzelgebäude'!E18/1000,0) -> 0 | AN4: 2 | AO4: 13510.968 | AP4: 18088.70393 | AQ4: 2702.1936 | AR4: 7399.0455 | AS4: =AO4-AQ4 -> 10808.7744 | AT4: =AP4-AR4 -> 10689.65843 | AV4: =AV3+AS4+AT4+AU4 -> -1165327.999
D5: Hausnummer | G5: ='Eingabe Gebäude'!C4 -> 71 | J5: Höhe der Stockwerke [m] | L5: ='Eingabe Gebäude'!C18 -> 3.6 | T5: A1-A3 | U5: A4-A5 | V5: B1 - B7 | W5: C1-C4 | X5: D | AC5: Territorial | AI5: ='Sanierung Einzelgebäude'!H17/1000 -> 0 | AJ5: =ROUND('Sanierung Einzelgebäude'!H18/1000,0) -> 0 | AN5: 3 | AO5: 13510.968 | AP5: 18088.70393 | AQ5: 2702.1936 | AR5: 7399.0455 | AS5: 10808.7744 | AT5: 10689.65843 | AV5: =AV4+AS5+AT5+AU5 -> -1143829.566
D6: PLZ + Ort | G6: ='Eingabe Gebäude'!C5 -> Darmstadt | J6: Umfang [m] | L6: ='Eingabe Gebäude'!C19 -> 52.5 | S6: Strom | T6: =IF(Datenbank_Emission=Ökobaudat2024,0,"-") -> - | U6: =IF(Datenbank_Emission=Ökobaudat2024,0,"-") -> - | V6: =IF(Datenbank_Emission=Ökobaudat2024,_xlfn.IFS(aktSan_PV=PV_0,Nutz_Strom*Ökobaudat!T17,aktSan_PV=PV_20,0.2*Nutz_Strom*Ökobaudat!T27+0.8*Nutz_Strom*Ökobaudat!T17,aktSan_PV=PV_40,0.4*Nutz_Strom*Ökobaudat!T27+0.6*Nutz_Strom*Ökobaudat!T17,aktSan_PV=PV_60,0.6*Nutz_Strom*Ökobaudat!T27+0.4*Nutz_Strom*Ökobaudat!I17,aktSan_PV=PV_80,0.8*Nutz_Strom*Ökobaudat!I27+0.2*Nutz_Strom*Ökobaudat!T17,aktSan_PV=PV_100,Nutz_Strom*Ökobaudat!T27)+IF(aktSan_WP=BHKW,Sanierung!E37,0),"-") -> - | W6: =IF(Datenbank_Emission=Ökobaudat2024,0,"-") -> - | X6: =IF(Datenbank_Emission=Ökobaudat2024,0,"-") -> - | Y6: kg CO2/a | AB6: Nach Sanierung | AC6: Lebenszyklus | AD6: =ROUND('Ergebnis Einzelgebäude'!V15/1000,0) -> 0 | AE6: =ROUND('Ergebnis Einzelgebäude'!V16/1000,0) -> 0 | AF6: =ROUND('Ergebnis Einzelgebäude'!V17/1000,0) -> 0 | AG6: =ROUND('Ergebnis Einzelgebäude'!V18/1000,0) -> 0 | AN6: 4 | AO6: 13510.968 | AP6: 18088.70393 | AQ6: 2702.1936 | AR6: 7399.0455 | AS6: 10808.7744 | AT6: 10689.65843 | AV6: -1122331.133
D7: Hausform | G7: ='Eingabe Gebäude'!C6 -> kleines Mehrfamilienhaus SMFH | J7: Freistehende Wände | L7: ='Eingabe Gebäude'!C20 -> 2 | S7: Wärme | T7: =IF(Datenbank_Emission=Ökobaudat2024,0,"-") -> - | U7: =IF(Datenbank_Emission=Ökobaudat2024,0,"-") -> - | V7: =IF(Datenbank_Emission=Ökobaudat2024,Nutz_Wärme_san*_xlfn.IFS(aktSan_WP=WP,Ökobaudat!T6,OR(aktSan_WP=Heizöl_alt,aktSan_WP=Heizöl_neu),Ökobaudat!T11,aktSan_WP=Erdgas,Ökobaudat!T8,aktSan_WP=Holz_Pellet,Ökobaudat!T14,aktSan_WP=Fernwärme,Ökobaudat!T20,aktSan_WP=BHKW,Sanierung!E38/Nutz_Wärme_san),"-") -> - | W7: =IF(Datenbank_Emission=Ökobaudat2024,0,"-") -> - | X7: =IF(Datenbank_Emission=Ökobaudat2024,0,"-") -> - | Y7: kg CO2/a | AC7: Territorial | AI7: ='Ergebnis Einzelgebäude'!W15 -> 0 | AJ7: =ROUND('Ergebnis Einzelgebäude'!W16/1000,0) -> 0 | AK7: =ROUND('Ergebnis Einzelgebäude'!W17/1000,0) -> 0 | AL7: =ROUND('Ergebnis Einzelgebäude'!W18/1000,0) -> 0 | AN7: 5 | AO7: 13510.968 | AP7: 18088.70393 | AQ7: 2702.1936 | AR7: 7399.0455 | AS7: 10808.7744 | AT7: 10689.65843 | AV7: -1100832.7
J8: Umfang freistehend [m] | L8: ='Eingabe Gebäude'!C21 -> 26.25 | S8: Materialströme | T8: =IF(Datenbank_Emission=Ökobaudat2024,1/Nutzd*(_xlfn.IFS(San_mat=EPS,EPS_in*SUM(Ökobaudat!J32:L32)/Sachbilanz!AC458,San_mat=XPS,XPS_in*SUM(Ökobaudat!J31:L31)/Sachbilanz!AC457,San_mat=Holzfaser,Holz_in*SUM(Ökobaudat!J33:L33)/Sachbilanz!AC459,San_mat=Zellulose,Zellu_in*SUM(Ökobaudat!J34:L34)/Sachbilanz!AC460)+Rahmen_in/Sachbilanz!G300*_xlfn.IFS(Rahmn_mat=PVC,SUM(Ökobaudat!J28:L28)/2.95,Rahmn_mat=Holz,SUM(Ökobaudat!J29:L29)/2.11)+(Glas_in*SUM(Ökobaudat!J30:L30)/Sachbilanz!AC463)+Putz_in*SUM(Ökobaudat!J36:L36)+_xlfn.IFS(Verw=Dep_6,Mix_bauschutt*SUM(Ökobaudat!J67:L67)*0.061+0.0939*Mix_bauschutt*SUM(Ökobaudat!J37:L37)+0.939*1/3*Fens*(SUM(Ökobaudat!J43:L43)+SUM(Ökobaudat!J44:L44)+SUM(Ökobaudat!J45:L45)),Verw=Verwertung100,Mix_bauschutt*SUM(Ökobaudat!J37:L37)+1/3*Fens*(SUM(Ökobaudat!J43:L43)+SUM(Ökobaudat!J44:L44)+SUM(Ökobaudat!J45:L45)))),"-") -> - | U8: =IF(Datenbank_Emission=Ökobaudat2024,1/Nutzd*(_xlfn.IFS(San_mat=EPS,EPS_in*SUM(Ökobaudat!M32:N32)/Sachbilanz!AC458,San_mat=XPS,XPS_in*SUM(Ökobaudat!M31:N31)/Sachbilanz!AC457,San_mat=Holzfaser,Holz_in*SUM(Ökobaudat!M33:N33)/Sachbilanz!AC459,San_mat=Zellulose,Zellu_in*SUM(Ökobaudat!M34:N34)/Sachbilanz!AC460)+Rahmen_in/Sachbilanz!G300*_xlfn.IFS(Rahmn_mat=PVC,SUM(Ökobaudat!M28:N28)/2.95,Rahmn_mat=Holz,SUM(Ökobaudat!M29:N29)/2.11)+(Glas_in*SUM(Ökobaudat!M30:N30)/Sachbilanz!AC463)+Putz_in*SUM(Ökobaudat!M36:N36)+_xlfn.IFS(Verw=Dep_6,Mix_bauschutt*SUM(Ökobaudat!M67:N67)*0.061+0.939*Mix_bauschutt*SUM(Ökobaudat!M37:N37)+0.939*1/3*Fens*(SUM(Ökobaudat!M43:N43)+SUM(Ökobaudat!M44:N44)+SUM(Ökobaudat!M45:N45)),Verw=Verwertung100,Mix_bauschutt*SUM(Ökobaudat!M37:N37)+1/3*Fens*(SUM(Ökobaudat!M43:N43)+SUM(Ökobaudat!M44:N44)+SUM(Ökobaudat!M45:N45)))),"-") -> - | V8: =IF(Datenbank_Emission=Ökobaudat2024,0,"-") -> - | W8: =IF(Datenbank_Emission=Ökobaudat2024,1/Nutzd*(_xlfn.IFS(San_mat=EPS,EPS_in*SUM(Ökobaudat!V32:Y32)/Sachbilanz!AC458,San_mat=XPS,XPS_in*SUM(Ökobaudat!V31:Y31)/Sachbilanz!AC457,San_mat=Holzfaser,Holz_in*SUM(Ökobaudat!V33:Y33)/Sachbilanz!AC459,San_mat=Zellulose,Zellu_in*SUM(Ökobaudat!V34:Y34)/Sachbilanz!AC460)+Rahmen_in/Sachbilanz!G300*_xlfn.IFS(Rahmn_mat=PVC,SUM(Ökobaudat!V28:Y28)/2.95,Rahmn_mat=Holz,SUM(Ökobaudat!V29:Y29)/2.11)+(Glas_in*SUM(Ökobaudat!V30:Y30)/Sachbilanz!AC463)+Putz_in*SUM(Ökobaudat!V36:Y36)+_xlfn.IFS(Verw=Dep_6,Mix_bauschutt*SUM(Ökobaudat!V67:Y67)*0.061+0.939*Mix_bauschutt*SUM(Ökobaudat!V37:Y37)+0.939*1/3*Fens*(SUM(Ökobaudat!V43:Y43)+SUM(Ökobaudat!V44:Y44)+SUM(Ökobaudat!V45:Y45)),Verw=Verwertung100,Mix_bauschutt*SUM(Ökobaudat!V37:Y37)+1/3*Fens*(SUM(Ökobaudat!V43:Y43)+SUM(Ökobaudat!V44:Y44)+SUM(Ökobaudat!V45:Y45)))),"-") -> - | X8: =IF(Datenbank_Emission=Ökobaudat2024,1/Nutzd*(_xlfn.IFS(San_mat=EPS,EPS_in*SUM(Ökobaudat!Z32:AA32)/Sachbilanz!AC458,San_mat=XPS,XPS_in*SUM(Ökobaudat!Z31:AA31)/Sachbilanz!AC457,San_mat=Holzfaser,Holz_in*SUM(Ökobaudat!Z33:AA33)/Sachbilanz!AC459,San_mat=Zellulose,Zellu_in*SUM(Ökobaudat!Z34:AA34)/Sachbilanz!AC460)+Rahmen_in/Sachbilanz!G300*_xlfn.IFS(Rahmn_mat=PVC,SUM(Ökobaudat!Z28:AA28)/2.95,Rahmn_mat=Holz,SUM(Ökobaudat!Z29:AA29)/2.11)+(Glas_in*SUM(Ökobaudat!Z30:AA30)/Sachbilanz!AC463)+Putz_in*SUM(Ökobaudat!Z36:AA36)+_xlfn.IFS(Verw=Dep_6,Mix_bauschutt*SUM(Ökobaudat!Z67:AA67)*0.061*0.939*Mix_bauschutt*SUM(Ökobaudat!Z37:AA37)+0.939*1/3*Fens*(SUM(Ökobaudat!Z43:AA43)+SUM(Ökobaudat!Z44:AA44)+SUM(Ökobaudat!Z45:AA45)),Verw=Verwertung100,Mix_bauschutt*SUM(Ökobaudat!Z37:AA37)+1/3*Fens*(SUM(Ökobaudat!Z43:AA43)+SUM(Ökobaudat!Z44:AA44)+SUM(Ökobaudat!Z45:AA45)))),"-") -> - | Y8: kg CO2/a | AA8: THG Ziel | AB8: 2030 | AH8: ='Sanierung Einzelgebäude'!E21 -> 0 | AN8: 6 | AO8: 13510.968 | AP8: 18088.70393 | AQ8: 2702.1936 | AR8: 7399.0455 | AS8: 10808.7744 | AT8: 10689.65843 | AV8: -1079334.267
D9: Baujahr | G9: ='Eingabe Gebäude'!C7 -> 1908 | J9: Freistehende Wände [m2] | L9: ='Eingabe Gebäude'!C22 -> 380.625 | S9: Technische Einbauten | T9: =IF(Datenbank_Emission=Ökobaudat2024, 1/Nutzd*((Nutzd/20*ROUNDUP((Nutz_Strom*_xlfn.IFS(aktSan_PV=PV_0,0,aktSan_PV=PV_20,0.2,aktSan_PV=PV_40,0.4,aktSan_PV=PV_60,0.6,aktSan_PV=PV_80,0.8,aktSan_PV=PV_100,1))/30000,0)*SUM(Ökobaudat!J24:L24))+_xlfn.IFS(aktSan_WP=Heizöl_alt,0,aktSan_WP=Heizöl_neu,_xlfn.IFS(OR(Hausform_Geb=SFH,Hausform_Geb=SDH),2*ROUNDUP(Nutz_Wärme_san/(365*24*10),0)*SUM(Ökobaudat!J12:L12),OR(Hausform_Geb=SMFH,Hausform_Geb=LMFH),Nutzd/20*ROUNDUP(Nutz_Wärme_san/(365*24*10),0)*SUM(Ökobaudat!J13:L13)),aktSan_WP=WP,Nutzd/20*ROUNDUP(Nutz_Wärme_san/(365*24*30),0)*SUM(Ökobaudat!J7:L7),aktSan_WP=Erdgas,_xlfn.IFS(OR(Hausform_Geb=SFH,Hausform_Geb=SDH),Nutzd/20*ROUNDUP(Nutz_Wärme_san/(365*24*10),0)*SUM(Ökobaudat!J9),OR(Hausform_Geb=SMFH,Hausform_Geb=LMFH),2*ROUNDUP(Nutz_Wärme_san/(365*24*10),0)*SUM(Ökobaudat!J10:L10)),aktSan_WP=Holz_Pellet,Nutzd/15*ROUNDUP(Nutz_Wärme_san/(365*24*9),0)*SUM(Ökobaudat!J15:L15),aktSan_WP=Fernwärme,Nutzd/30*ROUNDUP(Nutz_Wärme_san/(365*24*1),0)*SUM(Ökobaudat!J21:L21),aktSan_WP=BHKW,ROUNDUP(Nutz_Wärme_san/(365*24*500),0)*SUM(Ökobaudat!J22:L22))),"-") -> - | U9: =IF(Datenbank_Emission=Ökobaudat2024, 1/Nutzd*((Nutzd/20*ROUNDUP((Nutz_Strom*_xlfn.IFS(aktSan_PV=PV_0,0,aktSan_PV=PV_20,0.2,aktSan_PV=PV_40,0.4,aktSan_PV=PV_60,0.6,aktSan_PV=PV_80,0.8,aktSan_PV=PV_100,1))/30000,0)*SUM(Ökobaudat!M24:N24))+_xlfn.IFS(aktSan_WP=Heizöl_alt,0,aktSan_WP=Heizöl_neu,_xlfn.IFS(OR(Hausform_Geb=SFH,Hausform_Geb=SDH),Nutzd/20*ROUNDUP(Nutz_Wärme_san/(365*24*10),0)*SUM(Ökobaudat!M12:N12),OR(Hausform_Geb=SMFH,Hausform_Geb=LMFH),Nutzd/20*ROUNDUP(Nutz_Wärme_san/(365*24*10),0)*SUM(Ökobaudat!M13:N13)),aktSan_WP=WP,2*ROUNDUP(Nutz_Wärme_san/(365*24*30),0)*SUM(Ökobaudat!M7:N7),aktSan_WP=Erdgas,_xlfn.IFS(OR(Hausform_Geb=SFH,Hausform_Geb=SDH),Nutzd/20*ROUNDUP(Nutz_Wärme_san/(365*24*10),0)*SUM(Ökobaudat!M9:N9),OR(Hausform_Geb=SMFH,Hausform_Geb=LMFH),2*ROUNDUP(Nutz_Wärme_san/(365*24*10),0)*SUM(Ökobaudat!M10:N10)),aktSan_WP=Holz_Pellet,Nutzd/15*ROUNDUP(Nutz_Wärme_san/(365*24*9),0)*SUM(Ökobaudat!M15:N15),aktSan_WP=Fernwärme,Nutzd/30*ROUNDUP(Nutz_Wärme_san/(365*24*1),0)*SUM(Ökobaudat!M21:N21),aktSan_WP=BHKW,ROUNDUP(Nutz_Wärme_san/(365*24*500),0)*SUM(Ökobaudat!M22:N22))),"-") -> - | V9: =IF(Datenbank_Emission=Ökobaudat2024,0,"-") -> - | W9: =IF(Datenbank_Emission=Ökobaudat2024,1/Nutzd*((Nutzd/20*ROUNDUP((Nutz_Strom*_xlfn.IFS(aktSan_PV=PV_0,0,aktSan_PV=PV_20,0.2,aktSan_PV=PV_40,0.4,aktSan_PV=PV_60,0.6,aktSan_PV=PV_80,0.8,aktSan_PV=PV_100,1))/30000,0)*SUM(Ökobaudat!V24:Y24))+_xlfn.IFS(aktSan_WP=Heizöl_alt,0,aktSan_WP=Heizöl_neu,_xlfn.IFS(OR(Hausform_Geb=SFH,Hausform_Geb=SDH),Nutzd/20*ROUNDUP(Nutz_Wärme_san/(365*24*10),0)*SUM(Ökobaudat!V12:Y12),OR(Hausform_Geb=SMFH,Hausform_Geb=LMFH),Nutzd/20*ROUNDUP(Nutz_Wärme_san/(365*24*10),0)*SUM(Ökobaudat!V13:Y13)),aktSan_WP=WP,2*ROUNDUP(Nutz_Wärme_san/(365*24*30),0)*SUM(Ökobaudat!V7:Y7),aktSan_WP=Erdgas,_xlfn.IFS(OR(Hausform_Geb=SFH,Hausform_Geb=SDH),Nutzd/20*ROUNDUP(Nutz_Wärme_san/(365*24*10),0)*SUM(Ökobaudat!V9:Y9),OR(Hausform_Geb=SMFH,Hausform_Geb=LMFH),2*ROUNDUP(Nutz_Wärme_san/(365*24*10),0)*SUM(Ökobaudat!V10:Y10)),aktSan_WP=Holz_Pellet,Nutzd/15*ROUNDUP(Nutz_Wärme_san/(365*24*9),0)*SUM(Ökobaudat!V15:Y15),aktSan_WP=Fernwärme,Nutzd/30*ROUNDUP(Nutz_Wärme_san/(365*24*1),0)*SUM(Ökobaudat!V21:Y21),aktSan_WP=BHKW,ROUNDUP(Nutz_Wärme_san/(365*24*500),0)*SUM(Ökobaudat!V22:Y22))),"-") -> - | X9: =IF(Datenbank_Emission=Ökobaudat2024, 1/Nutzd*((Nutzd/20*ROUNDUP((Nutz_Strom*_xlfn.IFS(aktSan_PV=PV_0,0,aktSan_PV=PV_20,0.2,aktSan_PV=PV_40,0.4,aktSan_PV=PV_60,0.6,aktSan_PV=PV_80,0.8,aktSan_PV=PV_100,1))/30000,0)*SUM(Ökobaudat!Z24:AA24))+_xlfn.IFS(aktSan_WP=Heizöl_alt,0,aktSan_WP=Heizöl_neu,_xlfn.IFS(OR(Hausform_Geb=SFH,Hausform_Geb=SDH),Nutzd/20*ROUNDUP(Nutz_Wärme_san/(365*24*10),0)*SUM(Ökobaudat!Z12:AA12),OR(Hausform_Geb=SMFH,Hausform_Geb=LMFH),Nutzd/20*ROUNDUP(Nutz_Wärme_san/(365*24*10),0)*SUM(Ökobaudat!Z13:AA13)),aktSan_WP=WP,Nutzd/20*ROUNDUP(Nutz_Wärme_san/(365*24*30),0)*SUM(Ökobaudat!Z7:AA7),aktSan_WP=Erdgas,_xlfn.IFS(OR(Hausform_Geb=SFH,Hausform_Geb=SDH),Nutzd/20*ROUNDUP(Nutz_Wärme_san/(365*24*10),0)*SUM(Ökobaudat!Z9:AA9),OR(Hausform_Geb=SMFH,Hausform_Geb=LMFH),2*ROUNDUP(Nutz_Wärme_san/(365*24*10),0)*SUM(Ökobaudat!Z10:AA10)),aktSan_WP=Holz_Pellet,Nutzd/15*ROUNDUP(Nutz_Wärme_san/(365*24*9),0)*SUM(Ökobaudat!Z15:AA15),aktSan_WP=Fernwärme,Nutzd/30*ROUNDUP(Nutz_Wärme_san/(365*24*1),0)*SUM(Ökobaudat!Z21:AA21),aktSan_WP=BHKW,ROUNDUP(Nutz_Wärme_san/(365*24*500),0)*SUM(Ökobaudat!Z22:AA22))),"-") -> - | Y9: kg CO2/a | AM9: ='Sanierung Einzelgebäude'!E21 -> 0 | AN9: 7 | AO9: 13510.968 | AP9: 18088.70393 | AQ9: 2702.1936 | AR9: 7399.0455 | AS9: 10808.7744 | AT9: 10689.65843 | AV9: -1057835.835
D10: Gebäudegrundfläche GGF [m2] | G10: ='Eingabe Gebäude'!C8 -> 149 | J10: Fensterfläche [m2] | L10: ='Eingabe Gebäude'!C23 -> 74.5 | S10: Gesamt | T10: =IF(Datenbank_Emission=Ökobaudat2024,SUM(T6:T9)/1000,"-") -> - | U10: =IF(Datenbank_Emission=Ökobaudat2024,SUM(U6:U9)/1000,"-") -> - | V10: =IF(Datenbank_Emission=Ökobaudat2024,SUM(V6:V9)/1000,"-") -> - | W10: =IF(Datenbank_Emission=Ökobaudat2024,SUM(W6:W9)/1000,"-") -> - | X10: =IF(Datenbank_Emission=Ökobaudat2024,SUM(X6:X9)/1000,"-") -> - | Y10: T CO2/a | AB10: 2045 | AD10: 0 | AE10: 0 | AN10: 8 | AO10: 13510.968 | AP10: 18088.70393 | AQ10: 2702.1936 | AR10: 7399.0455 | AS10: 10808.7744 | AT10: 10689.65843 | AV10: -1036337.402
D11: Bruttogrundfläche BGF [m2] | G11: ='Eingabe Gebäude'!C9 -> 596 | J11: Fenstermaterial | L11: ='Eingabe Gebäude'!C24 -> PVC | AI11: 0 | AJ11: 0 | AN11: 9 | AO11: 13510.968 | AP11: 18088.70393 | AQ11: 2702.1936 | AR11: 7399.0455 | AS11: 10808.7744 | AT11: 10689.65843 | AV11: -1014838.969
D12: Bruttorauminhalt [m3] | G12: ='Eingabe Gebäude'!C10 -> 2538 | J12: Fensterverglasung | L12: ='Eingabe Gebäude'!C25 -> 2-fach | S12: Phasen nach GHG -Protocol | T12: Vor Sanierung | V12: Nach Sanierung | AN12: 10 | AO12: 13510.968 | AP12: 18088.70393 | AQ12: 2702.1936 | AR12: 7399.0455 | AS12: 10808.7744 | AT12: 10689.65843 | AV12: -993340.5362
D13: Gebäudenutzfläche GNF [m2] | G13: ='Eingabe Gebäude'!C11 -> 812 | J13: Türfläche [m2] | L13: ='Eingabe Gebäude'!C26 -> 4 | T13: Lebens- zyklus | U13: Territorial/ Scope 1 | V13: Lebens- zyklus | W13: Territorial/ Scope 1 | AN13: 11 | AO13: 13510.968 | AP13: 18088.70393 | AQ13: 2702.1936 | AR13: 7399.0455 | AS13: 10808.7744 | AT13: 10689.65843 | AV13: -971842.1033
D14: Dachform | G14: ='Eingabe Gebäude'!C13 -> Steildach Holz | J14: Sanierungsstand | L14: ='Eingabe Gebäude'!C27 -> r1: Dach saniert | AN14: 12 | AO14: 13510.968 | AP14: 18088.70393 | AQ14: 2702.1936 | AR14: 7399.0455 | AS14: 10808.7744 | AT14: 10689.65843 | AV14: -950343.6705
D15: Dachfläche [m2] | G15: ='Eingabe Gebäude'!C14 -> 149 | J15: Baualtersklasse | L15: ='Eingabe Gebäude'!C28 -> Vor 1948 | S15: Strom | T15: =I30 -> 0 | U15: =J30 -> 0 | V15: =_xlfn.IFS(Datenbank_Emission=Ökobaudat2024,_xlfn.IFS(aktSan_PV=PV_0,Nutz_Strom*SUM(Ökobaudat!J17:Y17),aktSan_PV=PV_20,0.2*Nutz_Strom*SUM(Ökobaudat!J27:Y27)+0.8*Nutz_Strom*SUM(Ökobaudat!J17:Y17),aktSan_PV=PV_40,0.4*Nutz_Strom*SUM(Ökobaudat!J27:Y27)+0.6*Nutz_Strom*SUM(Ökobaudat!J17:Y17),aktSan_PV=PV_60,0.6*Nutz_Strom*SUM(Ökobaudat!J27:Y27)+0.4*Nutz_Strom*SUM(Ökobaudat!J17:Y17),aktSan_PV=PV_80,0.8*Nutz_Strom*SUM(Ökobaudat!J27:Y27)+0.2*Nutz_Strom*SUM(Ökobaudat!J17:Y17),aktSan_PV=PV_100,Nutz_Strom*SUM(Ökobaudat!J27:Y27)),Datenbank_Emission=Datenbank_eigen,_xlfn.IFS(aktSan_PV=PV_0,Nutz_Strom*'Eigene Datenbank'!M17,aktSan_PV=PV_20,0.2*Nutz_Strom*'Eigene Datenbank'!M27+0.8*Nutz_Strom*'Eigene Datenbank'!M17,aktSan_PV=PV_40,0.4*Nutz_Strom*'Eigene Datenbank'!M27+0.6*Nutz_Strom*'Eigene Datenbank'!M17,aktSan_PV=PV_60,0.6*Nutz_Strom*'Eigene Datenbank'!M27+0.4*Nutz_Strom*'Eigene Datenbank'!M17,aktSan_PV=PV_80,0.8*Nutz_Strom*'Eigene Datenbank'!M27+0.2*Nutz_Strom*'Eigene Datenbank'!M17,aktSan_PV=PV_100,Nutz_Strom*'Eigene Datenbank'!M27))+IF(aktSan_WP=BHKW,Sanierung!E37,0) -> 0 | W15: 0 | X15: kg CO2/a | AE15: Strom | AF15: Wärme | AG15: Materialströme | AH15: Technische Einbauten | AI15: THG ges. | AN15: 13 | AO15: 13510.968 | AP15: 18088.70393 | AQ15: 2702.1936 | AR15: 7399.0455 | AS15: 10808.7744 | AT15: 10689.65843 | AV15: -928845.2377
D16: Traufhöhe [m] | G16: ='Eingabe Gebäude'!C15 -> 14.5 | J16: Wohneinheiten im Haus | L16: ='Eingabe Gebäude'!C30 -> 6 | S16: Wärme | T16: =I31 -> 0 | U16: =J31 -> 0 | V16: =_xlfn.IFS(aktSan_WP=WP,Sanierung!E28,OR(aktSan_WP=Heizöl_alt,aktSan_WP=Heizöl_neu),Sanierung!E29,aktSan_WP=Erdgas,Sanierung!E30,aktSan_WP=Holz_Pellet,Sanierung!E31,aktSan_WP=Fernwärme,Sanierung!E32,aktSan_WP=BHKW,Sanierung!E38) -> 0 | W16: =_xlfn.IFS(aktSan_WP=WP,0,OR(aktSan_WP=Heizöl_alt,aktSan_WP=Heizöl_neu),Sanierung!E29,aktSan_WP=Erdgas,Sanierung!E30,aktSan_WP=Holz_Pellet,Sanierung!E31,aktSan_WP=Fernwärme,0,aktSan_WP=BHKW,0) -> 0 | X16: kg CO2/a | AN16: 14 | AO16: =$T$68 -> 13510.968 | AP16: =$T$69 -> 18088.70393 | AQ16: =$V$68 -> 2702.1936 | AR16: =$V$69 -> 7399.0455 | AS16: =AO16-AQ16 -> 10808.7744 | AT16: =AP16-AR16 -> 10689.65843 | AV16: =AV15+AS16+AT16+AU16 -> -907346.8048
D17: Firsthöhe [m] | G17: ='Eingabe Gebäude'!C16 -> 19.5 | J17: Personen / Wohneiheit | L17: ='Eingabe Gebäude'!C31 -> 3+ | S17: Materialströme | V17: =1/Nutzd*_xlfn.IFS(Datenbank_Emission=Ökobaudat2024,_xlfn.IFS(San_mat=EPS,EPS_in*SUM(Ökobaudat!J32:Y32)/Sachbilanz!AC458,San_mat=XPS,XPS_in*SUM(Ökobaudat!J31:Y31)/Sachbilanz!AC457,San_mat=Holzfaser,Holz_in*SUM(Ökobaudat!J33:Y33)/Sachbilanz!AC459,San_mat=Zellulose,Zellu_in*SUM(Ökobaudat!J34:Y34)/Sachbilanz!AC460,San_mat='Drop-Down'!T6,0)+Rahmen_in/Sachbilanz!G300*_xlfn.IFS(Rahmn_mat=PVC,SUM(Ökobaudat!J28:Y28)/2.95,Rahmn_mat=Holz,SUM(Ökobaudat!J29:Y29)/2.11)+(Glas_in*SUM(Ökobaudat!J30:Y30)/Sachbilanz!AC463)+Putz_in*SUM(Ökobaudat!J36:Y36)+_xlfn.IFS(Verw=Dep_6,Mix_bauschutt*SUM(Ökobaudat!J67:Y67)*0.061+0.939*Mix_bauschutt*SUM(Ökobaudat!J37:Y37)+0.939*1/3*Fens*(SUM(Ökobaudat!J43:Y43)+SUM(Ökobaudat!J44:Y44)+SUM(Ökobaudat!J45:Y45)),Verw=Verwertung100,Mix_bauschutt*SUM(Ökobaudat!J37:Y37)+1/3*Fens*(SUM(Ökobaudat!J43:Y43)+SUM(Ökobaudat!J44:Y44)+SUM(Ökobaudat!J45:Y45))),Datenbank_Emission=Datenbank_eigen,_xlfn.IFS(San_mat=EPS,EPS_in*'Eigene Datenbank'!M32,San_mat=XPS,XPS_in*'Eigene Datenbank'!M31,San_mat=Holzfaser,Holz_in*'Eigene Datenbank'!M33/Sachbilanz!AC452,San_mat=Zellulose,Zellu_in*'Eigene Datenbank'!M34,San_mat='Drop-Down'!T6,0)+Rahmen_in*_xlfn.IFS(Rahmn_mat=PVC,'Eigene Datenbank'!M28/Sachbilanz!E296,Rahmn_mat=Holz,'Eigene Datenbank'!M29/Sachbilanz!E298)+Glas_in*'Eigene Datenbank'!M30+(Putz_in*'Eigene Datenbank'!M36)+_xlfn.IFS(Verw=Dep_6,Mix_bauschutt*'Eigene Datenbank'!M67*0.061+0.939*0.5*Mix_bauschutt*('Eigene Datenbank'!M37+'Eigene Datenbank'!M38)+0.939*1/3*Fens*('Eigene Datenbank'!M43+'Eigene Datenbank'!M44+'Eigene Datenbank'!M45),Verw=Verwertung100,0.5*Mix_bauschutt*('Eigene Datenbank'!M37+'Eigene Datenbank'!M38)+1/3*Fens*('Eigene Datenbank'!M43+'Eigene Datenbank'!M44+'Eigene Datenbank'!M45))) -> 0 | W17: 0 | X17: kg CO2/a | AC17: A1 - A3 | AD17: Herstellungs- phase | AE17: =ROUND('Ergebnis Einzelgebäude'!T6/1000,0) ->  | AF17: =ROUND('Ergebnis Einzelgebäude'!T7/1000,0) ->  | AG17: =ROUND('Ergebnis Einzelgebäude'!T8/1000,0) ->  | AH17: =ROUND('Ergebnis Einzelgebäude'!T9/1000,0) ->  | AI17: ='Ergebnis Einzelgebäude'!T10 -> - | AN17: 15 | AO17: 13510.968 | AP17: 18088.70393 | AQ17: 2702.1936 | AR17: 7399.0455 | AS17: 10808.7744 | AT17: 10689.65843 | AU17: =-Y71 -> -27000 | AV17: -912848.372
S18: Technische Einbauten | V18: =1/Nutzd*_xlfn.IFS(Datenbank_Emission=Ökobaudat2024,Nutzd/20*ROUNDUP((Nutz_Strom*_xlfn.IFS(aktSan_PV=PV_0,0,aktSan_PV=PV_20,0.2,aktSan_PV=PV_40,0.4,aktSan_PV=PV_60,0.6,aktSan_PV=PV_80,0.8,aktSan_PV=PV_100,1))/30000,0)*SUM(Ökobaudat!J24:Y24)+_xlfn.IFS(aktSan_WP=Heizöl_alt,0,aktSan_WP=Heizöl_neu,_xlfn.IFS(OR(Hausform_Geb=SFH,Hausform_Geb=SDH),Nutzd/20*ROUNDUP(Nutz_Wärme_san/(365*24*10),0)*SUM(Ökobaudat!J12:Y12),OR(Hausform_Geb=SMFH,Hausform_Geb=LMFH),Nutzd/20*ROUNDUP(Nutz_Wärme_san/(365*24*10),0)*SUM(Ökobaudat!J13:Y13)),aktSan_WP=WP,Nutzd/20*ROUNDUP(Nutz_Wärme_san/(365*24*30),0)*SUM(Ökobaudat!J7:Y7),aktSan_WP=Erdgas,_xlfn.IFS(OR(Hausform_Geb=SFH,Hausform_Geb=SDH),Nutzd/20*ROUNDUP(Nutz_Wärme_san/(365*24*10),0)*SUM(Ökobaudat!J9:Y9),OR(Hausform_Geb=SMFH,Hausform_Geb=LMFH),2*ROUNDUP(Nutz_Wärme_san/(365*24*10),0)*SUM(Ökobaudat!J10:Y10)),aktSan_WP=Holz_Pellet,Nutzd/15*ROUNDUP(Nutz_Wärme_san/(365*24*9),0)*SUM(Ökobaudat!J15:Y15),aktSan_WP=Fernwärme,Nutzd/30*ROUNDUP(Nutz_Wärme_san/(365*24*1),0)*SUM(Ökobaudat!J21:Y21),aktSan_WP=BHKW,ROUNDUP(Nutz_Wärme_san/(365*24*500),0)*SUM(Ökobaudat!J22:Y22)),Datenbank_Emission=Datenbank_eigen,Nutzd/20*ROUNDUP((Nutz_Strom*_xlfn.IFS(aktSan_PV=PV_0,0,aktSan_PV=PV_20,0.2,aktSan_PV=PV_40,0.4,aktSan_PV=PV_60,0.6,aktSan_PV=PV_80,0.8,aktSan_PV=PV_100,1))/30000,0)*'Eigene Datenbank'!M24+_xlfn.IFS(aktSan_WP=Heizöl_alt,0,aktSan_WP=Heizöl_neu,_xlfn.IFS(OR(Hausform_Geb=SFH,Hausform_Geb=SDH),Nutzd/20*ROUNDUP(Nutz_Wärme_san/(365*24*10),0)*'Eigene Datenbank'!M12,OR(Hausform_Geb=SMFH,Hausform_Geb=LMFH),Nutzd/20*ROUNDUP(Nutz_Wärme_san/(365*24*10),0)*'Eigene Datenbank'!M13),aktSan_WP=WP,Nutzd/20*ROUNDUP(Nutz_Wärme_san/(365*24*30),0)*'Eigene Datenbank'!M7,aktSan_WP=Erdgas,_xlfn.IFS(OR(Hausform_Geb=SFH,Hausform_Geb=SDH),Nutzd/20*ROUNDUP(Nutz_Wärme_san/(365*24*10),0)*'Eigene Datenbank'!M9,OR(Hausform_Geb=SMFH,Hausform_Geb=LMFH),2*ROUNDUP(Nutz_Wärme_san/(365*24*10),0)*'Eigene Datenbank'!M10),aktSan_WP=Holz_Pellet,Nutzd/15*ROUNDUP(Nutz_Wärme_san/(365*24*9),0)*'Eigene Datenbank'!M15,aktSan_WP=Fernwärme,Nutzd/30*ROUNDUP(Nutz_Wärme_san/(365*24*1),0)*'Eigene Datenbank'!M21,aktSan_WP=BHKW,ROUNDUP(Nutz_Wärme_san/(365*24*500),0)*'Eigene Datenbank'!M22)) -> 0 | W18: 0 | X18: kg CO2/a | AC18: A4 - A5 | AD18: Bauphase | AE18: =ROUND('Ergebnis Einzelgebäude'!U6/1000,0) ->  | AF18: ='Ergebnis Einzelgebäude'!U7 -> - | AG18: =ROUND('Ergebnis Einzelgebäude'!U8/1000,0) ->  | AH18: =ROUND('Ergebnis Einzelgebäude'!U9/1000,0) ->  | AI18: ='Ergebnis Einzelgebäude'!U10 -> - | AN18: 16 | AO18: 13510.968 | AP18: 18088.70393 | AQ18: 2702.1936 | AR18: 7399.0455 | AS18: 10808.7744 | AT18: 10689.65843 | AV18: -891349.9392
S19: Gesamt | T19: =(T15+T16+T17+T18)/1000 -> 0 | U19: 0 | V19: =(V15+V16+V17+V18)/1000 -> 0 | W19: =(W15+W16+W17+W18)/1000 -> 0 | X19: T CO2/a | AC19: B1 - B7 | AD19: Nutzungs- phase | AE19: =ROUND('Ergebnis Einzelgebäude'!V6/1000,0) ->  | AF19: =ROUND('Ergebnis Einzelgebäude'!V7/1000,0) ->  | AG19: ='Ergebnis Einzelgebäude'!V8 -> - | AH19: =ROUND('Ergebnis Einzelgebäude'!V9/1000,0) ->  | AI19: ='Ergebnis Einzelgebäude'!V10 -> - | AN19: 17 | AO19: 13510.968 | AP19: 18088.70393 | AQ19: 2702.1936 | AR19: 7399.0455 | AS19: 10808.7744 | AT19: 10689.65843 | AV19: -869851.5063
AC20: C1 -C4 | AD20: Entsorgungs- phase | AE20: =ROUND('Ergebnis Einzelgebäude'!W6/100,0) ->  | AF20: =ROUND('Ergebnis Einzelgebäude'!W7/1000,0) ->  | AG20: =ROUND('Ergebnis Einzelgebäude'!W8/1000,0) ->  | AH20: =ROUND('Ergebnis Einzelgebäude'!W9/1000,0) ->  | AI20: ='Ergebnis Einzelgebäude'!W10 -> - | AN20: 18 | AO20: 13510.968 | AP20: 18088.70393 | AQ20: 2702.1936 | AR20: 7399.0455 | AS20: 10808.7744 | AT20: 10689.65843 | AV20: -848353.0735
AC21: D | AD21: Vorteile und Belastungen | AE21: =ROUND('Ergebnis Einzelgebäude'!X6/1000,0) ->  | AF21: =ROUND('Ergebnis Einzelgebäude'!X7/100,0) ->  | AG21: =ROUND('Ergebnis Einzelgebäude'!X8/1000,0) ->  | AH21: =ROUND('Ergebnis Einzelgebäude'!X9/1000,0) ->  | AI21: ='Ergebnis Einzelgebäude'!X10 -> - | AN21: 19 | AO21: 13510.968 | AP21: 18088.70393 | AQ21: 2702.1936 | AR21: 7399.0455 | AS21: 10808.7744 | AT21: 10689.65843 | AV21: -826854.6406
S22: Phasen nach DIN EN 15804 | T22: Herstellung | U22: Bau | V22: Nutzungs | W22: Entsorgungs | X22: Vorteile und Belastungen | Y22: Gesamt | AD22: Lebenszyklus | AE22: =ROUND('Ergebnis Einzelgebäude'!V15/1000,0) -> 0 | AF22: =ROUND('Ergebnis Einzelgebäude'!V16/1000,0) -> 0 | AG22: =ROUND('Ergebnis Einzelgebäude'!V17/1000,0) -> 0 | AH22: =ROUND('Ergebnis Einzelgebäude'!V18/1000,0) -> 0 | AI22: ='Ergebnis Einzelgebäude'!V19 -> 0 | AN22: 20 | AO22: 13510.968 | AP22: 18088.70393 | AQ22: 2702.1936 | AR22: 7399.0455 | AS22: 10808.7744 | AT22: 10689.65843 | AU22: =-Y72 -> -3310 | AV22: -808666.2078
AD23: Vor Sanierung | AE23: =ROUND('Sanierung Einzelgebäude'!E17/1000,0) -> 0 | AF23: =ROUND('Sanierung Einzelgebäude'!E18/1000,0) -> 0 | AN23: 21 | AO23: 13510.968 | AP23: 18088.70393 | AQ23: 2702.1936 | AR23: 7399.0455 | AS23: 10808.7744 | AT23: 10689.65843 | AV23: -787167.775
B24: IST-Zustand | T24: A1-A3 | U24: A4-A5 | V24: B1 - B7 | W24: C1-C4 | X24: D | Y24: A-C | AN24: 22 | AO24: 13510.968 | AP24: 18088.70393 | AQ24: 2702.1936 | AR24: 7399.0455 | AS24: 10808.7744 | AT24: 10689.65843 | AV24: -765669.3421
Q25: =_xlfn.IFS(Datenbank_Emission=Datenbank_eigen,"Water con-sumption [m3]",Datenbank_Emission=Ökobaudat2024,"Wasserentzugs-potenzial [m3 world eq]") -> Water con-sumption [m3] | S25: Strom | T25: =IF(Datenbank_Emission=Ökobaudat2024,0,"-") -> - | U25: =IF(Datenbank_Emission=Ökobaudat2024,0,"-") -> - | V25: =IF(Datenbank_Emission=Ökobaudat2024,_xlfn.IFS(aktSan_PV=PV_0,Nutz_Strom*SUM(Ökobaudat!AH17:AN17),aktSan_PV=PV_20,0.2*Nutz_Strom*SUM(Ökobaudat!AH27:AN27)+0.8*Nutz_Strom*SUM(Ökobaudat!AH17:AN17),aktSan_PV=PV_40,0.4*Nutz_Strom*SUM(Ökobaudat!AH27:AN27)+0.6*Nutz_Strom*SUM(Ökobaudat!AH17:AN17),aktSan_PV=PV_60,0.6*Nutz_Strom*SUM(Ökobaudat!AH27:AN27)+0.4*Nutz_Strom*SUM(Ökobaudat!AH17:AN17),aktSan_PV=PV_80,0.8*Nutz_Strom*SUM(Ökobaudat!AH27:AN27)+0.2*Nutz_Strom*SUM(Ökobaudat!AH17:AN17),aktSan_PV=PV_100,Nutz_Strom*SUM(Ökobaudat!AH27:AN27))+IF(aktSan_WP=BHKW,Sanierung!G35/2*SUM(Ökobaudat!AH17:AN17),0),"-") -> - | W25: =IF(Datenbank_Emission=Ökobaudat2024,0,"-") -> - | X25: =IF(Datenbank_Emission=Ökobaudat2024,0,"-") -> - | Y25: =IF(Datenbank_Emission=Ökobaudat2024,_xlfn.IFS(aktSan_PV=PV_0,Nutz_Strom*Ökobaudat!AB17,aktSan_PV=PV_20,0.2*Nutz_Strom*Ökobaudat!AB27+0.8*Nutz_Strom*Ökobaudat!AB17,aktSan_PV=PV_40,0.4*Nutz_Strom*Ökobaudat!AB27+0.6*Nutz_Strom*Ökobaudat!AB17,aktSan_PV=PV_60,0.6*Nutz_Strom*Ökobaudat!AB27+0.4*Nutz_Strom*Ökobaudat!AB17,aktSan_PV=PV_80,0.8*Nutz_Strom*Ökobaudat!AB27+0.2*Nutz_Strom*Ökobaudat!AB17,aktSan_PV=PV_100,Nutz_Strom*Ökobaudat!AB27)+IF(aktSan_WP=BHKW,Sanierung!G35/2*SUM(Ökobaudat!AH17),0),_xlfn.IFS(Datenbank_Emission=Datenbank_eigen,_xlfn.IFS(aktSan_PV=PV_0,Nutz_Strom*'Eigene Datenbank'!N17,aktSan_PV=PV_20,0.2*Nutz_Strom*'Eigene Datenbank'!N27+0.8*Nutz_Strom*'Eigene Datenbank'!N17,aktSan_PV=PV_40,0.4*Nutz_Strom*'Eigene Datenbank'!N27+0.6*Nutz_Strom*'Eigene Datenbank'!N17,aktSan_PV=PV_60,0.6*Nutz_Strom*'Eigene Datenbank'!N27+0.4*Nutz_Strom*'Eigene Datenbank'!N17,aktSan_PV=PV_80,0.8*Nutz_Strom*'Eigene Datenbank'!N27+0.2*Nutz_Strom*'Eigene Datenbank'!N17,aktSan_PV=PV_100,Nutz_Strom*'Eigene Datenbank'!N27)+IF(aktSan_WP=BHKW,Sanierung!G35/2*'Eigene Datenbank'!N17,0))) -> 0 | AN25: 23 | AO25: =$T$68 -> 13510.968 | AP25: =$T$69 -> 18088.70393 | AQ25: =$V$68 -> 2702.1936 | AR25: =$V$69 -> 7399.0455 | AS25: 10808.7744 | AT25: 10689.65843 | AV25: -744170.9093
G26: Nutzenergiebedarf | I26: THG | S26: Wärme | T26: =IF(Datenbank_Emission=Ökobaudat2024,0,"-") -> - | U26: =IF(Datenbank_Emission=Ökobaudat2024,0,"-") -> - | V26: =IF(Datenbank_Emission=Ökobaudat2024,Nutz_Wärme_san*_xlfn.IFS(aktSan_WP=WP,SUM(Ökobaudat!AH6:AN6),OR(aktSan_WP=Heizöl_alt,aktSan_WP=Heizöl_neu),SUM(Ökobaudat!AH11:AN11),aktSan_WP=Erdgas,SUM(Ökobaudat!AH8:AN8),aktSan_WP=Holz_Pellet,SUM(Ökobaudat!AH14:AN14),aktSan_WP=Fernwärme,SUM(Ökobaudat!AH20:AN20),aktSan_WP=BHKW,SUM(Ökobaudat!AH23:AN23)),"-") -> - | W26: =IF(Datenbank_Emission=Ökobaudat2024,0,"-") -> - | X26: =IF(Datenbank_Emission=Ökobaudat2024,0,"-") -> - | Y26: =IF(Datenbank_Emission=Ökobaudat2024,Nutz_Wärme_san*_xlfn.IFS(aktSan_WP=WP,Ökobaudat!AB6,OR(aktSan_WP=Heizöl_alt,aktSan_WP=Heizöl_neu),Ökobaudat!AB11,aktSan_WP=Erdgas,Ökobaudat!AB8,aktSan_WP=Holz_Pellet,Ökobaudat!AB14,aktSan_WP=Fernwärme,Ökobaudat!AB20,aktSan_WP=BHKW,Ökobaudat!AB23),Nutz_Wärme_san*_xlfn.IFS(Datenbank_Emission=Datenbank_eigen,_xlfn.IFS(aktSan_WP=WP,'Eigene Datenbank'!N6,OR(aktSan_WP=Heizöl_alt,aktSan_WP=Heizöl_neu),'Eigene Datenbank'!N11,aktSan_WP=Erdgas,'Eigene Datenbank'!N8,aktSan_WP=Holz_Pellet,'Eigene Datenbank'!N14,aktSan_WP=Fernwärme,('Eigene Datenbank'!N18*0.65+'Eigene Datenbank'!N19*0.35),aktSan_WP=BHKW,'Eigene Datenbank'!N23))) -> 0 | AN26: 24 | AO26: 13510.968 | AP26: 18088.70393 | AQ26: 2702.1936 | AR26: 7399.0455 | AS26: 10808.7744 | AT26: 10689.65843 | AV26: -722672.4765
I27: Lebens-zyklus | J27: Scope 1 | K27: Ziel 2030 | L27: Ziel 2045 | S27: Materialströme | T27: =IF(Datenbank_Emission=Ökobaudat2024,1/Nutzd*(_xlfn.IFS(San_mat=EPS,EPS_in*SUM(Ökobaudat!AC32:AE32)/Sachbilanz!AC458,San_mat=XPS,XPS_in*SUM(Ökobaudat!AC31:AE31)/Sachbilanz!AC457,San_mat=Holzfaser,Holz_in*SUM(Ökobaudat!AC33:AE33)/Sachbilanz!AC459,San_mat=Zellulose,Zellu_in*SUM(Ökobaudat!AC34:AE34)/Sachbilanz!AC460)+Rahmen_in/Sachbilanz!G300*_xlfn.IFS(Rahmn_mat=PVC,SUM(Ökobaudat!AC28:AE28)/2.95,Rahmn_mat=Holz,SUM(Ökobaudat!AC29:AE29)/2.11)+(Glas_in*SUM(Ökobaudat!AC30:AE30)/Sachbilanz!AC463)+Putz_in*SUM(Ökobaudat!AC36:AE36)+_xlfn.IFS(Verw=Dep_6,Mix_bauschutt*SUM(Ökobaudat!AC67:AE67)*0.061+0.0939*Mix_bauschutt*SUM(Ökobaudat!AC37:AE37)+0.939*1/3*Fens*(SUM(Ökobaudat!AC43:AE43)+SUM(Ökobaudat!AC44:AE44)+SUM(Ökobaudat!AC45:AE45)),Verw=Verwertung100,Mix_bauschutt*SUM(Ökobaudat!AC37:AE37)+1/3*Fens*(SUM(Ökobaudat!AC43:AE43)+SUM(Ökobaudat!AC44:AE44)+SUM(Ökobaudat!AC45:AE45)))),"-") -> - | U27: =IF(Datenbank_Emission=Ökobaudat2024,1/Nutzd*(_xlfn.IFS(San_mat=EPS,EPS_in*SUM(Ökobaudat!AF32:AG32)/Sachbilanz!AC458,San_mat=XPS,XPS_in*SUM(Ökobaudat!AF31:AG31)/Sachbilanz!AC457,San_mat=Holzfaser,Holz_in*SUM(Ökobaudat!AF33:AG33)/Sachbilanz!AC459,San_mat=Zellulose,Zellu_in*SUM(Ökobaudat!AF34:AG34)/Sachbilanz!AC460)+Rahmen_in/Sachbilanz!G300*_xlfn.IFS(Rahmn_mat=PVC,SUM(Ökobaudat!AF28:AG28)/2.95,Rahmn_mat=Holz,SUM(Ökobaudat!AF29:AG29)/2.11)+(Glas_in*SUM(Ökobaudat!AF30:AG30)/Sachbilanz!AC463)+Putz_in*SUM(Ökobaudat!AF36:AG36)+_xlfn.IFS(Verw=Dep_6,Mix_bauschutt*SUM(Ökobaudat!AF67:AG67)*0.061+0.939*Mix_bauschutt*SUM(Ökobaudat!AF37:AG37)+0.939*1/3*Fens*(SUM(Ökobaudat!AF43:AG43)+SUM(Ökobaudat!AF44:AG44)+SUM(Ökobaudat!AF45:AG45)),Verw=Verwertung100,Mix_bauschutt*SUM(Ökobaudat!AF37:AG37)+1/3*Fens*(SUM(Ökobaudat!AF43:AG43)+SUM(Ökobaudat!AF44:AG44)+SUM(Ökobaudat!AF45:AG45)))),"-") -> - | V27: =IF(Datenbank_Emission=Ökobaudat2024,0,"-") -> - | W27: =IF(Datenbank_Emission=Ökobaudat2024,1/Nutzd*(_xlfn.IFS(San_mat=EPS,EPS_in*SUM(Ökobaudat!AO32:AR32)/Sachbilanz!AC458,San_mat=XPS,XPS_in*SUM(Ökobaudat!AO31:AR31)/Sachbilanz!AC457,San_mat=Holzfaser,Holz_in*SUM(Ökobaudat!AO33:AR33)/Sachbilanz!AC459,San_mat=Zellulose,Zellu_in*SUM(Ökobaudat!AO34:AR34)/Sachbilanz!AC460)+Rahmen_in/Sachbilanz!G300*_xlfn.IFS(Rahmn_mat=PVC,SUM(Ökobaudat!AO28:AR28)/2.95,Rahmn_mat=Holz,SUM(Ökobaudat!AO29:AR29)/2.11)+(Glas_in*SUM(Ökobaudat!AO30:AR30)/Sachbilanz!AC463)+Putz_in*SUM(Ökobaudat!AO36:AR36)+_xlfn.IFS(Verw=Dep_6,Mix_bauschutt*SUM(Ökobaudat!AO67:AR67)*0.061+0.939*Mix_bauschutt*SUM(Ökobaudat!AO37:AR37)+0.939*1/3*Fens*(SUM(Ökobaudat!AO43:AR43)+SUM(Ökobaudat!AO44:AR44)+SUM(Ökobaudat!AO45:AR45)),Verw=Verwertung100,Mix_bauschutt*SUM(Ökobaudat!AO37:AR37)+1/3*Fens*(SUM(Ökobaudat!AO43:AR43)+SUM(Ökobaudat!AO44:AR44)+SUM(Ökobaudat!AO45:AR45)))),"-") -> - | X27: =IF(Datenbank_Emission=Ökobaudat2024,1/Nutzd*(_xlfn.IFS(San_mat=EPS,EPS_in*SUM(Ökobaudat!AS32:AT32)/Sachbilanz!AC458,San_mat=XPS,XPS_in*SUM(Ökobaudat!AS31:AT31)/Sachbilanz!AC457,San_mat=Holzfaser,Holz_in*SUM(Ökobaudat!AS33:AT33)/Sachbilanz!AC459,San_mat=Zellulose,Zellu_in*SUM(Ökobaudat!AS34:AT34)/Sachbilanz!AC460)+Rahmen_in/Sachbilanz!G300*_xlfn.IFS(Rahmn_mat=PVC,SUM(Ökobaudat!AS28:AT28)/2.95,Rahmn_mat=Holz,SUM(Ökobaudat!AS29:AT29)/2.11)+(Glas_in*SUM(Ökobaudat!AS30:AT30)/Sachbilanz!AC463)+Putz_in*SUM(Ökobaudat!AS36:AT36)+_xlfn.IFS(Verw=Dep_6,Mix_bauschutt*SUM(Ökobaudat!AS67:AT67)*0.061*0.939*Mix_bauschutt*SUM(Ökobaudat!AS37:AT37)+0.939*1/3*Fens*(SUM(Ökobaudat!AS43:AT43)+SUM(Ökobaudat!AS44:AT44)+SUM(Ökobaudat!AS45:AT45)),Verw=Verwertung100,Mix_bauschutt*SUM(Ökobaudat!AS37:AT37)+1/3*Fens*(SUM(Ökobaudat!AS43:AT43)+SUM(Ökobaudat!AS44:AT44)+SUM(Ökobaudat!AS45:AT45)))),"-") -> - | Y27: =IF(Datenbank_Emission=Ökobaudat2024,1/Nutzd*(_xlfn.IFS(San_mat=EPS,EPS_in*SUM(Ökobaudat!AB32)/Sachbilanz!AC458,San_mat=XPS,XPS_in*SUM(Ökobaudat!AB31)/Sachbilanz!AC457,San_mat=Holzfaser,Holz_in*SUM(Ökobaudat!AB33)/Sachbilanz!AC459,San_mat=Zellulose,Zellu_in*SUM(Ökobaudat!AB34)/Sachbilanz!AC460)+Rahmen_in/Sachbilanz!G300*_xlfn.IFS(Rahmn_mat=PVC,SUM(Ökobaudat!AB28)/2.95,Rahmn_mat=Holz,SUM(Ökobaudat!AB29)/2.11)+(Glas_in*SUM(Ökobaudat!AB30)/Sachbilanz!AC463)+Putz_in*SUM(Ökobaudat!AB36)+_xlfn.IFS(Verw=Dep_6,Mix_bauschutt*SUM(Ökobaudat!AB67)*0.061+0.0939*Mix_bauschutt*SUM(Ökobaudat!AB37)+0.939*1/3*Fens*(SUM(Ökobaudat!AB43)+SUM(Ökobaudat!AB44)+SUM(Ökobaudat!AB45)),Verw=Verwertung100,Mix_bauschutt*SUM(Ökobaudat!AB37)+1/3*Fens*(SUM(Ökobaudat!AB43)+SUM(Ökobaudat!AB44)+SUM(Ökobaudat!AB45)))),1/Nutzd*_xlfn.IFS(Datenbank_Emission=Datenbank_eigen,_xlfn.IFS(San_mat=EPS,EPS_in*'Eigene Datenbank'!N32,San_mat=XPS,XPS_in*'Eigene Datenbank'!N31,San_mat=Holzfaser,Holz_in*'Eigene Datenbank'!N33/Sachbilanz!AC452,San_mat=Zellulose,Zellu_in*'Eigene Datenbank'!N34,San_mat='Drop-Down'!X6,0)+Rahmen_in*_xlfn.IFS(Rahmn_mat=PVC,'Eigene Datenbank'!N28,Rahmn_mat=Holz,'Eigene Datenbank'!N29)+Glas_in*'Eigene Datenbank'!N30+(Putz_in*'Eigene Datenbank'!N36)+_xlfn.IFS(Verw=Dep_6,Mix_bauschutt*'Eigene Datenbank'!N67*0.061+0.939*0.5*Mix_bauschutt*('Eigene Datenbank'!N37+'Eigene Datenbank'!N38)+0.939*1/3*Fens*('Eigene Datenbank'!N43+'Eigene Datenbank'!N44+'Eigene Datenbank'!N45),Verw=Verwertung100,0.5*Mix_bauschutt*('Eigene Datenbank'!N37+'Eigene Datenbank'!N38)+1/3*Fens*('Eigene Datenbank'!N43+'Eigene Datenbank'!N44+'Eigene Datenbank'!N45)))) -> 0 | AN27: 25 | AO27: 13510.968 | AP27: 18088.70393 | AQ27: 2702.1936 | AR27: 7399.0455 | AS27: 10808.7744 | AT27: 10689.65843 | AV27: -701174.0436
S28: Technische Einbauten | T28: =IF(Datenbank_Emission=Ökobaudat2024, 1/Nutzd*((Nutzd/20*ROUNDUP((Nutz_Strom*_xlfn.IFS(aktSan_PV=PV_0,0,aktSan_PV=PV_20,0.2,aktSan_PV=PV_40,0.4,aktSan_PV=PV_60,0.6,aktSan_PV=PV_80,0.8,aktSan_PV=PV_100,1))/30000,0)*SUM(Ökobaudat!AC24:AE24))+_xlfn.IFS(aktSan_WP=Heizöl_alt,0,aktSan_WP=Heizöl_neu,_xlfn.IFS(OR(Hausform_Geb=SFH,Hausform_Geb=SDH),2*ROUNDUP(Nutz_Wärme_san/(365*24*10),0)*SUM(Ökobaudat!AC12:AE12),OR(Hausform_Geb=SMFH,Hausform_Geb=LMFH),Nutzd/20*ROUNDUP(Nutz_Wärme_san/(365*24*10),0)*SUM(Ökobaudat!AC13:AE13)),aktSan_WP=WP,Nutzd/20*ROUNDUP(Nutz_Wärme_san/(365*24*30),0)*SUM(Ökobaudat!AC7:AE7),aktSan_WP=Erdgas,_xlfn.IFS(OR(Hausform_Geb=SFH,Hausform_Geb=SDH),Nutzd/20*ROUNDUP(Nutz_Wärme_san/(365*24*10),0)*SUM(Ökobaudat!AC9),OR(Hausform_Geb=SMFH,Hausform_Geb=LMFH),2*ROUNDUP(Nutz_Wärme_san/(365*24*10),0)*SUM(Ökobaudat!AC10:AE10)),aktSan_WP=Holz_Pellet,Nutzd/15*ROUNDUP(Nutz_Wärme_san/(365*24*9),0)*SUM(Ökobaudat!AC15:AE15),aktSan_WP=Fernwärme,Nutzd/30*ROUNDUP(Nutz_Wärme_san/(365*24*1),0)*SUM(Ökobaudat!AC21:AE21),aktSan_WP=BHKW,ROUNDUP(Nutz_Wärme_san/(365*24*500),0)*SUM(Ökobaudat!AC22:AE22))),"-") -> - | U28: =IF(Datenbank_Emission=Ökobaudat2024, 1/Nutzd*((Nutzd/20*ROUNDUP((Nutz_Strom*_xlfn.IFS(aktSan_PV=PV_0,0,aktSan_PV=PV_20,0.2,aktSan_PV=PV_40,0.4,aktSan_PV=PV_60,0.6,aktSan_PV=PV_80,0.8,aktSan_PV=PV_100,1))/30000,0)*SUM(Ökobaudat!AF24:AG24))+_xlfn.IFS(aktSan_WP=Heizöl_alt,0,aktSan_WP=Heizöl_neu,_xlfn.IFS(OR(Hausform_Geb=SFH,Hausform_Geb=SDH),Nutzd/20*ROUNDUP(Nutz_Wärme_san/(365*24*10),0)*SUM(Ökobaudat!AF12:AG12),OR(Hausform_Geb=SMFH,Hausform_Geb=LMFH),Nutzd/20*ROUNDUP(Nutz_Wärme_san/(365*24*10),0)*SUM(Ökobaudat!AF13:AG13)),aktSan_WP=WP,2*ROUNDUP(Nutz_Wärme_san/(365*24*30),0)*SUM(Ökobaudat!AF7:AG7),aktSan_WP=Erdgas,_xlfn.IFS(OR(Hausform_Geb=SFH,Hausform_Geb=SDH),Nutzd/20*ROUNDUP(Nutz_Wärme_san/(365*24*10),0)*SUM(Ökobaudat!AF9:AG9),OR(Hausform_Geb=SMFH,Hausform_Geb=LMFH),2*ROUNDUP(Nutz_Wärme_san/(365*24*10),0)*SUM(Ökobaudat!AF10:AG10)),aktSan_WP=Holz_Pellet,Nutzd/15*ROUNDUP(Nutz_Wärme_san/(365*24*9),0)*SUM(Ökobaudat!AF15:AG15),aktSan_WP=Fernwärme,Nutzd/30*ROUNDUP(Nutz_Wärme_san/(365*24*1),0)*SUM(Ökobaudat!AF21:AG21),aktSan_WP=BHKW,ROUNDUP(Nutz_Wärme_san/(365*24*500),0)*SUM(Ökobaudat!AF22:AG22))),"-") -> - | V28: =IF(Datenbank_Emission=Ökobaudat2024,0,"-") -> - | W28: =IF(Datenbank_Emission=Ökobaudat2024,1/Nutzd*((Nutzd/20*ROUNDUP((Nutz_Strom*_xlfn.IFS(aktSan_PV=PV_0,0,aktSan_PV=PV_20,0.2,aktSan_PV=PV_40,0.4,aktSan_PV=PV_60,0.6,aktSan_PV=PV_80,0.8,aktSan_PV=PV_100,1))/30000,0)*SUM(Ökobaudat!AO24:AR24))+_xlfn.IFS(aktSan_WP=Heizöl_alt,0,aktSan_WP=Heizöl_neu,_xlfn.IFS(OR(Hausform_Geb=SFH,Hausform_Geb=SDH),Nutzd/20*ROUNDUP(Nutz_Wärme_san/(365*24*10),0)*SUM(Ökobaudat!AO12:AR12),OR(Hausform_Geb=SMFH,Hausform_Geb=LMFH),Nutzd/20*ROUNDUP(Nutz_Wärme_san/(365*24*10),0)*SUM(Ökobaudat!AO13:AR13)),aktSan_WP=WP,2*ROUNDUP(Nutz_Wärme_san/(365*24*30),0)*SUM(Ökobaudat!AO7:AR7),aktSan_WP=Erdgas,_xlfn.IFS(OR(Hausform_Geb=SFH,Hausform_Geb=SDH),Nutzd/20*ROUNDUP(Nutz_Wärme_san/(365*24*10),0)*SUM(Ökobaudat!AO9:AR9),OR(Hausform_Geb=SMFH,Hausform_Geb=LMFH),2*ROUNDUP(Nutz_Wärme_san/(365*24*10),0)*SUM(Ökobaudat!AO10:AR10)),aktSan_WP=Holz_Pellet,Nutzd/15*ROUNDUP(Nutz_Wärme_san/(365*24*9),0)*SUM(Ökobaudat!AO15:AR15),aktSan_WP=Fernwärme,Nutzd/30*ROUNDUP(Nutz_Wärme_san/(365*24*1),0)*SUM(Ökobaudat!AO21:AR21),aktSan_WP=BHKW,ROUNDUP(Nutz_Wärme_san/(365*24*500),0)*SUM(Ökobaudat!AO22:AR22))),"-") -> - | X28: =IF(Datenbank_Emission=Ökobaudat2024, 1/Nutzd*((Nutzd/20*ROUNDUP((Nutz_Strom*_xlfn.IFS(aktSan_PV=PV_0,0,aktSan_PV=PV_20,0.2,aktSan_PV=PV_40,0.4,aktSan_PV=PV_60,0.6,aktSan_PV=PV_80,0.8,aktSan_PV=PV_100,1))/30000,0)*SUM(Ökobaudat!AS24:AT24))+_xlfn.IFS(aktSan_WP=Heizöl_alt,0,aktSan_WP=Heizöl_neu,_xlfn.IFS(OR(Hausform_Geb=SFH,Hausform_Geb=SDH),Nutzd/20*ROUNDUP(Nutz_Wärme_san/(365*24*10),0)*SUM(Ökobaudat!AS12:AT12),OR(Hausform_Geb=SMFH,Hausform_Geb=LMFH),Nutzd/20*ROUNDUP(Nutz_Wärme_san/(365*24*10),0)*SUM(Ökobaudat!AS13:AT13)),aktSan_WP=WP,Nutzd/20*ROUNDUP(Nutz_Wärme_san/(365*24*30),0)*SUM(Ökobaudat!AS7:AT7),aktSan_WP=Erdgas,_xlfn.IFS(OR(Hausform_Geb=SFH,Hausform_Geb=SDH),Nutzd/20*ROUNDUP(Nutz_Wärme_san/(365*24*10),0)*SUM(Ökobaudat!AS9:AT9),OR(Hausform_Geb=SMFH,Hausform_Geb=LMFH),2*ROUNDUP(Nutz_Wärme_san/(365*24*10),0)*SUM(Ökobaudat!AS10:AT10)),aktSan_WP=Holz_Pellet,Nutzd/15*ROUNDUP(Nutz_Wärme_san/(365*24*9),0)*SUM(Ökobaudat!AS15:AT15),aktSan_WP=Fernwärme,Nutzd/30*ROUNDUP(Nutz_Wärme_san/(365*24*1),0)*SUM(Ökobaudat!AS21:AT21),aktSan_WP=BHKW,ROUNDUP(Nutz_Wärme_san/(365*24*500),0)*SUM(Ökobaudat!AS22:AT22))),"-") -> - | Y28: =IF(Datenbank_Emission=Ökobaudat2024,1/Nutzd*((Nutzd/20*ROUNDUP((Nutz_Strom*_xlfn.IFS(aktSan_PV=PV_0,0,aktSan_PV=PV_20,0.2,aktSan_PV=PV_40,0.4,aktSan_PV=PV_60,0.6,aktSan_PV=PV_80,0.8,aktSan_PV=PV_100,1))/30000,0)*SUM(Ökobaudat!AB24))+_xlfn.IFS(aktSan_WP=Heizöl_alt,0,aktSan_WP=Heizöl_neu,_xlfn.IFS(OR(Hausform_Geb=SFH,Hausform_Geb=SDH),2*ROUNDUP(Nutz_Wärme_san/(365*24*10),0)*SUM(Ökobaudat!AB12),OR(Hausform_Geb=SMFH,Hausform_Geb=LMFH),Nutzd/20*ROUNDUP(Nutz_Wärme_san/(365*24*10),0)*SUM(Ökobaudat!AB13)),aktSan_WP=WP,Nutzd/20*ROUNDUP(Nutz_Wärme_san/(365*24*30),0)*SUM(Ökobaudat!AB7),aktSan_WP=Erdgas,_xlfn.IFS(OR(Hausform_Geb=SFH,Hausform_Geb=SDH),Nutzd/20*ROUNDUP(Nutz_Wärme_san/(365*24*10),0)*SUM(Ökobaudat!AB9),OR(Hausform_Geb=SMFH,Hausform_Geb=LMFH),2*ROUNDUP(Nutz_Wärme_san/(365*24*10),0)*SUM(Ökobaudat!AB10)),aktSan_WP=Holz_Pellet,Nutzd/15*ROUNDUP(Nutz_Wärme_san/(365*24*9),0)*SUM(Ökobaudat!AB15),aktSan_WP=Fernwärme,Nutzd/30*ROUNDUP(Nutz_Wärme_san/(365*24*1),0)*SUM(Ökobaudat!AB21),aktSan_WP=BHKW,ROUNDUP(Nutz_Wärme_san/(365*24*500),0)*SUM(Ökobaudat!AB22))),1/Nutzd*_xlfn.IFS(Datenbank_Emission=Datenbank_eigen,Nutzd/20*ROUNDUP((Nutz_Strom*_xlfn.IFS(aktSan_PV=PV_0,0,aktSan_PV=PV_20,0.2,aktSan_PV=PV_40,0.4,aktSan_PV=PV_60,0.6,aktSan_PV=PV_80,0.8,aktSan_PV=PV_100,1))/30000,0)*'Eigene Datenbank'!N24+_xlfn.IFS(aktSan_WP=Heizöl_alt,0,aktSan_WP=Heizöl_neu,_xlfn.IFS(OR(Hausform_Geb=SFH,Hausform_Geb=SDH),Nutzd/20*ROUNDUP(Nutz_Wärme_san/(365*24*10),0)*'Eigene Datenbank'!N12,OR(Hausform_Geb=SMFH,Hausform_Geb=LMFH),Nutzd/20*ROUNDUP(Nutz_Wärme_san/(365*24*10),0)*'Eigene Datenbank'!N13),aktSan_WP=WP,Nutzd/20*ROUNDUP(Nutz_Wärme_san/(365*24*30),0)*'Eigene Datenbank'!N7,aktSan_WP=Erdgas,_xlfn.IFS(OR(Hausform_Geb=SFH,Hausform_Geb=SDH),Nutzd/20*ROUNDUP(Nutz_Wärme_san/(365*24*10),0)*'Eigene Datenbank'!N9,OR(Hausform_Geb=SMFH,Hausform_Geb=LMFH),Nutzd/20*ROUNDUP(Nutz_Wärme_san/(365*24*10),0)*'Eigene Datenbank'!N10),aktSan_WP=Holz_Pellet,Nutzd/15*ROUNDUP(Nutz_Wärme_san/(365*24*9),0)*'Eigene Datenbank'!N15,aktSan_WP=Fernwärme,Nutzd/30*ROUNDUP(Nutz_Wärme_san/(365*24*1),0)*'Eigene Datenbank'!N21,aktSan_WP=BHKW,ROUNDUP(Nutz_Wärme_san/(365*24*500),0)*'Eigene Datenbank'!N22))) -> 0 | AN28: 26 | AO28: 13510.968 | AP28: 18088.70393 | AQ28: 2702.1936 | AR28: 7399.0455 | AS28: 10808.7744 | AT28: 10689.65843 | AV28: -679675.6108
G29: [kWh/a] | I29: [kg CO2-eq/a] | K29: [kg CO2-eq/a] | S29: Gesamt | T29: =SUM(T25:T28) -> 0 | U29: =SUM(U25:U28) -> 0 | V29: 0 | W29: 0 | X29: =SUM(X25:X28) -> 0 | Y29: =SUM(Y25:Y28) -> 0 | AN29: 27 | AO29: 13510.968 | AP29: 18088.70393 | AQ29: 2702.1936 | AR29: 7399.0455 | AS29: 10808.7744 | AT29: 10689.65843 | AV29: -658177.178
D30: Stom | G30: =Nutz_Strom -> 32361.6 | I30: =THG_Strom -> 0 | J30: ='Sanierung Einzelgebäude'!H17 -> 0 | AN30: 28 | AO30: 13510.968 | AP30: 18088.70393 | AQ30: 2702.1936 | AR30: 7399.0455 | AS30: 10808.7744 | AT30: 10689.65843 | AV30: -636678.7451
D31: Wärme | G31: =Nutz_Wärme -> 158274.4481 | I31: =THG_Wärme -> 0 | J31: ='Sanierung Einzelgebäude'!H18 -> 0 | Q31: =_xlfn.IFS(Datenbank_Emission=Datenbank_eigen,"Mineral resource scarcity [kg Cu eq]",Datenbank_Emission=Ökobaudat2024,"ADPE [kg Sb eq]") -> Mineral resource scarcity [kg Cu eq] | S31: Strom | T31: =IF(Datenbank_Emission=Ökobaudat2024,0,"-") -> - | U31: =IF(Datenbank_Emission=Ökobaudat2024,0,"-") -> - | V31: =IF(Datenbank_Emission=Ökobaudat2024,_xlfn.IFS(aktSan_PV=PV_0,Nutz_Strom*SUM(Ökobaudat!BA17:BG17),aktSan_PV=PV_20,0.2*Nutz_Strom*SUM(Ökobaudat!BA27:BG27)+0.8*Nutz_Strom*SUM(Ökobaudat!BA17:BG17),aktSan_PV=PV_40,0.4*Nutz_Strom*SUM(Ökobaudat!BA27:BG27)+0.6*Nutz_Strom*SUM(Ökobaudat!BA17:BG17),aktSan_PV=PV_60,0.6*Nutz_Strom*SUM(Ökobaudat!BA27:BG27)+0.4*Nutz_Strom*SUM(Ökobaudat!BA17:BG17),aktSan_PV=PV_80,0.8*Nutz_Strom*SUM(Ökobaudat!BA27:BG27)+0.2*Nutz_Strom*SUM(Ökobaudat!BA17:BG17),aktSan_PV=PV_100,Nutz_Strom*SUM(Ökobaudat!BA27:BG27))+IF(aktSan_WP=BHKW,Sanierung!G35/2*SUM(Ökobaudat!BA17:BG17),0),"-") -> - | W31: =IF(Datenbank_Emission=Ökobaudat2024,0,"-") -> - | X31: =IF(Datenbank_Emission=Ökobaudat2024,0,"-") -> - | Y31: =IF(Datenbank_Emission=Ökobaudat2024,_xlfn.IFS(aktSan_PV=PV_0,Nutz_Strom*Ökobaudat!AU17,aktSan_PV=PV_20,0.2*Nutz_Strom*Ökobaudat!AU27+0.8*Nutz_Strom*Ökobaudat!AU17,aktSan_PV=PV_40,0.4*Nutz_Strom*Ökobaudat!AU27+0.6*Nutz_Strom*Ökobaudat!AU17,aktSan_PV=PV_60,0.6*Nutz_Strom*Ökobaudat!AU27+0.4*Nutz_Strom*Ökobaudat!AU17,aktSan_PV=PV_80,0.8*Nutz_Strom*Ökobaudat!AU27+0.2*Nutz_Strom*Ökobaudat!AU17,aktSan_PV=PV_100,Nutz_Strom*Ökobaudat!AU27)+IF(aktSan_WP=BHKW,Sanierung!G35/2*SUM(Ökobaudat!AH17),0),_xlfn.IFS(Datenbank_Emission=Datenbank_eigen,_xlfn.IFS(aktSan_PV=PV_0,Nutz_Strom*'Eigene Datenbank'!L17,aktSan_PV=PV_20,0.2*Nutz_Strom*'Eigene Datenbank'!L27+0.8*Nutz_Strom*'Eigene Datenbank'!L17,aktSan_PV=PV_40,0.4*Nutz_Strom*'Eigene Datenbank'!L27+0.6*Nutz_Strom*'Eigene Datenbank'!L17,aktSan_PV=PV_60,0.6*Nutz_Strom*'Eigene Datenbank'!L27+0.4*Nutz_Strom*'Eigene Datenbank'!L17,aktSan_PV=PV_80,0.8*Nutz_Strom*'Eigene Datenbank'!L27+0.2*Nutz_Strom*'Eigene Datenbank'!L17,aktSan_PV=PV_100,Nutz_Strom*'Eigene Datenbank'!L27)+IF(aktSan_WP=BHKW,Sanierung!E35/2*'Eigene Datenbank'!L17,0))) -> 0 | AN31: 29 | AO31: 13510.968 | AP31: 18088.70393 | AQ31: 2702.1936 | AR31: 7399.0455 | AS31: 10808.7744 | AT31: 10689.65843 | AV31: -615180.3123
D32: Gesamt | G32: ='Sanierung Einzelgebäude'!E4 -> 190636.0481 | I32: =THG_ges*1000 -> 0 | J32: ='Sanierung Einzelgebäude'!H16*1000 -> 0 | K32: ='Sanierung Einzelgebäude'!E21*1000 -> 0 | L32: ='Sanierung Einzelgebäude'!E22 -> 0 | S32: Wärme | T32: =IF(Datenbank_Emission=Ökobaudat2024,0,"-") -> - | U32: =IF(Datenbank_Emission=Ökobaudat2024,0,"-") -> - | V32: =IF(Datenbank_Emission=Ökobaudat2024,Nutz_Wärme_san*_xlfn.IFS(aktSan_WP=WP,SUM(Ökobaudat!BA6:BG6),OR(aktSan_WP=Heizöl_alt,aktSan_WP=Heizöl_neu),SUM(Ökobaudat!BA11:BG11),aktSan_WP=Erdgas,SUM(Ökobaudat!BA8:BG8),aktSan_WP=Holz_Pellet,SUM(Ökobaudat!BA14:BG14),aktSan_WP=Fernwärme,SUM(Ökobaudat!BA20:BG20),aktSan_WP=BHKW,SUM(Ökobaudat!BA23:BG23)),"-") -> - | W32: =IF(Datenbank_Emission=Ökobaudat2024,0,"-") -> - | X32: =IF(Datenbank_Emission=Ökobaudat2024,0,"-") -> - | Y32: =IF(Datenbank_Emission=Ökobaudat2024,Nutz_Wärme_san*_xlfn.IFS(aktSan_WP=WP,Ökobaudat!AU6,OR(aktSan_WP=Heizöl_alt,aktSan_WP=Heizöl_neu),Ökobaudat!AU11,aktSan_WP=Erdgas,Ökobaudat!AU8,aktSan_WP=Holz_Pellet,Ökobaudat!AU14,aktSan_WP=Fernwärme,Ökobaudat!AU20,aktSan_WP=BHKW,Ökobaudat!AU23),Nutz_Wärme_san*_xlfn.IFS(Datenbank_Emission=Datenbank_eigen,_xlfn.IFS(aktSan_WP=WP,'Eigene Datenbank'!L6,OR(aktSan_WP=Heizöl_alt,aktSan_WP=Heizöl_neu),'Eigene Datenbank'!L11,aktSan_WP=Erdgas,'Eigene Datenbank'!L8,aktSan_WP=Holz_Pellet,'Eigene Datenbank'!L14,aktSan_WP=Fernwärme,('Eigene Datenbank'!L18*0.65+'Eigene Datenbank'!L19*0.35),aktSan_WP=BHKW,'Eigene Datenbank'!L23))) -> 0 | AN32: 30 | AO32: 13510.968 | AP32: 18088.70393 | AQ32: 2702.1936 | AR32: 7399.0455 | AS32: 10808.7744 | AT32: 10689.65843 | AU32: =-Y73 -> -27000 | AV32: -620681.8795
S33: Materialströme | T33: =IF(Datenbank_Emission=Ökobaudat2024,1/Nutzd*(_xlfn.IFS(San_mat=EPS,EPS_in*SUM(Ökobaudat!AV32:AX32)/Sachbilanz!AC458,San_mat=XPS,XPS_in*SUM(Ökobaudat!AV31:AX31)/Sachbilanz!AC457,San_mat=Holzfaser,Holz_in*SUM(Ökobaudat!AV33:AX33)/Sachbilanz!AC459,San_mat=Zellulose,Zellu_in*SUM(Ökobaudat!AV34:AX34)/Sachbilanz!AC460)+Rahmen_in/Sachbilanz!G300*_xlfn.IFS(Rahmn_mat=PVC,SUM(Ökobaudat!AV28:AX28)/2.95,Rahmn_mat=Holz,SUM(Ökobaudat!AV29:AX29)/2.11)+(Glas_in*SUM(Ökobaudat!AV30:AX30)/Sachbilanz!AC463)+Putz_in*SUM(Ökobaudat!AV36:AX36)+_xlfn.IFS(Verw=Dep_6,Mix_bauschutt*SUM(Ökobaudat!AV67:AX67)*0.061+0.0939*Mix_bauschutt*SUM(Ökobaudat!AV37:AX37)+0.939*1/3*Fens*(SUM(Ökobaudat!AV43:AX43)+SUM(Ökobaudat!AV44:AX44)+SUM(Ökobaudat!AV45:AX45)),Verw=Verwertung100,Mix_bauschutt*SUM(Ökobaudat!AV37:AX37)+1/3*Fens*(SUM(Ökobaudat!AV43:AX43)+SUM(Ökobaudat!AV44:AX44)+SUM(Ökobaudat!AV45:AX45)))),"-") -> - | U33: =IF(Datenbank_Emission=Ökobaudat2024,1/Nutzd*(_xlfn.IFS(San_mat=EPS,EPS_in*SUM(Ökobaudat!AY32:AZ32)/Sachbilanz!AC458,San_mat=XPS,XPS_in*SUM(Ökobaudat!AY31:AZ31)/Sachbilanz!AC457,San_mat=Holzfaser,Holz_in*SUM(Ökobaudat!AY33:AZ33)/Sachbilanz!AC459,San_mat=Zellulose,Zellu_in*SUM(Ökobaudat!AY34:AZ34)/Sachbilanz!AC460)+Rahmen_in/Sachbilanz!G300*_xlfn.IFS(Rahmn_mat=PVC,SUM(Ökobaudat!AY28:AZ28)/2.95,Rahmn_mat=Holz,SUM(Ökobaudat!AY29:AZ29)/2.11)+(Glas_in*SUM(Ökobaudat!AY30:AZ30)/Sachbilanz!AC463)+Putz_in*SUM(Ökobaudat!AY36:AZ36)+_xlfn.IFS(Verw=Dep_6,Mix_bauschutt*SUM(Ökobaudat!AY67:AZ67)*0.061+0.939*Mix_bauschutt*SUM(Ökobaudat!AY37:AZ37)+0.939*1/3*Fens*(SUM(Ökobaudat!AY43:AZ43)+SUM(Ökobaudat!AY44:AZ44)+SUM(Ökobaudat!AY45:AZ45)),Verw=Verwertung100,Mix_bauschutt*SUM(Ökobaudat!AY37:AZ37)+1/3*Fens*(SUM(Ökobaudat!AY43:AZ43)+SUM(Ökobaudat!AY44:AZ44)+SUM(Ökobaudat!AY45:AZ45)))),"-") -> - | V33: =IF(Datenbank_Emission=Ökobaudat2024,0,"-") -> - | W33: =IF(Datenbank_Emission=Ökobaudat2024,1/Nutzd*(_xlfn.IFS(San_mat=EPS,EPS_in*SUM(Ökobaudat!BH32:BK32)/Sachbilanz!AC458,San_mat=XPS,XPS_in*SUM(Ökobaudat!BH31:BK31)/Sachbilanz!AC457,San_mat=Holzfaser,Holz_in*SUM(Ökobaudat!BH33:BK33)/Sachbilanz!AC459,San_mat=Zellulose,Zellu_in*SUM(Ökobaudat!BH34:BK34)/Sachbilanz!AC460)+Rahmen_in/Sachbilanz!G300*_xlfn.IFS(Rahmn_mat=PVC,SUM(Ökobaudat!BH28:BK28)/2.95,Rahmn_mat=Holz,SUM(Ökobaudat!BH29:BK29)/2.11)+(Glas_in*SUM(Ökobaudat!BH30:BK30)/Sachbilanz!AC463)+Putz_in*SUM(Ökobaudat!BH36:BK36)+_xlfn.IFS(Verw=Dep_6,Mix_bauschutt*SUM(Ökobaudat!BH67:BK67)*0.061+0.939*Mix_bauschutt*SUM(Ökobaudat!BH37:BK37)+0.939*1/3*Fens*(SUM(Ökobaudat!BH43:BK43)+SUM(Ökobaudat!BH44:BK44)+SUM(Ökobaudat!BH45:BK45)),Verw=Verwertung100,Mix_bauschutt*SUM(Ökobaudat!BH37:BK37)+1/3*Fens*(SUM(Ökobaudat!BH43:BK43)+SUM(Ökobaudat!BH44:BK44)+SUM(Ökobaudat!BH45:BK45)))),"-") -> - | X33: =IF(Datenbank_Emission=Ökobaudat2024,1/Nutzd*(_xlfn.IFS(San_mat=EPS,EPS_in*SUM(Ökobaudat!BL32:BM32)/Sachbilanz!AC458,San_mat=XPS,XPS_in*SUM(Ökobaudat!BL31:BM31)/Sachbilanz!AC457,San_mat=Holzfaser,Holz_in*SUM(Ökobaudat!BL33:BM33)/Sachbilanz!AC459,San_mat=Zellulose,Zellu_in*SUM(Ökobaudat!BL34:BM34)/Sachbilanz!AC460)+Rahmen_in/Sachbilanz!G300*_xlfn.IFS(Rahmn_mat=PVC,SUM(Ökobaudat!BL28:BM28)/2.95,Rahmn_mat=Holz,SUM(Ökobaudat!BL29:BM29)/2.11)+(Glas_in*SUM(Ökobaudat!BL30:BM30)/Sachbilanz!AC463)+Putz_in*SUM(Ökobaudat!BL36:BM36)+_xlfn.IFS(Verw=Dep_6,Mix_bauschutt*SUM(Ökobaudat!BL67:BM67)*0.061*0.939*Mix_bauschutt*SUM(Ökobaudat!BL37:BM37)+0.939*1/3*Fens*(SUM(Ökobaudat!BL43:BM43)+SUM(Ökobaudat!BL44:BM44)+SUM(Ökobaudat!BL45:BM45)),Verw=Verwertung100,Mix_bauschutt*SUM(Ökobaudat!BL37:BM37)+1/3*Fens*(SUM(Ökobaudat!BL43:BM43)+SUM(Ökobaudat!BL44:BM44)+SUM(Ökobaudat!BL45:BM45)))),"-") -> - | Y33: =IF(Datenbank_Emission=Ökobaudat2024,1/Nutzd*(_xlfn.IFS(San_mat=EPS,EPS_in*SUM(Ökobaudat!AU32)/Sachbilanz!AC458,San_mat=XPS,XPS_in*SUM(Ökobaudat!AU31)/Sachbilanz!AC457,San_mat=Holzfaser,Holz_in*SUM(Ökobaudat!AU33)/Sachbilanz!AC459,San_mat=Zellulose,Zellu_in*SUM(Ökobaudat!AU34)/Sachbilanz!AC460)+Rahmen_in/Sachbilanz!G300*_xlfn.IFS(Rahmn_mat=PVC,SUM(Ökobaudat!AU28)/2.95,Rahmn_mat=Holz,SUM(Ökobaudat!AU29)/2.11)+(Glas_in*SUM(Ökobaudat!AU30)/Sachbilanz!AC463)+Putz_in*SUM(Ökobaudat!AU36)+_xlfn.IFS(Verw=Dep_6,Mix_bauschutt*SUM(Ökobaudat!AU67)*0.061+0.0939*Mix_bauschutt*SUM(Ökobaudat!AU37)+0.939*1/3*Fens*(SUM(Ökobaudat!AU43)+SUM(Ökobaudat!AU44)+SUM(Ökobaudat!AU45)),Verw=Verwertung100,Mix_bauschutt*SUM(Ökobaudat!AU37)+1/3*Fens*(SUM(Ökobaudat!AU43)+SUM(Ökobaudat!AU44)+SUM(Ökobaudat!AU45)))),1/Nutzd*_xlfn.IFS(Datenbank_Emission=Datenbank_eigen,_xlfn.IFS(San_mat=EPS,EPS_in*'Eigene Datenbank'!L32,San_mat=XPS,XPS_in*'Eigene Datenbank'!L31,San_mat=Holzfaser,Holz_in*'Eigene Datenbank'!L33/Sachbilanz!AC452,San_mat=Zellulose,Zellu_in*'Eigene Datenbank'!L34,San_mat='Drop-Down'!V6,0)+Rahmen_in*_xlfn.IFS(Rahmn_mat=PVC,'Eigene Datenbank'!L28,Rahmn_mat=Holz,'Eigene Datenbank'!L29)+Glas_in*'Eigene Datenbank'!L30+(Putz_in*'Eigene Datenbank'!L36)+_xlfn.IFS(Verw=Dep_6,Mix_bauschutt*'Eigene Datenbank'!L67*0.061+0.939*0.5*Mix_bauschutt*('Eigene Datenbank'!L37+'Eigene Datenbank'!L38)+0.939*1/3*Fens*('Eigene Datenbank'!L43+'Eigene Datenbank'!L44+'Eigene Datenbank'!L45),Verw=Verwertung100,0.5*Mix_bauschutt*('Eigene Datenbank'!L37+'Eigene Datenbank'!L38)+1/3*Fens*('Eigene Datenbank'!L43+'Eigene Datenbank'!L44+'Eigene Datenbank'!L45)))) -> 0 | AN33: 31 | AO33: 13510.968 | AP33: 18088.70393 | AQ33: 2702.1936 | AR33: 7399.0455 | AS33: 10808.7744 | AT33: 10689.65843 | AV33: -599183.4466
S34: Technische Einbauten | T34: =IF(Datenbank_Emission=Ökobaudat2024, 1/Nutzd*((Nutzd/20*ROUNDUP((Nutz_Strom*_xlfn.IFS(aktSan_PV=PV_0,0,aktSan_PV=PV_20,0.2,aktSan_PV=PV_40,0.4,aktSan_PV=PV_60,0.6,aktSan_PV=PV_80,0.8,aktSan_PV=PV_100,1))/30000,0)*SUM(Ökobaudat!AV24:AX24))+_xlfn.IFS(aktSan_WP=Heizöl_alt,0,aktSan_WP=Heizöl_neu,_xlfn.IFS(OR(Hausform_Geb=SFH,Hausform_Geb=SDH),2*ROUNDUP(Nutz_Wärme_san/(365*24*10),0)*SUM(Ökobaudat!AV12:AX12),OR(Hausform_Geb=SMFH,Hausform_Geb=LMFH),Nutzd/20*ROUNDUP(Nutz_Wärme_san/(365*24*10),0)*SUM(Ökobaudat!AV13:AX13)),aktSan_WP=WP,Nutzd/20*ROUNDUP(Nutz_Wärme_san/(365*24*30),0)*SUM(Ökobaudat!AV7:AX7),aktSan_WP=Erdgas,_xlfn.IFS(OR(Hausform_Geb=SFH,Hausform_Geb=SDH),Nutzd/20*ROUNDUP(Nutz_Wärme_san/(365*24*10),0)*SUM(Ökobaudat!AX9),OR(Hausform_Geb=SMFH,Hausform_Geb=LMFH),2*ROUNDUP(Nutz_Wärme_san/(365*24*10),0)*SUM(Ökobaudat!AV10:AX10)),aktSan_WP=Holz_Pellet,Nutzd/15*ROUNDUP(Nutz_Wärme_san/(365*24*9),0)*SUM(Ökobaudat!AV15:AX15),aktSan_WP=Fernwärme,Nutzd/30*ROUNDUP(Nutz_Wärme_san/(365*24*1),0)*SUM(Ökobaudat!AV21:AX21),aktSan_WP=BHKW,ROUNDUP(Nutz_Wärme_san/(365*24*500),0)*SUM(Ökobaudat!AV22:AX22))),"-") -> - | U34: =IF(Datenbank_Emission=Ökobaudat2024, 1/Nutzd*((Nutzd/20*ROUNDUP((Nutz_Strom*_xlfn.IFS(aktSan_PV=PV_0,0,aktSan_PV=PV_20,0.2,aktSan_PV=PV_40,0.4,aktSan_PV=PV_60,0.6,aktSan_PV=PV_80,0.8,aktSan_PV=PV_100,1))/30000,0)*SUM(Ökobaudat!AY24:AZ24))+_xlfn.IFS(aktSan_WP=Heizöl_alt,0,aktSan_WP=Heizöl_neu,_xlfn.IFS(OR(Hausform_Geb=SFH,Hausform_Geb=SDH),Nutzd/20*ROUNDUP(Nutz_Wärme_san/(365*24*10),0)*SUM(Ökobaudat!AY12:AZ12),OR(Hausform_Geb=SMFH,Hausform_Geb=LMFH),Nutzd/20*ROUNDUP(Nutz_Wärme_san/(365*24*10),0)*SUM(Ökobaudat!AY13:AZ13)),aktSan_WP=WP,2*ROUNDUP(Nutz_Wärme_san/(365*24*30),0)*SUM(Ökobaudat!AY7:AZ7),aktSan_WP=Erdgas,_xlfn.IFS(OR(Hausform_Geb=SFH,Hausform_Geb=SDH),Nutzd/20*ROUNDUP(Nutz_Wärme_san/(365*24*10),0)*SUM(Ökobaudat!AY9:AZ9),OR(Hausform_Geb=SMFH,Hausform_Geb=LMFH),2*ROUNDUP(Nutz_Wärme_san/(365*24*10),0)*SUM(Ökobaudat!AY10:AZ10)),aktSan_WP=Holz_Pellet,Nutzd/15*ROUNDUP(Nutz_Wärme_san/(365*24*9),0)*SUM(Ökobaudat!AY15:AZ15),aktSan_WP=Fernwärme,Nutzd/30*ROUNDUP(Nutz_Wärme_san/(365*24*1),0)*SUM(Ökobaudat!AY21:AZ21),aktSan_WP=BHKW,ROUNDUP(Nutz_Wärme_san/(365*24*500),0)*SUM(Ökobaudat!AY22:AZ22))),"-") -> - | V34: =IF(Datenbank_Emission=Ökobaudat2024,0,"-") -> - | W34: =IF(Datenbank_Emission=Ökobaudat2024,1/Nutzd*((Nutzd/20*ROUNDUP((Nutz_Strom*_xlfn.IFS(aktSan_PV=PV_0,0,aktSan_PV=PV_20,0.2,aktSan_PV=PV_40,0.4,aktSan_PV=PV_60,0.6,aktSan_PV=PV_80,0.8,aktSan_PV=PV_100,1))/30000,0)*SUM(Ökobaudat!BH24:BK24))+_xlfn.IFS(aktSan_WP=Heizöl_alt,0,aktSan_WP=Heizöl_neu,_xlfn.IFS(OR(Hausform_Geb=SFH,Hausform_Geb=SDH),Nutzd/20*ROUNDUP(Nutz_Wärme_san/(365*24*10),0)*SUM(Ökobaudat!BH12:BK12),OR(Hausform_Geb=SMFH,Hausform_Geb=LMFH),Nutzd/20*ROUNDUP(Nutz_Wärme_san/(365*24*10),0)*SUM(Ökobaudat!BH13:BK13)),aktSan_WP=WP,2*ROUNDUP(Nutz_Wärme_san/(365*24*30),0)*SUM(Ökobaudat!BH7:BK7),aktSan_WP=Erdgas,_xlfn.IFS(OR(Hausform_Geb=SFH,Hausform_Geb=SDH),Nutzd/20*ROUNDUP(Nutz_Wärme_san/(365*24*10),0)*SUM(Ökobaudat!BH9:BK9),OR(Hausform_Geb=SMFH,Hausform_Geb=LMFH),2*ROUNDUP(Nutz_Wärme_san/(365*24*10),0)*SUM(Ökobaudat!BH10:BK10)),aktSan_WP=Holz_Pellet,Nutzd/15*ROUNDUP(Nutz_Wärme_san/(365*24*9),0)*SUM(Ökobaudat!BH15:BK15),aktSan_WP=Fernwärme,Nutzd/30*ROUNDUP(Nutz_Wärme_san/(365*24*1),0)*SUM(Ökobaudat!BH21:BK21),aktSan_WP=BHKW,ROUNDUP(Nutz_Wärme_san/(365*24*500),0)*SUM(Ökobaudat!BH22:BK22))),"-") -> - | X34: =IF(Datenbank_Emission=Ökobaudat2024, 1/Nutzd*((Nutzd/20*ROUNDUP((Nutz_Strom*_xlfn.IFS(aktSan_PV=PV_0,0,aktSan_PV=PV_20,0.2,aktSan_PV=PV_40,0.4,aktSan_PV=PV_60,0.6,aktSan_PV=PV_80,0.8,aktSan_PV=PV_100,1))/30000,0)*SUM(Ökobaudat!BL24:BM24))+_xlfn.IFS(aktSan_WP=Heizöl_alt,0,aktSan_WP=Heizöl_neu,_xlfn.IFS(OR(Hausform_Geb=SFH,Hausform_Geb=SDH),Nutzd/20*ROUNDUP(Nutz_Wärme_san/(365*24*10),0)*SUM(Ökobaudat!BL12:BM12),OR(Hausform_Geb=SMFH,Hausform_Geb=LMFH),Nutzd/20*ROUNDUP(Nutz_Wärme_san/(365*24*10),0)*SUM(Ökobaudat!BL13:BM13)),aktSan_WP=WP,Nutzd/20*ROUNDUP(Nutz_Wärme_san/(365*24*30),0)*SUM(Ökobaudat!BL7:BM7),aktSan_WP=Erdgas,_xlfn.IFS(OR(Hausform_Geb=SFH,Hausform_Geb=SDH),Nutzd/20*ROUNDUP(Nutz_Wärme_san/(365*24*10),0)*SUM(Ökobaudat!BL9:BM9),OR(Hausform_Geb=SMFH,Hausform_Geb=LMFH),2*ROUNDUP(Nutz_Wärme_san/(365*24*10),0)*SUM(Ökobaudat!BL10:BM10)),aktSan_WP=Holz_Pellet,Nutzd/15*ROUNDUP(Nutz_Wärme_san/(365*24*9),0)*SUM(Ökobaudat!BL15:BM15),aktSan_WP=Fernwärme,Nutzd/30*ROUNDUP(Nutz_Wärme_san/(365*24*1),0)*SUM(Ökobaudat!BL21:BM21),aktSan_WP=BHKW,ROUNDUP(Nutz_Wärme_san/(365*24*500),0)*SUM(Ökobaudat!BL22:BM22))),"-") -> - | Y34: =IF(Datenbank_Emission=Ökobaudat2024,1/Nutzd*((Nutzd/20*ROUNDUP((Nutz_Strom*_xlfn.IFS(aktSan_PV=PV_0,0,aktSan_PV=PV_20,0.2,aktSan_PV=PV_40,0.4,aktSan_PV=PV_60,0.6,aktSan_PV=PV_80,0.8,aktSan_PV=PV_100,1))/30000,0)*SUM(Ökobaudat!AU24))+_xlfn.IFS(aktSan_WP=Heizöl_alt,0,aktSan_WP=Heizöl_neu,_xlfn.IFS(OR(Hausform_Geb=SFH,Hausform_Geb=SDH),2*ROUNDUP(Nutz_Wärme_san/(365*24*10),0)*SUM(Ökobaudat!AU12),OR(Hausform_Geb=SMFH,Hausform_Geb=LMFH),Nutzd/20*ROUNDUP(Nutz_Wärme_san/(365*24*10),0)*SUM(Ökobaudat!AU13)),aktSan_WP=WP,Nutzd/20*ROUNDUP(Nutz_Wärme_san/(365*24*30),0)*SUM(Ökobaudat!AU7),aktSan_WP=Erdgas,_xlfn.IFS(OR(Hausform_Geb=SFH,Hausform_Geb=SDH),Nutzd/20*ROUNDUP(Nutz_Wärme_san/(365*24*10),0)*SUM(Ökobaudat!AU9),OR(Hausform_Geb=SMFH,Hausform_Geb=LMFH),2*ROUNDUP(Nutz_Wärme_san/(365*24*10),0)*SUM(Ökobaudat!AU10)),aktSan_WP=Holz_Pellet,Nutzd/15*ROUNDUP(Nutz_Wärme_san/(365*24*9),0)*SUM(Ökobaudat!AU15),aktSan_WP=Fernwärme,Nutzd/30*ROUNDUP(Nutz_Wärme_san/(365*24*1),0)*SUM(Ökobaudat!AU21),aktSan_WP=BHKW,ROUNDUP(Nutz_Wärme_san/(365*24*500),0)*SUM(Ökobaudat!AU22))),1/Nutzd*_xlfn.IFS(Datenbank_Emission=Datenbank_eigen,Nutzd/20*ROUNDUP((Nutz_Strom*_xlfn.IFS(aktSan_PV=PV_0,0,aktSan_PV=PV_20,0.2,aktSan_PV=PV_40,0.4,aktSan_PV=PV_60,0.6,aktSan_PV=PV_80,0.8,aktSan_PV=PV_100,1))/30000,0)*'Eigene Datenbank'!L24+_xlfn.IFS(aktSan_WP=Heizöl_alt,0,aktSan_WP=Heizöl_neu,_xlfn.IFS(OR(Hausform_Geb=SFH,Hausform_Geb=SDH),Nutzd/20*ROUNDUP(Nutz_Wärme_san/(365*24*10),0)*'Eigene Datenbank'!L12,OR(Hausform_Geb=SMFH,Hausform_Geb=LMFH),Nutzd/20*ROUNDUP(Nutz_Wärme_san/(365*24*10),0)*'Eigene Datenbank'!L13),aktSan_WP=WP,Nutzd/20*ROUNDUP(Nutz_Wärme_san/(365*24*30),0)*'Eigene Datenbank'!L7,aktSan_WP=Erdgas,_xlfn.IFS(OR(Hausform_Geb=SFH,Hausform_Geb=SDH),Nutzd/20*ROUNDUP(Nutz_Wärme_san/(365*24*10),0)*'Eigene Datenbank'!L9,OR(Hausform_Geb=SMFH,Hausform_Geb=LMFH),Nutzd/20*ROUNDUP(Nutz_Wärme_san/(365*24*10),0)*'Eigene Datenbank'!L10),aktSan_WP=Holz_Pellet,Nutzd/15*ROUNDUP(Nutz_Wärme_san/(365*24*9),0)*'Eigene Datenbank'!L15,aktSan_WP=Fernwärme,Nutzd/30*ROUNDUP(Nutz_Wärme_san/(365*24*1),0)*'Eigene Datenbank'!L21,aktSan_WP=BHKW,ROUNDUP(Nutz_Wärme_san/(365*24*500),0)*'Eigene Datenbank'!L22))) -> 0 | AN34: 32 | AO34: 13510.968 | AP34: 18088.70393 | AQ34: 2702.1936 | AR34: 7399.0455 | AS34: 10808.7744 | AT34: 10689.65843 | AV34: -577685.0138
D35: Beheizungsstruktur | G35: ='Sanierung Einzelgebäude'!E9 -> ø Deutschland ohne Fernwärme | S35: Gesamt | T35: =SUM(T31:T34) -> 0 | U35: =SUM(U31:U34) -> 0 | V35: =SUM(V31:V34) -> 0 | W35: =SUM(W31:W34) -> 0 | X35: =SUM(X31:X34) -> 0 | Y35: =SUM(Y31:Y34) -> 0 | AN35: 33 | AO35: 13510.968 | AP35: 18088.70393 | AQ35: 2702.1936 | AR35: 7399.0455 | AS35: 10808.7744 | AT35: 10689.65843 | AV35: -556186.581
D36: Erdgas | G36: ='Sanierung Einzelgebäude'!H9 -> 0.562 | AN36: 34 | AO36: 13510.968 | AP36: 18088.70393 | AQ36: 2702.1936 | AR36: 7399.0455 | AS36: 10808.7744 | AT36: 10689.65843 | AV36: -534688.1481
D37: Wärmepumpe | G37: ='Sanierung Einzelgebäude'!H10 -> 0.043 | Q37: =_xlfn.IFS(Datenbank_Emission=Datenbank_eigen,"Fossil resource scarcity [kg oil eq]",Datenbank_Emission=Ökobaudat2024,"ADPF [MJ]") -> Fossil resource scarcity [kg oil eq] | S37: Strom | T37: =IF(Datenbank_Emission=Ökobaudat2024,0,"-") -> - | U37: =IF(Datenbank_Emission=Ökobaudat2024,0,"-") -> - | V37: =IF(Datenbank_Emission=Ökobaudat2024,_xlfn.IFS(aktSan_PV=PV_0,Nutz_Strom*SUM(Ökobaudat!BT17:BZ17),aktSan_PV=PV_20,0.2*Nutz_Strom*SUM(Ökobaudat!BT27:BZ27)+0.8*Nutz_Strom*SUM(Ökobaudat!BT17:BZ17),aktSan_PV=PV_40,0.4*Nutz_Strom*SUM(Ökobaudat!BT27:BZ27)+0.6*Nutz_Strom*SUM(Ökobaudat!BT17:BZ17),aktSan_PV=PV_60,0.6*Nutz_Strom*SUM(Ökobaudat!BT27:BZ27)+0.4*Nutz_Strom*SUM(Ökobaudat!BT17:BZ17),aktSan_PV=PV_80,0.8*Nutz_Strom*SUM(Ökobaudat!BT27:BZ27)+0.2*Nutz_Strom*SUM(Ökobaudat!BT17:BZ17),aktSan_PV=PV_100,Nutz_Strom*SUM(Ökobaudat!BT27:BZ27))+IF(aktSan_WP=BHKW,Sanierung!G35/2*SUM(Ökobaudat!BT17:BZ17),0),"-") -> - | W37: =IF(Datenbank_Emission=Ökobaudat2024,0,"-") -> - | X37: =IF(Datenbank_Emission=Ökobaudat2024,0,"-") -> - | Y37: =IF(Datenbank_Emission=Ökobaudat2024,_xlfn.IFS(aktSan_PV=PV_0,Nutz_Strom*Ökobaudat!BN17,aktSan_PV=PV_20,0.2*Nutz_Strom*Ökobaudat!BN27+0.8*Nutz_Strom*Ökobaudat!BN17,aktSan_PV=PV_40,0.4*Nutz_Strom*Ökobaudat!BN27+0.6*Nutz_Strom*Ökobaudat!BN17,aktSan_PV=PV_60,0.6*Nutz_Strom*Ökobaudat!BN27+0.4*Nutz_Strom*Ökobaudat!BN17,aktSan_PV=PV_80,0.8*Nutz_Strom*Ökobaudat!BN27+0.2*Nutz_Strom*Ökobaudat!BN17,aktSan_PV=PV_100,Nutz_Strom*Ökobaudat!BN27)+IF(aktSan_WP=BHKW,Sanierung!G35/2*SUM(Ökobaudat!AH17),0),_xlfn.IFS(Datenbank_Emission=Datenbank_eigen,_xlfn.IFS(aktSan_PV=PV_0,Nutz_Strom*'Eigene Datenbank'!J17,aktSan_PV=PV_20,0.2*Nutz_Strom*'Eigene Datenbank'!J27+0.8*Nutz_Strom*'Eigene Datenbank'!J17,aktSan_PV=PV_40,0.4*Nutz_Strom*'Eigene Datenbank'!J27+0.6*Nutz_Strom*'Eigene Datenbank'!J17,aktSan_PV=PV_60,0.6*Nutz_Strom*'Eigene Datenbank'!J27+0.4*Nutz_Strom*'Eigene Datenbank'!J17,aktSan_PV=PV_80,0.8*Nutz_Strom*'Eigene Datenbank'!J27+0.2*Nutz_Strom*'Eigene Datenbank'!J17,aktSan_PV=PV_100,Nutz_Strom*'Eigene Datenbank'!J27)+IF(aktSan_WP=BHKW,Sanierung!D35/2*'Eigene Datenbank'!J17,0))) -> 0 | AN37: 35 | AO37: 13510.968 | AP37: 18088.70393 | AQ37: 2702.1936 | AR37: 7399.0455 | AS37: 10808.7744 | AT37: 10689.65843 | AV37: -513189.7153
D38: Heizöl | G38: ='Sanierung Einzelgebäude'!H11 -> 0.362 | S38: Wärme | T38: =IF(Datenbank_Emission=Ökobaudat2024,0,"-") -> - | U38: =IF(Datenbank_Emission=Ökobaudat2024,0,"-") -> - | V38: =IF(Datenbank_Emission=Ökobaudat2024,Nutz_Wärme_san*_xlfn.IFS(aktSan_WP=WP,SUM(Ökobaudat!BT6:BZ6),OR(aktSan_WP=Heizöl_alt,aktSan_WP=Heizöl_neu),SUM(Ökobaudat!BT11:BZ11),aktSan_WP=Erdgas,SUM(Ökobaudat!BT8:BZ8),aktSan_WP=Holz_Pellet,SUM(Ökobaudat!BT14:BZ14),aktSan_WP=Fernwärme,SUM(Ökobaudat!BT20:BZ20),aktSan_WP=BHKW,SUM(Ökobaudat!BT23:BZ23)),"-") -> - | W38: =IF(Datenbank_Emission=Ökobaudat2024,0,"-") -> - | X38: =IF(Datenbank_Emission=Ökobaudat2024,0,"-") -> - | Y38: =IF(Datenbank_Emission=Ökobaudat2024,Nutz_Wärme_san*_xlfn.IFS(aktSan_WP=WP,Ökobaudat!BN6,OR(aktSan_WP=Heizöl_alt,aktSan_WP=Heizöl_neu),Ökobaudat!BN11,aktSan_WP=Erdgas,Ökobaudat!BN8,aktSan_WP=Holz_Pellet,Ökobaudat!BN14,aktSan_WP=Fernwärme,Ökobaudat!BN20,aktSan_WP=BHKW,Ökobaudat!BN23),Nutz_Wärme_san*_xlfn.IFS(Datenbank_Emission=Datenbank_eigen,_xlfn.IFS(aktSan_WP=WP,'Eigene Datenbank'!J6,OR(aktSan_WP=Heizöl_alt,aktSan_WP=Heizöl_neu),'Eigene Datenbank'!J11,aktSan_WP=Erdgas,'Eigene Datenbank'!J8,aktSan_WP=Holz_Pellet,'Eigene Datenbank'!J14,aktSan_WP=Fernwärme,('Eigene Datenbank'!J18*0.65+'Eigene Datenbank'!J19*0.35),aktSan_WP=BHKW,'Eigene Datenbank'!J23))) -> 0 | AN38: 36 | AO38: 13510.968 | AP38: 18088.70393 | AQ38: 2702.1936 | AR38: 7399.0455 | AS38: 10808.7744 | AT38: 10689.65843 | AV38: -491691.2825
D39: Holz-/Pellet | G39: ='Sanierung Einzelgebäude'!H12 -> 0.033 | S39: Materialströme | T39: =IF(Datenbank_Emission=Ökobaudat2024,1/Nutzd*(_xlfn.IFS(San_mat=EPS,EPS_in*SUM(Ökobaudat!BO32:BQ32)/Sachbilanz!AC458,San_mat=XPS,XPS_in*SUM(Ökobaudat!BO31:BQ31)/Sachbilanz!AC457,San_mat=Holzfaser,Holz_in*SUM(Ökobaudat!BO33:BQ33)/Sachbilanz!AC459,San_mat=Zellulose,Zellu_in*SUM(Ökobaudat!BO34:BQ34)/Sachbilanz!AC460)+Rahmen_in/Sachbilanz!G300*_xlfn.IFS(Rahmn_mat=PVC,SUM(Ökobaudat!BO28:BQ28)/2.95,Rahmn_mat=Holz,SUM(Ökobaudat!BO29:BQ29)/2.11)+(Glas_in*SUM(Ökobaudat!BO30:BQ30)/Sachbilanz!AC463)+Putz_in*SUM(Ökobaudat!BO36:BQ36)+_xlfn.IFS(Verw=Dep_6,Mix_bauschutt*SUM(Ökobaudat!BO67:BQ67)*0.061+0.0939*Mix_bauschutt*SUM(Ökobaudat!BO37:BQ37)+0.939*1/3*Fens*(SUM(Ökobaudat!BO43:BQ43)+SUM(Ökobaudat!BO44:BQ44)+SUM(Ökobaudat!BO45:BQ45)),Verw=Verwertung100,Mix_bauschutt*SUM(Ökobaudat!BO37:BQ37)+1/3*Fens*(SUM(Ökobaudat!BO43:BQ43)+SUM(Ökobaudat!BO44:BQ44)+SUM(Ökobaudat!BO45:BQ45)))),"-") -> - | U39: =IF(Datenbank_Emission=Ökobaudat2024,1/Nutzd*(_xlfn.IFS(San_mat=EPS,EPS_in*SUM(Ökobaudat!BR32:BS32)/Sachbilanz!AC458,San_mat=XPS,XPS_in*SUM(Ökobaudat!BR31:BS31)/Sachbilanz!AC457,San_mat=Holzfaser,Holz_in*SUM(Ökobaudat!BR33:BS33)/Sachbilanz!AC459,San_mat=Zellulose,Zellu_in*SUM(Ökobaudat!BR34:BS34)/Sachbilanz!AC460)+Rahmen_in/Sachbilanz!G300*_xlfn.IFS(Rahmn_mat=PVC,SUM(Ökobaudat!BR28:BS28)/2.95,Rahmn_mat=Holz,SUM(Ökobaudat!BR29:BS29)/2.11)+(Glas_in*SUM(Ökobaudat!BR30:BS30)/Sachbilanz!AC463)+Putz_in*SUM(Ökobaudat!BR36:BS36)+_xlfn.IFS(Verw=Dep_6,Mix_bauschutt*SUM(Ökobaudat!BR67:BS67)*0.061+0.939*Mix_bauschutt*SUM(Ökobaudat!BR37:BS37)+0.939*1/3*Fens*(SUM(Ökobaudat!BR43:BS43)+SUM(Ökobaudat!BR44:BS44)+SUM(Ökobaudat!BR45:BS45)),Verw=Verwertung100,Mix_bauschutt*SUM(Ökobaudat!BR37:BS37)+1/3*Fens*(SUM(Ökobaudat!BR43:BS43)+SUM(Ökobaudat!BR44:BS44)+SUM(Ökobaudat!BR45:BS45)))),"-") -> - | V39: =IF(Datenbank_Emission=Ökobaudat2024,0,"-") -> - | W39: =IF(Datenbank_Emission=Ökobaudat2024,1/Nutzd*(_xlfn.IFS(San_mat=EPS,EPS_in*SUM(Ökobaudat!CA32:CD32)/Sachbilanz!AC458,San_mat=XPS,XPS_in*SUM(Ökobaudat!CA31:CD31)/Sachbilanz!AC457,San_mat=Holzfaser,Holz_in*SUM(Ökobaudat!CA33:CD33)/Sachbilanz!AC459,San_mat=Zellulose,Zellu_in*SUM(Ökobaudat!CA34:CD34)/Sachbilanz!AC460)+Rahmen_in/Sachbilanz!G300*_xlfn.IFS(Rahmn_mat=PVC,SUM(Ökobaudat!CA28:CD28)/2.95,Rahmn_mat=Holz,SUM(Ökobaudat!CA29:CD29)/2.11)+(Glas_in*SUM(Ökobaudat!CA30:CD30)/Sachbilanz!AC463)+Putz_in*SUM(Ökobaudat!CA36:CD36)+_xlfn.IFS(Verw=Dep_6,Mix_bauschutt*SUM(Ökobaudat!CA67:CD67)*0.061+0.939*Mix_bauschutt*SUM(Ökobaudat!CA37:CD37)+0.939*1/3*Fens*(SUM(Ökobaudat!CA43:CD43)+SUM(Ökobaudat!CA44:CD44)+SUM(Ökobaudat!CA45:CD45)),Verw=Verwertung100,Mix_bauschutt*SUM(Ökobaudat!CA37:CD37)+1/3*Fens*(SUM(Ökobaudat!CA43:CD43)+SUM(Ökobaudat!CA44:CD44)+SUM(Ökobaudat!CA45:CD45)))),"-") -> - | X39: =IF(Datenbank_Emission=Ökobaudat2024,1/Nutzd*(_xlfn.IFS(San_mat=EPS,EPS_in*SUM(Ökobaudat!AA32:CE32)/Sachbilanz!AC458,San_mat=XPS,XPS_in*SUM(Ökobaudat!AA31:CE31)/Sachbilanz!AC457,San_mat=Holzfaser,Holz_in*SUM(Ökobaudat!AA33:CE33)/Sachbilanz!AC459,San_mat=Zellulose,Zellu_in*SUM(Ökobaudat!AA34:CE34)/Sachbilanz!AC460)+Rahmen_in/Sachbilanz!G300*_xlfn.IFS(Rahmn_mat=PVC,SUM(Ökobaudat!AA28:CE28)/2.95,Rahmn_mat=Holz,SUM(Ökobaudat!AA29:CE29)/2.11)+(Glas_in*SUM(Ökobaudat!AA30:CE30)/Sachbilanz!AC463)+Putz_in*SUM(Ökobaudat!AA36:CE36)+_xlfn.IFS(Verw=Dep_6,Mix_bauschutt*SUM(Ökobaudat!AA67:CE67)*0.061*0.939*Mix_bauschutt*SUM(Ökobaudat!AA37:CE37)+0.939*1/3*Fens*(SUM(Ökobaudat!AA43:CE43)+SUM(Ökobaudat!AA44:CE44)+SUM(Ökobaudat!AA45:CE45)),Verw=Verwertung100,Mix_bauschutt*SUM(Ökobaudat!AA37:CE37)+1/3*Fens*(SUM(Ökobaudat!AA43:CE43)+SUM(Ökobaudat!AA44:CE44)+SUM(Ökobaudat!AA45:CE45)))),"-") -> - | Y39: =IF(Datenbank_Emission=Ökobaudat2024,1/Nutzd*(_xlfn.IFS(San_mat=EPS,EPS_in*SUM(Ökobaudat!BN32)/Sachbilanz!AC458,San_mat=XPS,XPS_in*SUM(Ökobaudat!BN31)/Sachbilanz!AC457,San_mat=Holzfaser,Holz_in*SUM(Ökobaudat!BN33)/Sachbilanz!AC459,San_mat=Zellulose,Zellu_in*SUM(Ökobaudat!BN34)/Sachbilanz!AC460)+Rahmen_in/Sachbilanz!G300*_xlfn.IFS(Rahmn_mat=PVC,SUM(Ökobaudat!BN28)/2.95,Rahmn_mat=Holz,SUM(Ökobaudat!BN29)/2.11)+(Glas_in*SUM(Ökobaudat!BN30)/Sachbilanz!AC463)+Putz_in*SUM(Ökobaudat!BN36)+_xlfn.IFS(Verw=Dep_6,Mix_bauschutt*SUM(Ökobaudat!BN67)*0.061+0.0939*Mix_bauschutt*SUM(Ökobaudat!BN37)+0.939*1/3*Fens*(SUM(Ökobaudat!BN43)+SUM(Ökobaudat!BN44)+SUM(Ökobaudat!BN45)),Verw=Verwertung100,Mix_bauschutt*SUM(Ökobaudat!BN37)+1/3*Fens*(SUM(Ökobaudat!BN43)+SUM(Ökobaudat!BN44)+SUM(Ökobaudat!BN45)))),1/Nutzd*_xlfn.IFS(Datenbank_Emission=Datenbank_eigen,_xlfn.IFS(San_mat=EPS,EPS_in*'Eigene Datenbank'!J32,San_mat=XPS,XPS_in*'Eigene Datenbank'!J31,San_mat=Holzfaser,Holz_in*'Eigene Datenbank'!J33/Sachbilanz!AC452,San_mat=Zellulose,Zellu_in*'Eigene Datenbank'!J34,San_mat='Drop-Down'!T6,0)+Rahmen_in*_xlfn.IFS(Rahmn_mat=PVC,'Eigene Datenbank'!J28,Rahmn_mat=Holz,'Eigene Datenbank'!J29)+Glas_in*'Eigene Datenbank'!J30+(Putz_in*'Eigene Datenbank'!J36)+_xlfn.IFS(Verw=Dep_6,Mix_bauschutt*'Eigene Datenbank'!J67*0.061+0.939*0.5*Mix_bauschutt*('Eigene Datenbank'!J37+'Eigene Datenbank'!J38)+0.939*1/3*Fens*('Eigene Datenbank'!J43+'Eigene Datenbank'!J44+'Eigene Datenbank'!J45),Verw=Verwertung100,0.5*Mix_bauschutt*('Eigene Datenbank'!J37+'Eigene Datenbank'!J38)+1/3*Fens*('Eigene Datenbank'!J43+'Eigene Datenbank'!J44+'Eigene Datenbank'!J45)))) -> 0 | AN39: 37 | AO39: 13510.968 | AP39: 18088.70393 | AQ39: 2702.1936 | AR39: 7399.0455 | AS39: 10808.7744 | AT39: 10689.65843 | AV39: -470192.8496
D40: Fernwärme | G40: ='Sanierung Einzelgebäude'!H13 -> 0 | S40: Technische Einbauten | T40: =IF(Datenbank_Emission=Ökobaudat2024, 1/Nutzd*((Nutzd/20*ROUNDUP((Nutz_Strom*_xlfn.IFS(aktSan_PV=PV_0,0,aktSan_PV=PV_20,0.2,aktSan_PV=PV_40,0.4,aktSan_PV=PV_60,0.6,aktSan_PV=PV_80,0.8,aktSan_PV=PV_100,1))/30000,0)*SUM(Ökobaudat!BO24:BQ24))+_xlfn.IFS(aktSan_WP=Heizöl_alt,0,aktSan_WP=Heizöl_neu,_xlfn.IFS(OR(Hausform_Geb=SFH,Hausform_Geb=SDH),2*ROUNDUP(Nutz_Wärme_san/(365*24*10),0)*SUM(Ökobaudat!BO12:BQ12),OR(Hausform_Geb=SMFH,Hausform_Geb=LMFH),Nutzd/20*ROUNDUP(Nutz_Wärme_san/(365*24*10),0)*SUM(Ökobaudat!BO13:BQ13)),aktSan_WP=WP,Nutzd/20*ROUNDUP(Nutz_Wärme_san/(365*24*30),0)*SUM(Ökobaudat!BO7:BQ7),aktSan_WP=Erdgas,_xlfn.IFS(OR(Hausform_Geb=SFH,Hausform_Geb=SDH),Nutzd/20*ROUNDUP(Nutz_Wärme_san/(365*24*10),0)*SUM(Ökobaudat!BO9),OR(Hausform_Geb=SMFH,Hausform_Geb=LMFH),2*ROUNDUP(Nutz_Wärme_san/(365*24*10),0)*SUM(Ökobaudat!BO10:BQ10)),aktSan_WP=Holz_Pellet,Nutzd/15*ROUNDUP(Nutz_Wärme_san/(365*24*9),0)*SUM(Ökobaudat!BO15:BQ15),aktSan_WP=Fernwärme,Nutzd/30*ROUNDUP(Nutz_Wärme_san/(365*24*1),0)*SUM(Ökobaudat!BO21:BQ21),aktSan_WP=BHKW,ROUNDUP(Nutz_Wärme_san/(365*24*500),0)*SUM(Ökobaudat!BO22:BQ22))),"-") -> - | U40: =IF(Datenbank_Emission=Ökobaudat2024, 1/Nutzd*((Nutzd/20*ROUNDUP((Nutz_Strom*_xlfn.IFS(aktSan_PV=PV_0,0,aktSan_PV=PV_20,0.2,aktSan_PV=PV_40,0.4,aktSan_PV=PV_60,0.6,aktSan_PV=PV_80,0.8,aktSan_PV=PV_100,1))/30000,0)*SUM(Ökobaudat!BR24:BS24))+_xlfn.IFS(aktSan_WP=Heizöl_alt,0,aktSan_WP=Heizöl_neu,_xlfn.IFS(OR(Hausform_Geb=SFH,Hausform_Geb=SDH),Nutzd/20*ROUNDUP(Nutz_Wärme_san/(365*24*10),0)*SUM(Ökobaudat!BR12:BS12),OR(Hausform_Geb=SMFH,Hausform_Geb=LMFH),Nutzd/20*ROUNDUP(Nutz_Wärme_san/(365*24*10),0)*SUM(Ökobaudat!BR13:BS13)),aktSan_WP=WP,2*ROUNDUP(Nutz_Wärme_san/(365*24*30),0)*SUM(Ökobaudat!BR7:BS7),aktSan_WP=Erdgas,_xlfn.IFS(OR(Hausform_Geb=SFH,Hausform_Geb=SDH),Nutzd/20*ROUNDUP(Nutz_Wärme_san/(365*24*10),0)*SUM(Ökobaudat!BR9:BS9),OR(Hausform_Geb=SMFH,Hausform_Geb=LMFH),2*ROUNDUP(Nutz_Wärme_san/(365*24*10),0)*SUM(Ökobaudat!BR10:BS10)),aktSan_WP=Holz_Pellet,Nutzd/15*ROUNDUP(Nutz_Wärme_san/(365*24*9),0)*SUM(Ökobaudat!BR15:BS15),aktSan_WP=Fernwärme,Nutzd/30*ROUNDUP(Nutz_Wärme_san/(365*24*1),0)*SUM(Ökobaudat!BR21:BS21),aktSan_WP=BHKW,ROUNDUP(Nutz_Wärme_san/(365*24*500),0)*SUM(Ökobaudat!BR22:BS22))),"-") -> - | V40: =IF(Datenbank_Emission=Ökobaudat2024,0,"-") -> - | W40: =IF(Datenbank_Emission=Ökobaudat2024,1/Nutzd*((Nutzd/20*ROUNDUP((Nutz_Strom*_xlfn.IFS(aktSan_PV=PV_0,0,aktSan_PV=PV_20,0.2,aktSan_PV=PV_40,0.4,aktSan_PV=PV_60,0.6,aktSan_PV=PV_80,0.8,aktSan_PV=PV_100,1))/30000,0)*SUM(Ökobaudat!CA24:CD24))+_xlfn.IFS(aktSan_WP=Heizöl_alt,0,aktSan_WP=Heizöl_neu,_xlfn.IFS(OR(Hausform_Geb=SFH,Hausform_Geb=SDH),Nutzd/20*ROUNDUP(Nutz_Wärme_san/(365*24*10),0)*SUM(Ökobaudat!CA12:CD12),OR(Hausform_Geb=SMFH,Hausform_Geb=LMFH),Nutzd/20*ROUNDUP(Nutz_Wärme_san/(365*24*10),0)*SUM(Ökobaudat!CA13:CD13)),aktSan_WP=WP,2*ROUNDUP(Nutz_Wärme_san/(365*24*30),0)*SUM(Ökobaudat!CA7:CD7),aktSan_WP=Erdgas,_xlfn.IFS(OR(Hausform_Geb=SFH,Hausform_Geb=SDH),Nutzd/20*ROUNDUP(Nutz_Wärme_san/(365*24*10),0)*SUM(Ökobaudat!CA9:CD9),OR(Hausform_Geb=SMFH,Hausform_Geb=LMFH),2*ROUNDUP(Nutz_Wärme_san/(365*24*10),0)*SUM(Ökobaudat!CA10:CD10)),aktSan_WP=Holz_Pellet,Nutzd/15*ROUNDUP(Nutz_Wärme_san/(365*24*9),0)*SUM(Ökobaudat!CA15:CD15),aktSan_WP=Fernwärme,Nutzd/30*ROUNDUP(Nutz_Wärme_san/(365*24*1),0)*SUM(Ökobaudat!CA21:CD21),aktSan_WP=BHKW,ROUNDUP(Nutz_Wärme_san/(365*24*500),0)*SUM(Ökobaudat!CA22:CD22))),"-") -> - | X40: =IF(Datenbank_Emission=Ökobaudat2024, 1/Nutzd*((Nutzd/20*ROUNDUP((Nutz_Strom*_xlfn.IFS(aktSan_PV=PV_0,0,aktSan_PV=PV_20,0.2,aktSan_PV=PV_40,0.4,aktSan_PV=PV_60,0.6,aktSan_PV=PV_80,0.8,aktSan_PV=PV_100,1))/30000,0)*SUM(Ökobaudat!AA24:CE24))+_xlfn.IFS(aktSan_WP=Heizöl_alt,0,aktSan_WP=Heizöl_neu,_xlfn.IFS(OR(Hausform_Geb=SFH,Hausform_Geb=SDH),Nutzd/20*ROUNDUP(Nutz_Wärme_san/(365*24*10),0)*SUM(Ökobaudat!AA12:CE12),OR(Hausform_Geb=SMFH,Hausform_Geb=LMFH),Nutzd/20*ROUNDUP(Nutz_Wärme_san/(365*24*10),0)*SUM(Ökobaudat!AA13:CE13)),aktSan_WP=WP,Nutzd/20*ROUNDUP(Nutz_Wärme_san/(365*24*30),0)*SUM(Ökobaudat!AA7:CE7),aktSan_WP=Erdgas,_xlfn.IFS(OR(Hausform_Geb=SFH,Hausform_Geb=SDH),Nutzd/20*ROUNDUP(Nutz_Wärme_san/(365*24*10),0)*SUM(Ökobaudat!AA9:CE9),OR(Hausform_Geb=SMFH,Hausform_Geb=LMFH),2*ROUNDUP(Nutz_Wärme_san/(365*24*10),0)*SUM(Ökobaudat!AA10:CE10)),aktSan_WP=Holz_Pellet,Nutzd/15*ROUNDUP(Nutz_Wärme_san/(365*24*9),0)*SUM(Ökobaudat!AA15:CE15),aktSan_WP=Fernwärme,Nutzd/30*ROUNDUP(Nutz_Wärme_san/(365*24*1),0)*SUM(Ökobaudat!AA21:CE21),aktSan_WP=BHKW,ROUNDUP(Nutz_Wärme_san/(365*24*500),0)*SUM(Ökobaudat!AA22:CE22))),"-") -> - | Y40: =IF(Datenbank_Emission=Ökobaudat2024,1/Nutzd*((Nutzd/20*ROUNDUP((Nutz_Strom*_xlfn.IFS(aktSan_PV=PV_0,0,aktSan_PV=PV_20,0.2,aktSan_PV=PV_40,0.4,aktSan_PV=PV_60,0.6,aktSan_PV=PV_80,0.8,aktSan_PV=PV_100,1))/30000,0)*SUM(Ökobaudat!BN24))+_xlfn.IFS(aktSan_WP=Heizöl_alt,0,aktSan_WP=Heizöl_neu,_xlfn.IFS(OR(Hausform_Geb=SFH,Hausform_Geb=SDH),2*ROUNDUP(Nutz_Wärme_san/(365*24*10),0)*SUM(Ökobaudat!BN12),OR(Hausform_Geb=SMFH,Hausform_Geb=LMFH),Nutzd/20*ROUNDUP(Nutz_Wärme_san/(365*24*10),0)*SUM(Ökobaudat!BN13)),aktSan_WP=WP,Nutzd/20*ROUNDUP(Nutz_Wärme_san/(365*24*30),0)*SUM(Ökobaudat!BN7),aktSan_WP=Erdgas,_xlfn.IFS(OR(Hausform_Geb=SFH,Hausform_Geb=SDH),Nutzd/20*ROUNDUP(Nutz_Wärme_san/(365*24*10),0)*SUM(Ökobaudat!BN9),OR(Hausform_Geb=SMFH,Hausform_Geb=LMFH),2*ROUNDUP(Nutz_Wärme_san/(365*24*10),0)*SUM(Ökobaudat!BN10)),aktSan_WP=Holz_Pellet,Nutzd/15*ROUNDUP(Nutz_Wärme_san/(365*24*9),0)*SUM(Ökobaudat!BN15),aktSan_WP=Fernwärme,Nutzd/30*ROUNDUP(Nutz_Wärme_san/(365*24*1),0)*SUM(Ökobaudat!BN21),aktSan_WP=BHKW,ROUNDUP(Nutz_Wärme_san/(365*24*500),0)*SUM(Ökobaudat!BN22))),1/Nutzd*_xlfn.IFS(Datenbank_Emission=Datenbank_eigen,Nutzd/20*ROUNDUP((Nutz_Strom*_xlfn.IFS(aktSan_PV=PV_0,0,aktSan_PV=PV_20,0.2,aktSan_PV=PV_40,0.4,aktSan_PV=PV_60,0.6,aktSan_PV=PV_80,0.8,aktSan_PV=PV_100,1))/30000,0)*'Eigene Datenbank'!J24+_xlfn.IFS(aktSan_WP=Heizöl_alt,0,aktSan_WP=Heizöl_neu,_xlfn.IFS(OR(Hausform_Geb=SFH,Hausform_Geb=SDH),Nutzd/20*ROUNDUP(Nutz_Wärme_san/(365*24*10),0)*'Eigene Datenbank'!J12,OR(Hausform_Geb=SMFH,Hausform_Geb=LMFH),Nutzd/20*ROUNDUP(Nutz_Wärme_san/(365*24*10),0)*'Eigene Datenbank'!J13),aktSan_WP=WP,Nutzd/20*ROUNDUP(Nutz_Wärme_san/(365*24*30),0)*'Eigene Datenbank'!J7,aktSan_WP=Erdgas,_xlfn.IFS(OR(Hausform_Geb=SFH,Hausform_Geb=SDH),Nutzd/20*ROUNDUP(Nutz_Wärme_san/(365*24*10),0)*'Eigene Datenbank'!J9,OR(Hausform_Geb=SMFH,Hausform_Geb=LMFH),2*ROUNDUP(Nutz_Wärme_san/(365*24*10),0)*'Eigene Datenbank'!J10),aktSan_WP=Holz_Pellet,Nutzd/15*ROUNDUP(Nutz_Wärme_san/(365*24*9),0)*'Eigene Datenbank'!J15,aktSan_WP=Fernwärme,Nutzd/30*ROUNDUP(Nutz_Wärme_san/(365*24*1),0)*'Eigene Datenbank'!J21,aktSan_WP=BHKW,ROUNDUP(Nutz_Wärme_san/(365*24*500),0)*'Eigene Datenbank'!J22))) -> 0 | AN40: 38 | AO40: 13510.968 | AP40: 18088.70393 | AQ40: 2702.1936 | AR40: 7399.0455 | AS40: 10808.7744 | AT40: 10689.65843 | AV40: -448694.4168
S41: Gesamt | T41: =SUM(T37:T40) -> 0 | U41: =SUM(U37:U40) -> 0 | V41: =SUM(V37:V40) -> 0 | W41: =SUM(W37:W40) -> 0 | X41: =SUM(X37:X40) -> 0 | Y41: =SUM(Y37:Y40) -> 0 | AN41: 39 | AO41: 13510.968 | AP41: 18088.70393 | AQ41: 2702.1936 | AR41: 7399.0455 | AS41: 10808.7744 | AT41: 10689.65843 | AV41: -427195.984
B42: Passive Sanierung
D43: Sanierungstiefe | G43: =_xlfn.IFS(San_tiefe=Sanierung_GEG,"GEG",San_tiefe=Sanierung_KFW70,"KfW 70",San_tiefe=Sanierung_KFW40,"KfW 40",San_tiefe=Sanierung_KFW40p,"KfW 40+") -> GEG | Q43: =_xlfn.IFS(Datenbank_Emission=Datenbank_eigen,"Land use [m2a crop eq]",Datenbank_Emission=Ökobaudat2024,"-") -> Land use [m2a crop eq] | S43: =_xlfn.IFS(Datenbank_Emission=Datenbank_eigen,"Strom",Datenbank_Emission=Ökobaudat2024,"-") -> Strom | T43: =IF(Datenbank_Emission=Ökobaudat2024,0,"-") -> - | U43: - | V43: - | W43: - | X43: - | Y43: =IF(Datenbank_Emission=Ökobaudat2024,"-",_xlfn.IFS(Datenbank_Emission=Datenbank_eigen,_xlfn.IFS(aktSan_PV=PV_0,Nutz_Strom*'Eigene Datenbank'!K17,aktSan_PV=PV_20,0.2*Nutz_Strom*'Eigene Datenbank'!K27+0.8*Nutz_Strom*'Eigene Datenbank'!K17,aktSan_PV=PV_40,0.4*Nutz_Strom*'Eigene Datenbank'!K27+0.6*Nutz_Strom*'Eigene Datenbank'!K17,aktSan_PV=PV_60,0.6*Nutz_Strom*'Eigene Datenbank'!K27+0.4*Nutz_Strom*'Eigene Datenbank'!K17,aktSan_PV=PV_80,0.8*Nutz_Strom*'Eigene Datenbank'!K27+0.2*Nutz_Strom*'Eigene Datenbank'!K17,aktSan_PV=PV_100,Nutz_Strom*'Eigene Datenbank'!K27)+IF(aktSan_WP=BHKW,Sanierung!D35/2*'Eigene Datenbank'!K17,0))) -> 0
D44: Sanierungsmaterial | G44: =San_mat -> EPS | S44: =_xlfn.IFS(Datenbank_Emission=Datenbank_eigen,"Wärme",Datenbank_Emission=Ökobaudat2024,"-") -> Wärme | T44: - | U44: - | V44: - | W44: - | X44: - | Y44: =IF(Datenbank_Emission=Ökobaudat2024,"-",Nutz_Wärme_san*_xlfn.IFS(Datenbank_Emission=Datenbank_eigen,_xlfn.IFS(aktSan_WP=WP,'Eigene Datenbank'!K6,OR(aktSan_WP=Heizöl_alt,aktSan_WP=Heizöl_neu),'Eigene Datenbank'!K11,aktSan_WP=Erdgas,'Eigene Datenbank'!K8,aktSan_WP=Holz_Pellet,'Eigene Datenbank'!K14,aktSan_WP=Fernwärme,('Eigene Datenbank'!K18*0.65+'Eigene Datenbank'!K19*0.35),aktSan_WP=BHKW,'Eigene Datenbank'!K23))) -> 0
D45: Rahmenmaterial | G45: =Rahmn_mat -> PVC | S45: =_xlfn.IFS(Datenbank_Emission=Datenbank_eigen,"Materialströme",Datenbank_Emission=Ökobaudat2024,"-") -> Materialströme | T45: - | U45: - | V45: - | W45: - | X45: - | Y45: =IF(Datenbank_Emission=Ökobaudat2024,"-",1/Nutzd*_xlfn.IFS(Datenbank_Emission=Datenbank_eigen,_xlfn.IFS(San_mat=EPS,EPS_in*'Eigene Datenbank'!K32,San_mat=XPS,XPS_in*'Eigene Datenbank'!K31,San_mat=Holzfaser,Holz_in*'Eigene Datenbank'!K33/Sachbilanz!AC452,San_mat=Zellulose,Zellu_in*'Eigene Datenbank'!K34,San_mat='Drop-Down'!U6,0)+Rahmen_in*_xlfn.IFS(Rahmn_mat=PVC,'Eigene Datenbank'!K28,Rahmn_mat=Holz,'Eigene Datenbank'!K29)+Glas_in*'Eigene Datenbank'!K30+(Putz_in*'Eigene Datenbank'!K36)+_xlfn.IFS(Verw=Dep_6,Mix_bauschutt*'Eigene Datenbank'!K67*0.061+0.939*0.5*Mix_bauschutt*('Eigene Datenbank'!K37+'Eigene Datenbank'!K38)+0.939*1/3*Fens*('Eigene Datenbank'!K43+'Eigene Datenbank'!K44+'Eigene Datenbank'!K45),Verw=Verwertung100,0.5*Mix_bauschutt*('Eigene Datenbank'!K37+'Eigene Datenbank'!K38)+1/3*Fens*('Eigene Datenbank'!K43+'Eigene Datenbank'!K44+'Eigene Datenbank'!K45)))) -> 0
D46: Verwertung | G46: ='Sanierung Einzelgebäude'!H32 -> Verwertung 100 % | S46: =_xlfn.IFS(Datenbank_Emission=Datenbank_eigen,"Technische Einbauten",Datenbank_Emission=Ökobaudat2024,"-") -> Technische Einbauten | T46: - | U46: - | V46: - | W46: - | X46: - | Y46: =IF(Datenbank_Emission=Ökobaudat2024,"-",1/Nutzd*_xlfn.IFS(Datenbank_Emission=Datenbank_eigen,Nutzd/20*ROUNDUP((Nutz_Strom*_xlfn.IFS(aktSan_PV=PV_0,0,aktSan_PV=PV_20,0.2,aktSan_PV=PV_40,0.4,aktSan_PV=PV_60,0.6,aktSan_PV=PV_80,0.8,aktSan_PV=PV_100,1))/30000,0)*'Eigene Datenbank'!K24+_xlfn.IFS(aktSan_WP=Heizöl_alt,0,aktSan_WP=Heizöl_neu,_xlfn.IFS(OR(Hausform_Geb=SFH,Hausform_Geb=SDH),Nutzd/20*ROUNDUP(Nutz_Wärme_san/(365*24*10),0)*'Eigene Datenbank'!K12,OR(Hausform_Geb=SMFH,Hausform_Geb=LMFH),Nutzd/20*ROUNDUP(Nutz_Wärme_san/(365*24*10),0)*'Eigene Datenbank'!K13),aktSan_WP=WP,Nutzd/20*ROUNDUP(Nutz_Wärme_san/(365*24*30),0)*'Eigene Datenbank'!K7,aktSan_WP=Erdgas,_xlfn.IFS(OR(Hausform_Geb=SFH,Hausform_Geb=SDH),2*ROUNDUP(Nutz_Wärme_san/(365*24*10),0)*'Eigene Datenbank'!K9,OR(Hausform_Geb=SMFH,Hausform_Geb=LMFH),Nutzd/20*ROUNDUP(Nutz_Wärme_san/(365*24*10),0)*'Eigene Datenbank'!K10),aktSan_WP=Holz_Pellet,Nutzd/15*ROUNDUP(Nutz_Wärme_san/(365*24*9),0)*'Eigene Datenbank'!K15,aktSan_WP=Fernwärme,Nutzd/30*ROUNDUP(Nutz_Wärme_san/(365*24*1),0)*'Eigene Datenbank'!K21,aktSan_WP=BHKW,ROUNDUP(Nutz_Wärme_san/(365*24*500),0)*'Eigene Datenbank'!K22))) -> 0
S47: =_xlfn.IFS(Datenbank_Emission=Datenbank_eigen,"Gesamt",Datenbank_Emission=Ökobaudat2024,"-") -> Gesamt | T47: - | U47: - | V47: - | W47: - | X47: - | Y47: =SUM(Y43:Y46) -> 0
B49: Aktive Sanierung | Q49: =_xlfn.IFS(Datenbank_Emission=Datenbank_eigen,"Fine particulate matter formation [kg PM2.5 eq]",Datenbank_Emission=Ökobaudat2024,"-") -> Fine particulate matter formation [kg PM2.5 eq] | S49: =_xlfn.IFS(Datenbank_Emission=Datenbank_eigen,"Strom",Datenbank_Emission=Ökobaudat2024,"-") -> Strom | T49: =IF(Datenbank_Emission=Ökobaudat2024,0,"-") -> - | U49: - | V49: - | W49: - | X49: - | Y49: =IF(Datenbank_Emission=Ökobaudat2024,"-",_xlfn.IFS(Datenbank_Emission=Datenbank_eigen,_xlfn.IFS(aktSan_PV=PV_0,Nutz_Strom*'Eigene Datenbank'!I17,aktSan_PV=PV_20,0.2*Nutz_Strom*'Eigene Datenbank'!I27+0.8*Nutz_Strom*'Eigene Datenbank'!I17,aktSan_PV=PV_40,0.4*Nutz_Strom*'Eigene Datenbank'!I27+0.6*Nutz_Strom*'Eigene Datenbank'!I17,aktSan_PV=PV_60,0.6*Nutz_Strom*'Eigene Datenbank'!I27+0.4*Nutz_Strom*'Eigene Datenbank'!I17,aktSan_PV=PV_80,0.8*Nutz_Strom*'Eigene Datenbank'!I27+0.2*Nutz_Strom*'Eigene Datenbank'!I17,aktSan_PV=PV_100,Nutz_Strom*'Eigene Datenbank'!I27)+IF(aktSan_WP=BHKW,Sanierung!D35/2*'Eigene Datenbank'!I17,0))) -> 0 | AP49: =_xlfn.IFS(Datenbank_Emission=Datenbank_eigen,"Water consumption",Datenbank_Emission=Ökobaudat2024,"Wasserentzugspotenzial") -> Water consumption | AQ49: =_xlfn.IFS(Datenbank_Emission=Datenbank_eigen,"Mineral resource scarcity",Datenbank_Emission=Ökobaudat2024,"ADPE") -> Mineral resource scarcity | AR49: =_xlfn.IFS(Datenbank_Emission=Datenbank_eigen,"Fossil resource scarcity",Datenbank_Emission=Ökobaudat2024,"ADPF") -> Fossil resource scarcity | AS49: =_xlfn.IFS(Datenbank_Emission=Datenbank_eigen,"Land use",Datenbank_Emission=Ökobaudat2024,"-") -> Land use | AT49: =_xlfn.IFS(Datenbank_Emission=Datenbank_eigen,"Fine particulate matter formation",Datenbank_Emission=Ökobaudat2024,"-") -> Fine particulate matter formation
D50: Photovoltaik | G50: ='Sanierung Einzelgebäude'!E45 -> Deckung Strombedarf 80 % | S50: =_xlfn.IFS(Datenbank_Emission=Datenbank_eigen,"Wärme",Datenbank_Emission=Ökobaudat2024,"-") -> Wärme | T50: - | U50: - | V50: - | W50: - | X50: - | Y50: =IF(Datenbank_Emission=Ökobaudat2024,"-",Nutz_Wärme_san*_xlfn.IFS(Datenbank_Emission=Datenbank_eigen,_xlfn.IFS(aktSan_WP=WP,'Eigene Datenbank'!I6,OR(aktSan_WP=Heizöl_alt,aktSan_WP=Heizöl_neu),'Eigene Datenbank'!I11,aktSan_WP=Erdgas,'Eigene Datenbank'!I8,aktSan_WP=Holz_Pellet,'Eigene Datenbank'!I14,aktSan_WP=Fernwärme,('Eigene Datenbank'!I18*0.65+'Eigene Datenbank'!I19*0.35),aktSan_WP=BHKW,'Eigene Datenbank'!I23))) -> 0 | AP50: =_xlfn.IFS(Datenbank_Emission=Datenbank_eigen,"m3",Datenbank_Emission=Ökobaudat2024,"m3 world eq") -> m3 | AQ50: =_xlfn.IFS(Datenbank_Emission=Datenbank_eigen,"kg Cu eq",Datenbank_Emission=Ökobaudat2024,"kg Sb eq") -> kg Cu eq | AR50: =_xlfn.IFS(Datenbank_Emission=Datenbank_eigen,"kg oil eq",Datenbank_Emission=Ökobaudat2024,"MJ") -> kg oil eq | AS50: =_xlfn.IFS(Datenbank_Emission=Datenbank_eigen,"m2a crop eq",Datenbank_Emission=Ökobaudat2024,"-") -> m2a crop eq | AT50: =_xlfn.IFS(Datenbank_Emission=Datenbank_eigen,"kg PM2.5 eq",Datenbank_Emission=Ökobaudat2024,"-") -> kg PM2.5 eq
D51: Wärmeträger | G51: ='Sanierung Einzelgebäude'!E48 -> Holz/Pellet | S51: =_xlfn.IFS(Datenbank_Emission=Datenbank_eigen,"Materialströme",Datenbank_Emission=Ökobaudat2024,"-") -> Materialströme | T51: - | U51: - | V51: - | W51: - | X51: - | Y51: =IF(Datenbank_Emission=Ökobaudat2024,"-",1/Nutzd*_xlfn.IFS(Datenbank_Emission=Datenbank_eigen,_xlfn.IFS(San_mat=EPS,EPS_in*'Eigene Datenbank'!I32,San_mat=XPS,XPS_in*'Eigene Datenbank'!I31,San_mat=Holzfaser,Holz_in*'Eigene Datenbank'!I33/Sachbilanz!AC452,San_mat=Zellulose,Zellu_in*'Eigene Datenbank'!I34,San_mat='Drop-Down'!T6,0)+Rahmen_in*_xlfn.IFS(Rahmn_mat=PVC,'Eigene Datenbank'!I28,Rahmn_mat=Holz,'Eigene Datenbank'!I29)+Glas_in*'Eigene Datenbank'!I30+(Putz_in*'Eigene Datenbank'!I36)+_xlfn.IFS(Verw=Dep_6,Mix_bauschutt*'Eigene Datenbank'!I67*0.061+0.939*0.5*Mix_bauschutt*('Eigene Datenbank'!I37+'Eigene Datenbank'!I38)+0.939*1/3*Fens*('Eigene Datenbank'!I43+'Eigene Datenbank'!I44+'Eigene Datenbank'!I45),Verw=Verwertung100,0.5*Mix_bauschutt*('Eigene Datenbank'!I37+'Eigene Datenbank'!I38)+1/3*Fens*('Eigene Datenbank'!I43+'Eigene Datenbank'!I44+'Eigene Datenbank'!I45)))) -> 0 | AO51: Strom | AP51: =Y25 -> 0 | AQ51: =Y31 -> 0 | AR51: =Y37 -> 0 | AS51: =Y43 -> 0 | AT51: =Y49 -> 0
S52: =_xlfn.IFS(Datenbank_Emission=Datenbank_eigen,"Technische Einbauten",Datenbank_Emission=Ökobaudat2024,"-") -> Technische Einbauten | T52: - | U52: - | V52: - | W52: - | X52: - | Y52: =IF(Datenbank_Emission=Ökobaudat2024,"-",1/Nutzd*_xlfn.IFS(Datenbank_Emission=Datenbank_eigen,Nutzd/20*ROUNDUP((Nutz_Strom*_xlfn.IFS(aktSan_PV=PV_0,0,aktSan_PV=PV_20,0.2,aktSan_PV=PV_40,0.4,aktSan_PV=PV_60,0.6,aktSan_PV=PV_80,0.8,aktSan_PV=PV_100,1))/30000,0)*'Eigene Datenbank'!I24+_xlfn.IFS(aktSan_WP=Heizöl_alt,0,aktSan_WP=Heizöl_neu,_xlfn.IFS(OR(Hausform_Geb=SFH,Hausform_Geb=SDH),Nutzd/20*ROUNDUP(Nutz_Wärme_san/(365*24*10),0)*'Eigene Datenbank'!I12,OR(Hausform_Geb=SMFH,Hausform_Geb=LMFH),Nutzd/20*ROUNDUP(Nutz_Wärme_san/(365*24*10),0)*'Eigene Datenbank'!I13),aktSan_WP=WP,Nutzd/20*ROUNDUP(Nutz_Wärme_san/(365*24*30),0)*'Eigene Datenbank'!I7,aktSan_WP=Erdgas,_xlfn.IFS(OR(Hausform_Geb=SFH,Hausform_Geb=SDH),Nutzd/20*ROUNDUP(Nutz_Wärme_san/(365*24*10),0)*'Eigene Datenbank'!I9,OR(Hausform_Geb=SMFH,Hausform_Geb=LMFH),Nutzd/20*ROUNDUP(Nutz_Wärme_san/(365*24*10),0)*'Eigene Datenbank'!I10),aktSan_WP=Holz_Pellet,Nutzd/15*ROUNDUP(Nutz_Wärme_san/(365*24*9),0)*'Eigene Datenbank'!I15,aktSan_WP=Fernwärme,Nutzd/30*ROUNDUP(Nutz_Wärme_san/(365*24*1),0)*'Eigene Datenbank'!I21,aktSan_WP=BHKW,ROUNDUP(Nutz_Wärme_san/(365*24*500),0)*'Eigene Datenbank'!I22))) -> 0 | AO52: Wärme | AP52: =Y26 -> 0 | AQ52: =Y32 -> 0 | AR52: =Y38 -> 0 | AS52: =Y44 -> 0 | AT52: =Y50 -> 0
S53: =_xlfn.IFS(Datenbank_Emission=Datenbank_eigen,"Gesamt",Datenbank_Emission=Ökobaudat2024,"-") -> Gesamt | T53: - | U53: - | V53: - | W53: - | X53: - | Y53: =SUM(Y49:Y52) -> 0 | AO53: Materialströme | AP53: 0 | AQ53: 0 | AR53: 0 | AS53: 0 | AT53: 0
B54: Material-ströme | AO54: Technische Einbauten | AP54: 0 | AQ54: 0 | AR54: 0 | AS54: 0 | AT54: 0
D55: Aus dem Quartier | G55: Bauschutt | H55: =Mix_bauschutt -> 9822.0055 | AO55: Gesamt | AP55: 0 | AQ55: 0 | AR55: 0 | AS55: 0 | AT55: 0
G56: Fenster | H56: =Fens -> 3627.452146 | Q56: Energie- bedarf | S56: Cumulative Energy Demand | T56: Non renewable | U56: Renewable
D57: In das Quartier | G57: Dämmung | H57: =_xlfn.IFS(San_mat=EPS,EPS_in,San_mat=XPS,XPS_in,San_mat=Holzfaser,Holz_in,San_mat=Zellulose,Zellu_in) -> 7942.66272
G58: Rahmen | H58: =Rahmen_in -> 2707.193474 | T58: MJ | U58: MJ
G59: Glas | H59: =Glas_in -> 1381.075794 | S59: Strom | T59: =IF(Datenbank_Emission=Ökobaudat2024,"-",_xlfn.IFS(Datenbank_Emission=Datenbank_eigen,_xlfn.IFS(aktSan_PV=PV_0,Nutz_Strom*'Eigene Datenbank'!U17,aktSan_PV=PV_20,0.2*Nutz_Strom*'Eigene Datenbank'!U27+0.8*Nutz_Strom*'Eigene Datenbank'!U17,aktSan_PV=PV_40,0.4*Nutz_Strom*'Eigene Datenbank'!U27+0.6*Nutz_Strom*'Eigene Datenbank'!U17,aktSan_PV=PV_60,0.6*Nutz_Strom*'Eigene Datenbank'!U27+0.4*Nutz_Strom*'Eigene Datenbank'!U17,aktSan_PV=PV_80,0.8*Nutz_Strom*'Eigene Datenbank'!U27+0.2*Nutz_Strom*'Eigene Datenbank'!U17,aktSan_PV=PV_100,Nutz_Strom*'Eigene Datenbank'!U27)+IF(aktSan_WP=BHKW,Sanierung!H35/2*'Eigene Datenbank'!U17,0))) -> 0 | U59: =IF(Datenbank_Emission=Ökobaudat2024,"-",_xlfn.IFS(Datenbank_Emission=Datenbank_eigen,_xlfn.IFS(aktSan_PV=PV_0,Nutz_Strom*'Eigene Datenbank'!V17,aktSan_PV=PV_20,0.2*Nutz_Strom*'Eigene Datenbank'!V27+0.8*Nutz_Strom*'Eigene Datenbank'!V17,aktSan_PV=PV_40,0.4*Nutz_Strom*'Eigene Datenbank'!V27+0.6*Nutz_Strom*'Eigene Datenbank'!V17,aktSan_PV=PV_60,0.6*Nutz_Strom*'Eigene Datenbank'!V27+0.4*Nutz_Strom*'Eigene Datenbank'!V17,aktSan_PV=PV_80,0.8*Nutz_Strom*'Eigene Datenbank'!V27+0.2*Nutz_Strom*'Eigene Datenbank'!V17,aktSan_PV=PV_100,Nutz_Strom*'Eigene Datenbank'!V27)+IF(aktSan_WP=BHKW,Sanierung!I35/2*'Eigene Datenbank'!V17,0))) -> 0
G60: Putz | H60: =Putz_in -> 317.23125 | S60: Wärme | T60: =IF(Datenbank_Emission=Ökobaudat2024,"-",Nutz_Wärme_san*_xlfn.IFS(Datenbank_Emission=Datenbank_eigen,_xlfn.IFS(aktSan_WP=WP,'Eigene Datenbank'!U6,OR(aktSan_WP=Heizöl_alt,aktSan_WP=Heizöl_neu),'Eigene Datenbank'!U11,aktSan_WP=Erdgas,'Eigene Datenbank'!U8,aktSan_WP=Holz_Pellet,'Eigene Datenbank'!U14,aktSan_WP=Fernwärme,('Eigene Datenbank'!U18*0.65+'Eigene Datenbank'!U19*0.35),aktSan_WP=BHKW,'Eigene Datenbank'!U23))) -> 0 | U60: =IF(Datenbank_Emission=Ökobaudat2024,"-",Nutz_Wärme_san*_xlfn.IFS(Datenbank_Emission=Datenbank_eigen,_xlfn.IFS(aktSan_WP=WP,'Eigene Datenbank'!V6,OR(aktSan_WP=Heizöl_alt,aktSan_WP=Heizöl_neu),'Eigene Datenbank'!V11,aktSan_WP=Erdgas,'Eigene Datenbank'!V8,aktSan_WP=Holz_Pellet,'Eigene Datenbank'!V14,aktSan_WP=Fernwärme,('Eigene Datenbank'!V18*0.65+'Eigene Datenbank'!V19*0.35),aktSan_WP=BHKW,'Eigene Datenbank'!V23))) -> 0
S61: Materialströme | T61: =IF(Datenbank_Emission=Ökobaudat2024,"-",1/Nutzd*_xlfn.IFS(Datenbank_Emission=Datenbank_eigen,_xlfn.IFS(San_mat=EPS,EPS_in*'Eigene Datenbank'!U32,San_mat=XPS,XPS_in*'Eigene Datenbank'!U31,San_mat=Holzfaser,Holz_in*'Eigene Datenbank'!U33/Sachbilanz!AC452,San_mat=Zellulose,Zellu_in*'Eigene Datenbank'!U34,San_mat='Drop-Down'!Y6,0)+Rahmen_in*_xlfn.IFS(Rahmn_mat=PVC,'Eigene Datenbank'!U28,Rahmn_mat=Holz,'Eigene Datenbank'!U29)+Glas_in*'Eigene Datenbank'!U30+(Putz_in*'Eigene Datenbank'!U36)+_xlfn.IFS(Verw=Dep_6,Mix_bauschutt*'Eigene Datenbank'!U67*0.061+0.939*0.5*Mix_bauschutt*('Eigene Datenbank'!U37+'Eigene Datenbank'!U38)+0.939*1/3*Fens*('Eigene Datenbank'!U43+'Eigene Datenbank'!U44+'Eigene Datenbank'!U45),Verw=Verwertung100,0.5*Mix_bauschutt*('Eigene Datenbank'!U37+'Eigene Datenbank'!U38)+1/3*Fens*('Eigene Datenbank'!U43+'Eigene Datenbank'!U44+'Eigene Datenbank'!U45)))) -> 0 | U61: =IF(Datenbank_Emission=Ökobaudat2024,"-",1/Nutzd*_xlfn.IFS(Datenbank_Emission=Datenbank_eigen,_xlfn.IFS(San_mat=EPS,EPS_in*'Eigene Datenbank'!V32,San_mat=XPS,XPS_in*'Eigene Datenbank'!V31,San_mat=Holzfaser,Holz_in*'Eigene Datenbank'!V33/Sachbilanz!AC452,San_mat=Zellulose,Zellu_in*'Eigene Datenbank'!V34,San_mat='Drop-Down'!Z6,0)+Rahmen_in*_xlfn.IFS(Rahmn_mat=PVC,'Eigene Datenbank'!V28,Rahmn_mat=Holz,'Eigene Datenbank'!V29)+Glas_in*'Eigene Datenbank'!V30+(Putz_in*'Eigene Datenbank'!V36)+_xlfn.IFS(Verw=Dep_6,Mix_bauschutt*'Eigene Datenbank'!V67*0.061+0.939*0.5*Mix_bauschutt*('Eigene Datenbank'!V37+'Eigene Datenbank'!V38)+0.939*1/3*Fens*('Eigene Datenbank'!V43+'Eigene Datenbank'!V44+'Eigene Datenbank'!V45),Verw=Verwertung100,0.5*Mix_bauschutt*('Eigene Datenbank'!V37+'Eigene Datenbank'!V38)+1/3*Fens*('Eigene Datenbank'!V43+'Eigene Datenbank'!V44+'Eigene Datenbank'!V45)))) -> 0
S62: Technische Einbauten | T62: =IF(Datenbank_Emission=Ökobaudat2024,"-",1/Nutzd*_xlfn.IFS(Datenbank_Emission=Datenbank_eigen,Nutzd/20*ROUNDUP((Nutz_Strom*_xlfn.IFS(aktSan_PV=PV_0,0,aktSan_PV=PV_20,0.2,aktSan_PV=PV_40,0.4,aktSan_PV=PV_60,0.6,aktSan_PV=PV_80,0.8,aktSan_PV=PV_100,1))/30000,0)*'Eigene Datenbank'!U24+_xlfn.IFS(aktSan_WP=Heizöl_alt,0,aktSan_WP=Heizöl_neu,_xlfn.IFS(OR(Hausform_Geb=SFH,Hausform_Geb=SDH),Nutzd/22*ROUNDUP(Nutz_Wärme_san/(365*24*10),0)*'Eigene Datenbank'!U12,OR(Hausform_Geb=SMFH,Hausform_Geb=LMFH),Nutzd/20*ROUNDUP(Nutz_Wärme_san/(365*24*10),0)*'Eigene Datenbank'!U13),aktSan_WP=WP,Nutzd/20*ROUNDUP(Nutz_Wärme_san/(365*24*30),0)*'Eigene Datenbank'!U7,aktSan_WP=Erdgas,_xlfn.IFS(OR(Hausform_Geb=SFH,Hausform_Geb=SDH),Nutzd/20*ROUNDUP(Nutz_Wärme_san/(365*24*10),0)*'Eigene Datenbank'!U9,OR(Hausform_Geb=SMFH,Hausform_Geb=LMFH),Nutzd/20*ROUNDUP(Nutz_Wärme_san/(365*24*10),0)*'Eigene Datenbank'!U10),aktSan_WP=Holz_Pellet,Nutzd/15*ROUNDUP(Nutz_Wärme_san/(365*24*9),0)*'Eigene Datenbank'!U15,aktSan_WP=Fernwärme,Nutzd/30*ROUNDUP(Nutz_Wärme_san/(365*24*1),0)*'Eigene Datenbank'!U21,aktSan_WP=BHKW,ROUNDUP(Nutz_Wärme_san/(365*24*500),0)*'Eigene Datenbank'!U22))) -> 0 | U62: =IF(Datenbank_Emission=Ökobaudat2024,"-",1/Nutzd*_xlfn.IFS(Datenbank_Emission=Datenbank_eigen,Nutzd/20*ROUNDUP((Nutz_Strom*_xlfn.IFS(aktSan_PV=PV_0,0,aktSan_PV=PV_20,0.2,aktSan_PV=PV_40,0.4,aktSan_PV=PV_60,0.6,aktSan_PV=PV_80,0.8,aktSan_PV=PV_100,1))/30000,0)*'Eigene Datenbank'!V24+_xlfn.IFS(aktSan_WP=Heizöl_alt,0,aktSan_WP=Heizöl_neu,_xlfn.IFS(OR(Hausform_Geb=SFH,Hausform_Geb=SDH),Nutzd/20*ROUNDUP(Nutz_Wärme_san/(365*24*10),0)*'Eigene Datenbank'!V12,OR(Hausform_Geb=SMFH,Hausform_Geb=LMFH),Nutzd/20*ROUNDUP(Nutz_Wärme_san/(365*24*10),0)*'Eigene Datenbank'!V13),aktSan_WP=WP,Nutzd/20*ROUNDUP(Nutz_Wärme_san/(365*24*30),0)*'Eigene Datenbank'!V7,aktSan_WP=Erdgas,_xlfn.IFS(OR(Hausform_Geb=SFH,Hausform_Geb=SDH),Nutzd/20*ROUNDUP(Nutz_Wärme_san/(365*24*10),0)*'Eigene Datenbank'!V9,OR(Hausform_Geb=SMFH,Hausform_Geb=LMFH),Nutzd/20*ROUNDUP(Nutz_Wärme_san/(365*24*10),0)*'Eigene Datenbank'!V10),aktSan_WP=Holz_Pellet,Nutzd/15*ROUNDUP(Nutz_Wärme_san/(365*24*9),0)*'Eigene Datenbank'!V15,aktSan_WP=Fernwärme,Nutzd/30*ROUNDUP(Nutz_Wärme_san/(365*24*1),0)*'Eigene Datenbank'!V21,aktSan_WP=BHKW,ROUNDUP(Nutz_Wärme_san/(365*24*500),0)*'Eigene Datenbank'!V22))) -> 0
D63: Nutzenergiebedarf Wärme nach Sanierung | H63: =Nutz_Wärme_san -> 125941.2 | I63: kWh/a | S63: Gesamt | T63: =SUM(T59:T62) -> 0 | U63: =SUM(U59:U62) -> 0
H64: ='Sanierung Einzelgebäude'!F29 -> 79.57140368 | I64: %
Q65: Kosten
S66: Kosten in € | T66: Vor Sanierung | V66: Nach Sanierung
T67: pro Jahr | U67: Gesamt | V67: pro Jahr | W67: Gesamt
S68: Strom | T68: =Nutz_Strom*Kosten!H17 -> 13510.968 | U68: =Nutzd*Nutz_Strom*Kosten!H17 -> 540438.72 | V68: =_xlfn.IFS(aktSan_PV=PV_0,Nutz_Strom*Kosten!H17,aktSan_PV=PV_20,0.8*Nutz_Strom*Kosten!H17,aktSan_PV=PV_40,0.6*Nutz_Strom*Kosten!H17,aktSan_PV=PV_60,0.4*Nutz_Strom*Kosten!H17,aktSan_PV=PV_80,0.2*Nutz_Strom*Kosten!H17,aktSan_PV=PV_100,0) -> 2702.1936 | W68: =Nutzd*_xlfn.IFS(aktSan_PV=PV_0,Nutz_Strom*Kosten!H17,aktSan_PV=PV_20,0.8*Nutz_Strom*Kosten!H17,aktSan_PV=PV_40,0.6*Nutz_Strom*Kosten!H17,aktSan_PV=PV_60,0.4*Nutz_Strom*Kosten!H17,aktSan_PV=PV_80,0.2*Nutz_Strom*Kosten!H17,aktSan_PV=PV_100,0) -> 108087.744
S69: Wärme | T69: =Nutz_Wärme*('Sanierung Einzelgebäude'!H9*Kosten!H8+'Sanierung Einzelgebäude'!H10*Kosten!H6+'Sanierung Einzelgebäude'!H11*Kosten!H11+'Sanierung Einzelgebäude'!H12*Kosten!H14+'Sanierung Einzelgebäude'!H13*Kosten!H18*0.65+'Sanierung Einzelgebäude'!H13*Kosten!H19*0.35) -> 18088.70393 | U69: =Nutzd*Nutz_Wärme*('Sanierung Einzelgebäude'!H9*Kosten!H8+'Sanierung Einzelgebäude'!H10*Kosten!H6+'Sanierung Einzelgebäude'!H11*Kosten!H11+'Sanierung Einzelgebäude'!H12*Kosten!H14+'Sanierung Einzelgebäude'!H13*Kosten!H18*0.65+'Sanierung Einzelgebäude'!H13*Kosten!H19*0.35) -> 723548.1574 | V69: =Nutz_Wärme_san*_xlfn.IFS(aktSan_WP=WP,Kosten!H6,OR(aktSan_WP=Heizöl_alt,aktSan_WP=Heizöl_neu),Kosten!H11,aktSan_WP=Erdgas,Kosten!H8,aktSan_WP=Holz_Pellet,Kosten!H14,aktSan_WP=Fernwärme,(Kosten!H18*0.65+Kosten!H19*0.35),aktSan_WP=BHKW,Kosten!H23) -> 7399.0455 | W69: =Nutzd*Nutz_Wärme_san*_xlfn.IFS(aktSan_WP=WP,Kosten!H6,OR(aktSan_WP=Heizöl_alt,aktSan_WP=Heizöl_neu),Kosten!H11,aktSan_WP=Erdgas,Kosten!H8,aktSan_WP=Holz_Pellet,Kosten!H14,aktSan_WP=Fernwärme,(Kosten!H18*0.65+Kosten!H19*0.35),aktSan_WP=BHKW,Kosten!H23) -> 295961.82
